Workbook

Sheet Стенды (hidden)
A1: Рекламно производственная компания "Белый Сокол"
A4: Нестандартные информационные стенды | L4: Стандартные информационные стенды
L5: Стенды | O5: Кол-во
A6: Размер в см. | C6: Карманы | E6: Кол-во | F6: Ст-ть | G6: Объёмные карманы | I6: Кол-во | J6: Ст-ть | L6: Карманы | M6: Размеры
A7: Ширина | B7: высота | L7: 1 | M7: 30х45 | O7: 1 | P7: TRUE | Q7: =IF(P7,300)*O7 -> 300
A8: 80 | B8: 100 | C8: А5 | D8: 80 | E8: 0 | F8: =D8*E8 -> 0 | G8: Под визитки | H8: 150 | J8: =I8*H8 -> 0 | L8: 2 | M8: 60х50 | O8: 1 | P8: =FALSE -> FALSE | Q8: =IF(P8,650)*O8 -> 0
C9: А4 | D9: 150 | E9: 6 | F9: =D9*E9 -> 900 | G9: А5 | H9: 250 | I9: 1 | J9: =I9*H9 -> 250 | L9: 3 | M9: 80х50 | O9: 1 | P9: =FALSE -> FALSE | Q9: =IF(P9,900)*O9 -> 0
C10: А3 | D10: 200 | E10: 0 | F10: =D10*E10 -> 0 | G10: А4 | H10: 300 | I10: 0 | J10: =I10*H10 -> 0 | L10: 4 | M10: 60х80 | O10: 1 | P10: FALSE | Q10: =IF(P10,1120)*O10 -> 0
C11: А2 | D11: 300 | E11: 0 | F11: =D11*E11 -> 0 | G11: А3 | H11: 450 | J11: =I11*H11 -> 0 | L11: 6 | M11: 80х80 | O11: 1 | P11: =FALSE -> FALSE | Q11: =IF(P11,1560)*O11 -> 0
C12: А1 | D12: 400 | F12: =D12*E12 -> 0 | G12: А2 | H12: 600 | J12: =I12*H11 -> 0 | L12: 8 | M12: 105х85 | O12: 1 | P12: =FALSE -> FALSE | Q12: =IF(P12,1940)*O12 -> 0
C13: =A8*B8/10000 -> 0.8 | E13: =(0.035*E8)+(0.077*E9)+(0.154*E10)+(0.3*E11)+(0.62*E12)+(0.005*I8)+(0.035*I9)+(0.077*I10)+(0.154*I11)+(0.3*I12) -> 0.497 | L13: 10 | M13: 130х85 | O13: 1 | P13: =FALSE -> FALSE | Q13: =IF(P13,2258)*O13 -> 0
A14: Количество стендов | B14: 1 | C14: =IF(E13<C13,"","Карманы не помещаются на стенд") ->  | L14: Итого | Q14: =SUM(Q7:Q13) -> 300
N15: =IF(Q14>20000,"Возможна скидка до 20%","Возможна скидка до 10 %") -> Возможна скидка до 10 %
A16: Клемшина | B16: =(((A8*0.2)+(B8*0.2))*0.1)*150 -> 540 | C16: =B14 -> 1 | E16: =B16*C16 -> 540
A17: Нильсен | B17: =(((A8*0.2)+(B8*0.2))*0.1)*350 -> 1260 | C17: =B14 -> 1 | E17: =B17*C17 -> 1260
C18: клемшина | E18: Нильсен
A19: Стоимость | B19: =(((A8*B8)*0.2)+F8+F9+F10+J8+J9+J10+J12+F11+F12+J11)*B14 -> 2750 | C19: =B19+E16 -> 3290 | E19: =B19+E17 -> 4010
B20: =IF(B19>20000,"Возможна скидка до 20%","Возможна скидка до 10%") -> Возможна скидка до 10%

Sheet Строки (hidden)
B1: Ширина, см | C1: Высота, см | D1: Количество
D2: 1 | E2: Курс доллара
A3: Количество модулей | B3: 11 | C3: 2 | D3: =B3*C3 -> 22 | E3: 64
A4: Габаритные размеры | B4: =(B3*320)+70 -> 3590 | C4: =(C3*160)+70 -> 390
A6: Доп. опции | C6: Способ передачи информации
A9: Итого | E9: =E43 -> 39233.09119 | F9: =F43 -> 613.0170498
A10: Цена для РА | E10: =E9-(E9*0.1) -> 35309.78207 | F10: =E10+E10*0.1 -> 38840.76028 | G10: Для РА с монтажом
A11: Энергопотребление, Вт | B11: =D3*E46 -> 275
A12: Итого с монтажом (Без АГП) | E12: =E9+E9*10% -> 43156.40031
A13: Видимость строки, м. | B13: =VLOOKUP(G49,C49:F56,4,0) -> 150
A14: Эконом | E14: =E9-(E9*0.1) -> 35309.78207 | F14: =E14+E14*0.2 -> 42371.73848 | G14: Эконом с монтажом
A15: Стандарт | E15: =E12 -> 43156.40031 | F15: =E9 -> 39233.09119 | G15: Стандарт без монтажа | H15: =E15-F15 -> 3923.309119
A16: Профи | E16: =E12+(E12*0.2) -> 51787.68037
C26: количество | D26: Цена, ед | E26: стоимость
A27: =VLOOKUP(A73,A74:C80,3,0) -> CL P-10G 16*32WP | C27: =C3*B3*D2 -> 22 | D27: =VLOOKUP(A73,A74:D80,4,0) -> 597.76 | E27: =D27*C27 -> 13150.72
A28: =VLOOKUP(C27,A84:B339,2,0) -> BX 5U0 | C28: =D2 -> 1 | D28: =VLOOKUP(C27,A84:C1083,3,0) -> 704 | E28: 704
A29: Магниты | C29: =C27*4*D2 -> 88 | D29: 6 | E29: 528
A30: Профиль | C30: =((((B3*320)+(C3*160))*2)*D2)/1000 -> 7.68 | D30: =F30*E3 -> 217.6 | E30: 1671.168 | F30: 3.4
A31: Блоки Питания | C31: =C27/7 -> 3.142857143 | D31: =F31*E3 -> 729.6 | E31: 2293.028571 | F31: 11.4
A32: Уголки | C32: =4*D2 -> 4 | D32: =F32*E3 -> 48 | E32: 192 | F32: 0.75
A33: Задник | C33: =B4*C4/1000000 -> 1.4001 | D33: 302 | E33: 422.8302
A34: USB провод | E34: 180
A35: Провода | C35: =B4/1000 -> 3.59 | D35: 28.5 | E35: =D35*C35 -> 102.315
A36: Сумма со скидкой 25% | D36: 0 | E36: =SUM(E27:E35)-(SUM(E27:E35)*D36) -> 19244.06177
A37: Датчики | E37: =VLOOKUP(C60,A61:C65,3,0) -> 1152
A38: Заливка инфо | E38: =VLOOKUP(C66,A67:C71,3,0) -> 0
DH39: USB | DI39: ширина | DJ39: высота | DK39: выс. Мод | DL39: шир. Мод. | DM39: Всего
A40: Сборка | C40: =D2 -> 1 | D40: =B4*C4*0.001*D2 -> 1400.1 | E40: =D40*C40 -> 1400.1 | S40: 16 | U40: 16 | V40: 32 | W40: 48 | X40: 64 | Y40: 80 | Z40: 96 | AA40: 112 | AB40: 128 | AC40: 144 | AD40: 160 | AE40: 176 | AF40: 192 | AG40: 208 | AH40: 224 | AI40: 240 | AJ40: 256 | AK40: 272 | AL40: 288 | AM40: 304 | AN40: 320 | AO40: 336 | AP40: 352 | AQ40: 368 | AR40: 384 | AS40: 400 | AT40: 416 | AU40: 432 | AV40: 448 | AW40: 464 | AX40: 480 | AY40: 496 | AZ40: 512 | BA40: 528 | BB40: 544 | BC40: 560 | BD40: 576 | BE40: 592 | BF40: 608 | BG40: 624 | BH40: 640 | BI40: 656 | BJ40: 672 | BK40: 688 | BL40: 704 | BM40: 720 | BN40: 736 | BO40: 752 | BP40: 768 | BQ40: 784 | BR40: 800 | BS40: 816 | BT40: 832 | BU40: 848 | BV40: 864 | BW40: 880 | BX40: 896 | BY40: 912 | BZ40: 928 | CA40: 944 | CB40: 960 | CC40: 976 | CD40: 992 | CE40: 1008 | CF40: 1024 | CG40: 1040 | CH40: 1056 | CI40: 1072 | CJ40: 1088 | CK40: 1104 | CL40: 1120 | CM40: 1136 | CN40: 1152 | CO40: 1168 | CP40: 1184 | CQ40: 1200 | CR40: 1216 | CS40: 1232 | CT40: 1248 | CU40: 1264 | CV40: 1280 | CW40: 1296 | CX40: 1312 | CY40: 1328 | CZ40: 1344 | DA40: 1360 | DB40: 1376 | DC40: 1392 | DD40: 1408 | DE40: 1424 | DF40: 1440 | DH40: BX 5UT | DI40: 512 | DJ40: 16 | DK40: =DJ40/16 -> 1 | DL40: =DI40/32 -> 16 | DM40: =DL40*DK40 -> 16
A41: Итого | E41: =E36+E40+E37+E38 -> 21796.16177 | S41: 32 | T41: 32 | U41: 1 | V41: 2 | W41: 3 | X41: 4 | Y41: 5 | Z41: 6 | AA41: 7 | AB41: 8 | AC41: 9 | AD41: 10 | AE41: 11 | AF41: 12 | AG41: 13 | AH41: 14 | AI41: 15 | AJ41: 16 | AK41: 17 | AL41: 18 | AM41: 19 | AN41: 20 | AO41: 21 | AP41: 22 | AQ41: 23 | AR41: 24 | AS41: 25 | AT41: 26 | AU41: 27 | AV41: 28 | AW41: 29 | AX41: 30 | AY41: 31 | AZ41: 32 | BA41: 33 | BB41: 34 | BC41: 35 | BD41: 36 | BE41: 37 | BF41: 38 | BG41: 39 | BH41: 40 | BI41: 41 | BJ41: 42 | BK41: 43 | BL41: 44 | BM41: 45 | BN41: 46 | BO41: 47 | BP41: 48 | BQ41: 49 | BR41: 50 | BS41: 51 | BT41: 52 | BU41: 53 | BV41: 54 | BW41: 55 | BX41: 56 | BY41: 57 | BZ41: 58 | CA41: 59 | CB41: 60 | CC41: 61 | CD41: 62 | CE41: 63 | CF41: 64 | CG41: 65 | CH41: 66 | CI41: 67 | CJ41: 68 | CK41: 69 | CL41: 70 | CM41: 71 | CN41: 72 | CO41: 73 | CP41: 74 | CQ41: 75 | CR41: 76 | CS41: 77 | CT41: 78 | CU41: 79 | CV41: 80 | CW41: 81 | CX41: 82 | CY41: 83 | CZ41: 84 | DA41: 85 | DB41: 86 | DC41: 87 | DD41: 88 | DE41: 89 | DF41: 90 | DI41: 256 | DJ41: 32 | DK41: 2 | DL41: 8 | DM41: 16
A42: Прибыль | D42: 0.8 | E42: =E41*D42 -> 17436.92942 | S42: 48 | T42: 64 | U42: 2 | V42: 4 | W42: 6 | X42: 8 | Y42: 10 | Z42: 12 | AA42: 14 | AB42: 16 | AC42: 18 | AD42: 20 | AE42: 22 | AF42: 24 | AG42: 26 | AH42: 28 | AI42: 30 | AJ42: 32 | AK42: 34 | AL42: 36 | AM42: 38 | AN42: 40 | AO42: 42 | AP42: 44 | AQ42: 46 | AR42: 48 | AS42: 50 | AT42: 52 | AU42: 54 | AV42: 56 | AW42: 58 | AX42: 60 | AY42: 62 | AZ42: 64 | BA42: 66 | BB42: 68 | BC42: 70 | BD42: 72 | BE42: 74 | BF42: 76 | BG42: 78 | BH42: 80 | BI42: 82 | BJ42: 84 | BK42: 86 | BL42: 88 | BM42: 90 | BN42: 92 | BO42: 94 | BP42: 96 | BQ42: 98 | BR42: 100 | BS42: 102 | BT42: 104 | BU42: 106 | BV42: 108 | BW42: 110 | BX42: 112 | BY42: 114 | BZ42: 116 | CA42: 118 | CB42: 120 | CC42: 122 | CD42: 124 | CE42: 126 | CF42: 128 | CG42: 130 | CH42: 132 | CI42: 134 | CJ42: 136 | CK42: 138 | CL42: 140 | CM42: 142 | CN42: 144 | CO42: 146 | CP42: 148 | CQ42: 150 | CR42: 152 | CS42: 154 | CT42: 156 | CU42: 158 | CV42: 160 | CW42: 162 | CX42: 164 | CY42: 166 | CZ42: 168 | DA42: 170 | DB42: 172 | DC42: 174 | DD42: 176 | DE42: 178 | DF42: 180 | DH42: BX 5U0 | DI42: 1024 | DJ42: 16 | DK42: 1 | DL42: 32 | DM42: 32
A43: Итого | E43: =E41+E42 -> 39233.09119 | F43: =E43/E3 -> 613.0170498 | S43: 64 | T43: 96 | U43: 3 | V43: 6 | W43: 9 | X43: 12 | Y43: 15 | Z43: 18 | AA43: 21 | AB43: 24 | AC43: 27 | AD43: 30 | AE43: 33 | AF43: 36 | AG43: 39 | AH43: 42 | AI43: 45 | AJ43: 48 | AK43: 51 | AL43: 54 | AM43: 57 | AN43: 60 | AO43: 63 | AP43: 66 | AQ43: 69 | AR43: 72 | AS43: 75 | AT43: 78 | AU43: 81 | AV43: 84 | AW43: 87 | AX43: 90 | AY43: 93 | AZ43: 96 | BA43: 99 | BB43: 102 | BC43: 105 | BD43: 108 | BE43: 111 | BF43: 114 | BG43: 117 | BH43: 120 | BI43: 123 | BJ43: 126 | BK43: 129 | BL43: 132 | BM43: 135 | BN43: 138 | BO43: 141 | BP43: 144 | BQ43: 147 | BR43: 150 | BS43: 153 | BT43: 156 | BU43: 159 | BV43: 162 | BW43: 165 | BX43: 168 | BY43: 171 | BZ43: 174 | CA43: 177 | CB43: 180 | CC43: 183 | CD43: 186 | CE43: 189 | CF43: 192 | CG43: 195 | CH43: 198 | CI43: 201 | CJ43: 204 | CK43: 207 | CL43: 210 | CM43: 213 | CN43: 216 | CO43: 219 | CP43: 222 | CQ43: 225 | CR43: 228 | CS43: 231 | CT43: 234 | CU43: 237 | CV43: 240 | CW43: 243 | CX43: 246 | CY43: 249 | CZ43: 252 | DA43: 255 | DB43: 258 | DC43: 261 | DD43: 264 | DE43: 267 | DF43: 270 | DI43: 512 | DJ43: 32 | DK43: 2 | DL43: 16 | DM43: 32
S44: 80 | T44: 128 | U44: 4 | V44: 8 | W44: 12 | X44: 16 | Y44: 20 | Z44: 24 | AA44: 28 | AB44: 32 | AC44: 36 | AD44: 40 | AE44: 44 | AF44: 48 | AG44: 52 | AH44: 56 | AI44: 60 | AJ44: 64 | AK44: 68 | AL44: 72 | AM44: 76 | AN44: 80 | AO44: 84 | AP44: 88 | AQ44: 92 | AR44: 96 | AS44: 100 | AT44: 104 | AU44: 108 | AV44: 112 | AW44: 116 | AX44: 120 | AY44: 124 | AZ44: 128 | BA44: 132 | BB44: 136 | BC44: 140 | BD44: 144 | BE44: 148 | BF44: 152 | BG44: 156 | BH44: 160 | BI44: 164 | BJ44: 168 | BK44: 172 | BL44: 176 | BM44: 180 | BN44: 184 | BO44: 188 | BP44: 192 | BQ44: 196 | BR44: 200 | BS44: 204 | BT44: 208 | BU44: 212 | BV44: 216 | BW44: 220 | BX44: 224 | BY44: 228 | BZ44: 232 | CA44: 236 | CB44: 240 | CC44: 244 | CD44: 248 | CE44: 252 | CF44: 256 | CG44: 260 | CH44: 264 | CI44: 268 | CJ44: 272 | CK44: 276 | CL44: 280 | CM44: 284 | CN44: 288 | CO44: 292 | CP44: 296 | CQ44: 300 | CR44: 304 | CS44: 308 | CT44: 312 | CU44: 316 | CV44: 320 | CW44: 324 | CX44: 328 | CY44: 332 | CZ44: 336 | DA44: 340 | DB44: 344 | DC44: 348 | DD44: 352 | DE44: 356 | DF44: 360 | DI44: 320 | DJ44: 48 | DK44: 3 | DL44: 10 | DM44: 30
S45: 96 | T45: 160 | U45: 5 | V45: 10 | W45: 15 | X45: 20 | Y45: 25 | Z45: 30 | AA45: 35 | AB45: 40 | AC45: 45 | AD45: 50 | AE45: 55 | AF45: 60 | AG45: 65 | AH45: 70 | AI45: 75 | AJ45: 80 | AK45: 85 | AL45: 90 | AM45: 95 | AN45: 100 | AO45: 105 | AP45: 110 | AQ45: 115 | AR45: 120 | AS45: 125 | AT45: 130 | AU45: 135 | AV45: 140 | AW45: 145 | AX45: 150 | AY45: 155 | AZ45: 160 | BA45: 165 | BB45: 170 | BC45: 175 | BD45: 180 | BE45: 185 | BF45: 190 | BG45: 195 | BH45: 200 | BI45: 205 | BJ45: 210 | BK45: 215 | BL45: 220 | BM45: 225 | BN45: 230 | BO45: 235 | BP45: 240 | BQ45: 245 | BR45: 250 | BS45: 255 | BT45: 260 | BU45: 265 | BV45: 270 | BW45: 275 | BX45: 280 | BY45: 285 | BZ45: 290 | CA45: 295 | CB45: 300 | CC45: 305 | CD45: 310 | CE45: 315 | CF45: 320 | CG45: 325 | CH45: 330 | CI45: 335 | CJ45: 340 | CK45: 345 | CL45: 350 | CM45: 355 | CN45: 360 | CO45: 365 | CP45: 370 | CQ45: 375 | CR45: 380 | CS45: 385 | CT45: 390 | CU45: 395 | CV45: 400 | CW45: 405 | CX45: 410 | CY45: 415 | CZ45: 420 | DA45: 425 | DB45: 430 | DC45: 435 | DD45: 440 | DE45: 445 | DF45: 450 | DI45: 256 | DJ45: 64 | DK45: 4 | DL45: 8 | DM45: 32
A46: 1. Внести расчёт энергопотребления монохромной вывески | E46: 12.5 | S46: 112 | T46: 192 | U46: 6 | V46: 12 | W46: 18 | X46: 24 | Y46: 30 | Z46: 36 | AA46: 42 | AB46: 48 | AC46: 54 | AD46: 60 | AE46: 66 | AF46: 72 | AG46: 78 | AH46: 84 | AI46: 90 | AJ46: 96 | AK46: 102 | AL46: 108 | AM46: 114 | AN46: 120 | AO46: 126 | AP46: 132 | AQ46: 138 | AR46: 144 | AS46: 150 | AT46: 156 | AU46: 162 | AV46: 168 | AW46: 174 | AX46: 180 | AY46: 186 | AZ46: 192 | BA46: 198 | BB46: 204 | BC46: 210 | BD46: 216 | BE46: 222 | BF46: 228 | BG46: 234 | BH46: 240 | BI46: 246 | BJ46: 252 | BK46: 258 | BL46: 264 | BM46: 270 | BN46: 276 | BO46: 282 | BP46: 288 | BQ46: 294 | BR46: 300 | BS46: 306 | BT46: 312 | BU46: 318 | BV46: 324 | BW46: 330 | BX46: 336 | BY46: 342 | BZ46: 348 | CA46: 354 | CB46: 360 | CC46: 366 | CD46: 372 | CE46: 378 | CF46: 384 | CG46: 390 | CH46: 396 | CI46: 402 | CJ46: 408 | CK46: 414 | CL46: 420 | CM46: 426 | CN46: 432 | CO46: 438 | CP46: 444 | CQ46: 450 | CR46: 456 | CS46: 462 | CT46: 468 | CU46: 474 | CV46: 480 | CW46: 486 | CX46: 492 | CY46: 498 | CZ46: 504 | DA46: 510 | DB46: 516 | DC46: 522 | DD46: 528 | DE46: 534 | DF46: 540 | DH46: BX 5U1 | DI46: 2048 | DJ46: 16 | DK46: 1 | DL46: 64 | DM46: 64
A47: 2. Внести расчёт энергопотребления трёхцветной вывески | E47: 17.5 | S47: 128 | T47: 224 | U47: 7 | V47: 14 | W47: 21 | X47: 28 | Y47: 35 | Z47: 42 | AA47: 49 | AB47: 56 | AC47: 63 | AD47: 70 | AE47: 77 | AF47: 84 | AG47: 91 | AH47: 98 | AI47: 105 | AJ47: 112 | AK47: 119 | AL47: 126 | AM47: 133 | AN47: 140 | AO47: 147 | AP47: 154 | AQ47: 161 | AR47: 168 | AS47: 175 | AT47: 182 | AU47: 189 | AV47: 196 | AW47: 203 | AX47: 210 | AY47: 217 | AZ47: 224 | BA47: 231 | BB47: 238 | BC47: 245 | BD47: 252 | BE47: 259 | BF47: 266 | BG47: 273 | BH47: 280 | BI47: 287 | BJ47: 294 | BK47: 301 | BL47: 308 | BM47: 315 | BN47: 322 | BO47: 329 | BP47: 336 | BQ47: 343 | BR47: 350 | BS47: 357 | BT47: 364 | BU47: 371 | BV47: 378 | BW47: 385 | BX47: 392 | BY47: 399 | BZ47: 406 | CA47: 413 | CB47: 420 | CC47: 427 | CD47: 434 | CE47: 441 | CF47: 448 | CG47: 455 | CH47: 462 | CI47: 469 | CJ47: 476 | CK47: 483 | CL47: 490 | CM47: 497 | CN47: 504 | CO47: 511 | CP47: 518 | CQ47: 525 | CR47: 532 | CS47: 539 | CT47: 546 | CU47: 553 | CV47: 560 | CW47: 567 | CX47: 574 | CY47: 581 | CZ47: 588 | DA47: 595 | DB47: 602 | DC47: 609 | DD47: 616 | DE47: 623 | DF47: 630 | DI47: 1024 | DJ47: 32 | DK47: 2 | DL47: 32 | DM47: 64
A48: 3. Добавить кнопку "Поддержка видео" | S48: 144 | T48: 256 | U48: 8 | V48: 16 | W48: 24 | X48: 32 | Y48: 40 | Z48: 48 | AA48: 56 | AB48: 64 | AC48: 72 | AD48: 80 | AE48: 88 | AF48: 96 | AG48: 104 | AH48: 112 | AI48: 120 | AJ48: 128 | AK48: 136 | AL48: 144 | AM48: 152 | AN48: 160 | AO48: 168 | AP48: 176 | AQ48: 184 | AR48: 192 | AS48: 200 | AT48: 208 | AU48: 216 | AV48: 224 | AW48: 232 | AX48: 240 | AY48: 248 | AZ48: 256 | BA48: 264 | BB48: 272 | BC48: 280 | BD48: 288 | BE48: 296 | BF48: 304 | BG48: 312 | BH48: 320 | BI48: 328 | BJ48: 336 | BK48: 344 | BL48: 352 | BM48: 360 | BN48: 368 | BO48: 376 | BP48: 384 | BQ48: 392 | BR48: 400 | BS48: 408 | BT48: 416 | BU48: 424 | BV48: 432 | BW48: 440 | BX48: 448 | BY48: 456 | BZ48: 464 | CA48: 472 | CB48: 480 | CC48: 488 | CD48: 496 | CE48: 504 | CF48: 512 | CG48: 520 | CH48: 528 | CI48: 536 | CJ48: 544 | CK48: 552 | CL48: 560 | CM48: 568 | CN48: 576 | CO48: 584 | CP48: 592 | CQ48: 600 | CR48: 608 | CS48: 616 | CT48: 624 | CU48: 632 | CV48: 640 | CW48: 648 | CX48: 656 | CY48: 664 | CZ48: 672 | DA48: 680 | DB48: 688 | DC48: 696 | DD48: 704 | DE48: 712 | DF48: 720 | DI48: 672 | DJ48: 48 | DK48: 3 | DL48: 21 | DM48: 63
A49: 4. Добавить кнопку "WIFI" | E49: модули | F49: метр | G49: =C3 -> 2 | S49: 160 | T49: 288 | U49: 9 | V49: 18 | W49: 27 | X49: 36 | Y49: 45 | Z49: 54 | AA49: 63 | AB49: 72 | AC49: 81 | AD49: 90 | AE49: 99 | AF49: 108 | AG49: 117 | AH49: 126 | AI49: 135 | AJ49: 144 | AK49: 153 | AL49: 162 | AM49: 171 | AN49: 180 | AO49: 189 | AP49: 198 | AQ49: 207 | AR49: 216 | AS49: 225 | AT49: 234 | AU49: 243 | AV49: 252 | AW49: 261 | AX49: 270 | AY49: 279 | AZ49: 288 | BA49: 297 | BB49: 306 | BC49: 315 | BD49: 324 | BE49: 333 | BF49: 342 | BG49: 351 | BH49: 360 | BI49: 369 | BJ49: 378 | BK49: 387 | BL49: 396 | BM49: 405 | BN49: 414 | BO49: 423 | BP49: 432 | BQ49: 441 | BR49: 450 | BS49: 459 | BT49: 468 | BU49: 477 | BV49: 486 | BW49: 495 | BX49: 504 | BY49: 513 | BZ49: 522 | CA49: 531 | CB49: 540 | CC49: 549 | CD49: 558 | CE49: 567 | CF49: 576 | CG49: 585 | CH49: 594 | CI49: 603 | CJ49: 612 | CK49: 621 | CL49: 630 | CM49: 639 | CN49: 648 | CO49: 657 | CP49: 666 | CQ49: 675 | CR49: 684 | CS49: 693 | CT49: 702 | CU49: 711 | CV49: 720 | CW49: 729 | CX49: 738 | CY49: 747 | CZ49: 756 | DA49: 765 | DB49: 774 | DC49: 783 | DD49: 792 | DE49: 801 | DF49: 810 | DI49: 512 | DJ49: 64 | DK49: 4 | DL49: 16 | DM49: 64
C50: 1 | D50: Видимость строки | E50: 16 | F50: 65 | S50: 176 | T50: 320 | U50: 10 | V50: 20 | W50: 30 | X50: 40 | Y50: 50 | Z50: 60 | AA50: 70 | AB50: 80 | AC50: 90 | AD50: 100 | AE50: 110 | AF50: 120 | AG50: 130 | AH50: 140 | AI50: 150 | AJ50: 160 | AK50: 170 | AL50: 180 | AM50: 190 | AN50: 200 | AO50: 210 | AP50: 220 | AQ50: 230 | AR50: 240 | AS50: 250 | AT50: 260 | AU50: 270 | AV50: 280 | AW50: 290 | AX50: 300 | AY50: 310 | AZ50: 320 | BA50: 330 | BB50: 340 | BC50: 350 | BD50: 360 | BE50: 370 | BF50: 380 | BG50: 390 | BH50: 400 | BI50: 410 | BJ50: 420 | BK50: 430 | BL50: 440 | BM50: 450 | BN50: 460 | BO50: 470 | BP50: 480 | BQ50: 490 | BR50: 500 | BS50: 510 | BT50: 520 | BU50: 530 | BV50: 540 | BW50: 550 | BX50: 560 | BY50: 570 | BZ50: 580 | CA50: 590 | CB50: 600 | CC50: 610 | CD50: 620 | CE50: 630 | CF50: 640 | CG50: 650 | CH50: 660 | CI50: 670 | CJ50: 680 | CK50: 690 | CL50: 700 | CM50: 710 | CN50: 720 | CO50: 730 | CP50: 740 | CQ50: 750 | CR50: 760 | CS50: 770 | CT50: 780 | CU50: 790 | CV50: 800 | CW50: 810 | CX50: 820 | CY50: 830 | CZ50: 840 | DA50: 850 | DB50: 860 | DC50: 870 | DD50: 880 | DE50: 890 | DF50: 900 | DH50: BX 5U2 | DI50: 3200 | DJ50: 16 | DK50: 1 | DL50: 100 | DM50: 100
C51: 2 | E51: 32 | F51: 150 | S51: 192 | T51: 352 | U51: 11 | V51: 22 | W51: 33 | X51: 44 | Y51: 55 | Z51: 66 | AA51: 77 | AB51: 88 | AC51: 99 | AD51: 110 | AE51: 121 | AF51: 132 | AG51: 143 | AH51: 154 | AI51: 165 | AJ51: 176 | AK51: 187 | AL51: 198 | AM51: 209 | AN51: 220 | AO51: 231 | AP51: 242 | AQ51: 253 | AR51: 264 | AS51: 275 | AT51: 286 | AU51: 297 | AV51: 308 | AW51: 319 | AX51: 330 | AY51: 341 | AZ51: 352 | BA51: 363 | BB51: 374 | BC51: 385 | BD51: 396 | BE51: 407 | BF51: 418 | BG51: 429 | BH51: 440 | BI51: 451 | BJ51: 462 | BK51: 473 | BL51: 484 | BM51: 495 | BN51: 506 | BO51: 517 | BP51: 528 | BQ51: 539 | BR51: 550 | BS51: 561 | BT51: 572 | BU51: 583 | BV51: 594 | BW51: 605 | BX51: 616 | BY51: 627 | BZ51: 638 | CA51: 649 | CB51: 660 | CC51: 671 | CD51: 682 | CE51: 693 | CF51: 704 | CG51: 715 | CH51: 726 | CI51: 737 | CJ51: 748 | CK51: 759 | CL51: 770 | CM51: 781 | CN51: 792 | CO51: 803 | CP51: 814 | CQ51: 825 | CR51: 836 | CS51: 847 | CT51: 858 | CU51: 869 | CV51: 880 | CW51: 891 | CX51: 902 | CY51: 913 | CZ51: 924 | DA51: 935 | DB51: 946 | DC51: 957 | DD51: 968 | DE51: 979 | DF51: 990 | DI51: 2048 | DJ51: 32 | DK51: 2 | DL51: 64 | DM51: 128
C52: 3 | E52: 48 | F52: 215 | S52: 208 | T52: 384 | U52: 12 | V52: 24 | W52: 36 | X52: 48 | Y52: 60 | Z52: 72 | AA52: 84 | AB52: 96 | AC52: 108 | AD52: 120 | AE52: 132 | AF52: 144 | AG52: 156 | AH52: 168 | AI52: 180 | AJ52: 192 | AK52: 204 | AL52: 216 | AM52: 228 | AN52: 240 | AO52: 252 | AP52: 264 | AQ52: 276 | AR52: 288 | AS52: 300 | AT52: 312 | AU52: 324 | AV52: 336 | AW52: 348 | AX52: 360 | AY52: 372 | AZ52: 384 | BA52: 396 | BB52: 408 | BC52: 420 | BD52: 432 | BE52: 444 | BF52: 456 | BG52: 468 | BH52: 480 | BI52: 492 | BJ52: 504 | BK52: 516 | BL52: 528 | BM52: 540 | BN52: 552 | BO52: 564 | BP52: 576 | BQ52: 588 | BR52: 600 | BS52: 612 | BT52: 624 | BU52: 636 | BV52: 648 | BW52: 660 | BX52: 672 | BY52: 684 | BZ52: 696 | CA52: 708 | CB52: 720 | CC52: 732 | CD52: 744 | CE52: 756 | CF52: 768 | CG52: 780 | CH52: 792 | CI52: 804 | CJ52: 816 | CK52: 828 | CL52: 840 | CM52: 852 | CN52: 864 | CO52: 876 | CP52: 888 | CQ52: 900 | CR52: 912 | CS52: 924 | CT52: 936 | CU52: 948 | CV52: 960 | CW52: 972 | CX52: 984 | CY52: 996 | CZ52: 1008 | DA52: 1020 | DB52: 1032 | DC52: 1044 | DD52: 1056 | DE52: 1068 | DF52: 1080 | DI52: 1344 | DJ52: 48 | DK52: 3 | DL52: 42 | DM52: 126
C53: 4 | E53: 64 | F53: 320 | S53: 224 | T53: 416 | U53: 13 | V53: 26 | W53: 39 | X53: 52 | Y53: 65 | Z53: 78 | AA53: 91 | AB53: 104 | AC53: 117 | AD53: 130 | AE53: 143 | AF53: 156 | AG53: 169 | AH53: 182 | AI53: 195 | AJ53: 208 | AK53: 221 | AL53: 234 | AM53: 247 | AN53: 260 | AO53: 273 | AP53: 286 | AQ53: 299 | AR53: 312 | AS53: 325 | AT53: 338 | AU53: 351 | AV53: 364 | AW53: 377 | AX53: 390 | AY53: 403 | AZ53: 416 | BA53: 429 | BB53: 442 | BC53: 455 | BD53: 468 | BE53: 481 | BF53: 494 | BG53: 507 | BH53: 520 | BI53: 533 | BJ53: 546 | BK53: 559 | BL53: 572 | BM53: 585 | BN53: 598 | BO53: 611 | BP53: 624 | BQ53: 637 | BR53: 650 | BS53: 663 | BT53: 676 | BU53: 689 | BV53: 702 | BW53: 715 | BX53: 728 | BY53: 741 | BZ53: 754 | CA53: 767 | CB53: 780 | CC53: 793 | CD53: 806 | CE53: 819 | CF53: 832 | CG53: 845 | CH53: 858 | CI53: 871 | CJ53: 884 | CK53: 897 | CL53: 910 | CM53: 923 | CN53: 936 | CO53: 949 | CP53: 962 | CQ53: 975 | CR53: 988 | CS53: 1001 | CT53: 1014 | CU53: 1027 | CV53: 1040 | CW53: 1053 | CX53: 1066 | CY53: 1079 | CZ53: 1092 | DA53: 1105 | DB53: 1118 | DC53: 1131 | DD53: 1144 | DE53: 1157 | DF53: 1170 | DI53: 1024 | DJ53: 64 | DK53: 4 | DL53: 32 | DM53: 128
C54: 5 | E54: 80 | F54: 400 | S54: 240 | T54: 448 | U54: 14 | V54: 28 | W54: 42 | X54: 56 | Y54: 70 | Z54: 84 | AA54: 98 | AB54: 112 | AC54: 126 | AD54: 140 | AE54: 154 | AF54: 168 | AG54: 182 | AH54: 196 | AI54: 210 | AJ54: 224 | AK54: 238 | AL54: 252 | AM54: 266 | AN54: 280 | AO54: 294 | AP54: 308 | AQ54: 322 | AR54: 336 | AS54: 350 | AT54: 364 | AU54: 378 | AV54: 392 | AW54: 406 | AX54: 420 | AY54: 434 | AZ54: 448 | BA54: 462 | BB54: 476 | BC54: 490 | BD54: 504 | BE54: 518 | BF54: 532 | BG54: 546 | BH54: 560 | BI54: 574 | BJ54: 588 | BK54: 602 | BL54: 616 | BM54: 630 | BN54: 644 | BO54: 658 | BP54: 672 | BQ54: 686 | BR54: 700 | BS54: 714 | BT54: 728 | BU54: 742 | BV54: 756 | BW54: 770 | BX54: 784 | BY54: 798 | BZ54: 812 | CA54: 826 | CB54: 840 | CC54: 854 | CD54: 868 | CE54: 882 | CF54: 896 | CG54: 910 | CH54: 924 | CI54: 938 | CJ54: 952 | CK54: 966 | CL54: 980 | CM54: 994 | CN54: 1008 | CO54: 1022 | CP54: 1036 | CQ54: 1050 | CR54: 1064 | CS54: 1078 | CT54: 1092 | CU54: 1106 | CV54: 1120 | CW54: 1134 | CX54: 1148 | CY54: 1162 | CZ54: 1176 | DA54: 1190 | DB54: 1204 | DC54: 1218 | DD54: 1232 | DE54: 1246 | DF54: 1260 | DH54: BX 5U3 | DI54: 3200 | DJ54: 32 | DK54: 2 | DL54: 100 | DM54: 200
B55: BX 5UT | C55: 6 | E55: 96 | F55: 480 | S55: 256 | T55: 480 | U55: 15 | V55: 30 | W55: 45 | X55: 60 | Y55: 75 | Z55: 90 | AA55: 105 | AB55: 120 | AC55: 135 | AD55: 150 | AE55: 165 | AF55: 180 | AG55: 195 | AH55: 210 | AI55: 225 | AJ55: 240 | AK55: 255 | AL55: 270 | AM55: 285 | AN55: 300 | AO55: 315 | AP55: 330 | AQ55: 345 | AR55: 360 | AS55: 375 | AT55: 390 | AU55: 405 | AV55: 420 | AW55: 435 | AX55: 450 | AY55: 465 | AZ55: 480 | BA55: 495 | BB55: 510 | BC55: 525 | BD55: 540 | BE55: 555 | BF55: 570 | BG55: 585 | BH55: 600 | BI55: 615 | BJ55: 630 | BK55: 645 | BL55: 660 | BM55: 675 | BN55: 690 | BO55: 705 | BP55: 720 | BQ55: 735 | BR55: 750 | BS55: 765 | BT55: 780 | BU55: 795 | BV55: 810 | BW55: 825 | BX55: 840 | BY55: 855 | BZ55: 870 | CA55: 885 | CB55: 900 | CC55: 915 | CD55: 930 | CE55: 945 | CF55: 960 | CG55: 975 | CH55: 990 | CI55: 1005 | CJ55: 1020 | CK55: 1035 | CL55: 1050 | CM55: 1065 | CN55: 1080 | CO55: 1095 | CP55: 1110 | CQ55: 1125 | CR55: 1140 | CS55: 1155 | CT55: 1170 | CU55: 1185 | CV55: 1200 | CW55: 1215 | CX55: 1230 | CY55: 1245 | CZ55: 1260 | DA55: 1275 | DB55: 1290 | DC55: 1305 | DD55: 1320 | DE55: 1335 | DF55: 1350 | DH55: хаб 128 | DI55: 2720 | DJ55: 48 | DK55: 3 | DL55: 85 | DM55: 255
B56: BX 5U1 | C56: 7 | E56: 112 | F56: 560 | S56: 272 | T56: 512 | U56: 16 | V56: 32 | W56: 48 | X56: 64 | Y56: 80 | Z56: 96 | AA56: 112 | AB56: 128 | AC56: 144 | AD56: 160 | AE56: 176 | AF56: 192 | AG56: 208 | AH56: 224 | AI56: 240 | AJ56: 256 | AK56: 272 | AL56: 288 | AM56: 304 | AN56: 320 | AO56: 336 | AP56: 352 | AQ56: 368 | AR56: 384 | AS56: 400 | AT56: 416 | AU56: 432 | AV56: 448 | AW56: 464 | AX56: 480 | AY56: 496 | AZ56: 512 | BA56: 528 | BB56: 544 | BC56: 560 | BD56: 576 | BE56: 592 | BF56: 608 | BG56: 624 | BH56: 640 | BI56: 656 | BJ56: 672 | BK56: 688 | BL56: 704 | BM56: 720 | BN56: 736 | BO56: 752 | BP56: 768 | BQ56: 784 | BR56: 800 | BS56: 816 | BT56: 832 | BU56: 848 | BV56: 864 | BW56: 880 | BX56: 896 | BY56: 912 | BZ56: 928 | CA56: 944 | CB56: 960 | CC56: 976 | CD56: 992 | CE56: 1008 | CF56: 1024 | CG56: 1040 | CH56: 1056 | CI56: 1072 | CJ56: 1088 | CK56: 1104 | CL56: 1120 | CM56: 1136 | CN56: 1152 | CO56: 1168 | CP56: 1184 | CQ56: 1200 | CR56: 1216 | CS56: 1232 | CT56: 1248 | CU56: 1264 | CV56: 1280 | CW56: 1296 | CX56: 1312 | CY56: 1328 | CZ56: 1344 | DA56: 1360 | DB56: 1376 | DC56: 1392 | DD56: 1408 | DE56: 1424 | DF56: 1440 | DI56: 2048 | DJ56: 64 | DK56: 4 | DL56: 64 | DM56: 256
B57: BX 5U2 | S57: 288 | T57: 544 | U57: 17 | V57: 34 | W57: 51 | X57: 68 | Y57: 85 | Z57: 102 | AA57: 119 | AB57: 136 | AC57: 153 | AD57: 170 | AE57: 187 | AF57: 204 | AG57: 221 | AH57: 238 | AI57: 255 | AJ57: 272 | AK57: 289 | AL57: 306 | AM57: 323 | AN57: 340 | AO57: 357 | AP57: 374 | AQ57: 391 | AR57: 408 | AS57: 425 | AT57: 442 | AU57: 459 | AV57: 476 | AW57: 493 | AX57: 510 | AY57: 527 | AZ57: 544 | BA57: 561 | BB57: 578 | BC57: 595 | BD57: 612 | BE57: 629 | BF57: 646 | BG57: 663 | BH57: 680 | BI57: 697 | BJ57: 714 | BK57: 731 | BL57: 748 | BM57: 765 | BN57: 782 | BO57: 799 | BP57: 816 | BQ57: 833 | BR57: 850 | BS57: 867 | BT57: 884 | BU57: 901 | BV57: 918 | BW57: 935 | BX57: 952 | BY57: 969 | BZ57: 986 | CA57: 1003 | CB57: 1020 | CC57: 1037 | CD57: 1054 | CE57: 1071 | CF57: 1088 | CG57: 1105 | CH57: 1122 | CI57: 1139 | CJ57: 1156 | CK57: 1173 | CL57: 1190 | CM57: 1207 | CN57: 1224 | CO57: 1241 | CP57: 1258 | CQ57: 1275 | CR57: 1292 | CS57: 1309 | CT57: 1326 | CU57: 1343 | CV57: 1360 | CW57: 1377 | CX57: 1394 | CY57: 1411 | CZ57: 1428 | DA57: 1445 | DB57: 1462 | DC57: 1479 | DD57: 1496 | DE57: 1513 | DF57: 1530 | DI57: 1632 | DJ57: 80 | DK57: 5 | DL57: 51 | DM57: 255
B58: BX 5U3 | S58: 304 | T58: 576 | U58: 18 | V58: 36 | W58: 54 | X58: 72 | Y58: 90 | Z58: 108 | AA58: 126 | AB58: 144 | AC58: 162 | AD58: 180 | AE58: 198 | AF58: 216 | AG58: 234 | AH58: 252 | AI58: 270 | AJ58: 288 | AK58: 306 | AL58: 324 | AM58: 342 | AN58: 360 | AO58: 378 | AP58: 396 | AQ58: 414 | AR58: 432 | AS58: 450 | AT58: 468 | AU58: 486 | AV58: 504 | AW58: 522 | AX58: 540 | AY58: 558 | AZ58: 576 | BA58: 594 | BB58: 612 | BC58: 630 | BD58: 648 | BE58: 666 | BF58: 684 | BG58: 702 | BH58: 720 | BI58: 738 | BJ58: 756 | BK58: 774 | BL58: 792 | BM58: 810 | BN58: 828 | BO58: 846 | BP58: 864 | BQ58: 882 | BR58: 900 | BS58: 918 | BT58: 936 | BU58: 954 | BV58: 972 | BW58: 990 | BX58: 1008 | BY58: 1026 | BZ58: 1044 | CA58: 1062 | CB58: 1080 | CC58: 1098 | CD58: 1116 | CE58: 1134 | CF58: 1152 | CG58: 1170 | CH58: 1188 | CI58: 1206 | CJ58: 1224 | CK58: 1242 | CL58: 1260 | CM58: 1278 | CN58: 1296 | CO58: 1314 | CP58: 1332 | CQ58: 1350 | CR58: 1368 | CS58: 1386 | CT58: 1404 | CU58: 1422 | CV58: 1440 | CW58: 1458 | CX58: 1476 | CY58: 1494 | CZ58: 1512 | DA58: 1530 | DB58: 1548 | DC58: 1566 | DD58: 1584 | DE58: 1602 | DF58: 1620 | DI58: 1344 | DJ58: 96 | DK58: 6 | DL58: 42 | DM58: 252
B59: BX-5QS | C59: Контроллер BX-5QS применятся для воспроизведения видео на одноцветных табло | S59: 320 | T59: 608 | U59: 19 | V59: 38 | W59: 57 | X59: 76 | Y59: 95 | Z59: 114 | AA59: 133 | AB59: 152 | AC59: 171 | AD59: 190 | AE59: 209 | AF59: 228 | AG59: 247 | AH59: 266 | AI59: 285 | AJ59: 304 | AK59: 323 | AL59: 342 | AM59: 361 | AN59: 380 | AO59: 399 | AP59: 418 | AQ59: 437 | AR59: 456 | AS59: 475 | AT59: 494 | AU59: 513 | AV59: 532 | AW59: 551 | AX59: 570 | AY59: 589 | AZ59: 608 | BA59: 627 | BB59: 646 | BC59: 665 | BD59: 684 | BE59: 703 | BF59: 722 | BG59: 741 | BH59: 760 | BI59: 779 | BJ59: 798 | BK59: 817 | BL59: 836 | BM59: 855 | BN59: 874 | BO59: 893 | BP59: 912 | BQ59: 931 | BR59: 950 | BS59: 969 | BT59: 988 | BU59: 1007 | BV59: 1026 | BW59: 1045 | BX59: 1064 | BY59: 1083 | BZ59: 1102 | CA59: 1121 | CB59: 1140 | CC59: 1159 | CD59: 1178 | CE59: 1197 | CF59: 1216 | CG59: 1235 | CH59: 1254 | CI59: 1273 | CJ59: 1292 | CK59: 1311 | CL59: 1330 | CM59: 1349 | CN59: 1368 | CO59: 1387 | CP59: 1406 | CQ59: 1425 | CR59: 1444 | CS59: 1463 | CT59: 1482 | CU59: 1501 | CV59: 1520 | CW59: 1539 | CX59: 1558 | CY59: 1577 | CZ59: 1596 | DA59: 1615 | DB59: 1634 | DC59: 1653 | DD59: 1672 | DE59: 1691 | DF59: 1710 | DI59: 1152 | DJ59: 112 | DK59: 7 | DL59: 36 | DM59: 252
C60: 3 | S60: 336 | T60: 640 | U60: 20 | V60: 40 | W60: 60 | X60: 80 | Y60: 100 | Z60: 120 | AA60: 140 | AB60: 160 | AC60: 180 | AD60: 200 | AE60: 220 | AF60: 240 | AG60: 260 | AH60: 280 | AI60: 300 | AJ60: 320 | AK60: 340 | AL60: 360 | AM60: 380 | AN60: 400 | AO60: 420 | AP60: 440 | AQ60: 460 | AR60: 480 | AS60: 500 | AT60: 520 | AU60: 540 | AV60: 560 | AW60: 580 | AX60: 600 | AY60: 620 | AZ60: 640 | BA60: 660 | BB60: 680 | BC60: 700 | BD60: 720 | BE60: 740 | BF60: 760 | BG60: 780 | BH60: 800 | BI60: 820 | BJ60: 840 | BK60: 860 | BL60: 880 | BM60: 900 | BN60: 920 | BO60: 940 | BP60: 960 | BQ60: 980 | BR60: 1000 | BS60: 1020 | BT60: 1040 | BU60: 1060 | BV60: 1080 | BW60: 1100 | BX60: 1120 | BY60: 1140 | BZ60: 1160 | CA60: 1180 | CB60: 1200 | CC60: 1220 | CD60: 1240 | CE60: 1260 | CF60: 1280 | CG60: 1300 | CH60: 1320 | CI60: 1340 | CJ60: 1360 | CK60: 1380 | CL60: 1400 | CM60: 1420 | CN60: 1440 | CO60: 1460 | CP60: 1480 | CQ60: 1500 | CR60: 1520 | CS60: 1540 | CT60: 1560 | CU60: 1580 | CV60: 1600 | CW60: 1620 | CX60: 1640 | CY60: 1660 | CZ60: 1680 | DA60: 1700 | DB60: 1720 | DC60: 1740 | DD60: 1760 | DE60: 1780 | DF60: 1800 | DI60: 1024 | DJ60: 128 | DK60: 8 | DL60: 32 | DM60: 256
A61: 1 | B61: Без датчика | S61: 352 | T61: 672 | U61: 21 | V61: 42 | W61: 63 | X61: 84 | Y61: 105 | Z61: 126 | AA61: 147 | AB61: 168 | AC61: 189 | AD61: 210 | AE61: 231 | AF61: 252 | AG61: 273 | AH61: 294 | AI61: 315 | AJ61: 336 | AK61: 357 | AL61: 378 | AM61: 399 | AN61: 420 | AO61: 441 | AP61: 462 | AQ61: 483 | AR61: 504 | AS61: 525 | AT61: 546 | AU61: 567 | AV61: 588 | AW61: 609 | AX61: 630 | AY61: 651 | AZ61: 672 | BA61: 693 | BB61: 714 | BC61: 735 | BD61: 756 | BE61: 777 | BF61: 798 | BG61: 819 | BH61: 840 | BI61: 861 | BJ61: 882 | BK61: 903 | BL61: 924 | BM61: 945 | BN61: 966 | BO61: 987 | BP61: 1008 | BQ61: 1029 | BR61: 1050 | BS61: 1071 | BT61: 1092 | BU61: 1113 | BV61: 1134 | BW61: 1155 | BX61: 1176 | BY61: 1197 | BZ61: 1218 | CA61: 1239 | CB61: 1260 | CC61: 1281 | CD61: 1302 | CE61: 1323 | CF61: 1344 | CG61: 1365 | CH61: 1386 | CI61: 1407 | CJ61: 1428 | CK61: 1449 | CL61: 1470 | CM61: 1491 | CN61: 1512 | CO61: 1533 | CP61: 1554 | CQ61: 1575 | CR61: 1596 | CS61: 1617 | CT61: 1638 | CU61: 1659 | CV61: 1680 | CW61: 1701 | CX61: 1722 | CY61: 1743 | CZ61: 1764 | DA61: 1785 | DB61: 1806 | DC61: 1827 | DD61: 1848 | DE61: 1869 | DF61: 1890 | DH61: BX 5U4 | DI61: 3200 | DJ61: 32 | DK61: 2 | DL61: 100 | DM61: 200
A62: 2 | B62: Датчик температуры | C62: =D62*E3 -> 384 | D62: 6 | S62: 368 | T62: 704 | U62: 22 | V62: 44 | W62: 66 | X62: 88 | Y62: 110 | Z62: 132 | AA62: 154 | AB62: 176 | AC62: 198 | AD62: 220 | AE62: 242 | AF62: 264 | AG62: 286 | AH62: 308 | AI62: 330 | AJ62: 352 | AK62: 374 | AL62: 396 | AM62: 418 | AN62: 440 | AO62: 462 | AP62: 484 | AQ62: 506 | AR62: 528 | AS62: 550 | AT62: 572 | AU62: 594 | AV62: 616 | AW62: 638 | AX62: 660 | AY62: 682 | AZ62: 704 | BA62: 726 | BB62: 748 | BC62: 770 | BD62: 792 | BE62: 814 | BF62: 836 | BG62: 858 | BH62: 880 | BI62: 902 | BJ62: 924 | BK62: 946 | BL62: 968 | BM62: 990 | BN62: 1012 | BO62: 1034 | BP62: 1056 | BQ62: 1078 | BR62: 1100 | BS62: 1122 | BT62: 1144 | BU62: 1166 | BV62: 1188 | BW62: 1210 | BX62: 1232 | BY62: 1254 | BZ62: 1276 | CA62: 1298 | CB62: 1320 | CC62: 1342 | CD62: 1364 | CE62: 1386 | CF62: 1408 | CG62: 1430 | CH62: 1452 | CI62: 1474 | CJ62: 1496 | CK62: 1518 | CL62: 1540 | CM62: 1562 | CN62: 1584 | CO62: 1606 | CP62: 1628 | CQ62: 1650 | CR62: 1672 | CS62: 1694 | CT62: 1716 | CU62: 1738 | CV62: 1760 | CW62: 1782 | CX62: 1804 | CY62: 1826 | CZ62: 1848 | DA62: 1870 | DB62: 1892 | DC62: 1914 | DD62: 1936 | DE62: 1958 | DF62: 1980 | DH62: хаб 128 | DI62: 3200 | DJ62: 48 | DK62: 3 | DL62: 100 | DM62: 300
A63: 3 | B63: Датчик температуры и влажности | C63: =D63*E3 -> 1152 | D63: 18 | S63: 384 | T63: 736 | U63: 23 | V63: 46 | W63: 69 | X63: 92 | Y63: 115 | Z63: 138 | AA63: 161 | AB63: 184 | AC63: 207 | AD63: 230 | AE63: 253 | AF63: 276 | AG63: 299 | AH63: 322 | AI63: 345 | AJ63: 368 | AK63: 391 | AL63: 414 | AM63: 437 | AN63: 460 | AO63: 483 | AP63: 506 | AQ63: 529 | AR63: 552 | AS63: 575 | AT63: 598 | AU63: 621 | AV63: 644 | AW63: 667 | AX63: 690 | AY63: 713 | AZ63: 736 | BA63: 759 | BB63: 782 | BC63: 805 | BD63: 828 | BE63: 851 | BF63: 874 | BG63: 897 | BH63: 920 | BI63: 943 | BJ63: 966 | BK63: 989 | BL63: 1012 | BM63: 1035 | BN63: 1058 | BO63: 1081 | BP63: 1104 | BQ63: 1127 | BR63: 1150 | BS63: 1173 | BT63: 1196 | BU63: 1219 | BV63: 1242 | BW63: 1265 | BX63: 1288 | BY63: 1311 | BZ63: 1334 | CA63: 1357 | CB63: 1380 | CC63: 1403 | CD63: 1426 | CE63: 1449 | CF63: 1472 | CG63: 1495 | CH63: 1518 | CI63: 1541 | CJ63: 1564 | CK63: 1587 | CL63: 1610 | CM63: 1633 | CN63: 1656 | CO63: 1679 | CP63: 1702 | CQ63: 1725 | CR63: 1748 | CS63: 1771 | CT63: 1794 | CU63: 1817 | CV63: 1840 | CW63: 1863 | CX63: 1886 | CY63: 1909 | CZ63: 1932 | DA63: 1955 | DB63: 1978 | DC63: 2001 | DD63: 2024 | DE63: 2047 | DF63: 2070 | DH63: хаб 256 | DI63: 2688 | DJ63: 64 | DK63: 4 | DL63: 84 | DM63: 336
A64: 4 | B64: Датчик с ИК с пультом | C64: =D64*E3 -> 384 | D64: 6 | S64: 400 | T64: 768 | U64: 24 | V64: 48 | W64: 72 | X64: 96 | Y64: 120 | Z64: 144 | AA64: 168 | AB64: 192 | AC64: 216 | AD64: 240 | AE64: 264 | AF64: 288 | AG64: 312 | AH64: 336 | AI64: 360 | AJ64: 384 | AK64: 408 | AL64: 432 | AM64: 456 | AN64: 480 | AO64: 504 | AP64: 528 | AQ64: 552 | AR64: 576 | AS64: 600 | AT64: 624 | AU64: 648 | AV64: 672 | AW64: 696 | AX64: 720 | AY64: 744 | AZ64: 768 | BA64: 792 | BB64: 816 | BC64: 840 | BD64: 864 | BE64: 888 | BF64: 912 | BG64: 936 | BH64: 960 | BI64: 984 | BJ64: 1008 | BK64: 1032 | BL64: 1056 | BM64: 1080 | BN64: 1104 | BO64: 1128 | BP64: 1152 | BQ64: 1176 | BR64: 1200 | BS64: 1224 | BT64: 1248 | BU64: 1272 | BV64: 1296 | BW64: 1320 | BX64: 1344 | BY64: 1368 | BZ64: 1392 | CA64: 1416 | CB64: 1440 | CC64: 1464 | CD64: 1488 | CE64: 1512 | CF64: 1536 | CG64: 1560 | CH64: 1584 | CI64: 1608 | CJ64: 1632 | CK64: 1656 | CL64: 1680 | CM64: 1704 | CN64: 1728 | CO64: 1752 | CP64: 1776 | CQ64: 1800 | CR64: 1824 | CS64: 1848 | CT64: 1872 | CU64: 1896 | CV64: 1920 | CW64: 1944 | CX64: 1968 | CY64: 1992 | CZ64: 2016 | DA64: 2040 | DB64: 2064 | DC64: 2088 | DD64: 2112 | DE64: 2136 | DF64: 2160 | DI64: 2048 | DJ64: 80 | DK64: 5 | DL64: 64 | DM64: 320
A65: 5 | B65: Видеоконтроллер | C65: 5000 | S65: 416 | T65: 800 | U65: 25 | V65: 50 | W65: 75 | X65: 100 | Y65: 125 | Z65: 150 | AA65: 175 | AB65: 200 | AC65: 225 | AD65: 250 | AE65: 275 | AF65: 300 | AG65: 325 | AH65: 350 | AI65: 375 | AJ65: 400 | AK65: 425 | AL65: 450 | AM65: 475 | AN65: 500 | AO65: 525 | AP65: 550 | AQ65: 575 | AR65: 600 | AS65: 625 | AT65: 650 | AU65: 675 | AV65: 700 | AW65: 725 | AX65: 750 | AY65: 775 | AZ65: 800 | BA65: 825 | BB65: 850 | BC65: 875 | BD65: 900 | BE65: 925 | BF65: 950 | BG65: 975 | BH65: 1000 | BI65: 1025 | BJ65: 1050 | BK65: 1075 | BL65: 1100 | BM65: 1125 | BN65: 1150 | BO65: 1175 | BP65: 1200 | BQ65: 1225 | BR65: 1250 | BS65: 1275 | BT65: 1300 | BU65: 1325 | BV65: 1350 | BW65: 1375 | BX65: 1400 | BY65: 1425 | BZ65: 1450 | CA65: 1475 | CB65: 1500 | CC65: 1525 | CD65: 1550 | CE65: 1575 | CF65: 1600 | CG65: 1625 | CH65: 1650 | CI65: 1675 | CJ65: 1700 | CK65: 1725 | CL65: 1750 | CM65: 1775 | CN65: 1800 | CO65: 1825 | CP65: 1850 | CQ65: 1875 | CR65: 1900 | CS65: 1925 | CT65: 1950 | CU65: 1975 | CV65: 2000 | CW65: 2025 | CX65: 2050 | CY65: 2075 | CZ65: 2100 | DA65: 2125 | DB65: 2150 | DC65: 2175 | DD65: 2200 | DE65: 2225 | DF65: 2250 | DI65: 1792 | DJ65: 96 | DK65: 6 | DL65: 56 | DM65: 336
C66: 1 | S66: 432 | T66: 832 | U66: 26 | V66: 52 | W66: 78 | X66: 104 | Y66: 130 | Z66: 156 | AA66: 182 | AB66: 208 | AC66: 234 | AD66: 260 | AE66: 286 | AF66: 312 | AG66: 338 | AH66: 364 | AI66: 390 | AJ66: 416 | AK66: 442 | AL66: 468 | AM66: 494 | AN66: 520 | AO66: 546 | AP66: 572 | AQ66: 598 | AR66: 624 | AS66: 650 | AT66: 676 | AU66: 702 | AV66: 728 | AW66: 754 | AX66: 780 | AY66: 806 | AZ66: 832 | BA66: 858 | BB66: 884 | BC66: 910 | BD66: 936 | BE66: 962 | BF66: 988 | BG66: 1014 | BH66: 1040 | BI66: 1066 | BJ66: 1092 | BK66: 1118 | BL66: 1144 | BM66: 1170 | BN66: 1196 | BO66: 1222 | BP66: 1248 | BQ66: 1274 | BR66: 1300 | BS66: 1326 | BT66: 1352 | BU66: 1378 | BV66: 1404 | BW66: 1430 | BX66: 1456 | BY66: 1482 | BZ66: 1508 | CA66: 1534 | CB66: 1560 | CC66: 1586 | CD66: 1612 | CE66: 1638 | CF66: 1664 | CG66: 1690 | CH66: 1716 | CI66: 1742 | CJ66: 1768 | CK66: 1794 | CL66: 1820 | CM66: 1846 | CN66: 1872 | CO66: 1898 | CP66: 1924 | CQ66: 1950 | CR66: 1976 | CS66: 2002 | CT66: 2028 | CU66: 2054 | CV66: 2080 | CW66: 2106 | CX66: 2132 | CY66: 2158 | CZ66: 2184 | DA66: 2210 | DB66: 2236 | DC66: 2262 | DD66: 2288 | DE66: 2314 | DF66: 2340 | DI66: 1280 | DJ66: 112 | DK66: 7 | DL66: 40 | DM66: 280
A67: 1 | B67: USB | S67: 448 | T67: 864 | U67: 27 | V67: 54 | W67: 81 | X67: 108 | Y67: 135 | Z67: 162 | AA67: 189 | AB67: 216 | AC67: 243 | AD67: 270 | AE67: 297 | AF67: 324 | AG67: 351 | AH67: 378 | AI67: 405 | AJ67: 432 | AK67: 459 | AL67: 486 | AM67: 513 | AN67: 540 | AO67: 567 | AP67: 594 | AQ67: 621 | AR67: 648 | AS67: 675 | AT67: 702 | AU67: 729 | AV67: 756 | AW67: 783 | AX67: 810 | AY67: 837 | AZ67: 864 | BA67: 891 | BB67: 918 | BC67: 945 | BD67: 972 | BE67: 999 | BF67: 1026 | BG67: 1053 | BH67: 1080 | BI67: 1107 | BJ67: 1134 | BK67: 1161 | BL67: 1188 | BM67: 1215 | BN67: 1242 | BO67: 1269 | BP67: 1296 | BQ67: 1323 | BR67: 1350 | BS67: 1377 | BT67: 1404 | BU67: 1431 | BV67: 1458 | BW67: 1485 | BX67: 1512 | BY67: 1539 | BZ67: 1566 | CA67: 1593 | CB67: 1620 | CC67: 1647 | CD67: 1674 | CE67: 1701 | CF67: 1728 | CG67: 1755 | CH67: 1782 | CI67: 1809 | CJ67: 1836 | CK67: 1863 | CL67: 1890 | CM67: 1917 | CN67: 1944 | CO67: 1971 | CP67: 1998 | CQ67: 2025 | CR67: 2052 | CS67: 2079 | CT67: 2106 | CU67: 2133 | CV67: 2160 | CW67: 2187 | CX67: 2214 | CY67: 2241 | CZ67: 2268 | DA67: 2295 | DB67: 2322 | DC67: 2349 | DD67: 2376 | DE67: 2403 | DF67: 2430 | DI67: 1024 | DJ67: 128 | DK67: 8 | DL67: 32 | DM67: 256
A68: 2 | B68: LAN | S68: 464 | T68: 896 | U68: 28 | V68: 56 | W68: 84 | X68: 112 | Y68: 140 | Z68: 168 | AA68: 196 | AB68: 224 | AC68: 252 | AD68: 280 | AE68: 308 | AF68: 336 | AG68: 364 | AH68: 392 | AI68: 420 | AJ68: 448 | AK68: 476 | AL68: 504 | AM68: 532 | AN68: 560 | AO68: 588 | AP68: 616 | AQ68: 644 | AR68: 672 | AS68: 700 | AT68: 728 | AU68: 756 | AV68: 784 | AW68: 812 | AX68: 840 | AY68: 868 | AZ68: 896 | BA68: 924 | BB68: 952 | BC68: 980 | BD68: 1008 | BE68: 1036 | BF68: 1064 | BG68: 1092 | BH68: 1120 | BI68: 1148 | BJ68: 1176 | BK68: 1204 | BL68: 1232 | BM68: 1260 | BN68: 1288 | BO68: 1316 | BP68: 1344 | BQ68: 1372 | BR68: 1400 | BS68: 1428 | BT68: 1456 | BU68: 1484 | BV68: 1512 | BW68: 1540 | BX68: 1568 | BY68: 1596 | BZ68: 1624 | CA68: 1652 | CB68: 1680 | CC68: 1708 | CD68: 1736 | CE68: 1764 | CF68: 1792 | CG68: 1820 | CH68: 1848 | CI68: 1876 | CJ68: 1904 | CK68: 1932 | CL68: 1960 | CM68: 1988 | CN68: 2016 | CO68: 2044 | CP68: 2072 | CQ68: 2100 | CR68: 2128 | CS68: 2156 | CT68: 2184 | CU68: 2212 | CV68: 2240 | CW68: 2268 | CX68: 2296 | CY68: 2324 | CZ68: 2352 | DA68: 2380 | DB68: 2408 | DC68: 2436 | DD68: 2464 | DE68: 2492 | DF68: 2520 | DI68: 896 | DJ68: 144 | DK68: 9 | DL68: 28 | DM68: 252
A69: 3 | B69: WI-FI | C69: 1000 | S69: 480 | T69: 928 | U69: 29 | V69: 58 | W69: 87 | X69: 116 | Y69: 145 | Z69: 174 | AA69: 203 | AB69: 232 | AC69: 261 | AD69: 290 | AE69: 319 | AF69: 348 | AG69: 377 | AH69: 406 | AI69: 435 | AJ69: 464 | AK69: 493 | AL69: 522 | AM69: 551 | AN69: 580 | AO69: 609 | AP69: 638 | AQ69: 667 | AR69: 696 | AS69: 725 | AT69: 754 | AU69: 783 | AV69: 812 | AW69: 841 | AX69: 870 | AY69: 899 | AZ69: 928 | BA69: 957 | BB69: 986 | BC69: 1015 | BD69: 1044 | BE69: 1073 | BF69: 1102 | BG69: 1131 | BH69: 1160 | BI69: 1189 | BJ69: 1218 | BK69: 1247 | BL69: 1276 | BM69: 1305 | BN69: 1334 | BO69: 1363 | BP69: 1392 | BQ69: 1421 | BR69: 1450 | BS69: 1479 | BT69: 1508 | BU69: 1537 | BV69: 1566 | BW69: 1595 | BX69: 1624 | BY69: 1653 | BZ69: 1682 | CA69: 1711 | CB69: 1740 | CC69: 1769 | CD69: 1798 | CE69: 1827 | CF69: 1856 | CG69: 1885 | CH69: 1914 | CI69: 1943 | CJ69: 1972 | CK69: 2001 | CL69: 2030 | CM69: 2059 | CN69: 2088 | CO69: 2117 | CP69: 2146 | CQ69: 2175 | CR69: 2204 | CS69: 2233 | CT69: 2262 | CU69: 2291 | CV69: 2320 | CW69: 2349 | CX69: 2378 | CY69: 2407 | CZ69: 2436 | DA69: 2465 | DB69: 2494 | DC69: 2523 | DD69: 2552 | DE69: 2581 | DF69: 2610 | DI69: 768 | DJ69: 160 | DK69: 10 | DL69: 24 | DM69: 240
A70: 4 | B70: WIFI RF | C70: 8000 | S70: 496 | T70: 960 | U70: 30 | V70: 60 | W70: 90 | X70: 120 | Y70: 150 | Z70: 180 | AA70: 210 | AB70: 240 | AC70: 270 | AD70: 300 | AE70: 330 | AF70: 360 | AG70: 390 | AH70: 420 | AI70: 450 | AJ70: 480 | AK70: 510 | AL70: 540 | AM70: 570 | AN70: 600 | AO70: 630 | AP70: 660 | AQ70: 690 | AR70: 720 | AS70: 750 | AT70: 780 | AU70: 810 | AV70: 840 | AW70: 870 | AX70: 900 | AY70: 930 | AZ70: 960 | BA70: 990 | BB70: 1020 | BC70: 1050 | BD70: 1080 | BE70: 1110 | BF70: 1140 | BG70: 1170 | BH70: 1200 | BI70: 1230 | BJ70: 1260 | BK70: 1290 | BL70: 1320 | BM70: 1350 | BN70: 1380 | BO70: 1410 | BP70: 1440 | BQ70: 1470 | BR70: 1500 | BS70: 1530 | BT70: 1560 | BU70: 1590 | BV70: 1620 | BW70: 1650 | BX70: 1680 | BY70: 1710 | BZ70: 1740 | CA70: 1770 | CB70: 1800 | CC70: 1830 | CD70: 1860 | CE70: 1890 | CF70: 1920 | CG70: 1950 | CH70: 1980 | CI70: 2010 | CJ70: 2040 | CK70: 2070 | CL70: 2100 | CM70: 2130 | CN70: 2160 | CO70: 2190 | CP70: 2220 | CQ70: 2250 | CR70: 2280 | CS70: 2310 | CT70: 2340 | CU70: 2370 | CV70: 2400 | CW70: 2430 | CX70: 2460 | CY70: 2490 | CZ70: 2520 | DA70: 2550 | DB70: 2580 | DC70: 2610 | DD70: 2640 | DE70: 2670 | DF70: 2700 | DI70: 704 | DJ70: 176 | DK70: 11 | DL70: 22 | DM70: 242
A71: 5 | B71: GPRS | C71: 8000 | S71: 512 | T71: 992 | U71: 31 | V71: 62 | W71: 93 | X71: 124 | Y71: 155 | Z71: 186 | AA71: 217 | AB71: 248 | AC71: 279 | AD71: 310 | AE71: 341 | AF71: 372 | AG71: 403 | AH71: 434 | AI71: 465 | AJ71: 496 | AK71: 527 | AL71: 558 | AM71: 589 | AN71: 620 | AO71: 651 | AP71: 682 | AQ71: 713 | AR71: 744 | AS71: 775 | AT71: 806 | AU71: 837 | AV71: 868 | AW71: 899 | AX71: 930 | AY71: 961 | AZ71: 992 | BA71: 1023 | BB71: 1054 | BC71: 1085 | BD71: 1116 | BE71: 1147 | BF71: 1178 | BG71: 1209 | BH71: 1240 | BI71: 1271 | BJ71: 1302 | BK71: 1333 | BL71: 1364 | BM71: 1395 | BN71: 1426 | BO71: 1457 | BP71: 1488 | BQ71: 1519 | BR71: 1550 | BS71: 1581 | BT71: 1612 | BU71: 1643 | BV71: 1674 | BW71: 1705 | BX71: 1736 | BY71: 1767 | BZ71: 1798 | CA71: 1829 | CB71: 1860 | CC71: 1891 | CD71: 1922 | CE71: 1953 | CF71: 1984 | CG71: 2015 | CH71: 2046 | CI71: 2077 | CJ71: 2108 | CK71: 2139 | CL71: 2170 | CM71: 2201 | CN71: 2232 | CO71: 2263 | CP71: 2294 | CQ71: 2325 | CR71: 2356 | CS71: 2387 | CT71: 2418 | CU71: 2449 | CV71: 2480 | CW71: 2511 | CX71: 2542 | CY71: 2573 | CZ71: 2604 | DA71: 2635 | DB71: 2666 | DC71: 2697 | DD71: 2728 | DE71: 2759 | DF71: 2790 | DI71: 640 | DJ71: 192 | DK71: 12 | DL71: 20 | DM71: 240
S72: 528 | T72: 1024 | U72: 32 | V72: 64 | W72: 96 | X72: 128 | Y72: 160 | Z72: 192 | AA72: 224 | AB72: 256 | AC72: 288 | AD72: 320 | AE72: 352 | AF72: 384 | AG72: 416 | AH72: 448 | AI72: 480 | AJ72: 512 | AK72: 544 | AL72: 576 | AM72: 608 | AN72: 640 | AO72: 672 | AP72: 704 | AQ72: 736 | AR72: 768 | AS72: 800 | AT72: 832 | AU72: 864 | AV72: 896 | AW72: 928 | AX72: 960 | AY72: 992 | AZ72: 1024 | BA72: 1056 | BB72: 1088 | BC72: 1120 | BD72: 1152 | BE72: 1184 | BF72: 1216 | BG72: 1248 | BH72: 1280 | BI72: 1312 | BJ72: 1344 | BK72: 1376 | BL72: 1408 | BM72: 1440 | BN72: 1472 | BO72: 1504 | BP72: 1536 | BQ72: 1568 | BR72: 1600 | BS72: 1632 | BT72: 1664 | BU72: 1696 | BV72: 1728 | BW72: 1760 | BX72: 1792 | BY72: 1824 | BZ72: 1856 | CA72: 1888 | CB72: 1920 | CC72: 1952 | CD72: 1984 | CE72: 2016 | CF72: 2048 | CG72: 2080 | CH72: 2112 | CI72: 2144 | CJ72: 2176 | CK72: 2208 | CL72: 2240 | CM72: 2272 | CN72: 2304 | CO72: 2336 | CP72: 2368 | CQ72: 2400 | CR72: 2432 | CS72: 2464 | CT72: 2496 | CU72: 2528 | CV72: 2560 | CW72: 2592 | CX72: 2624 | CY72: 2656 | CZ72: 2688 | DA72: 2720 | DB72: 2752 | DC72: 2784 | DD72: 2816 | DE72: 2848 | DF72: 2880 | DI72: 608 | DJ72: 208 | DK72: 13 | DL72: 19 | DM72: 247
A73: 4 | F73: На продажу | S73: 544 | T73: 1056 | U73: 33 | V73: 66 | W73: 99 | X73: 132 | Y73: 165 | Z73: 198 | AA73: 231 | AB73: 264 | AC73: 297 | AD73: 330 | AE73: 363 | AF73: 396 | AG73: 429 | AH73: 462 | AI73: 495 | AJ73: 528 | AK73: 561 | AL73: 594 | AM73: 627 | AN73: 660 | AO73: 693 | AP73: 726 | AQ73: 759 | AR73: 792 | AS73: 825 | AT73: 858 | AU73: 891 | AV73: 924 | AW73: 957 | AX73: 990 | AY73: 1023 | AZ73: 1056 | BA73: 1089 | BB73: 1122 | BC73: 1155 | BD73: 1188 | BE73: 1221 | BF73: 1254 | BG73: 1287 | BH73: 1320 | BI73: 1353 | BJ73: 1386 | BK73: 1419 | BL73: 1452 | BM73: 1485 | BN73: 1518 | BO73: 1551 | BP73: 1584 | BQ73: 1617 | BR73: 1650 | BS73: 1683 | BT73: 1716 | BU73: 1749 | BV73: 1782 | BW73: 1815 | BX73: 1848 | BY73: 1881 | BZ73: 1914 | CA73: 1947 | CB73: 1980 | CC73: 2013 | CD73: 2046 | CE73: 2079 | CF73: 2112 | CG73: 2145 | CH73: 2178 | CI73: 2211 | CJ73: 2244 | CK73: 2277 | CL73: 2310 | CM73: 2343 | CN73: 2376 | CO73: 2409 | CP73: 2442 | CQ73: 2475 | CR73: 2508 | CS73: 2541 | CT73: 2574 | CU73: 2607 | CV73: 2640 | CW73: 2673 | CX73: 2706 | CY73: 2739 | CZ73: 2772 | DA73: 2805 | DB73: 2838 | DC73: 2871 | DD73: 2904 | DE73: 2937 | DF73: 2970 | DI73: 576 | DJ73: 224 | DK73: 14 | DL73: 18 | DM73: 252
A74: 1 | B74: Красные | C74: CL P-10R 16*32WP | D74: =E74*E3 -> 441.6 | E74: 6.9 | F74: =E74+E74*0.2 -> 8.28 | G74: =F74*E3 -> 529.92 | S74: 560 | T74: 1088 | U74: 34 | V74: 68 | W74: 102 | X74: 136 | Y74: 170 | Z74: 204 | AA74: 238 | AB74: 272 | AC74: 306 | AD74: 340 | AE74: 374 | AF74: 408 | AG74: 442 | AH74: 476 | AI74: 510 | AJ74: 544 | AK74: 578 | AL74: 612 | AM74: 646 | AN74: 680 | AO74: 714 | AP74: 748 | AQ74: 782 | AR74: 816 | AS74: 850 | AT74: 884 | AU74: 918 | AV74: 952 | AW74: 986 | AX74: 1020 | AY74: 1054 | AZ74: 1088 | BA74: 1122 | BB74: 1156 | BC74: 1190 | BD74: 1224 | BE74: 1258 | BF74: 1292 | BG74: 1326 | BH74: 1360 | BI74: 1394 | BJ74: 1428 | BK74: 1462 | BL74: 1496 | BM74: 1530 | BN74: 1564 | BO74: 1598 | BP74: 1632 | BQ74: 1666 | BR74: 1700 | BS74: 1734 | BT74: 1768 | BU74: 1802 | BV74: 1836 | BW74: 1870 | BX74: 1904 | BY74: 1938 | BZ74: 1972 | CA74: 2006 | CB74: 2040 | CC74: 2074 | CD74: 2108 | CE74: 2142 | CF74: 2176 | CG74: 2210 | CH74: 2244 | CI74: 2278 | CJ74: 2312 | CK74: 2346 | CL74: 2380 | CM74: 2414 | CN74: 2448 | CO74: 2482 | CP74: 2516 | CQ74: 2550 | CR74: 2584 | CS74: 2618 | CT74: 2652 | CU74: 2686 | CV74: 2720 | CW74: 2754 | CX74: 2788 | CY74: 2822 | CZ74: 2856 | DA74: 2890 | DB74: 2924 | DC74: 2958 | DD74: 2992 | DE74: 3026 | DF74: 3060 | DI74: 544 | DJ74: 240 | DK74: 15 | DL74: 17 | DM74: 255
A75: 2 | B75: Синие | C75: CL P-10B 16*32WP | D75: =E75*E3 -> 665.6 | E75: 10.4 | F75: =E75+E75*0.2 -> 12.48 | G75: =F75*E3 -> 798.72 | S75: 576 | T75: 1120 | U75: 35 | V75: 70 | W75: 105 | X75: 140 | Y75: 175 | Z75: 210 | AA75: 245 | AB75: 280 | AC75: 315 | AD75: 350 | AE75: 385 | AF75: 420 | AG75: 455 | AH75: 490 | AI75: 525 | AJ75: 560 | AK75: 595 | AL75: 630 | AM75: 665 | AN75: 700 | AO75: 735 | AP75: 770 | AQ75: 805 | AR75: 840 | AS75: 875 | AT75: 910 | AU75: 945 | AV75: 980 | AW75: 1015 | AX75: 1050 | AY75: 1085 | AZ75: 1120 | BA75: 1155 | BB75: 1190 | BC75: 1225 | BD75: 1260 | BE75: 1295 | BF75: 1330 | BG75: 1365 | BH75: 1400 | BI75: 1435 | BJ75: 1470 | BK75: 1505 | BL75: 1540 | BM75: 1575 | BN75: 1610 | BO75: 1645 | BP75: 1680 | BQ75: 1715 | BR75: 1750 | BS75: 1785 | BT75: 1820 | BU75: 1855 | BV75: 1890 | BW75: 1925 | BX75: 1960 | BY75: 1995 | BZ75: 2030 | CA75: 2065 | CB75: 2100 | CC75: 2135 | CD75: 2170 | CE75: 2205 | CF75: 2240 | CG75: 2275 | CH75: 2310 | CI75: 2345 | CJ75: 2380 | CK75: 2415 | CL75: 2450 | CM75: 2485 | CN75: 2520 | CO75: 2555 | CP75: 2590 | CQ75: 2625 | CR75: 2660 | CS75: 2695 | CT75: 2730 | CU75: 2765 | CV75: 2800 | CW75: 2835 | CX75: 2870 | CY75: 2905 | CZ75: 2940 | DA75: 2975 | DB75: 3010 | DC75: 3045 | DD75: 3080 | DE75: 3115 | DF75: 3150 | DI75: 512 | DJ75: 256 | DK75: 16 | DL75: 16 | DM75: 256
A76: 3 | B76: Жёлтые | C76: CL P-10Y 16*32WP | D76: =E76*E3 -> 704 | E76: 11 | F76: 13.2 | G76: =F76*E3 -> 844.8 | S76: 592 | T76: 1152 | U76: 36 | V76: 72 | W76: 108 | X76: 144 | Y76: 180 | Z76: 216 | AA76: 252 | AB76: 288 | AC76: 324 | AD76: 360 | AE76: 396 | AF76: 432 | AG76: 468 | AH76: 504 | AI76: 540 | AJ76: 576 | AK76: 612 | AL76: 648 | AM76: 684 | AN76: 720 | AO76: 756 | AP76: 792 | AQ76: 828 | AR76: 864 | AS76: 900 | AT76: 936 | AU76: 972 | AV76: 1008 | AW76: 1044 | AX76: 1080 | AY76: 1116 | AZ76: 1152 | BA76: 1188 | BB76: 1224 | BC76: 1260 | BD76: 1296 | BE76: 1332 | BF76: 1368 | BG76: 1404 | BH76: 1440 | BI76: 1476 | BJ76: 1512 | BK76: 1548 | BL76: 1584 | BM76: 1620 | BN76: 1656 | BO76: 1692 | BP76: 1728 | BQ76: 1764 | BR76: 1800 | BS76: 1836 | BT76: 1872 | BU76: 1908 | BV76: 1944 | BW76: 1980 | BX76: 2016 | BY76: 2052 | BZ76: 2088 | CA76: 2124 | CB76: 2160 | CC76: 2196 | CD76: 2232 | CE76: 2268 | CF76: 2304 | CG76: 2340 | CH76: 2376 | CI76: 2412 | CJ76: 2448 | CK76: 2484 | CL76: 2520 | CM76: 2556 | CN76: 2592 | CO76: 2628 | CP76: 2664 | CQ76: 2700 | CR76: 2736 | CS76: 2772 | CT76: 2808 | CU76: 2844 | CV76: 2880 | CW76: 2916 | CX76: 2952 | CY76: 2988 | CZ76: 3024 | DA76: 3060 | DB76: 3096 | DC76: 3132 | DD76: 3168 | DE76: 3204 | DF76: 3240 | DH76: COM-порт
A77: 4 | B77: Зелёные | C77: CL P-10G 16*32WP | D77: =E77*E3 -> 597.76 | E77: 9.34 | F77: 11.208 | G77: =F77*E3 -> 717.312 | S77: 608 | T77: 1184 | U77: 37 | V77: 74 | W77: 111 | X77: 148 | Y77: 185 | Z77: 222 | AA77: 259 | AB77: 296 | AC77: 333 | AD77: 370 | AE77: 407 | AF77: 444 | AG77: 481 | AH77: 518 | AI77: 555 | AJ77: 592 | AK77: 629 | AL77: 666 | AM77: 703 | AN77: 740 | AO77: 777 | AP77: 814 | AQ77: 851 | AR77: 888 | AS77: 925 | AT77: 962 | AU77: 999 | AV77: 1036 | AW77: 1073 | AX77: 1110 | AY77: 1147 | AZ77: 1184 | BA77: 1221 | BB77: 1258 | BC77: 1295 | BD77: 1332 | BE77: 1369 | BF77: 1406 | BG77: 1443 | BH77: 1480 | BI77: 1517 | BJ77: 1554 | BK77: 1591 | BL77: 1628 | BM77: 1665 | BN77: 1702 | BO77: 1739 | BP77: 1776 | BQ77: 1813 | BR77: 1850 | BS77: 1887 | BT77: 1924 | BU77: 1961 | BV77: 1998 | BW77: 2035 | BX77: 2072 | BY77: 2109 | BZ77: 2146 | CA77: 2183 | CB77: 2220 | CC77: 2257 | CD77: 2294 | CE77: 2331 | CF77: 2368 | CG77: 2405 | CH77: 2442 | CI77: 2479 | CJ77: 2516 | CK77: 2553 | CL77: 2590 | CM77: 2627 | CN77: 2664 | CO77: 2701 | CP77: 2738 | CQ77: 2775 | CR77: 2812 | CS77: 2849 | CT77: 2886 | CU77: 2923 | CV77: 2960 | CW77: 2997 | CX77: 3034 | CY77: 3071 | CZ77: 3108 | DA77: 3145 | DB77: 3182 | DC77: 3219 | DD77: 3256 | DE77: 3293 | DF77: 3330 | DH77: BX 5А0 | DI77: 1024 | DJ77: 16 | DK77: =DJ77/16 -> 1 | DL77: =DI77/32 -> 32 | DM77: =DL77*DK77 -> 32
A78: 5 | B78: Белые | C78: CL P-10W 16*32WP | D78: =E78*E3 -> 704 | E78: 11 | F78: 13.2 | G78: =F78*E3 -> 844.8 | S78: 624 | T78: 1216 | U78: 38 | V78: 76 | W78: 114 | X78: 152 | Y78: 190 | Z78: 228 | AA78: 266 | AB78: 304 | AC78: 342 | AD78: 380 | AE78: 418 | AF78: 456 | AG78: 494 | AH78: 532 | AI78: 570 | AJ78: 608 | AK78: 646 | AL78: 684 | AM78: 722 | AN78: 760 | AO78: 798 | AP78: 836 | AQ78: 874 | AR78: 912 | AS78: 950 | AT78: 988 | AU78: 1026 | AV78: 1064 | AW78: 1102 | AX78: 1140 | AY78: 1178 | AZ78: 1216 | BA78: 1254 | BB78: 1292 | BC78: 1330 | BD78: 1368 | BE78: 1406 | BF78: 1444 | BG78: 1482 | BH78: 1520 | BI78: 1558 | BJ78: 1596 | BK78: 1634 | BL78: 1672 | BM78: 1710 | BN78: 1748 | BO78: 1786 | BP78: 1824 | BQ78: 1862 | BR78: 1900 | BS78: 1938 | BT78: 1976 | BU78: 2014 | BV78: 2052 | BW78: 2090 | BX78: 2128 | BY78: 2166 | BZ78: 2204 | CA78: 2242 | CB78: 2280 | CC78: 2318 | CD78: 2356 | CE78: 2394 | CF78: 2432 | CG78: 2470 | CH78: 2508 | CI78: 2546 | CJ78: 2584 | CK78: 2622 | CL78: 2660 | CM78: 2698 | CN78: 2736 | CO78: 2774 | CP78: 2812 | CQ78: 2850 | CR78: 2888 | CS78: 2926 | CT78: 2964 | CU78: 3002 | CV78: 3040 | CW78: 3078 | CX78: 3116 | CY78: 3154 | CZ78: 3192 | DA78: 3230 | DB78: 3268 | DC78: 3306 | DD78: 3344 | DE78: 3382 | DF78: 3420 | DI78: 512 | DJ78: 32 | DK78: 2 | DL78: 16 | DM78: 32
A79: 6 | B79: Трёхцвет. P10 | C79: CL P10-2RG-WP-320*160 | D79: =E79*E3 -> 1017.6 | E79: 15.9 | F79: 19.08 | G79: =F79*E3 -> 1221.12 | S79: 640 | T79: 1248 | U79: 39 | V79: 78 | W79: 117 | X79: 156 | Y79: 195 | Z79: 234 | AA79: 273 | AB79: 312 | AC79: 351 | AD79: 390 | AE79: 429 | AF79: 468 | AG79: 507 | AH79: 546 | AI79: 585 | AJ79: 624 | AK79: 663 | AL79: 702 | AM79: 741 | AN79: 780 | AO79: 819 | AP79: 858 | AQ79: 897 | AR79: 936 | AS79: 975 | AT79: 1014 | AU79: 1053 | AV79: 1092 | AW79: 1131 | AX79: 1170 | AY79: 1209 | AZ79: 1248 | BA79: 1287 | BB79: 1326 | BC79: 1365 | BD79: 1404 | BE79: 1443 | BF79: 1482 | BG79: 1521 | BH79: 1560 | BI79: 1599 | BJ79: 1638 | BK79: 1677 | BL79: 1716 | BM79: 1755 | BN79: 1794 | BO79: 1833 | BP79: 1872 | BQ79: 1911 | BR79: 1950 | BS79: 1989 | BT79: 2028 | BU79: 2067 | BV79: 2106 | BW79: 2145 | BX79: 2184 | BY79: 2223 | BZ79: 2262 | CA79: 2301 | CB79: 2340 | CC79: 2379 | CD79: 2418 | CE79: 2457 | CF79: 2496 | CG79: 2535 | CH79: 2574 | CI79: 2613 | CJ79: 2652 | CK79: 2691 | CL79: 2730 | CM79: 2769 | CN79: 2808 | CO79: 2847 | CP79: 2886 | CQ79: 2925 | CR79: 2964 | CS79: 3003 | CT79: 3042 | CU79: 3081 | CV79: 3120 | CW79: 3159 | CX79: 3198 | CY79: 3237 | CZ79: 3276 | DA79: 3315 | DB79: 3354 | DC79: 3393 | DD79: 3432 | DE79: 3471 | DF79: 3510 | DI79: 320 | DJ79: 48 | DK79: 3 | DL79: 10 | DM79: 30
A80: 7 | B80: Полноцвет RGB | C80: PH10-RGB-32x16 WP | D80: =E80*E3 -> 1382.4 | E80: 21.6 | F80: 25.92 | G80: =F80*E3 -> 1658.88 | S80: 656 | T80: 1280 | U80: 40 | V80: 80 | W80: 120 | X80: 160 | Y80: 200 | Z80: 240 | AA80: 280 | AB80: 320 | AC80: 360 | AD80: 400 | AE80: 440 | AF80: 480 | AG80: 520 | AH80: 560 | AI80: 600 | AJ80: 640 | AK80: 680 | AL80: 720 | AM80: 760 | AN80: 800 | AO80: 840 | AP80: 880 | AQ80: 920 | AR80: 960 | AS80: 1000 | AT80: 1040 | AU80: 1080 | AV80: 1120 | AW80: 1160 | AX80: 1200 | AY80: 1240 | AZ80: 1280 | BA80: 1320 | BB80: 1360 | BC80: 1400 | BD80: 1440 | BE80: 1480 | BF80: 1520 | BG80: 1560 | BH80: 1600 | BI80: 1640 | BJ80: 1680 | BK80: 1720 | BL80: 1760 | BM80: 1800 | BN80: 1840 | BO80: 1880 | BP80: 1920 | BQ80: 1960 | BR80: 2000 | BS80: 2040 | BT80: 2080 | BU80: 2120 | BV80: 2160 | BW80: 2200 | BX80: 2240 | BY80: 2280 | BZ80: 2320 | CA80: 2360 | CB80: 2400 | CC80: 2440 | CD80: 2480 | CE80: 2520 | CF80: 2560 | CG80: 2600 | CH80: 2640 | CI80: 2680 | CJ80: 2720 | CK80: 2760 | CL80: 2800 | CM80: 2840 | CN80: 2880 | CO80: 2920 | CP80: 2960 | CQ80: 3000 | CR80: 3040 | CS80: 3080 | CT80: 3120 | CU80: 3160 | CV80: 3200 | CW80: 3240 | CX80: 3280 | CY80: 3320 | CZ80: 3360 | DA80: 3400 | DB80: 3440 | DC80: 3480 | DD80: 3520 | DE80: 3560 | DF80: 3600 | DI80: 256 | DJ80: 64 | DK80: 4 | DL80: 8 | DM80: 32
S81: 672 | T81: 1312 | U81: 41 | V81: 82 | W81: 123 | X81: 164 | Y81: 205 | Z81: 246 | AA81: 287 | AB81: 328 | AC81: 369 | AD81: 410 | AE81: 451 | AF81: 492 | AG81: 533 | AH81: 574 | AI81: 615 | AJ81: 656 | AK81: 697 | AL81: 738 | AM81: 779 | AN81: 820 | AO81: 861 | AP81: 902 | AQ81: 943 | AR81: 984 | AS81: 1025 | AT81: 1066 | AU81: 1107 | AV81: 1148 | AW81: 1189 | AX81: 1230 | AY81: 1271 | AZ81: 1312 | BA81: 1353 | BB81: 1394 | BC81: 1435 | BD81: 1476 | BE81: 1517 | BF81: 1558 | BG81: 1599 | BH81: 1640 | BI81: 1681 | BJ81: 1722 | BK81: 1763 | BL81: 1804 | BM81: 1845 | BN81: 1886 | BO81: 1927 | BP81: 1968 | BQ81: 2009 | BR81: 2050 | BS81: 2091 | BT81: 2132 | BU81: 2173 | BV81: 2214 | BW81: 2255 | BX81: 2296 | BY81: 2337 | BZ81: 2378 | CA81: 2419 | CB81: 2460 | CC81: 2501 | CD81: 2542 | CE81: 2583 | CF81: 2624 | CG81: 2665 | CH81: 2706 | CI81: 2747 | CJ81: 2788 | CK81: 2829 | CL81: 2870 | CM81: 2911 | CN81: 2952 | CO81: 2993 | CP81: 3034 | CQ81: 3075 | CR81: 3116 | CS81: 3157 | CT81: 3198 | CU81: 3239 | CV81: 3280 | CW81: 3321 | CX81: 3362 | CY81: 3403 | CZ81: 3444 | DA81: 3485 | DB81: 3526 | DC81: 3567 | DD81: 3608 | DE81: 3649 | DF81: 3690 | DH81: BX 5A1 | DI81: 2048 | DJ81: 16 | DK81: 1 | DL81: 64 | DM81: 64
S82: 688 | T82: 1344 | U82: 42 | V82: 84 | W82: 126 | X82: 168 | Y82: 210 | Z82: 252 | AA82: 294 | AB82: 336 | AC82: 378 | AD82: 420 | AE82: 462 | AF82: 504 | AG82: 546 | AH82: 588 | AI82: 630 | AJ82: 672 | AK82: 714 | AL82: 756 | AM82: 798 | AN82: 840 | AO82: 882 | AP82: 924 | AQ82: 966 | AR82: 1008 | AS82: 1050 | AT82: 1092 | AU82: 1134 | AV82: 1176 | AW82: 1218 | AX82: 1260 | AY82: 1302 | AZ82: 1344 | BA82: 1386 | BB82: 1428 | BC82: 1470 | BD82: 1512 | BE82: 1554 | BF82: 1596 | BG82: 1638 | BH82: 1680 | BI82: 1722 | BJ82: 1764 | BK82: 1806 | BL82: 1848 | BM82: 1890 | BN82: 1932 | BO82: 1974 | BP82: 2016 | BQ82: 2058 | BR82: 2100 | BS82: 2142 | BT82: 2184 | BU82: 2226 | BV82: 2268 | BW82: 2310 | BX82: 2352 | BY82: 2394 | BZ82: 2436 | CA82: 2478 | CB82: 2520 | CC82: 2562 | CD82: 2604 | CE82: 2646 | CF82: 2688 | CG82: 2730 | CH82: 2772 | CI82: 2814 | CJ82: 2856 | CK82: 2898 | CL82: 2940 | CM82: 2982 | CN82: 3024 | CO82: 3066 | CP82: 3108 | CQ82: 3150 | CR82: 3192 | CS82: 3234 | CT82: 3276 | CU82: 3318 | CV82: 3360 | CW82: 3402 | CX82: 3444 | CY82: 3486 | CZ82: 3528 | DA82: 3570 | DB82: 3612 | DC82: 3654 | DD82: 3696 | DE82: 3738 | DF82: 3780 | DI82: 1024 | DJ82: 32 | DK82: 2 | DL82: 32 | DM82: 64
D83: Цена, руб | E83: Цена, $ | S83: 704 | T83: 1376 | U83: 43 | V83: 86 | W83: 129 | X83: 172 | Y83: 215 | Z83: 258 | AA83: 301 | AB83: 344 | AC83: 387 | AD83: 430 | AE83: 473 | AF83: 516 | AG83: 559 | AH83: 602 | AI83: 645 | AJ83: 688 | AK83: 731 | AL83: 774 | AM83: 817 | AN83: 860 | AO83: 903 | AP83: 946 | AQ83: 989 | AR83: 1032 | AS83: 1075 | AT83: 1118 | AU83: 1161 | AV83: 1204 | AW83: 1247 | AX83: 1290 | AY83: 1333 | AZ83: 1376 | BA83: 1419 | BB83: 1462 | BC83: 1505 | BD83: 1548 | BE83: 1591 | BF83: 1634 | BG83: 1677 | BH83: 1720 | BI83: 1763 | BJ83: 1806 | BK83: 1849 | BL83: 1892 | BM83: 1935 | BN83: 1978 | BO83: 2021 | BP83: 2064 | BQ83: 2107 | BR83: 2150 | BS83: 2193 | BT83: 2236 | BU83: 2279 | BV83: 2322 | BW83: 2365 | BX83: 2408 | BY83: 2451 | BZ83: 2494 | CA83: 2537 | CB83: 2580 | CC83: 2623 | CD83: 2666 | CE83: 2709 | CF83: 2752 | CG83: 2795 | CH83: 2838 | CI83: 2881 | CJ83: 2924 | CK83: 2967 | CL83: 3010 | CM83: 3053 | CN83: 3096 | CO83: 3139 | CP83: 3182 | CQ83: 3225 | CR83: 3268 | CS83: 3311 | CT83: 3354 | CU83: 3397 | CV83: 3440 | CW83: 3483 | CX83: 3526 | CY83: 3569 | CZ83: 3612 | DA83: 3655 | DB83: 3698 | DC83: 3741 | DD83: 3784 | DE83: 3827 | DF83: 3870 | DI83: 672 | DJ83: 48 | DK83: 3 | DL83: 21 | DM83: 63
A84: 1 | B84: BX 5UT | C84: =D84 -> 544 | D84: =E84*E3 -> 544 | E84: 8.5 | S84: 720 | T84: 1408 | U84: 44 | V84: 88 | W84: 132 | X84: 176 | Y84: 220 | Z84: 264 | AA84: 308 | AB84: 352 | AC84: 396 | AD84: 440 | AE84: 484 | AF84: 528 | AG84: 572 | AH84: 616 | AI84: 660 | AJ84: 704 | AK84: 748 | AL84: 792 | AM84: 836 | AN84: 880 | AO84: 924 | AP84: 968 | AQ84: 1012 | AR84: 1056 | AS84: 1100 | AT84: 1144 | AU84: 1188 | AV84: 1232 | AW84: 1276 | AX84: 1320 | AY84: 1364 | AZ84: 1408 | BA84: 1452 | BB84: 1496 | BC84: 1540 | BD84: 1584 | BE84: 1628 | BF84: 1672 | BG84: 1716 | BH84: 1760 | BI84: 1804 | BJ84: 1848 | BK84: 1892 | BL84: 1936 | BM84: 1980 | BN84: 2024 | BO84: 2068 | BP84: 2112 | BQ84: 2156 | BR84: 2200 | BS84: 2244 | BT84: 2288 | BU84: 2332 | BV84: 2376 | BW84: 2420 | BX84: 2464 | BY84: 2508 | BZ84: 2552 | CA84: 2596 | CB84: 2640 | CC84: 2684 | CD84: 2728 | CE84: 2772 | CF84: 2816 | CG84: 2860 | CH84: 2904 | CI84: 2948 | CJ84: 2992 | CK84: 3036 | CL84: 3080 | CM84: 3124 | CN84: 3168 | CO84: 3212 | CP84: 3256 | CQ84: 3300 | CR84: 3344 | CS84: 3388 | CT84: 3432 | CU84: 3476 | CV84: 3520 | CW84: 3564 | CX84: 3608 | CY84: 3652 | CZ84: 3696 | DA84: 3740 | DB84: 3784 | DC84: 3828 | DD84: 3872 | DE84: 3916 | DF84: 3960 | DI84: 512 | DJ84: 64 | DK84: 4 | DL84: 16 | DM84: 64
A85: 2 | B85: BX 5UT | C85: =C84 -> 544 | S85: 736 | T85: 1440 | U85: 45 | V85: 90 | W85: 135 | X85: 180 | Y85: 225 | Z85: 270 | AA85: 315 | AB85: 360 | AC85: 405 | AD85: 450 | AE85: 495 | AF85: 540 | AG85: 585 | AH85: 630 | AI85: 675 | AJ85: 720 | AK85: 765 | AL85: 810 | AM85: 855 | AN85: 900 | AO85: 945 | AP85: 990 | AQ85: 1035 | AR85: 1080 | AS85: 1125 | AT85: 1170 | AU85: 1215 | AV85: 1260 | AW85: 1305 | AX85: 1350 | AY85: 1395 | AZ85: 1440 | BA85: 1485 | BB85: 1530 | BC85: 1575 | BD85: 1620 | BE85: 1665 | BF85: 1710 | BG85: 1755 | BH85: 1800 | BI85: 1845 | BJ85: 1890 | BK85: 1935 | BL85: 1980 | BM85: 2025 | BN85: 2070 | BO85: 2115 | BP85: 2160 | BQ85: 2205 | BR85: 2250 | BS85: 2295 | BT85: 2340 | BU85: 2385 | BV85: 2430 | BW85: 2475 | BX85: 2520 | BY85: 2565 | BZ85: 2610 | CA85: 2655 | CB85: 2700 | CC85: 2745 | CD85: 2790 | CE85: 2835 | CF85: 2880 | CG85: 2925 | CH85: 2970 | CI85: 3015 | CJ85: 3060 | CK85: 3105 | CL85: 3150 | CM85: 3195 | CN85: 3240 | CO85: 3285 | CP85: 3330 | CQ85: 3375 | CR85: 3420 | CS85: 3465 | CT85: 3510 | CU85: 3555 | CV85: 3600 | CW85: 3645 | CX85: 3690 | CY85: 3735 | CZ85: 3780 | DA85: 3825 | DB85: 3870 | DC85: 3915 | DD85: 3960 | DE85: 4005 | DF85: 4050 | DH85: BX 5A2 | DI85: 3200 | DJ85: 16 | DK85: 1 | DL85: 100 | DM85: 100
A86: 3 | B86: BX 5UT | C86: 544 | S86: 752 | T86: 1472 | U86: 46 | V86: 92 | W86: 138 | X86: 184 | Y86: 230 | Z86: 276 | AA86: 322 | AB86: 368 | AC86: 414 | AD86: 460 | AE86: 506 | AF86: 552 | AG86: 598 | AH86: 644 | AI86: 690 | AJ86: 736 | AK86: 782 | AL86: 828 | AM86: 874 | AN86: 920 | AO86: 966 | AP86: 1012 | AQ86: 1058 | AR86: 1104 | AS86: 1150 | AT86: 1196 | AU86: 1242 | AV86: 1288 | AW86: 1334 | AX86: 1380 | AY86: 1426 | AZ86: 1472 | BA86: 1518 | BB86: 1564 | BC86: 1610 | BD86: 1656 | BE86: 1702 | BF86: 1748 | BG86: 1794 | BH86: 1840 | BI86: 1886 | BJ86: 1932 | BK86: 1978 | BL86: 2024 | BM86: 2070 | BN86: 2116 | BO86: 2162 | BP86: 2208 | BQ86: 2254 | BR86: 2300 | BS86: 2346 | BT86: 2392 | BU86: 2438 | BV86: 2484 | BW86: 2530 | BX86: 2576 | BY86: 2622 | BZ86: 2668 | CA86: 2714 | CB86: 2760 | CC86: 2806 | CD86: 2852 | CE86: 2898 | CF86: 2944 | CG86: 2990 | CH86: 3036 | CI86: 3082 | CJ86: 3128 | CK86: 3174 | CL86: 3220 | CM86: 3266 | CN86: 3312 | CO86: 3358 | CP86: 3404 | CQ86: 3450 | CR86: 3496 | CS86: 3542 | CT86: 3588 | CU86: 3634 | CV86: 3680 | CW86: 3726 | CX86: 3772 | CY86: 3818 | CZ86: 3864 | DA86: 3910 | DB86: 3956 | DC86: 4002 | DD86: 4048 | DE86: 4094 | DF86: 4140 | DI86: 2048 | DJ86: 32 | DK86: 2 | DL86: 64 | DM86: 128
A87: 4 | B87: BX 5UT | C87: 544 | S87: 768 | T87: 1504 | U87: 47 | V87: 94 | W87: 141 | X87: 188 | Y87: 235 | Z87: 282 | AA87: 329 | AB87: 376 | AC87: 423 | AD87: 470 | AE87: 517 | AF87: 564 | AG87: 611 | AH87: 658 | AI87: 705 | AJ87: 752 | AK87: 799 | AL87: 846 | AM87: 893 | AN87: 940 | AO87: 987 | AP87: 1034 | AQ87: 1081 | AR87: 1128 | AS87: 1175 | AT87: 1222 | AU87: 1269 | AV87: 1316 | AW87: 1363 | AX87: 1410 | AY87: 1457 | AZ87: 1504 | BA87: 1551 | BB87: 1598 | BC87: 1645 | BD87: 1692 | BE87: 1739 | BF87: 1786 | BG87: 1833 | BH87: 1880 | BI87: 1927 | BJ87: 1974 | BK87: 2021 | BL87: 2068 | BM87: 2115 | BN87: 2162 | BO87: 2209 | BP87: 2256 | BQ87: 2303 | BR87: 2350 | BS87: 2397 | BT87: 2444 | BU87: 2491 | BV87: 2538 | BW87: 2585 | BX87: 2632 | BY87: 2679 | BZ87: 2726 | CA87: 2773 | CB87: 2820 | CC87: 2867 | CD87: 2914 | CE87: 2961 | CF87: 3008 | CG87: 3055 | CH87: 3102 | CI87: 3149 | CJ87: 3196 | CK87: 3243 | CL87: 3290 | CM87: 3337 | CN87: 3384 | CO87: 3431 | CP87: 3478 | CQ87: 3525 | CR87: 3572 | CS87: 3619 | CT87: 3666 | CU87: 3713 | CV87: 3760 | CW87: 3807 | CX87: 3854 | CY87: 3901 | CZ87: 3948 | DA87: 3995 | DB87: 4042 | DC87: 4089 | DD87: 4136 | DE87: 4183 | DF87: 4230 | DI87: 1344 | DJ87: 48 | DK87: 3 | DL87: 42 | DM87: 126
A88: 5 | B88: BX 5UT | C88: 544 | S88: 784 | T88: 1536 | U88: 48 | V88: 96 | W88: 144 | X88: 192 | Y88: 240 | Z88: 288 | AA88: 336 | AB88: 384 | AC88: 432 | AD88: 480 | AE88: 528 | AF88: 576 | AG88: 624 | AH88: 672 | AI88: 720 | AJ88: 768 | AK88: 816 | AL88: 864 | AM88: 912 | AN88: 960 | AO88: 1008 | AP88: 1056 | AQ88: 1104 | AR88: 1152 | AS88: 1200 | AT88: 1248 | AU88: 1296 | AV88: 1344 | AW88: 1392 | AX88: 1440 | AY88: 1488 | AZ88: 1536 | BA88: 1584 | BB88: 1632 | BC88: 1680 | BD88: 1728 | BE88: 1776 | BF88: 1824 | BG88: 1872 | BH88: 1920 | BI88: 1968 | BJ88: 2016 | BK88: 2064 | BL88: 2112 | BM88: 2160 | BN88: 2208 | BO88: 2256 | BP88: 2304 | BQ88: 2352 | BR88: 2400 | BS88: 2448 | BT88: 2496 | BU88: 2544 | BV88: 2592 | BW88: 2640 | BX88: 2688 | BY88: 2736 | BZ88: 2784 | CA88: 2832 | CB88: 2880 | CC88: 2928 | CD88: 2976 | CE88: 3024 | CF88: 3072 | CG88: 3120 | CH88: 3168 | CI88: 3216 | CJ88: 3264 | CK88: 3312 | CL88: 3360 | CM88: 3408 | CN88: 3456 | CO88: 3504 | CP88: 3552 | CQ88: 3600 | CR88: 3648 | CS88: 3696 | CT88: 3744 | CU88: 3792 | CV88: 3840 | CW88: 3888 | CX88: 3936 | CY88: 3984 | CZ88: 4032 | DA88: 4080 | DB88: 4128 | DC88: 4176 | DD88: 4224 | DE88: 4272 | DF88: 4320 | DI88: 1024 | DJ88: 64 | DK88: 4 | DL88: 32 | DM88: 128
A89: 6 | B89: BX 5UT | C89: 544 | S89: 800 | T89: 1568 | U89: 49 | V89: 98 | W89: 147 | X89: 196 | Y89: 245 | Z89: 294 | AA89: 343 | AB89: 392 | AC89: 441 | AD89: 490 | AE89: 539 | AF89: 588 | AG89: 637 | AH89: 686 | AI89: 735 | AJ89: 784 | AK89: 833 | AL89: 882 | AM89: 931 | AN89: 980 | AO89: 1029 | AP89: 1078 | AQ89: 1127 | AR89: 1176 | AS89: 1225 | AT89: 1274 | AU89: 1323 | AV89: 1372 | AW89: 1421 | AX89: 1470 | AY89: 1519 | AZ89: 1568 | BA89: 1617 | BB89: 1666 | BC89: 1715 | BD89: 1764 | BE89: 1813 | BF89: 1862 | BG89: 1911 | BH89: 1960 | BI89: 2009 | BJ89: 2058 | BK89: 2107 | BL89: 2156 | BM89: 2205 | BN89: 2254 | BO89: 2303 | BP89: 2352 | BQ89: 2401 | BR89: 2450 | BS89: 2499 | BT89: 2548 | BU89: 2597 | BV89: 2646 | BW89: 2695 | BX89: 2744 | BY89: 2793 | BZ89: 2842 | CA89: 2891 | CB89: 2940 | CC89: 2989 | CD89: 3038 | CE89: 3087 | CF89: 3136 | CG89: 3185 | CH89: 3234 | CI89: 3283 | CJ89: 3332 | CK89: 3381 | CL89: 3430 | CM89: 3479 | CN89: 3528 | CO89: 3577 | CP89: 3626 | CQ89: 3675 | CR89: 3724 | CS89: 3773 | CT89: 3822 | CU89: 3871 | CV89: 3920 | CW89: 3969 | CX89: 4018 | CY89: 4067 | CZ89: 4116 | DA89: 4165 | DB89: 4214 | DC89: 4263 | DD89: 4312 | DE89: 4361 | DF89: 4410 | DH89: BX 5A3 | DI89: 3200 | DJ89: 32 | DK89: 2 | DL89: 100 | DM89: 200
A90: 7 | B90: BX 5UT | C90: 544 | S90: 816 | T90: 1600 | U90: 50 | V90: 100 | W90: 150 | X90: 200 | Y90: 250 | Z90: 300 | AA90: 350 | AB90: 400 | AC90: 450 | AD90: 500 | AE90: 550 | AF90: 600 | AG90: 650 | AH90: 700 | AI90: 750 | AJ90: 800 | AK90: 850 | AL90: 900 | AM90: 950 | AN90: 1000 | AO90: 1050 | AP90: 1100 | AQ90: 1150 | AR90: 1200 | AS90: 1250 | AT90: 1300 | AU90: 1350 | AV90: 1400 | AW90: 1450 | AX90: 1500 | AY90: 1550 | AZ90: 1600 | BA90: 1650 | BB90: 1700 | BC90: 1750 | BD90: 1800 | BE90: 1850 | BF90: 1900 | BG90: 1950 | BH90: 2000 | BI90: 2050 | BJ90: 2100 | BK90: 2150 | BL90: 2200 | BM90: 2250 | BN90: 2300 | BO90: 2350 | BP90: 2400 | BQ90: 2450 | BR90: 2500 | BS90: 2550 | BT90: 2600 | BU90: 2650 | BV90: 2700 | BW90: 2750 | BX90: 2800 | BY90: 2850 | BZ90: 2900 | CA90: 2950 | CB90: 3000 | CC90: 3050 | CD90: 3100 | CE90: 3150 | CF90: 3200 | CG90: 3250 | CH90: 3300 | CI90: 3350 | CJ90: 3400 | CK90: 3450 | CL90: 3500 | CM90: 3550 | CN90: 3600 | CO90: 3650 | CP90: 3700 | CQ90: 3750 | CR90: 3800 | CS90: 3850 | CT90: 3900 | CU90: 3950 | CV90: 4000 | CW90: 4050 | CX90: 4100 | CY90: 4150 | CZ90: 4200 | DA90: 4250 | DB90: 4300 | DC90: 4350 | DD90: 4400 | DE90: 4450 | DF90: 4500 | DH90: хаб 128 | DI90: 2720 | DJ90: 48 | DK90: 3 | DL90: 85 | DM90: 255
A91: 8 | B91: BX 5UT | C91: 544 | S91: 832 | T91: 1632 | U91: 51 | V91: 102 | W91: 153 | X91: 204 | Y91: 255 | Z91: 306 | AA91: 357 | AB91: 408 | AC91: 459 | AD91: 510 | AE91: 561 | AF91: 612 | AG91: 663 | AH91: 714 | AI91: 765 | AJ91: 816 | AK91: 867 | AL91: 918 | AM91: 969 | AN91: 1020 | AO91: 1071 | AP91: 1122 | AQ91: 1173 | AR91: 1224 | AS91: 1275 | AT91: 1326 | AU91: 1377 | AV91: 1428 | AW91: 1479 | AX91: 1530 | AY91: 1581 | AZ91: 1632 | BA91: 1683 | BB91: 1734 | BC91: 1785 | BD91: 1836 | BE91: 1887 | BF91: 1938 | BG91: 1989 | BH91: 2040 | BI91: 2091 | BJ91: 2142 | BK91: 2193 | BL91: 2244 | BM91: 2295 | BN91: 2346 | BO91: 2397 | BP91: 2448 | BQ91: 2499 | BR91: 2550 | BS91: 2601 | BT91: 2652 | BU91: 2703 | BV91: 2754 | BW91: 2805 | BX91: 2856 | BY91: 2907 | BZ91: 2958 | CA91: 3009 | CB91: 3060 | CC91: 3111 | CD91: 3162 | CE91: 3213 | CF91: 3264 | CG91: 3315 | CH91: 3366 | CI91: 3417 | CJ91: 3468 | CK91: 3519 | CL91: 3570 | CM91: 3621 | CN91: 3672 | CO91: 3723 | CP91: 3774 | CQ91: 3825 | CR91: 3876 | CS91: 3927 | CT91: 3978 | CU91: 4029 | CV91: 4080 | CW91: 4131 | CX91: 4182 | CY91: 4233 | CZ91: 4284 | DA91: 4335 | DB91: 4386 | DC91: 4437 | DD91: 4488 | DE91: 4539 | DF91: 4590 | DI91: 2048 | DJ91: 64 | DK91: 4 | DL91: 64 | DM91: 256
A92: 9 | B92: BX 5UT | C92: 544 | S92: 848 | T92: 1664 | U92: 52 | V92: 104 | W92: 156 | X92: 208 | Y92: 260 | Z92: 312 | AA92: 364 | AB92: 416 | AC92: 468 | AD92: 520 | AE92: 572 | AF92: 624 | AG92: 676 | AH92: 728 | AI92: 780 | AJ92: 832 | AK92: 884 | AL92: 936 | AM92: 988 | AN92: 1040 | AO92: 1092 | AP92: 1144 | AQ92: 1196 | AR92: 1248 | AS92: 1300 | AT92: 1352 | AU92: 1404 | AV92: 1456 | AW92: 1508 | AX92: 1560 | AY92: 1612 | AZ92: 1664 | BA92: 1716 | BB92: 1768 | BC92: 1820 | BD92: 1872 | BE92: 1924 | BF92: 1976 | BG92: 2028 | BH92: 2080 | BI92: 2132 | BJ92: 2184 | BK92: 2236 | BL92: 2288 | BM92: 2340 | BN92: 2392 | BO92: 2444 | BP92: 2496 | BQ92: 2548 | BR92: 2600 | BS92: 2652 | BT92: 2704 | BU92: 2756 | BV92: 2808 | BW92: 2860 | BX92: 2912 | BY92: 2964 | BZ92: 3016 | CA92: 3068 | CB92: 3120 | CC92: 3172 | CD92: 3224 | CE92: 3276 | CF92: 3328 | CG92: 3380 | CH92: 3432 | CI92: 3484 | CJ92: 3536 | CK92: 3588 | CL92: 3640 | CM92: 3692 | CN92: 3744 | CO92: 3796 | CP92: 3848 | CQ92: 3900 | CR92: 3952 | CS92: 4004 | CT92: 4056 | CU92: 4108 | CV92: 4160 | CW92: 4212 | CX92: 4264 | CY92: 4316 | CZ92: 4368 | DA92: 4420 | DB92: 4472 | DC92: 4524 | DD92: 4576 | DE92: 4628 | DF92: 4680 | DI92: 1632 | DJ92: 80 | DK92: 5 | DL92: 51 | DM92: 255
A93: 10 | B93: BX 5UT | C93: 544 | S93: 864 | T93: 1696 | U93: 53 | V93: 106 | W93: 159 | X93: 212 | Y93: 265 | Z93: 318 | AA93: 371 | AB93: 424 | AC93: 477 | AD93: 530 | AE93: 583 | AF93: 636 | AG93: 689 | AH93: 742 | AI93: 795 | AJ93: 848 | AK93: 901 | AL93: 954 | AM93: 1007 | AN93: 1060 | AO93: 1113 | AP93: 1166 | AQ93: 1219 | AR93: 1272 | AS93: 1325 | AT93: 1378 | AU93: 1431 | AV93: 1484 | AW93: 1537 | AX93: 1590 | AY93: 1643 | AZ93: 1696 | BA93: 1749 | BB93: 1802 | BC93: 1855 | BD93: 1908 | BE93: 1961 | BF93: 2014 | BG93: 2067 | BH93: 2120 | BI93: 2173 | BJ93: 2226 | BK93: 2279 | BL93: 2332 | BM93: 2385 | BN93: 2438 | BO93: 2491 | BP93: 2544 | BQ93: 2597 | BR93: 2650 | BS93: 2703 | BT93: 2756 | BU93: 2809 | BV93: 2862 | BW93: 2915 | BX93: 2968 | BY93: 3021 | BZ93: 3074 | CA93: 3127 | CB93: 3180 | CC93: 3233 | CD93: 3286 | CE93: 3339 | CF93: 3392 | CG93: 3445 | CH93: 3498 | CI93: 3551 | CJ93: 3604 | CK93: 3657 | CL93: 3710 | CM93: 3763 | CN93: 3816 | CO93: 3869 | CP93: 3922 | CQ93: 3975 | CR93: 4028 | CS93: 4081 | CT93: 4134 | CU93: 4187 | CV93: 4240 | CW93: 4293 | CX93: 4346 | CY93: 4399 | CZ93: 4452 | DA93: 4505 | DB93: 4558 | DC93: 4611 | DD93: 4664 | DE93: 4717 | DF93: 4770 | DI93: 1344 | DJ93: 96 | DK93: 6 | DL93: 42 | DM93: 252
A94: 11 | B94: BX 5UT | C94: 544 | S94: 880 | T94: 1728 | U94: 54 | V94: 108 | W94: 162 | X94: 216 | Y94: 270 | Z94: 324 | AA94: 378 | AB94: 432 | AC94: 486 | AD94: 540 | AE94: 594 | AF94: 648 | AG94: 702 | AH94: 756 | AI94: 810 | AJ94: 864 | AK94: 918 | AL94: 972 | AM94: 1026 | AN94: 1080 | AO94: 1134 | AP94: 1188 | AQ94: 1242 | AR94: 1296 | AS94: 1350 | AT94: 1404 | AU94: 1458 | AV94: 1512 | AW94: 1566 | AX94: 1620 | AY94: 1674 | AZ94: 1728 | BA94: 1782 | BB94: 1836 | BC94: 1890 | BD94: 1944 | BE94: 1998 | BF94: 2052 | BG94: 2106 | BH94: 2160 | BI94: 2214 | BJ94: 2268 | BK94: 2322 | BL94: 2376 | BM94: 2430 | BN94: 2484 | BO94: 2538 | BP94: 2592 | BQ94: 2646 | BR94: 2700 | BS94: 2754 | BT94: 2808 | BU94: 2862 | BV94: 2916 | BW94: 2970 | BX94: 3024 | BY94: 3078 | BZ94: 3132 | CA94: 3186 | CB94: 3240 | CC94: 3294 | CD94: 3348 | CE94: 3402 | CF94: 3456 | CG94: 3510 | CH94: 3564 | CI94: 3618 | CJ94: 3672 | CK94: 3726 | CL94: 3780 | CM94: 3834 | CN94: 3888 | CO94: 3942 | CP94: 3996 | CQ94: 4050 | CR94: 4104 | CS94: 4158 | CT94: 4212 | CU94: 4266 | CV94: 4320 | CW94: 4374 | CX94: 4428 | CY94: 4482 | CZ94: 4536 | DA94: 4590 | DB94: 4644 | DC94: 4698 | DD94: 4752 | DE94: 4806 | DF94: 4860 | DI94: 1152 | DJ94: 112 | DK94: 7 | DL94: 36 | DM94: 252
A95: 12 | B95: BX 5UT | C95: 544 | S95: 896 | T95: 1760 | U95: 55 | V95: 110 | W95: 165 | X95: 220 | Y95: 275 | Z95: 330 | AA95: 385 | AB95: 440 | AC95: 495 | AD95: 550 | AE95: 605 | AF95: 660 | AG95: 715 | AH95: 770 | AI95: 825 | AJ95: 880 | AK95: 935 | AL95: 990 | AM95: 1045 | AN95: 1100 | AO95: 1155 | AP95: 1210 | AQ95: 1265 | AR95: 1320 | AS95: 1375 | AT95: 1430 | AU95: 1485 | AV95: 1540 | AW95: 1595 | AX95: 1650 | AY95: 1705 | AZ95: 1760 | BA95: 1815 | BB95: 1870 | BC95: 1925 | BD95: 1980 | BE95: 2035 | BF95: 2090 | BG95: 2145 | BH95: 2200 | BI95: 2255 | BJ95: 2310 | BK95: 2365 | BL95: 2420 | BM95: 2475 | BN95: 2530 | BO95: 2585 | BP95: 2640 | BQ95: 2695 | BR95: 2750 | BS95: 2805 | BT95: 2860 | BU95: 2915 | BV95: 2970 | BW95: 3025 | BX95: 3080 | BY95: 3135 | BZ95: 3190 | CA95: 3245 | CB95: 3300 | CC95: 3355 | CD95: 3410 | CE95: 3465 | CF95: 3520 | CG95: 3575 | CH95: 3630 | CI95: 3685 | CJ95: 3740 | CK95: 3795 | CL95: 3850 | CM95: 3905 | CN95: 3960 | CO95: 4015 | CP95: 4070 | CQ95: 4125 | CR95: 4180 | CS95: 4235 | CT95: 4290 | CU95: 4345 | CV95: 4400 | CW95: 4455 | CX95: 4510 | CY95: 4565 | CZ95: 4620 | DA95: 4675 | DB95: 4730 | DC95: 4785 | DD95: 4840 | DE95: 4895 | DF95: 4950 | DI95: 1024 | DJ95: 128 | DK95: 8 | DL95: 32 | DM95: 256
A96: 13 | B96: BX 5UT | C96: 544 | S96: 912 | T96: 1792 | U96: 56 | V96: 112 | W96: 168 | X96: 224 | Y96: 280 | Z96: 336 | AA96: 392 | AB96: 448 | AC96: 504 | AD96: 560 | AE96: 616 | AF96: 672 | AG96: 728 | AH96: 784 | AI96: 840 | AJ96: 896 | AK96: 952 | AL96: 1008 | AM96: 1064 | AN96: 1120 | AO96: 1176 | AP96: 1232 | AQ96: 1288 | AR96: 1344 | AS96: 1400 | AT96: 1456 | AU96: 1512 | AV96: 1568 | AW96: 1624 | AX96: 1680 | AY96: 1736 | AZ96: 1792 | BA96: 1848 | BB96: 1904 | BC96: 1960 | BD96: 2016 | BE96: 2072 | BF96: 2128 | BG96: 2184 | BH96: 2240 | BI96: 2296 | BJ96: 2352 | BK96: 2408 | BL96: 2464 | BM96: 2520 | BN96: 2576 | BO96: 2632 | BP96: 2688 | BQ96: 2744 | BR96: 2800 | BS96: 2856 | BT96: 2912 | BU96: 2968 | BV96: 3024 | BW96: 3080 | BX96: 3136 | BY96: 3192 | BZ96: 3248 | CA96: 3304 | CB96: 3360 | CC96: 3416 | CD96: 3472 | CE96: 3528 | CF96: 3584 | CG96: 3640 | CH96: 3696 | CI96: 3752 | CJ96: 3808 | CK96: 3864 | CL96: 3920 | CM96: 3976 | CN96: 4032 | CO96: 4088 | CP96: 4144 | CQ96: 4200 | CR96: 4256 | CS96: 4312 | CT96: 4368 | CU96: 4424 | CV96: 4480 | CW96: 4536 | CX96: 4592 | CY96: 4648 | CZ96: 4704 | DA96: 4760 | DB96: 4816 | DC96: 4872 | DD96: 4928 | DE96: 4984 | DF96: 5040 | DH96: BX 5A4 | DI96: 3200 | DJ96: 32 | DK96: 2 | DL96: 100 | DM96: 200
A97: 14 | B97: BX 5UT | C97: 544 | S97: 928 | T97: 1824 | U97: 57 | V97: 114 | W97: 171 | X97: 228 | Y97: 285 | Z97: 342 | AA97: 399 | AB97: 456 | AC97: 513 | AD97: 570 | AE97: 627 | AF97: 684 | AG97: 741 | AH97: 798 | AI97: 855 | AJ97: 912 | AK97: 969 | AL97: 1026 | AM97: 1083 | AN97: 1140 | AO97: 1197 | AP97: 1254 | AQ97: 1311 | AR97: 1368 | AS97: 1425 | AT97: 1482 | AU97: 1539 | AV97: 1596 | AW97: 1653 | AX97: 1710 | AY97: 1767 | AZ97: 1824 | BA97: 1881 | BB97: 1938 | BC97: 1995 | BD97: 2052 | BE97: 2109 | BF97: 2166 | BG97: 2223 | BH97: 2280 | BI97: 2337 | BJ97: 2394 | BK97: 2451 | BL97: 2508 | BM97: 2565 | BN97: 2622 | BO97: 2679 | BP97: 2736 | BQ97: 2793 | BR97: 2850 | BS97: 2907 | BT97: 2964 | BU97: 3021 | BV97: 3078 | BW97: 3135 | BX97: 3192 | BY97: 3249 | BZ97: 3306 | CA97: 3363 | CB97: 3420 | CC97: 3477 | CD97: 3534 | CE97: 3591 | CF97: 3648 | CG97: 3705 | CH97: 3762 | CI97: 3819 | CJ97: 3876 | CK97: 3933 | CL97: 3990 | CM97: 4047 | CN97: 4104 | CO97: 4161 | CP97: 4218 | CQ97: 4275 | CR97: 4332 | CS97: 4389 | CT97: 4446 | CU97: 4503 | CV97: 4560 | CW97: 4617 | CX97: 4674 | CY97: 4731 | CZ97: 4788 | DA97: 4845 | DB97: 4902 | DC97: 4959 | DD97: 5016 | DE97: 5073 | DF97: 5130 | DH97: хаб 128 | DI97: 3200 | DJ97: 48 | DK97: 3 | DL97: 100 | DM97: 300
A98: 15 | B98: BX 5UT | C98: 544 | S98: 944 | T98: 1856 | U98: 58 | V98: 116 | W98: 174 | X98: 232 | Y98: 290 | Z98: 348 | AA98: 406 | AB98: 464 | AC98: 522 | AD98: 580 | AE98: 638 | AF98: 696 | AG98: 754 | AH98: 812 | AI98: 870 | AJ98: 928 | AK98: 986 | AL98: 1044 | AM98: 1102 | AN98: 1160 | AO98: 1218 | AP98: 1276 | AQ98: 1334 | AR98: 1392 | AS98: 1450 | AT98: 1508 | AU98: 1566 | AV98: 1624 | AW98: 1682 | AX98: 1740 | AY98: 1798 | AZ98: 1856 | BA98: 1914 | BB98: 1972 | BC98: 2030 | BD98: 2088 | BE98: 2146 | BF98: 2204 | BG98: 2262 | BH98: 2320 | BI98: 2378 | BJ98: 2436 | BK98: 2494 | BL98: 2552 | BM98: 2610 | BN98: 2668 | BO98: 2726 | BP98: 2784 | BQ98: 2842 | BR98: 2900 | BS98: 2958 | BT98: 3016 | BU98: 3074 | BV98: 3132 | BW98: 3190 | BX98: 3248 | BY98: 3306 | BZ98: 3364 | CA98: 3422 | CB98: 3480 | CC98: 3538 | CD98: 3596 | CE98: 3654 | CF98: 3712 | CG98: 3770 | CH98: 3828 | CI98: 3886 | CJ98: 3944 | CK98: 4002 | CL98: 4060 | CM98: 4118 | CN98: 4176 | CO98: 4234 | CP98: 4292 | CQ98: 4350 | CR98: 4408 | CS98: 4466 | CT98: 4524 | CU98: 4582 | CV98: 4640 | CW98: 4698 | CX98: 4756 | CY98: 4814 | CZ98: 4872 | DA98: 4930 | DB98: 4988 | DC98: 5046 | DD98: 5104 | DE98: 5162 | DF98: 5220 | DH98: хаб 256 | DI98: 2688 | DJ98: 64 | DK98: 4 | DL98: 84 | DM98: 336
A99: 16 | B99: BX 5UT | C99: 544 | S99: 960 | T99: 1888 | U99: 59 | V99: 118 | W99: 177 | X99: 236 | Y99: 295 | Z99: 354 | AA99: 413 | AB99: 472 | AC99: 531 | AD99: 590 | AE99: 649 | AF99: 708 | AG99: 767 | AH99: 826 | AI99: 885 | AJ99: 944 | AK99: 1003 | AL99: 1062 | AM99: 1121 | AN99: 1180 | AO99: 1239 | AP99: 1298 | AQ99: 1357 | AR99: 1416 | AS99: 1475 | AT99: 1534 | AU99: 1593 | AV99: 1652 | AW99: 1711 | AX99: 1770 | AY99: 1829 | AZ99: 1888 | BA99: 1947 | BB99: 2006 | BC99: 2065 | BD99: 2124 | BE99: 2183 | BF99: 2242 | BG99: 2301 | BH99: 2360 | BI99: 2419 | BJ99: 2478 | BK99: 2537 | BL99: 2596 | BM99: 2655 | BN99: 2714 | BO99: 2773 | BP99: 2832 | BQ99: 2891 | BR99: 2950 | BS99: 3009 | BT99: 3068 | BU99: 3127 | BV99: 3186 | BW99: 3245 | BX99: 3304 | BY99: 3363 | BZ99: 3422 | CA99: 3481 | CB99: 3540 | CC99: 3599 | CD99: 3658 | CE99: 3717 | CF99: 3776 | CG99: 3835 | CH99: 3894 | CI99: 3953 | CJ99: 4012 | CK99: 4071 | CL99: 4130 | CM99: 4189 | CN99: 4248 | CO99: 4307 | CP99: 4366 | CQ99: 4425 | CR99: 4484 | CS99: 4543 | CT99: 4602 | CU99: 4661 | CV99: 4720 | CW99: 4779 | CX99: 4838 | CY99: 4897 | CZ99: 4956 | DA99: 5015 | DB99: 5074 | DC99: 5133 | DD99: 5192 | DE99: 5251 | DF99: 5310 | DI99: 2048 | DJ99: 80 | DK99: 5 | DL99: 64 | DM99: 320
A100: 17 | B100: BX 5U0 | C100: =D100 -> 704 | D100: =E100*E3 -> 704 | E100: 11 | S100: 976 | T100: 1920 | U100: 60 | V100: 120 | W100: 180 | X100: 240 | Y100: 300 | Z100: 360 | AA100: 420 | AB100: 480 | AC100: 540 | AD100: 600 | AE100: 660 | AF100: 720 | AG100: 780 | AH100: 840 | AI100: 900 | AJ100: 960 | AK100: 1020 | AL100: 1080 | AM100: 1140 | AN100: 1200 | AO100: 1260 | AP100: 1320 | AQ100: 1380 | AR100: 1440 | AS100: 1500 | AT100: 1560 | AU100: 1620 | AV100: 1680 | AW100: 1740 | AX100: 1800 | AY100: 1860 | AZ100: 1920 | BA100: 1980 | BB100: 2040 | BC100: 2100 | BD100: 2160 | BE100: 2220 | BF100: 2280 | BG100: 2340 | BH100: 2400 | BI100: 2460 | BJ100: 2520 | BK100: 2580 | BL100: 2640 | BM100: 2700 | BN100: 2760 | BO100: 2820 | BP100: 2880 | BQ100: 2940 | BR100: 3000 | BS100: 3060 | BT100: 3120 | BU100: 3180 | BV100: 3240 | BW100: 3300 | BX100: 3360 | BY100: 3420 | BZ100: 3480 | CA100: 3540 | CB100: 3600 | CC100: 3660 | CD100: 3720 | CE100: 3780 | CF100: 3840 | CG100: 3900 | CH100: 3960 | CI100: 4020 | CJ100: 4080 | CK100: 4140 | CL100: 4200 | CM100: 4260 | CN100: 4320 | CO100: 4380 | CP100: 4440 | CQ100: 4500 | CR100: 4560 | CS100: 4620 | CT100: 4680 | CU100: 4740 | CV100: 4800 | CW100: 4860 | CX100: 4920 | CY100: 4980 | CZ100: 5040 | DA100: 5100 | DB100: 5160 | DC100: 5220 | DD100: 5280 | DE100: 5340 | DF100: 5400 | DI100: 1792 | DJ100: 96 | DK100: 6 | DL100: 56 | DM100: 336
A101: 18 | B101: BX 5U0 | C101: =C100 -> 704 | S101: 992 | T101: 1952 | U101: 61 | V101: 122 | W101: 183 | X101: 244 | Y101: 305 | Z101: 366 | AA101: 427 | AB101: 488 | AC101: 549 | AD101: 610 | AE101: 671 | AF101: 732 | AG101: 793 | AH101: 854 | AI101: 915 | AJ101: 976 | AK101: 1037 | AL101: 1098 | AM101: 1159 | AN101: 1220 | AO101: 1281 | AP101: 1342 | AQ101: 1403 | AR101: 1464 | AS101: 1525 | AT101: 1586 | AU101: 1647 | AV101: 1708 | AW101: 1769 | AX101: 1830 | AY101: 1891 | AZ101: 1952 | BA101: 2013 | BB101: 2074 | BC101: 2135 | BD101: 2196 | BE101: 2257 | BF101: 2318 | BG101: 2379 | BH101: 2440 | BI101: 2501 | BJ101: 2562 | BK101: 2623 | BL101: 2684 | BM101: 2745 | BN101: 2806 | BO101: 2867 | BP101: 2928 | BQ101: 2989 | BR101: 3050 | BS101: 3111 | BT101: 3172 | BU101: 3233 | BV101: 3294 | BW101: 3355 | BX101: 3416 | BY101: 3477 | BZ101: 3538 | CA101: 3599 | CB101: 3660 | CC101: 3721 | CD101: 3782 | CE101: 3843 | CF101: 3904 | CG101: 3965 | CH101: 4026 | CI101: 4087 | CJ101: 4148 | CK101: 4209 | CL101: 4270 | CM101: 4331 | CN101: 4392 | CO101: 4453 | CP101: 4514 | CQ101: 4575 | CR101: 4636 | CS101: 4697 | CT101: 4758 | CU101: 4819 | CV101: 4880 | CW101: 4941 | CX101: 5002 | CY101: 5063 | CZ101: 5124 | DA101: 5185 | DB101: 5246 | DC101: 5307 | DD101: 5368 | DE101: 5429 | DF101: 5490 | DI101: 1280 | DJ101: 112 | DK101: 7 | DL101: 40 | DM101: 280
A102: 19 | B102: BX 5U0 | C102: 704 | S102: 1008 | T102: 1984 | U102: 62 | V102: 124 | W102: 186 | X102: 248 | Y102: 310 | Z102: 372 | AA102: 434 | AB102: 496 | AC102: 558 | AD102: 620 | AE102: 682 | AF102: 744 | AG102: 806 | AH102: 868 | AI102: 930 | AJ102: 992 | AK102: 1054 | AL102: 1116 | AM102: 1178 | AN102: 1240 | AO102: 1302 | AP102: 1364 | AQ102: 1426 | AR102: 1488 | AS102: 1550 | AT102: 1612 | AU102: 1674 | AV102: 1736 | AW102: 1798 | AX102: 1860 | AY102: 1922 | AZ102: 1984 | BA102: 2046 | BB102: 2108 | BC102: 2170 | BD102: 2232 | BE102: 2294 | BF102: 2356 | BG102: 2418 | BH102: 2480 | BI102: 2542 | BJ102: 2604 | BK102: 2666 | BL102: 2728 | BM102: 2790 | BN102: 2852 | BO102: 2914 | BP102: 2976 | BQ102: 3038 | BR102: 3100 | BS102: 3162 | BT102: 3224 | BU102: 3286 | BV102: 3348 | BW102: 3410 | BX102: 3472 | BY102: 3534 | BZ102: 3596 | CA102: 3658 | CB102: 3720 | CC102: 3782 | CD102: 3844 | CE102: 3906 | CF102: 3968 | CG102: 4030 | CH102: 4092 | CI102: 4154 | CJ102: 4216 | CK102: 4278 | CL102: 4340 | CM102: 4402 | CN102: 4464 | CO102: 4526 | CP102: 4588 | CQ102: 4650 | CR102: 4712 | CS102: 4774 | CT102: 4836 | CU102: 4898 | CV102: 4960 | CW102: 5022 | CX102: 5084 | CY102: 5146 | CZ102: 5208 | DA102: 5270 | DB102: 5332 | DC102: 5394 | DD102: 5456 | DE102: 5518 | DF102: 5580 | DI102: 1024 | DJ102: 128 | DK102: 8 | DL102: 32 | DM102: 256
A103: 20 | B103: BX 5U0 | C103: 704 | S103: 1024 | T103: 2016 | U103: 63 | V103: 126 | W103: 189 | X103: 252 | Y103: 315 | Z103: 378 | AA103: 441 | AB103: 504 | AC103: 567 | AD103: 630 | AE103: 693 | AF103: 756 | AG103: 819 | AH103: 882 | AI103: 945 | AJ103: 1008 | AK103: 1071 | AL103: 1134 | AM103: 1197 | AN103: 1260 | AO103: 1323 | AP103: 1386 | AQ103: 1449 | AR103: 1512 | AS103: 1575 | AT103: 1638 | AU103: 1701 | AV103: 1764 | AW103: 1827 | AX103: 1890 | AY103: 1953 | AZ103: 2016 | BA103: 2079 | BB103: 2142 | BC103: 2205 | BD103: 2268 | BE103: 2331 | BF103: 2394 | BG103: 2457 | BH103: 2520 | BI103: 2583 | BJ103: 2646 | BK103: 2709 | BL103: 2772 | BM103: 2835 | BN103: 2898 | BO103: 2961 | BP103: 3024 | BQ103: 3087 | BR103: 3150 | BS103: 3213 | BT103: 3276 | BU103: 3339 | BV103: 3402 | BW103: 3465 | BX103: 3528 | BY103: 3591 | BZ103: 3654 | CA103: 3717 | CB103: 3780 | CC103: 3843 | CD103: 3906 | CE103: 3969 | CF103: 4032 | CG103: 4095 | CH103: 4158 | CI103: 4221 | CJ103: 4284 | CK103: 4347 | CL103: 4410 | CM103: 4473 | CN103: 4536 | CO103: 4599 | CP103: 4662 | CQ103: 4725 | CR103: 4788 | CS103: 4851 | CT103: 4914 | CU103: 4977 | CV103: 5040 | CW103: 5103 | CX103: 5166 | CY103: 5229 | CZ103: 5292 | DA103: 5355 | DB103: 5418 | DC103: 5481 | DD103: 5544 | DE103: 5607 | DF103: 5670 | DI103: 896 | DJ103: 144 | DK103: 9 | DL103: 28 | DM103: 252
A104: 21 | B104: BX 5U0 | C104: 704 | S104: 1040 | T104: 2048 | U104: 64 | V104: 128 | W104: 192 | X104: 256 | Y104: 320 | Z104: 384 | AA104: 448 | AB104: 512 | AC104: 576 | AD104: 640 | AE104: 704 | AF104: 768 | AG104: 832 | AH104: 896 | AI104: 960 | AJ104: 1024 | AK104: 1088 | AL104: 1152 | AM104: 1216 | AN104: 1280 | AO104: 1344 | AP104: 1408 | AQ104: 1472 | AR104: 1536 | AS104: 1600 | AT104: 1664 | AU104: 1728 | AV104: 1792 | AW104: 1856 | AX104: 1920 | AY104: 1984 | AZ104: 2048 | BA104: 2112 | BB104: 2176 | BC104: 2240 | BD104: 2304 | BE104: 2368 | BF104: 2432 | BG104: 2496 | BH104: 2560 | BI104: 2624 | BJ104: 2688 | BK104: 2752 | BL104: 2816 | BM104: 2880 | BN104: 2944 | BO104: 3008 | BP104: 3072 | BQ104: 3136 | BR104: 3200 | BS104: 3264 | BT104: 3328 | BU104: 3392 | BV104: 3456 | BW104: 3520 | BX104: 3584 | BY104: 3648 | BZ104: 3712 | CA104: 3776 | CB104: 3840 | CC104: 3904 | CD104: 3968 | CE104: 4032 | CF104: 4096 | CG104: 4160 | CH104: 4224 | CI104: 4288 | CJ104: 4352 | CK104: 4416 | CL104: 4480 | CM104: 4544 | CN104: 4608 | CO104: 4672 | CP104: 4736 | CQ104: 4800 | CR104: 4864 | CS104: 4928 | CT104: 4992 | CU104: 5056 | CV104: 5120 | CW104: 5184 | CX104: 5248 | CY104: 5312 | CZ104: 5376 | DA104: 5440 | DB104: 5504 | DC104: 5568 | DD104: 5632 | DE104: 5696 | DF104: 5760 | DI104: 768 | DJ104: 160 | DK104: 10 | DL104: 24 | DM104: 240
A105: 22 | B105: BX 5U0 | C105: 704 | S105: 1056 | T105: 2080 | U105: 65 | V105: 130 | W105: 195 | X105: 260 | Y105: 325 | Z105: 390 | AA105: 455 | AB105: 520 | AC105: 585 | AD105: 650 | AE105: 715 | AF105: 780 | AG105: 845 | AH105: 910 | AI105: 975 | AJ105: 1040 | AK105: 1105 | AL105: 1170 | AM105: 1235 | AN105: 1300 | AO105: 1365 | AP105: 1430 | AQ105: 1495 | AR105: 1560 | AS105: 1625 | AT105: 1690 | AU105: 1755 | AV105: 1820 | AW105: 1885 | AX105: 1950 | AY105: 2015 | AZ105: 2080 | BA105: 2145 | BB105: 2210 | BC105: 2275 | BD105: 2340 | BE105: 2405 | BF105: 2470 | BG105: 2535 | BH105: 2600 | BI105: 2665 | BJ105: 2730 | BK105: 2795 | BL105: 2860 | BM105: 2925 | BN105: 2990 | BO105: 3055 | BP105: 3120 | BQ105: 3185 | BR105: 3250 | BS105: 3315 | BT105: 3380 | BU105: 3445 | BV105: 3510 | BW105: 3575 | BX105: 3640 | BY105: 3705 | BZ105: 3770 | CA105: 3835 | CB105: 3900 | CC105: 3965 | CD105: 4030 | CE105: 4095 | CF105: 4160 | CG105: 4225 | CH105: 4290 | CI105: 4355 | CJ105: 4420 | CK105: 4485 | CL105: 4550 | CM105: 4615 | CN105: 4680 | CO105: 4745 | CP105: 4810 | CQ105: 4875 | CR105: 4940 | CS105: 5005 | CT105: 5070 | CU105: 5135 | CV105: 5200 | CW105: 5265 | CX105: 5330 | CY105: 5395 | CZ105: 5460 | DA105: 5525 | DB105: 5590 | DC105: 5655 | DD105: 5720 | DE105: 5785 | DF105: 5850 | DI105: 704 | DJ105: 176 | DK105: 11 | DL105: 22 | DM105: 242
A106: 23 | B106: BX 5U0 | C106: 704 | S106: 1072 | T106: 2112 | U106: 66 | V106: 132 | W106: 198 | X106: 264 | Y106: 330 | Z106: 396 | AA106: 462 | AB106: 528 | AC106: 594 | AD106: 660 | AE106: 726 | AF106: 792 | AG106: 858 | AH106: 924 | AI106: 990 | AJ106: 1056 | AK106: 1122 | AL106: 1188 | AM106: 1254 | AN106: 1320 | AO106: 1386 | AP106: 1452 | AQ106: 1518 | AR106: 1584 | AS106: 1650 | AT106: 1716 | AU106: 1782 | AV106: 1848 | AW106: 1914 | AX106: 1980 | AY106: 2046 | AZ106: 2112 | BA106: 2178 | BB106: 2244 | BC106: 2310 | BD106: 2376 | BE106: 2442 | BF106: 2508 | BG106: 2574 | BH106: 2640 | BI106: 2706 | BJ106: 2772 | BK106: 2838 | BL106: 2904 | BM106: 2970 | BN106: 3036 | BO106: 3102 | BP106: 3168 | BQ106: 3234 | BR106: 3300 | BS106: 3366 | BT106: 3432 | BU106: 3498 | BV106: 3564 | BW106: 3630 | BX106: 3696 | BY106: 3762 | BZ106: 3828 | CA106: 3894 | CB106: 3960 | CC106: 4026 | CD106: 4092 | CE106: 4158 | CF106: 4224 | CG106: 4290 | CH106: 4356 | CI106: 4422 | CJ106: 4488 | CK106: 4554 | CL106: 4620 | CM106: 4686 | CN106: 4752 | CO106: 4818 | CP106: 4884 | CQ106: 4950 | CR106: 5016 | CS106: 5082 | CT106: 5148 | CU106: 5214 | CV106: 5280 | CW106: 5346 | CX106: 5412 | CY106: 5478 | CZ106: 5544 | DA106: 5610 | DB106: 5676 | DC106: 5742 | DD106: 5808 | DE106: 5874 | DF106: 5940 | DI106: 640 | DJ106: 192 | DK106: 12 | DL106: 20 | DM106: 240
A107: 24 | B107: BX 5U0 | C107: 704 | S107: 1088 | T107: 2144 | U107: 67 | V107: 134 | W107: 201 | X107: 268 | Y107: 335 | Z107: 402 | AA107: 469 | AB107: 536 | AC107: 603 | AD107: 670 | AE107: 737 | AF107: 804 | AG107: 871 | AH107: 938 | AI107: 1005 | AJ107: 1072 | AK107: 1139 | AL107: 1206 | AM107: 1273 | AN107: 1340 | AO107: 1407 | AP107: 1474 | AQ107: 1541 | AR107: 1608 | AS107: 1675 | AT107: 1742 | AU107: 1809 | AV107: 1876 | AW107: 1943 | AX107: 2010 | AY107: 2077 | AZ107: 2144 | BA107: 2211 | BB107: 2278 | BC107: 2345 | BD107: 2412 | BE107: 2479 | BF107: 2546 | BG107: 2613 | BH107: 2680 | BI107: 2747 | BJ107: 2814 | BK107: 2881 | BL107: 2948 | BM107: 3015 | BN107: 3082 | BO107: 3149 | BP107: 3216 | BQ107: 3283 | BR107: 3350 | BS107: 3417 | BT107: 3484 | BU107: 3551 | BV107: 3618 | BW107: 3685 | BX107: 3752 | BY107: 3819 | BZ107: 3886 | CA107: 3953 | CB107: 4020 | CC107: 4087 | CD107: 4154 | CE107: 4221 | CF107: 4288 | CG107: 4355 | CH107: 4422 | CI107: 4489 | CJ107: 4556 | CK107: 4623 | CL107: 4690 | CM107: 4757 | CN107: 4824 | CO107: 4891 | CP107: 4958 | CQ107: 5025 | CR107: 5092 | CS107: 5159 | CT107: 5226 | CU107: 5293 | CV107: 5360 | CW107: 5427 | CX107: 5494 | CY107: 5561 | CZ107: 5628 | DA107: 5695 | DB107: 5762 | DC107: 5829 | DD107: 5896 | DE107: 5963 | DF107: 6030 | DI107: 608 | DJ107: 208 | DK107: 13 | DL107: 19 | DM107: 247
A108: 25 | B108: BX 5U0 | C108: 704 | S108: 1104 | T108: 2176 | U108: 68 | V108: 136 | W108: 204 | X108: 272 | Y108: 340 | Z108: 408 | AA108: 476 | AB108: 544 | AC108: 612 | AD108: 680 | AE108: 748 | AF108: 816 | AG108: 884 | AH108: 952 | AI108: 1020 | AJ108: 1088 | AK108: 1156 | AL108: 1224 | AM108: 1292 | AN108: 1360 | AO108: 1428 | AP108: 1496 | AQ108: 1564 | AR108: 1632 | AS108: 1700 | AT108: 1768 | AU108: 1836 | AV108: 1904 | AW108: 1972 | AX108: 2040 | AY108: 2108 | AZ108: 2176 | BA108: 2244 | BB108: 2312 | BC108: 2380 | BD108: 2448 | BE108: 2516 | BF108: 2584 | BG108: 2652 | BH108: 2720 | BI108: 2788 | BJ108: 2856 | BK108: 2924 | BL108: 2992 | BM108: 3060 | BN108: 3128 | BO108: 3196 | BP108: 3264 | BQ108: 3332 | BR108: 3400 | BS108: 3468 | BT108: 3536 | BU108: 3604 | BV108: 3672 | BW108: 3740 | BX108: 3808 | BY108: 3876 | BZ108: 3944 | CA108: 4012 | CB108: 4080 | CC108: 4148 | CD108: 4216 | CE108: 4284 | CF108: 4352 | CG108: 4420 | CH108: 4488 | CI108: 4556 | CJ108: 4624 | CK108: 4692 | CL108: 4760 | CM108: 4828 | CN108: 4896 | CO108: 4964 | CP108: 5032 | CQ108: 5100 | CR108: 5168 | CS108: 5236 | CT108: 5304 | CU108: 5372 | CV108: 5440 | CW108: 5508 | CX108: 5576 | CY108: 5644 | CZ108: 5712 | DA108: 5780 | DB108: 5848 | DC108: 5916 | DD108: 5984 | DE108: 6052 | DF108: 6120 | DI108: 576 | DJ108: 224 | DK108: 14 | DL108: 18 | DM108: 252
A109: 26 | B109: BX 5U0 | C109: 704 | S109: 1120 | T109: 2208 | U109: 69 | V109: 138 | W109: 207 | X109: 276 | Y109: 345 | Z109: 414 | AA109: 483 | AB109: 552 | AC109: 621 | AD109: 690 | AE109: 759 | AF109: 828 | AG109: 897 | AH109: 966 | AI109: 1035 | AJ109: 1104 | AK109: 1173 | AL109: 1242 | AM109: 1311 | AN109: 1380 | AO109: 1449 | AP109: 1518 | AQ109: 1587 | AR109: 1656 | AS109: 1725 | AT109: 1794 | AU109: 1863 | AV109: 1932 | AW109: 2001 | AX109: 2070 | AY109: 2139 | AZ109: 2208 | BA109: 2277 | BB109: 2346 | BC109: 2415 | BD109: 2484 | BE109: 2553 | BF109: 2622 | BG109: 2691 | BH109: 2760 | BI109: 2829 | BJ109: 2898 | BK109: 2967 | BL109: 3036 | BM109: 3105 | BN109: 3174 | BO109: 3243 | BP109: 3312 | BQ109: 3381 | BR109: 3450 | BS109: 3519 | BT109: 3588 | BU109: 3657 | BV109: 3726 | BW109: 3795 | BX109: 3864 | BY109: 3933 | BZ109: 4002 | CA109: 4071 | CB109: 4140 | CC109: 4209 | CD109: 4278 | CE109: 4347 | CF109: 4416 | CG109: 4485 | CH109: 4554 | CI109: 4623 | CJ109: 4692 | CK109: 4761 | CL109: 4830 | CM109: 4899 | CN109: 4968 | CO109: 5037 | CP109: 5106 | CQ109: 5175 | CR109: 5244 | CS109: 5313 | CT109: 5382 | CU109: 5451 | CV109: 5520 | CW109: 5589 | CX109: 5658 | CY109: 5727 | CZ109: 5796 | DA109: 5865 | DB109: 5934 | DC109: 6003 | DD109: 6072 | DE109: 6141 | DF109: 6210 | DI109: 544 | DJ109: 240 | DK109: 15 | DL109: 17 | DM109: 255
A110: 27 | B110: BX 5U0 | C110: 704 | S110: 1136 | T110: 2240 | U110: 70 | V110: 140 | W110: 210 | X110: 280 | Y110: 350 | Z110: 420 | AA110: 490 | AB110: 560 | AC110: 630 | AD110: 700 | AE110: 770 | AF110: 840 | AG110: 910 | AH110: 980 | AI110: 1050 | AJ110: 1120 | AK110: 1190 | AL110: 1260 | AM110: 1330 | AN110: 1400 | AO110: 1470 | AP110: 1540 | AQ110: 1610 | AR110: 1680 | AS110: 1750 | AT110: 1820 | AU110: 1890 | AV110: 1960 | AW110: 2030 | AX110: 2100 | AY110: 2170 | AZ110: 2240 | BA110: 2310 | BB110: 2380 | BC110: 2450 | BD110: 2520 | BE110: 2590 | BF110: 2660 | BG110: 2730 | BH110: 2800 | BI110: 2870 | BJ110: 2940 | BK110: 3010 | BL110: 3080 | BM110: 3150 | BN110: 3220 | BO110: 3290 | BP110: 3360 | BQ110: 3430 | BR110: 3500 | BS110: 3570 | BT110: 3640 | BU110: 3710 | BV110: 3780 | BW110: 3850 | BX110: 3920 | BY110: 3990 | BZ110: 4060 | CA110: 4130 | CB110: 4200 | CC110: 4270 | CD110: 4340 | CE110: 4410 | CF110: 4480 | CG110: 4550 | CH110: 4620 | CI110: 4690 | CJ110: 4760 | CK110: 4830 | CL110: 4900 | CM110: 4970 | CN110: 5040 | CO110: 5110 | CP110: 5180 | CQ110: 5250 | CR110: 5320 | CS110: 5390 | CT110: 5460 | CU110: 5530 | CV110: 5600 | CW110: 5670 | CX110: 5740 | CY110: 5810 | CZ110: 5880 | DA110: 5950 | DB110: 6020 | DC110: 6090 | DD110: 6160 | DE110: 6230 | DF110: 6300 | DI110: 512 | DJ110: 256 | DK110: 16 | DL110: 16 | DM110: 256
A111: 28 | B111: BX 5U0 | C111: 704 | S111: 1152 | T111: 2272 | U111: 71 | V111: 142 | W111: 213 | X111: 284 | Y111: 355 | Z111: 426 | AA111: 497 | AB111: 568 | AC111: 639 | AD111: 710 | AE111: 781 | AF111: 852 | AG111: 923 | AH111: 994 | AI111: 1065 | AJ111: 1136 | AK111: 1207 | AL111: 1278 | AM111: 1349 | AN111: 1420 | AO111: 1491 | AP111: 1562 | AQ111: 1633 | AR111: 1704 | AS111: 1775 | AT111: 1846 | AU111: 1917 | AV111: 1988 | AW111: 2059 | AX111: 2130 | AY111: 2201 | AZ111: 2272 | BA111: 2343 | BB111: 2414 | BC111: 2485 | BD111: 2556 | BE111: 2627 | BF111: 2698 | BG111: 2769 | BH111: 2840 | BI111: 2911 | BJ111: 2982 | BK111: 3053 | BL111: 3124 | BM111: 3195 | BN111: 3266 | BO111: 3337 | BP111: 3408 | BQ111: 3479 | BR111: 3550 | BS111: 3621 | BT111: 3692 | BU111: 3763 | BV111: 3834 | BW111: 3905 | BX111: 3976 | BY111: 4047 | BZ111: 4118 | CA111: 4189 | CB111: 4260 | CC111: 4331 | CD111: 4402 | CE111: 4473 | CF111: 4544 | CG111: 4615 | CH111: 4686 | CI111: 4757 | CJ111: 4828 | CK111: 4899 | CL111: 4970 | CM111: 5041 | CN111: 5112 | CO111: 5183 | CP111: 5254 | CQ111: 5325 | CR111: 5396 | CS111: 5467 | CT111: 5538 | CU111: 5609 | CV111: 5680 | CW111: 5751 | CX111: 5822 | CY111: 5893 | CZ111: 5964 | DA111: 6035 | DB111: 6106 | DC111: 6177 | DD111: 6248 | DE111: 6319 | DF111: 6390
A112: 29 | B112: BX 5U0 | C112: 704 | S112: 1168 | T112: 2304 | U112: 72 | V112: 144 | W112: 216 | X112: 288 | Y112: 360 | Z112: 432 | AA112: 504 | AB112: 576 | AC112: 648 | AD112: 720 | AE112: 792 | AF112: 864 | AG112: 936 | AH112: 1008 | AI112: 1080 | AJ112: 1152 | AK112: 1224 | AL112: 1296 | AM112: 1368 | AN112: 1440 | AO112: 1512 | AP112: 1584 | AQ112: 1656 | AR112: 1728 | AS112: 1800 | AT112: 1872 | AU112: 1944 | AV112: 2016 | AW112: 2088 | AX112: 2160 | AY112: 2232 | AZ112: 2304 | BA112: 2376 | BB112: 2448 | BC112: 2520 | BD112: 2592 | BE112: 2664 | BF112: 2736 | BG112: 2808 | BH112: 2880 | BI112: 2952 | BJ112: 3024 | BK112: 3096 | BL112: 3168 | BM112: 3240 | BN112: 3312 | BO112: 3384 | BP112: 3456 | BQ112: 3528 | BR112: 3600 | BS112: 3672 | BT112: 3744 | BU112: 3816 | BV112: 3888 | BW112: 3960 | BX112: 4032 | BY112: 4104 | BZ112: 4176 | CA112: 4248 | CB112: 4320 | CC112: 4392 | CD112: 4464 | CE112: 4536 | CF112: 4608 | CG112: 4680 | CH112: 4752 | CI112: 4824 | CJ112: 4896 | CK112: 4968 | CL112: 5040 | CM112: 5112 | CN112: 5184 | CO112: 5256 | CP112: 5328 | CQ112: 5400 | CR112: 5472 | CS112: 5544 | CT112: 5616 | CU112: 5688 | CV112: 5760 | CW112: 5832 | CX112: 5904 | CY112: 5976 | CZ112: 6048 | DA112: 6120 | DB112: 6192 | DC112: 6264 | DD112: 6336 | DE112: 6408 | DF112: 6480
A113: 30 | B113: BX 5U0 | C113: 704 | S113: 1184 | T113: 2336 | U113: 73 | V113: 146 | W113: 219 | X113: 292 | Y113: 365 | Z113: 438 | AA113: 511 | AB113: 584 | AC113: 657 | AD113: 730 | AE113: 803 | AF113: 876 | AG113: 949 | AH113: 1022 | AI113: 1095 | AJ113: 1168 | AK113: 1241 | AL113: 1314 | AM113: 1387 | AN113: 1460 | AO113: 1533 | AP113: 1606 | AQ113: 1679 | AR113: 1752 | AS113: 1825 | AT113: 1898 | AU113: 1971 | AV113: 2044 | AW113: 2117 | AX113: 2190 | AY113: 2263 | AZ113: 2336 | BA113: 2409 | BB113: 2482 | BC113: 2555 | BD113: 2628 | BE113: 2701 | BF113: 2774 | BG113: 2847 | BH113: 2920 | BI113: 2993 | BJ113: 3066 | BK113: 3139 | BL113: 3212 | BM113: 3285 | BN113: 3358 | BO113: 3431 | BP113: 3504 | BQ113: 3577 | BR113: 3650 | BS113: 3723 | BT113: 3796 | BU113: 3869 | BV113: 3942 | BW113: 4015 | BX113: 4088 | BY113: 4161 | BZ113: 4234 | CA113: 4307 | CB113: 4380 | CC113: 4453 | CD113: 4526 | CE113: 4599 | CF113: 4672 | CG113: 4745 | CH113: 4818 | CI113: 4891 | CJ113: 4964 | CK113: 5037 | CL113: 5110 | CM113: 5183 | CN113: 5256 | CO113: 5329 | CP113: 5402 | CQ113: 5475 | CR113: 5548 | CS113: 5621 | CT113: 5694 | CU113: 5767 | CV113: 5840 | CW113: 5913 | CX113: 5986 | CY113: 6059 | CZ113: 6132 | DA113: 6205 | DB113: 6278 | DC113: 6351 | DD113: 6424 | DE113: 6497 | DF113: 6570
A114: 31 | B114: BX 5U0 | C114: 704 | S114: 1200 | T114: 2368 | U114: 74 | V114: 148 | W114: 222 | X114: 296 | Y114: 370 | Z114: 444 | AA114: 518 | AB114: 592 | AC114: 666 | AD114: 740 | AE114: 814 | AF114: 888 | AG114: 962 | AH114: 1036 | AI114: 1110 | AJ114: 1184 | AK114: 1258 | AL114: 1332 | AM114: 1406 | AN114: 1480 | AO114: 1554 | AP114: 1628 | AQ114: 1702 | AR114: 1776 | AS114: 1850 | AT114: 1924 | AU114: 1998 | AV114: 2072 | AW114: 2146 | AX114: 2220 | AY114: 2294 | AZ114: 2368 | BA114: 2442 | BB114: 2516 | BC114: 2590 | BD114: 2664 | BE114: 2738 | BF114: 2812 | BG114: 2886 | BH114: 2960 | BI114: 3034 | BJ114: 3108 | BK114: 3182 | BL114: 3256 | BM114: 3330 | BN114: 3404 | BO114: 3478 | BP114: 3552 | BQ114: 3626 | BR114: 3700 | BS114: 3774 | BT114: 3848 | BU114: 3922 | BV114: 3996 | BW114: 4070 | BX114: 4144 | BY114: 4218 | BZ114: 4292 | CA114: 4366 | CB114: 4440 | CC114: 4514 | CD114: 4588 | CE114: 4662 | CF114: 4736 | CG114: 4810 | CH114: 4884 | CI114: 4958 | CJ114: 5032 | CK114: 5106 | CL114: 5180 | CM114: 5254 | CN114: 5328 | CO114: 5402 | CP114: 5476 | CQ114: 5550 | CR114: 5624 | CS114: 5698 | CT114: 5772 | CU114: 5846 | CV114: 5920 | CW114: 5994 | CX114: 6068 | CY114: 6142 | CZ114: 6216 | DA114: 6290 | DB114: 6364 | DC114: 6438 | DD114: 6512 | DE114: 6586 | DF114: 6660
A115: 32 | B115: BX 5U0 | C115: 704 | S115: 1216 | T115: 2400 | U115: 75 | V115: 150 | W115: 225 | X115: 300 | Y115: 375 | Z115: 450 | AA115: 525 | AB115: 600 | AC115: 675 | AD115: 750 | AE115: 825 | AF115: 900 | AG115: 975 | AH115: 1050 | AI115: 1125 | AJ115: 1200 | AK115: 1275 | AL115: 1350 | AM115: 1425 | AN115: 1500 | AO115: 1575 | AP115: 1650 | AQ115: 1725 | AR115: 1800 | AS115: 1875 | AT115: 1950 | AU115: 2025 | AV115: 2100 | AW115: 2175 | AX115: 2250 | AY115: 2325 | AZ115: 2400 | BA115: 2475 | BB115: 2550 | BC115: 2625 | BD115: 2700 | BE115: 2775 | BF115: 2850 | BG115: 2925 | BH115: 3000 | BI115: 3075 | BJ115: 3150 | BK115: 3225 | BL115: 3300 | BM115: 3375 | BN115: 3450 | BO115: 3525 | BP115: 3600 | BQ115: 3675 | BR115: 3750 | BS115: 3825 | BT115: 3900 | BU115: 3975 | BV115: 4050 | BW115: 4125 | BX115: 4200 | BY115: 4275 | BZ115: 4350 | CA115: 4425 | CB115: 4500 | CC115: 4575 | CD115: 4650 | CE115: 4725 | CF115: 4800 | CG115: 4875 | CH115: 4950 | CI115: 5025 | CJ115: 5100 | CK115: 5175 | CL115: 5250 | CM115: 5325 | CN115: 5400 | CO115: 5475 | CP115: 5550 | CQ115: 5625 | CR115: 5700 | CS115: 5775 | CT115: 5850 | CU115: 5925 | CV115: 6000 | CW115: 6075 | CX115: 6150 | CY115: 6225 | CZ115: 6300 | DA115: 6375 | DB115: 6450 | DC115: 6525 | DD115: 6600 | DE115: 6675 | DF115: 6750
A116: 33 | B116: BX 5U1 | C116: =D116 -> 992 | D116: =E116*E3 -> 992 | E116: 15.5 | S116: 1232 | T116: 2432 | U116: 76 | V116: 152 | W116: 228 | X116: 304 | Y116: 380 | Z116: 456 | AA116: 532 | AB116: 608 | AC116: 684 | AD116: 760 | AE116: 836 | AF116: 912 | AG116: 988 | AH116: 1064 | AI116: 1140 | AJ116: 1216 | AK116: 1292 | AL116: 1368 | AM116: 1444 | AN116: 1520 | AO116: 1596 | AP116: 1672 | AQ116: 1748 | AR116: 1824 | AS116: 1900 | AT116: 1976 | AU116: 2052 | AV116: 2128 | AW116: 2204 | AX116: 2280 | AY116: 2356 | AZ116: 2432 | BA116: 2508 | BB116: 2584 | BC116: 2660 | BD116: 2736 | BE116: 2812 | BF116: 2888 | BG116: 2964 | BH116: 3040 | BI116: 3116 | BJ116: 3192 | BK116: 3268 | BL116: 3344 | BM116: 3420 | BN116: 3496 | BO116: 3572 | BP116: 3648 | BQ116: 3724 | BR116: 3800 | BS116: 3876 | BT116: 3952 | BU116: 4028 | BV116: 4104 | BW116: 4180 | BX116: 4256 | BY116: 4332 | BZ116: 4408 | CA116: 4484 | CB116: 4560 | CC116: 4636 | CD116: 4712 | CE116: 4788 | CF116: 4864 | CG116: 4940 | CH116: 5016 | CI116: 5092 | CJ116: 5168 | CK116: 5244 | CL116: 5320 | CM116: 5396 | CN116: 5472 | CO116: 5548 | CP116: 5624 | CQ116: 5700 | CR116: 5776 | CS116: 5852 | CT116: 5928 | CU116: 6004 | CV116: 6080 | CW116: 6156 | CX116: 6232 | CY116: 6308 | CZ116: 6384 | DA116: 6460 | DB116: 6536 | DC116: 6612 | DD116: 6688 | DE116: 6764 | DF116: 6840
A117: 34 | B117: BX 5U1 | C117: =C116 -> 992 | S117: 1248 | T117: 2464 | U117: 77 | V117: 154 | W117: 231 | X117: 308 | Y117: 385 | Z117: 462 | AA117: 539 | AB117: 616 | AC117: 693 | AD117: 770 | AE117: 847 | AF117: 924 | AG117: 1001 | AH117: 1078 | AI117: 1155 | AJ117: 1232 | AK117: 1309 | AL117: 1386 | AM117: 1463 | AN117: 1540 | AO117: 1617 | AP117: 1694 | AQ117: 1771 | AR117: 1848 | AS117: 1925 | AT117: 2002 | AU117: 2079 | AV117: 2156 | AW117: 2233 | AX117: 2310 | AY117: 2387 | AZ117: 2464 | BA117: 2541 | BB117: 2618 | BC117: 2695 | BD117: 2772 | BE117: 2849 | BF117: 2926 | BG117: 3003 | BH117: 3080 | BI117: 3157 | BJ117: 3234 | BK117: 3311 | BL117: 3388 | BM117: 3465 | BN117: 3542 | BO117: 3619 | BP117: 3696 | BQ117: 3773 | BR117: 3850 | BS117: 3927 | BT117: 4004 | BU117: 4081 | BV117: 4158 | BW117: 4235 | BX117: 4312 | BY117: 4389 | BZ117: 4466 | CA117: 4543 | CB117: 4620 | CC117: 4697 | CD117: 4774 | CE117: 4851 | CF117: 4928 | CG117: 5005 | CH117: 5082 | CI117: 5159 | CJ117: 5236 | CK117: 5313 | CL117: 5390 | CM117: 5467 | CN117: 5544 | CO117: 5621 | CP117: 5698 | CQ117: 5775 | CR117: 5852 | CS117: 5929 | CT117: 6006 | CU117: 6083 | CV117: 6160 | CW117: 6237 | CX117: 6314 | CY117: 6391 | CZ117: 6468 | DA117: 6545 | DB117: 6622 | DC117: 6699 | DD117: 6776 | DE117: 6853 | DF117: 6930
A118: 35 | B118: BX 5U1 | C118: 992 | S118: 1264 | T118: 2496 | U118: 78 | V118: 156 | W118: 234 | X118: 312 | Y118: 390 | Z118: 468 | AA118: 546 | AB118: 624 | AC118: 702 | AD118: 780 | AE118: 858 | AF118: 936 | AG118: 1014 | AH118: 1092 | AI118: 1170 | AJ118: 1248 | AK118: 1326 | AL118: 1404 | AM118: 1482 | AN118: 1560 | AO118: 1638 | AP118: 1716 | AQ118: 1794 | AR118: 1872 | AS118: 1950 | AT118: 2028 | AU118: 2106 | AV118: 2184 | AW118: 2262 | AX118: 2340 | AY118: 2418 | AZ118: 2496 | BA118: 2574 | BB118: 2652 | BC118: 2730 | BD118: 2808 | BE118: 2886 | BF118: 2964 | BG118: 3042 | BH118: 3120 | BI118: 3198 | BJ118: 3276 | BK118: 3354 | BL118: 3432 | BM118: 3510 | BN118: 3588 | BO118: 3666 | BP118: 3744 | BQ118: 3822 | BR118: 3900 | BS118: 3978 | BT118: 4056 | BU118: 4134 | BV118: 4212 | BW118: 4290 | BX118: 4368 | BY118: 4446 | BZ118: 4524 | CA118: 4602 | CB118: 4680 | CC118: 4758 | CD118: 4836 | CE118: 4914 | CF118: 4992 | CG118: 5070 | CH118: 5148 | CI118: 5226 | CJ118: 5304 | CK118: 5382 | CL118: 5460 | CM118: 5538 | CN118: 5616 | CO118: 5694 | CP118: 5772 | CQ118: 5850 | CR118: 5928 | CS118: 6006 | CT118: 6084 | CU118: 6162 | CV118: 6240 | CW118: 6318 | CX118: 6396 | CY118: 6474 | CZ118: 6552 | DA118: 6630 | DB118: 6708 | DC118: 6786 | DD118: 6864 | DE118: 6942 | DF118: 7020
A119: 36 | B119: BX 5U1 | C119: 992 | S119: 1280 | T119: 2528 | U119: 79 | V119: 158 | W119: 237 | X119: 316 | Y119: 395 | Z119: 474 | AA119: 553 | AB119: 632 | AC119: 711 | AD119: 790 | AE119: 869 | AF119: 948 | AG119: 1027 | AH119: 1106 | AI119: 1185 | AJ119: 1264 | AK119: 1343 | AL119: 1422 | AM119: 1501 | AN119: 1580 | AO119: 1659 | AP119: 1738 | AQ119: 1817 | AR119: 1896 | AS119: 1975 | AT119: 2054 | AU119: 2133 | AV119: 2212 | AW119: 2291 | AX119: 2370 | AY119: 2449 | AZ119: 2528 | BA119: 2607 | BB119: 2686 | BC119: 2765 | BD119: 2844 | BE119: 2923 | BF119: 3002 | BG119: 3081 | BH119: 3160 | BI119: 3239 | BJ119: 3318 | BK119: 3397 | BL119: 3476 | BM119: 3555 | BN119: 3634 | BO119: 3713 | BP119: 3792 | BQ119: 3871 | BR119: 3950 | BS119: 4029 | BT119: 4108 | BU119: 4187 | BV119: 4266 | BW119: 4345 | BX119: 4424 | BY119: 4503 | BZ119: 4582 | CA119: 4661 | CB119: 4740 | CC119: 4819 | CD119: 4898 | CE119: 4977 | CF119: 5056 | CG119: 5135 | CH119: 5214 | CI119: 5293 | CJ119: 5372 | CK119: 5451 | CL119: 5530 | CM119: 5609 | CN119: 5688 | CO119: 5767 | CP119: 5846 | CQ119: 5925 | CR119: 6004 | CS119: 6083 | CT119: 6162 | CU119: 6241 | CV119: 6320 | CW119: 6399 | CX119: 6478 | CY119: 6557 | CZ119: 6636 | DA119: 6715 | DB119: 6794 | DC119: 6873 | DD119: 6952 | DE119: 7031 | DF119: 7110
A120: 37 | B120: BX 5U1 | C120: 992 | S120: 1296 | T120: 2560 | U120: 80 | V120: 160 | W120: 240 | X120: 320 | Y120: 400 | Z120: 480 | AA120: 560 | AB120: 640 | AC120: 720 | AD120: 800 | AE120: 880 | AF120: 960 | AG120: 1040 | AH120: 1120 | AI120: 1200 | AJ120: 1280 | AK120: 1360 | AL120: 1440 | AM120: 1520 | AN120: 1600 | AO120: 1680 | AP120: 1760 | AQ120: 1840 | AR120: 1920 | AS120: 2000 | AT120: 2080 | AU120: 2160 | AV120: 2240 | AW120: 2320 | AX120: 2400 | AY120: 2480 | AZ120: 2560 | BA120: 2640 | BB120: 2720 | BC120: 2800 | BD120: 2880 | BE120: 2960 | BF120: 3040 | BG120: 3120 | BH120: 3200 | BI120: 3280 | BJ120: 3360 | BK120: 3440 | BL120: 3520 | BM120: 3600 | BN120: 3680 | BO120: 3760 | BP120: 3840 | BQ120: 3920 | BR120: 4000 | BS120: 4080 | BT120: 4160 | BU120: 4240 | BV120: 4320 | BW120: 4400 | BX120: 4480 | BY120: 4560 | BZ120: 4640 | CA120: 4720 | CB120: 4800 | CC120: 4880 | CD120: 4960 | CE120: 5040 | CF120: 5120 | CG120: 5200 | CH120: 5280 | CI120: 5360 | CJ120: 5440 | CK120: 5520 | CL120: 5600 | CM120: 5680 | CN120: 5760 | CO120: 5840 | CP120: 5920 | CQ120: 6000 | CR120: 6080 | CS120: 6160 | CT120: 6240 | CU120: 6320 | CV120: 6400 | CW120: 6480 | CX120: 6560 | CY120: 6640 | CZ120: 6720 | DA120: 6800 | DB120: 6880 | DC120: 6960 | DD120: 7040 | DE120: 7120 | DF120: 7200
A121: 38 | B121: BX 5U1 | C121: 992 | S121: 1312 | T121: 2592 | U121: 81 | V121: 162 | W121: 243 | X121: 324 | Y121: 405 | Z121: 486 | AA121: 567 | AB121: 648 | AC121: 729 | AD121: 810 | AE121: 891 | AF121: 972 | AG121: 1053 | AH121: 1134 | AI121: 1215 | AJ121: 1296 | AK121: 1377 | AL121: 1458 | AM121: 1539 | AN121: 1620 | AO121: 1701 | AP121: 1782 | AQ121: 1863 | AR121: 1944 | AS121: 2025 | AT121: 2106 | AU121: 2187 | AV121: 2268 | AW121: 2349 | AX121: 2430 | AY121: 2511 | AZ121: 2592 | BA121: 2673 | BB121: 2754 | BC121: 2835 | BD121: 2916 | BE121: 2997 | BF121: 3078 | BG121: 3159 | BH121: 3240 | BI121: 3321 | BJ121: 3402 | BK121: 3483 | BL121: 3564 | BM121: 3645 | BN121: 3726 | BO121: 3807 | BP121: 3888 | BQ121: 3969 | BR121: 4050 | BS121: 4131 | BT121: 4212 | BU121: 4293 | BV121: 4374 | BW121: 4455 | BX121: 4536 | BY121: 4617 | BZ121: 4698 | CA121: 4779 | CB121: 4860 | CC121: 4941 | CD121: 5022 | CE121: 5103 | CF121: 5184 | CG121: 5265 | CH121: 5346 | CI121: 5427 | CJ121: 5508 | CK121: 5589 | CL121: 5670 | CM121: 5751 | CN121: 5832 | CO121: 5913 | CP121: 5994 | CQ121: 6075 | CR121: 6156 | CS121: 6237 | CT121: 6318 | CU121: 6399 | CV121: 6480 | CW121: 6561 | CX121: 6642 | CY121: 6723 | CZ121: 6804 | DA121: 6885 | DB121: 6966 | DC121: 7047 | DD121: 7128 | DE121: 7209 | DF121: 7290
A122: 39 | B122: BX 5U1 | C122: 992 | S122: 1328 | T122: 2624 | U122: 82 | V122: 164 | W122: 246 | X122: 328 | Y122: 410 | Z122: 492 | AA122: 574 | AB122: 656 | AC122: 738 | AD122: 820 | AE122: 902 | AF122: 984 | AG122: 1066 | AH122: 1148 | AI122: 1230 | AJ122: 1312 | AK122: 1394 | AL122: 1476 | AM122: 1558 | AN122: 1640 | AO122: 1722 | AP122: 1804 | AQ122: 1886 | AR122: 1968 | AS122: 2050 | AT122: 2132 | AU122: 2214 | AV122: 2296 | AW122: 2378 | AX122: 2460 | AY122: 2542 | AZ122: 2624 | BA122: 2706 | BB122: 2788 | BC122: 2870 | BD122: 2952 | BE122: 3034 | BF122: 3116 | BG122: 3198 | BH122: 3280 | BI122: 3362 | BJ122: 3444 | BK122: 3526 | BL122: 3608 | BM122: 3690 | BN122: 3772 | BO122: 3854 | BP122: 3936 | BQ122: 4018 | BR122: 4100 | BS122: 4182 | BT122: 4264 | BU122: 4346 | BV122: 4428 | BW122: 4510 | BX122: 4592 | BY122: 4674 | BZ122: 4756 | CA122: 4838 | CB122: 4920 | CC122: 5002 | CD122: 5084 | CE122: 5166 | CF122: 5248 | CG122: 5330 | CH122: 5412 | CI122: 5494 | CJ122: 5576 | CK122: 5658 | CL122: 5740 | CM122: 5822 | CN122: 5904 | CO122: 5986 | CP122: 6068 | CQ122: 6150 | CR122: 6232 | CS122: 6314 | CT122: 6396 | CU122: 6478 | CV122: 6560 | CW122: 6642 | CX122: 6724 | CY122: 6806 | CZ122: 6888 | DA122: 6970 | DB122: 7052 | DC122: 7134 | DD122: 7216 | DE122: 7298 | DF122: 7380
A123: 40 | B123: BX 5U1 | C123: 992 | S123: 1344 | T123: 2656 | U123: 83 | V123: 166 | W123: 249 | X123: 332 | Y123: 415 | Z123: 498 | AA123: 581 | AB123: 664 | AC123: 747 | AD123: 830 | AE123: 913 | AF123: 996 | AG123: 1079 | AH123: 1162 | AI123: 1245 | AJ123: 1328 | AK123: 1411 | AL123: 1494 | AM123: 1577 | AN123: 1660 | AO123: 1743 | AP123: 1826 | AQ123: 1909 | AR123: 1992 | AS123: 2075 | AT123: 2158 | AU123: 2241 | AV123: 2324 | AW123: 2407 | AX123: 2490 | AY123: 2573 | AZ123: 2656 | BA123: 2739 | BB123: 2822 | BC123: 2905 | BD123: 2988 | BE123: 3071 | BF123: 3154 | BG123: 3237 | BH123: 3320 | BI123: 3403 | BJ123: 3486 | BK123: 3569 | BL123: 3652 | BM123: 3735 | BN123: 3818 | BO123: 3901 | BP123: 3984 | BQ123: 4067 | BR123: 4150 | BS123: 4233 | BT123: 4316 | BU123: 4399 | BV123: 4482 | BW123: 4565 | BX123: 4648 | BY123: 4731 | BZ123: 4814 | CA123: 4897 | CB123: 4980 | CC123: 5063 | CD123: 5146 | CE123: 5229 | CF123: 5312 | CG123: 5395 | CH123: 5478 | CI123: 5561 | CJ123: 5644 | CK123: 5727 | CL123: 5810 | CM123: 5893 | CN123: 5976 | CO123: 6059 | CP123: 6142 | CQ123: 6225 | CR123: 6308 | CS123: 6391 | CT123: 6474 | CU123: 6557 | CV123: 6640 | CW123: 6723 | CX123: 6806 | CY123: 6889 | CZ123: 6972 | DA123: 7055 | DB123: 7138 | DC123: 7221 | DD123: 7304 | DE123: 7387 | DF123: 7470
A124: 41 | B124: BX 5U1 | C124: 992 | S124: 1360 | T124: 2688 | U124: 84 | V124: 168 | W124: 252 | X124: 336 | Y124: 420 | Z124: 504 | AA124: 588 | AB124: 672 | AC124: 756 | AD124: 840 | AE124: 924 | AF124: 1008 | AG124: 1092 | AH124: 1176 | AI124: 1260 | AJ124: 1344 | AK124: 1428 | AL124: 1512 | AM124: 1596 | AN124: 1680 | AO124: 1764 | AP124: 1848 | AQ124: 1932 | AR124: 2016 | AS124: 2100 | AT124: 2184 | AU124: 2268 | AV124: 2352 | AW124: 2436 | AX124: 2520 | AY124: 2604 | AZ124: 2688 | BA124: 2772 | BB124: 2856 | BC124: 2940 | BD124: 3024 | BE124: 3108 | BF124: 3192 | BG124: 3276 | BH124: 3360 | BI124: 3444 | BJ124: 3528 | BK124: 3612 | BL124: 3696 | BM124: 3780 | BN124: 3864 | BO124: 3948 | BP124: 4032 | BQ124: 4116 | BR124: 4200 | BS124: 4284 | BT124: 4368 | BU124: 4452 | BV124: 4536 | BW124: 4620 | BX124: 4704 | BY124: 4788 | BZ124: 4872 | CA124: 4956 | CB124: 5040 | CC124: 5124 | CD124: 5208 | CE124: 5292 | CF124: 5376 | CG124: 5460 | CH124: 5544 | CI124: 5628 | CJ124: 5712 | CK124: 5796 | CL124: 5880 | CM124: 5964 | CN124: 6048 | CO124: 6132 | CP124: 6216 | CQ124: 6300 | CR124: 6384 | CS124: 6468 | CT124: 6552 | CU124: 6636 | CV124: 6720 | CW124: 6804 | CX124: 6888 | CY124: 6972 | CZ124: 7056 | DA124: 7140 | DB124: 7224 | DC124: 7308 | DD124: 7392 | DE124: 7476 | DF124: 7560
A125: 42 | B125: BX 5U1 | C125: 992 | S125: 1376 | T125: 2720 | U125: 85 | V125: 170 | W125: 255 | X125: 340 | Y125: 425 | Z125: 510 | AA125: 595 | AB125: 680 | AC125: 765 | AD125: 850 | AE125: 935 | AF125: 1020 | AG125: 1105 | AH125: 1190 | AI125: 1275 | AJ125: 1360 | AK125: 1445 | AL125: 1530 | AM125: 1615 | AN125: 1700 | AO125: 1785 | AP125: 1870 | AQ125: 1955 | AR125: 2040 | AS125: 2125 | AT125: 2210 | AU125: 2295 | AV125: 2380 | AW125: 2465 | AX125: 2550 | AY125: 2635 | AZ125: 2720 | BA125: 2805 | BB125: 2890 | BC125: 2975 | BD125: 3060 | BE125: 3145 | BF125: 3230 | BG125: 3315 | BH125: 3400 | BI125: 3485 | BJ125: 3570 | BK125: 3655 | BL125: 3740 | BM125: 3825 | BN125: 3910 | BO125: 3995 | BP125: 4080 | BQ125: 4165 | BR125: 4250 | BS125: 4335 | BT125: 4420 | BU125: 4505 | BV125: 4590 | BW125: 4675 | BX125: 4760 | BY125: 4845 | BZ125: 4930 | CA125: 5015 | CB125: 5100 | CC125: 5185 | CD125: 5270 | CE125: 5355 | CF125: 5440 | CG125: 5525 | CH125: 5610 | CI125: 5695 | CJ125: 5780 | CK125: 5865 | CL125: 5950 | CM125: 6035 | CN125: 6120 | CO125: 6205 | CP125: 6290 | CQ125: 6375 | CR125: 6460 | CS125: 6545 | CT125: 6630 | CU125: 6715 | CV125: 6800 | CW125: 6885 | CX125: 6970 | CY125: 7055 | CZ125: 7140 | DA125: 7225 | DB125: 7310 | DC125: 7395 | DD125: 7480 | DE125: 7565 | DF125: 7650
A126: 43 | B126: BX 5U1 | C126: 992 | S126: 1392 | T126: 2752 | U126: 86 | V126: 172 | W126: 258 | X126: 344 | Y126: 430 | Z126: 516 | AA126: 602 | AB126: 688 | AC126: 774 | AD126: 860 | AE126: 946 | AF126: 1032 | AG126: 1118 | AH126: 1204 | AI126: 1290 | AJ126: 1376 | AK126: 1462 | AL126: 1548 | AM126: 1634 | AN126: 1720 | AO126: 1806 | AP126: 1892 | AQ126: 1978 | AR126: 2064 | AS126: 2150 | AT126: 2236 | AU126: 2322 | AV126: 2408 | AW126: 2494 | AX126: 2580 | AY126: 2666 | AZ126: 2752 | BA126: 2838 | BB126: 2924 | BC126: 3010 | BD126: 3096 | BE126: 3182 | BF126: 3268 | BG126: 3354 | BH126: 3440 | BI126: 3526 | BJ126: 3612 | BK126: 3698 | BL126: 3784 | BM126: 3870 | BN126: 3956 | BO126: 4042 | BP126: 4128 | BQ126: 4214 | BR126: 4300 | BS126: 4386 | BT126: 4472 | BU126: 4558 | BV126: 4644 | BW126: 4730 | BX126: 4816 | BY126: 4902 | BZ126: 4988 | CA126: 5074 | CB126: 5160 | CC126: 5246 | CD126: 5332 | CE126: 5418 | CF126: 5504 | CG126: 5590 | CH126: 5676 | CI126: 5762 | CJ126: 5848 | CK126: 5934 | CL126: 6020 | CM126: 6106 | CN126: 6192 | CO126: 6278 | CP126: 6364 | CQ126: 6450 | CR126: 6536 | CS126: 6622 | CT126: 6708 | CU126: 6794 | CV126: 6880 | CW126: 6966 | CX126: 7052 | CY126: 7138 | CZ126: 7224 | DA126: 7310 | DB126: 7396 | DC126: 7482 | DD126: 7568 | DE126: 7654 | DF126: 7740
A127: 44 | B127: BX 5U1 | C127: 992 | S127: 1408 | T127: 2784 | U127: 87 | V127: 174 | W127: 261 | X127: 348 | Y127: 435 | Z127: 522 | AA127: 609 | AB127: 696 | AC127: 783 | AD127: 870 | AE127: 957 | AF127: 1044 | AG127: 1131 | AH127: 1218 | AI127: 1305 | AJ127: 1392 | AK127: 1479 | AL127: 1566 | AM127: 1653 | AN127: 1740 | AO127: 1827 | AP127: 1914 | AQ127: 2001 | AR127: 2088 | AS127: 2175 | AT127: 2262 | AU127: 2349 | AV127: 2436 | AW127: 2523 | AX127: 2610 | AY127: 2697 | AZ127: 2784 | BA127: 2871 | BB127: 2958 | BC127: 3045 | BD127: 3132 | BE127: 3219 | BF127: 3306 | BG127: 3393 | BH127: 3480 | BI127: 3567 | BJ127: 3654 | BK127: 3741 | BL127: 3828 | BM127: 3915 | BN127: 4002 | BO127: 4089 | BP127: 4176 | BQ127: 4263 | BR127: 4350 | BS127: 4437 | BT127: 4524 | BU127: 4611 | BV127: 4698 | BW127: 4785 | BX127: 4872 | BY127: 4959 | BZ127: 5046 | CA127: 5133 | CB127: 5220 | CC127: 5307 | CD127: 5394 | CE127: 5481 | CF127: 5568 | CG127: 5655 | CH127: 5742 | CI127: 5829 | CJ127: 5916 | CK127: 6003 | CL127: 6090 | CM127: 6177 | CN127: 6264 | CO127: 6351 | CP127: 6438 | CQ127: 6525 | CR127: 6612 | CS127: 6699 | CT127: 6786 | CU127: 6873 | CV127: 6960 | CW127: 7047 | CX127: 7134 | CY127: 7221 | CZ127: 7308 | DA127: 7395 | DB127: 7482 | DC127: 7569 | DD127: 7656 | DE127: 7743 | DF127: 7830
A128: 45 | B128: BX 5U1 | C128: 992 | S128: 1424 | T128: 2816 | U128: 88 | V128: 176 | W128: 264 | X128: 352 | Y128: 440 | Z128: 528 | AA128: 616 | AB128: 704 | AC128: 792 | AD128: 880 | AE128: 968 | AF128: 1056 | AG128: 1144 | AH128: 1232 | AI128: 1320 | AJ128: 1408 | AK128: 1496 | AL128: 1584 | AM128: 1672 | AN128: 1760 | AO128: 1848 | AP128: 1936 | AQ128: 2024 | AR128: 2112 | AS128: 2200 | AT128: 2288 | AU128: 2376 | AV128: 2464 | AW128: 2552 | AX128: 2640 | AY128: 2728 | AZ128: 2816 | BA128: 2904 | BB128: 2992 | BC128: 3080 | BD128: 3168 | BE128: 3256 | BF128: 3344 | BG128: 3432 | BH128: 3520 | BI128: 3608 | BJ128: 3696 | BK128: 3784 | BL128: 3872 | BM128: 3960 | BN128: 4048 | BO128: 4136 | BP128: 4224 | BQ128: 4312 | BR128: 4400 | BS128: 4488 | BT128: 4576 | BU128: 4664 | BV128: 4752 | BW128: 4840 | BX128: 4928 | BY128: 5016 | BZ128: 5104 | CA128: 5192 | CB128: 5280 | CC128: 5368 | CD128: 5456 | CE128: 5544 | CF128: 5632 | CG128: 5720 | CH128: 5808 | CI128: 5896 | CJ128: 5984 | CK128: 6072 | CL128: 6160 | CM128: 6248 | CN128: 6336 | CO128: 6424 | CP128: 6512 | CQ128: 6600 | CR128: 6688 | CS128: 6776 | CT128: 6864 | CU128: 6952 | CV128: 7040 | CW128: 7128 | CX128: 7216 | CY128: 7304 | CZ128: 7392 | DA128: 7480 | DB128: 7568 | DC128: 7656 | DD128: 7744 | DE128: 7832 | DF128: 7920
A129: 46 | B129: BX 5U1 | C129: 992 | S129: 1440 | T129: 2848 | U129: 89 | V129: 178 | W129: 267 | X129: 356 | Y129: 445 | Z129: 534 | AA129: 623 | AB129: 712 | AC129: 801 | AD129: 890 | AE129: 979 | AF129: 1068 | AG129: 1157 | AH129: 1246 | AI129: 1335 | AJ129: 1424 | AK129: 1513 | AL129: 1602 | AM129: 1691 | AN129: 1780 | AO129: 1869 | AP129: 1958 | AQ129: 2047 | AR129: 2136 | AS129: 2225 | AT129: 2314 | AU129: 2403 | AV129: 2492 | AW129: 2581 | AX129: 2670 | AY129: 2759 | AZ129: 2848 | BA129: 2937 | BB129: 3026 | BC129: 3115 | BD129: 3204 | BE129: 3293 | BF129: 3382 | BG129: 3471 | BH129: 3560 | BI129: 3649 | BJ129: 3738 | BK129: 3827 | BL129: 3916 | BM129: 4005 | BN129: 4094 | BO129: 4183 | BP129: 4272 | BQ129: 4361 | BR129: 4450 | BS129: 4539 | BT129: 4628 | BU129: 4717 | BV129: 4806 | BW129: 4895 | BX129: 4984 | BY129: 5073 | BZ129: 5162 | CA129: 5251 | CB129: 5340 | CC129: 5429 | CD129: 5518 | CE129: 5607 | CF129: 5696 | CG129: 5785 | CH129: 5874 | CI129: 5963 | CJ129: 6052 | CK129: 6141 | CL129: 6230 | CM129: 6319 | CN129: 6408 | CO129: 6497 | CP129: 6586 | CQ129: 6675 | CR129: 6764 | CS129: 6853 | CT129: 6942 | CU129: 7031 | CV129: 7120 | CW129: 7209 | CX129: 7298 | CY129: 7387 | CZ129: 7476 | DA129: 7565 | DB129: 7654 | DC129: 7743 | DD129: 7832 | DE129: 7921 | DF129: 8010
A130: 47 | B130: BX 5U1 | C130: 992 | S130: 1456 | T130: 2880 | U130: 90 | V130: 180 | W130: 270 | X130: 360 | Y130: 450 | Z130: 540 | AA130: 630 | AB130: 720 | AC130: 810 | AD130: 900 | AE130: 990 | AF130: 1080 | AG130: 1170 | AH130: 1260 | AI130: 1350 | AJ130: 1440 | AK130: 1530 | AL130: 1620 | AM130: 1710 | AN130: 1800 | AO130: 1890 | AP130: 1980 | AQ130: 2070 | AR130: 2160 | AS130: 2250 | AT130: 2340 | AU130: 2430 | AV130: 2520 | AW130: 2610 | AX130: 2700 | AY130: 2790 | AZ130: 2880 | BA130: 2970 | BB130: 3060 | BC130: 3150 | BD130: 3240 | BE130: 3330 | BF130: 3420 | BG130: 3510 | BH130: 3600 | BI130: 3690 | BJ130: 3780 | BK130: 3870 | BL130: 3960 | BM130: 4050 | BN130: 4140 | BO130: 4230 | BP130: 4320 | BQ130: 4410 | BR130: 4500 | BS130: 4590 | BT130: 4680 | BU130: 4770 | BV130: 4860 | BW130: 4950 | BX130: 5040 | BY130: 5130 | BZ130: 5220 | CA130: 5310 | CB130: 5400 | CC130: 5490 | CD130: 5580 | CE130: 5670 | CF130: 5760 | CG130: 5850 | CH130: 5940 | CI130: 6030 | CJ130: 6120 | CK130: 6210 | CL130: 6300 | CM130: 6390 | CN130: 6480 | CO130: 6570 | CP130: 6660 | CQ130: 6750 | CR130: 6840 | CS130: 6930 | CT130: 7020 | CU130: 7110 | CV130: 7200 | CW130: 7290 | CX130: 7380 | CY130: 7470 | CZ130: 7560 | DA130: 7650 | DB130: 7740 | DC130: 7830 | DD130: 7920 | DE130: 8010 | DF130: 8100
A131: 48 | B131: BX 5U1 | C131: 992 | S131: 1472 | T131: 2912 | U131: 91 | V131: 182 | W131: 273 | X131: 364 | Y131: 455 | Z131: 546 | AA131: 637 | AB131: 728 | AC131: 819 | AD131: 910 | AE131: 1001 | AF131: 1092 | AG131: 1183 | AH131: 1274 | AI131: 1365 | AJ131: 1456 | AK131: 1547 | AL131: 1638 | AM131: 1729 | AN131: 1820 | AO131: 1911 | AP131: 2002 | AQ131: 2093 | AR131: 2184 | AS131: 2275 | AT131: 2366 | AU131: 2457 | AV131: 2548 | AW131: 2639 | AX131: 2730 | AY131: 2821 | AZ131: 2912 | BA131: 3003 | BB131: 3094 | BC131: 3185 | BD131: 3276 | BE131: 3367 | BF131: 3458 | BG131: 3549 | BH131: 3640 | BI131: 3731 | BJ131: 3822 | BK131: 3913 | BL131: 4004 | BM131: 4095 | BN131: 4186 | BO131: 4277 | BP131: 4368 | BQ131: 4459 | BR131: 4550 | BS131: 4641 | BT131: 4732 | BU131: 4823 | BV131: 4914 | BW131: 5005 | BX131: 5096 | BY131: 5187 | BZ131: 5278 | CA131: 5369 | CB131: 5460 | CC131: 5551 | CD131: 5642 | CE131: 5733 | CF131: 5824 | CG131: 5915 | CH131: 6006 | CI131: 6097 | CJ131: 6188 | CK131: 6279 | CL131: 6370 | CM131: 6461 | CN131: 6552 | CO131: 6643 | CP131: 6734 | CQ131: 6825 | CR131: 6916 | CS131: 7007 | CT131: 7098 | CU131: 7189 | CV131: 7280 | CW131: 7371 | CX131: 7462 | CY131: 7553 | CZ131: 7644 | DA131: 7735 | DB131: 7826 | DC131: 7917 | DD131: 8008 | DE131: 8099 | DF131: 8190
A132: 49 | B132: BX 5U1 | C132: 992 | S132: 1488 | T132: 2944 | U132: 92 | V132: 184 | W132: 276 | X132: 368 | Y132: 460 | Z132: 552 | AA132: 644 | AB132: 736 | AC132: 828 | AD132: 920 | AE132: 1012 | AF132: 1104 | AG132: 1196 | AH132: 1288 | AI132: 1380 | AJ132: 1472 | AK132: 1564 | AL132: 1656 | AM132: 1748 | AN132: 1840 | AO132: 1932 | AP132: 2024 | AQ132: 2116 | AR132: 2208 | AS132: 2300 | AT132: 2392 | AU132: 2484 | AV132: 2576 | AW132: 2668 | AX132: 2760 | AY132: 2852 | AZ132: 2944 | BA132: 3036 | BB132: 3128 | BC132: 3220 | BD132: 3312 | BE132: 3404 | BF132: 3496 | BG132: 3588 | BH132: 3680 | BI132: 3772 | BJ132: 3864 | BK132: 3956 | BL132: 4048 | BM132: 4140 | BN132: 4232 | BO132: 4324 | BP132: 4416 | BQ132: 4508 | BR132: 4600 | BS132: 4692 | BT132: 4784 | BU132: 4876 | BV132: 4968 | BW132: 5060 | BX132: 5152 | BY132: 5244 | BZ132: 5336 | CA132: 5428 | CB132: 5520 | CC132: 5612 | CD132: 5704 | CE132: 5796 | CF132: 5888 | CG132: 5980 | CH132: 6072 | CI132: 6164 | CJ132: 6256 | CK132: 6348 | CL132: 6440 | CM132: 6532 | CN132: 6624 | CO132: 6716 | CP132: 6808 | CQ132: 6900 | CR132: 6992 | CS132: 7084 | CT132: 7176 | CU132: 7268 | CV132: 7360 | CW132: 7452 | CX132: 7544 | CY132: 7636 | CZ132: 7728 | DA132: 7820 | DB132: 7912 | DC132: 8004 | DD132: 8096 | DE132: 8188 | DF132: 8280
A133: 50 | B133: BX 5U1 | C133: 992 | S133: 1504 | T133: 2976 | U133: 93 | V133: 186 | W133: 279 | X133: 372 | Y133: 465 | Z133: 558 | AA133: 651 | AB133: 744 | AC133: 837 | AD133: 930 | AE133: 1023 | AF133: 1116 | AG133: 1209 | AH133: 1302 | AI133: 1395 | AJ133: 1488 | AK133: 1581 | AL133: 1674 | AM133: 1767 | AN133: 1860 | AO133: 1953 | AP133: 2046 | AQ133: 2139 | AR133: 2232 | AS133: 2325 | AT133: 2418 | AU133: 2511 | AV133: 2604 | AW133: 2697 | AX133: 2790 | AY133: 2883 | AZ133: 2976 | BA133: 3069 | BB133: 3162 | BC133: 3255 | BD133: 3348 | BE133: 3441 | BF133: 3534 | BG133: 3627 | BH133: 3720 | BI133: 3813 | BJ133: 3906 | BK133: 3999 | BL133: 4092 | BM133: 4185 | BN133: 4278 | BO133: 4371 | BP133: 4464 | BQ133: 4557 | BR133: 4650 | BS133: 4743 | BT133: 4836 | BU133: 4929 | BV133: 5022 | BW133: 5115 | BX133: 5208 | BY133: 5301 | BZ133: 5394 | CA133: 5487 | CB133: 5580 | CC133: 5673 | CD133: 5766 | CE133: 5859 | CF133: 5952 | CG133: 6045 | CH133: 6138 | CI133: 6231 | CJ133: 6324 | CK133: 6417 | CL133: 6510 | CM133: 6603 | CN133: 6696 | CO133: 6789 | CP133: 6882 | CQ133: 6975 | CR133: 7068 | CS133: 7161 | CT133: 7254 | CU133: 7347 | CV133: 7440 | CW133: 7533 | CX133: 7626 | CY133: 7719 | CZ133: 7812 | DA133: 7905 | DB133: 7998 | DC133: 8091 | DD133: 8184 | DE133: 8277 | DF133: 8370
A134: 51 | B134: BX 5U1 | C134: 992 | S134: 1520 | T134: 3008 | U134: 94 | V134: 188 | W134: 282 | X134: 376 | Y134: 470 | Z134: 564 | AA134: 658 | AB134: 752 | AC134: 846 | AD134: 940 | AE134: 1034 | AF134: 1128 | AG134: 1222 | AH134: 1316 | AI134: 1410 | AJ134: 1504 | AK134: 1598 | AL134: 1692 | AM134: 1786 | AN134: 1880 | AO134: 1974 | AP134: 2068 | AQ134: 2162 | AR134: 2256 | AS134: 2350 | AT134: 2444 | AU134: 2538 | AV134: 2632 | AW134: 2726 | AX134: 2820 | AY134: 2914 | AZ134: 3008 | BA134: 3102 | BB134: 3196 | BC134: 3290 | BD134: 3384 | BE134: 3478 | BF134: 3572 | BG134: 3666 | BH134: 3760 | BI134: 3854 | BJ134: 3948 | BK134: 4042 | BL134: 4136 | BM134: 4230 | BN134: 4324 | BO134: 4418 | BP134: 4512 | BQ134: 4606 | BR134: 4700 | BS134: 4794 | BT134: 4888 | BU134: 4982 | BV134: 5076 | BW134: 5170 | BX134: 5264 | BY134: 5358 | BZ134: 5452 | CA134: 5546 | CB134: 5640 | CC134: 5734 | CD134: 5828 | CE134: 5922 | CF134: 6016 | CG134: 6110 | CH134: 6204 | CI134: 6298 | CJ134: 6392 | CK134: 6486 | CL134: 6580 | CM134: 6674 | CN134: 6768 | CO134: 6862 | CP134: 6956 | CQ134: 7050 | CR134: 7144 | CS134: 7238 | CT134: 7332 | CU134: 7426 | CV134: 7520 | CW134: 7614 | CX134: 7708 | CY134: 7802 | CZ134: 7896 | DA134: 7990 | DB134: 8084 | DC134: 8178 | DD134: 8272 | DE134: 8366 | DF134: 8460
A135: 52 | B135: BX 5U1 | C135: 992 | S135: 1536 | T135: 3040 | U135: 95 | V135: 190 | W135: 285 | X135: 380 | Y135: 475 | Z135: 570 | AA135: 665 | AB135: 760 | AC135: 855 | AD135: 950 | AE135: 1045 | AF135: 1140 | AG135: 1235 | AH135: 1330 | AI135: 1425 | AJ135: 1520 | AK135: 1615 | AL135: 1710 | AM135: 1805 | AN135: 1900 | AO135: 1995 | AP135: 2090 | AQ135: 2185 | AR135: 2280 | AS135: 2375 | AT135: 2470 | AU135: 2565 | AV135: 2660 | AW135: 2755 | AX135: 2850 | AY135: 2945 | AZ135: 3040 | BA135: 3135 | BB135: 3230 | BC135: 3325 | BD135: 3420 | BE135: 3515 | BF135: 3610 | BG135: 3705 | BH135: 3800 | BI135: 3895 | BJ135: 3990 | BK135: 4085 | BL135: 4180 | BM135: 4275 | BN135: 4370 | BO135: 4465 | BP135: 4560 | BQ135: 4655 | BR135: 4750 | BS135: 4845 | BT135: 4940 | BU135: 5035 | BV135: 5130 | BW135: 5225 | BX135: 5320 | BY135: 5415 | BZ135: 5510 | CA135: 5605 | CB135: 5700 | CC135: 5795 | CD135: 5890 | CE135: 5985 | CF135: 6080 | CG135: 6175 | CH135: 6270 | CI135: 6365 | CJ135: 6460 | CK135: 6555 | CL135: 6650 | CM135: 6745 | CN135: 6840 | CO135: 6935 | CP135: 7030 | CQ135: 7125 | CR135: 7220 | CS135: 7315 | CT135: 7410 | CU135: 7505 | CV135: 7600 | CW135: 7695 | CX135: 7790 | CY135: 7885 | CZ135: 7980 | DA135: 8075 | DB135: 8170 | DC135: 8265 | DD135: 8360 | DE135: 8455 | DF135: 8550
A136: 53 | B136: BX 5U1 | C136: 992 | S136: 1552 | T136: 3072 | U136: 96 | V136: 192 | W136: 288 | X136: 384 | Y136: 480 | Z136: 576 | AA136: 672 | AB136: 768 | AC136: 864 | AD136: 960 | AE136: 1056 | AF136: 1152 | AG136: 1248 | AH136: 1344 | AI136: 1440 | AJ136: 1536 | AK136: 1632 | AL136: 1728 | AM136: 1824 | AN136: 1920 | AO136: 2016 | AP136: 2112 | AQ136: 2208 | AR136: 2304 | AS136: 2400 | AT136: 2496 | AU136: 2592 | AV136: 2688 | AW136: 2784 | AX136: 2880 | AY136: 2976 | AZ136: 3072 | BA136: 3168 | BB136: 3264 | BC136: 3360 | BD136: 3456 | BE136: 3552 | BF136: 3648 | BG136: 3744 | BH136: 3840 | BI136: 3936 | BJ136: 4032 | BK136: 4128 | BL136: 4224 | BM136: 4320 | BN136: 4416 | BO136: 4512 | BP136: 4608 | BQ136: 4704 | BR136: 4800 | BS136: 4896 | BT136: 4992 | BU136: 5088 | BV136: 5184 | BW136: 5280 | BX136: 5376 | BY136: 5472 | BZ136: 5568 | CA136: 5664 | CB136: 5760 | CC136: 5856 | CD136: 5952 | CE136: 6048 | CF136: 6144 | CG136: 6240 | CH136: 6336 | CI136: 6432 | CJ136: 6528 | CK136: 6624 | CL136: 6720 | CM136: 6816 | CN136: 6912 | CO136: 7008 | CP136: 7104 | CQ136: 7200 | CR136: 7296 | CS136: 7392 | CT136: 7488 | CU136: 7584 | CV136: 7680 | CW136: 7776 | CX136: 7872 | CY136: 7968 | CZ136: 8064 | DA136: 8160 | DB136: 8256 | DC136: 8352 | DD136: 8448 | DE136: 8544 | DF136: 8640
A137: 54 | B137: BX 5U1 | C137: 992 | S137: 1568 | T137: 3104 | U137: 97 | V137: 194 | W137: 291 | X137: 388 | Y137: 485 | Z137: 582 | AA137: 679 | AB137: 776 | AC137: 873 | AD137: 970 | AE137: 1067 | AF137: 1164 | AG137: 1261 | AH137: 1358 | AI137: 1455 | AJ137: 1552 | AK137: 1649 | AL137: 1746 | AM137: 1843 | AN137: 1940 | AO137: 2037 | AP137: 2134 | AQ137: 2231 | AR137: 2328 | AS137: 2425 | AT137: 2522 | AU137: 2619 | AV137: 2716 | AW137: 2813 | AX137: 2910 | AY137: 3007 | AZ137: 3104 | BA137: 3201 | BB137: 3298 | BC137: 3395 | BD137: 3492 | BE137: 3589 | BF137: 3686 | BG137: 3783 | BH137: 3880 | BI137: 3977 | BJ137: 4074 | BK137: 4171 | BL137: 4268 | BM137: 4365 | BN137: 4462 | BO137: 4559 | BP137: 4656 | BQ137: 4753 | BR137: 4850 | BS137: 4947 | BT137: 5044 | BU137: 5141 | BV137: 5238 | BW137: 5335 | BX137: 5432 | BY137: 5529 | BZ137: 5626 | CA137: 5723 | CB137: 5820 | CC137: 5917 | CD137: 6014 | CE137: 6111 | CF137: 6208 | CG137: 6305 | CH137: 6402 | CI137: 6499 | CJ137: 6596 | CK137: 6693 | CL137: 6790 | CM137: 6887 | CN137: 6984 | CO137: 7081 | CP137: 7178 | CQ137: 7275 | CR137: 7372 | CS137: 7469 | CT137: 7566 | CU137: 7663 | CV137: 7760 | CW137: 7857 | CX137: 7954 | CY137: 8051 | CZ137: 8148 | DA137: 8245 | DB137: 8342 | DC137: 8439 | DD137: 8536 | DE137: 8633 | DF137: 8730
A138: 55 | B138: BX 5U1 | C138: 992 | S138: 1584 | T138: 3136 | U138: 98 | V138: 196 | W138: 294 | X138: 392 | Y138: 490 | Z138: 588 | AA138: 686 | AB138: 784 | AC138: 882 | AD138: 980 | AE138: 1078 | AF138: 1176 | AG138: 1274 | AH138: 1372 | AI138: 1470 | AJ138: 1568 | AK138: 1666 | AL138: 1764 | AM138: 1862 | AN138: 1960 | AO138: 2058 | AP138: 2156 | AQ138: 2254 | AR138: 2352 | AS138: 2450 | AT138: 2548 | AU138: 2646 | AV138: 2744 | AW138: 2842 | AX138: 2940 | AY138: 3038 | AZ138: 3136 | BA138: 3234 | BB138: 3332 | BC138: 3430 | BD138: 3528 | BE138: 3626 | BF138: 3724 | BG138: 3822 | BH138: 3920 | BI138: 4018 | BJ138: 4116 | BK138: 4214 | BL138: 4312 | BM138: 4410 | BN138: 4508 | BO138: 4606 | BP138: 4704 | BQ138: 4802 | BR138: 4900 | BS138: 4998 | BT138: 5096 | BU138: 5194 | BV138: 5292 | BW138: 5390 | BX138: 5488 | BY138: 5586 | BZ138: 5684 | CA138: 5782 | CB138: 5880 | CC138: 5978 | CD138: 6076 | CE138: 6174 | CF138: 6272 | CG138: 6370 | CH138: 6468 | CI138: 6566 | CJ138: 6664 | CK138: 6762 | CL138: 6860 | CM138: 6958 | CN138: 7056 | CO138: 7154 | CP138: 7252 | CQ138: 7350 | CR138: 7448 | CS138: 7546 | CT138: 7644 | CU138: 7742 | CV138: 7840 | CW138: 7938 | CX138: 8036 | CY138: 8134 | CZ138: 8232 | DA138: 8330 | DB138: 8428 | DC138: 8526 | DD138: 8624 | DE138: 8722 | DF138: 8820
A139: 56 | B139: BX 5U1 | C139: 992 | S139: 1600 | T139: 3168 | U139: 99 | V139: 198 | W139: 297 | X139: 396 | Y139: 495 | Z139: 594 | AA139: 693 | AB139: 792 | AC139: 891 | AD139: 990 | AE139: 1089 | AF139: 1188 | AG139: 1287 | AH139: 1386 | AI139: 1485 | AJ139: 1584 | AK139: 1683 | AL139: 1782 | AM139: 1881 | AN139: 1980 | AO139: 2079 | AP139: 2178 | AQ139: 2277 | AR139: 2376 | AS139: 2475 | AT139: 2574 | AU139: 2673 | AV139: 2772 | AW139: 2871 | AX139: 2970 | AY139: 3069 | AZ139: 3168 | BA139: 3267 | BB139: 3366 | BC139: 3465 | BD139: 3564 | BE139: 3663 | BF139: 3762 | BG139: 3861 | BH139: 3960 | BI139: 4059 | BJ139: 4158 | BK139: 4257 | BL139: 4356 | BM139: 4455 | BN139: 4554 | BO139: 4653 | BP139: 4752 | BQ139: 4851 | BR139: 4950 | BS139: 5049 | BT139: 5148 | BU139: 5247 | BV139: 5346 | BW139: 5445 | BX139: 5544 | BY139: 5643 | BZ139: 5742 | CA139: 5841 | CB139: 5940 | CC139: 6039 | CD139: 6138 | CE139: 6237 | CF139: 6336 | CG139: 6435 | CH139: 6534 | CI139: 6633 | CJ139: 6732 | CK139: 6831 | CL139: 6930 | CM139: 7029 | CN139: 7128 | CO139: 7227 | CP139: 7326 | CQ139: 7425 | CR139: 7524 | CS139: 7623 | CT139: 7722 | CU139: 7821 | CV139: 7920 | CW139: 8019 | CX139: 8118 | CY139: 8217 | CZ139: 8316 | DA139: 8415 | DB139: 8514 | DC139: 8613 | DD139: 8712 | DE139: 8811 | DF139: 8910
A140: 57 | B140: BX 5U1 | C140: 992 | S140: 1616 | T140: 3200 | U140: 100 | V140: 200 | W140: 300 | X140: 400 | Y140: 500 | Z140: 600 | AA140: 700 | AB140: 800 | AC140: 900 | AD140: 1000 | AE140: 1100 | AF140: 1200 | AG140: 1300 | AH140: 1400 | AI140: 1500 | AJ140: 1600 | AK140: 1700 | AL140: 1800 | AM140: 1900 | AN140: 2000 | AO140: 2100 | AP140: 2200 | AQ140: 2300 | AR140: 2400 | AS140: 2500 | AT140: 2600 | AU140: 2700 | AV140: 2800 | AW140: 2900 | AX140: 3000 | AY140: 3100 | AZ140: 3200 | BA140: 3300 | BB140: 3400 | BC140: 3500 | BD140: 3600 | BE140: 3700 | BF140: 3800 | BG140: 3900 | BH140: 4000 | BI140: 4100 | BJ140: 4200 | BK140: 4300 | BL140: 4400 | BM140: 4500 | BN140: 4600 | BO140: 4700 | BP140: 4800 | BQ140: 4900 | BR140: 5000 | BS140: 5100 | BT140: 5200 | BU140: 5300 | BV140: 5400 | BW140: 5500 | BX140: 5600 | BY140: 5700 | BZ140: 5800 | CA140: 5900 | CB140: 6000 | CC140: 6100 | CD140: 6200 | CE140: 6300 | CF140: 6400 | CG140: 6500 | CH140: 6600 | CI140: 6700 | CJ140: 6800 | CK140: 6900 | CL140: 7000 | CM140: 7100 | CN140: 7200 | CO140: 7300 | CP140: 7400 | CQ140: 7500 | CR140: 7600 | CS140: 7700 | CT140: 7800 | CU140: 7900 | CV140: 8000 | CW140: 8100 | CX140: 8200 | CY140: 8300 | CZ140: 8400 | DA140: 8500 | DB140: 8600 | DC140: 8700 | DD140: 8800 | DE140: 8900 | DF140: 9000
A141: 58 | B141: BX 5U1 | C141: 992 | S141: 1632 | T141: 3232 | U141: 101 | V141: 202 | W141: 303 | X141: 404 | Y141: 505 | Z141: 606 | AA141: 707 | AB141: 808 | AC141: 909 | AD141: 1010 | AE141: 1111 | AF141: 1212 | AG141: 1313 | AH141: 1414 | AI141: 1515 | AJ141: 1616 | AK141: 1717 | AL141: 1818 | AM141: 1919 | AN141: 2020 | AO141: 2121 | AP141: 2222 | AQ141: 2323 | AR141: 2424 | AS141: 2525 | AT141: 2626 | AU141: 2727 | AV141: 2828 | AW141: 2929 | AX141: 3030 | AY141: 3131 | AZ141: 3232 | BA141: 3333 | BB141: 3434 | BC141: 3535 | BD141: 3636 | BE141: 3737 | BF141: 3838 | BG141: 3939 | BH141: 4040 | BI141: 4141 | BJ141: 4242 | BK141: 4343 | BL141: 4444 | BM141: 4545 | BN141: 4646 | BO141: 4747 | BP141: 4848 | BQ141: 4949 | BR141: 5050 | BS141: 5151 | BT141: 5252 | BU141: 5353 | BV141: 5454 | BW141: 5555 | BX141: 5656 | BY141: 5757 | BZ141: 5858 | CA141: 5959 | CB141: 6060 | CC141: 6161 | CD141: 6262 | CE141: 6363 | CF141: 6464 | CG141: 6565 | CH141: 6666 | CI141: 6767 | CJ141: 6868 | CK141: 6969 | CL141: 7070 | CM141: 7171 | CN141: 7272 | CO141: 7373 | CP141: 7474 | CQ141: 7575 | CR141: 7676 | CS141: 7777 | CT141: 7878 | CU141: 7979 | CV141: 8080 | CW141: 8181 | CX141: 8282 | CY141: 8383 | CZ141: 8484 | DA141: 8585 | DB141: 8686 | DC141: 8787 | DD141: 8888 | DE141: 8989 | DF141: 9090
A142: 59 | B142: BX 5U1 | C142: 992 | S142: 1648 | T142: 3264 | U142: 102 | V142: 204 | W142: 306 | X142: 408 | Y142: 510 | Z142: 612 | AA142: 714 | AB142: 816 | AC142: 918 | AD142: 1020 | AE142: 1122 | AF142: 1224 | AG142: 1326 | AH142: 1428 | AI142: 1530 | AJ142: 1632 | AK142: 1734 | AL142: 1836 | AM142: 1938 | AN142: 2040 | AO142: 2142 | AP142: 2244 | AQ142: 2346 | AR142: 2448 | AS142: 2550 | AT142: 2652 | AU142: 2754 | AV142: 2856 | AW142: 2958 | AX142: 3060 | AY142: 3162 | AZ142: 3264 | BA142: 3366 | BB142: 3468 | BC142: 3570 | BD142: 3672 | BE142: 3774 | BF142: 3876 | BG142: 3978 | BH142: 4080 | BI142: 4182 | BJ142: 4284 | BK142: 4386 | BL142: 4488 | BM142: 4590 | BN142: 4692 | BO142: 4794 | BP142: 4896 | BQ142: 4998 | BR142: 5100 | BS142: 5202 | BT142: 5304 | BU142: 5406 | BV142: 5508 | BW142: 5610 | BX142: 5712 | BY142: 5814 | BZ142: 5916 | CA142: 6018 | CB142: 6120 | CC142: 6222 | CD142: 6324 | CE142: 6426 | CF142: 6528 | CG142: 6630 | CH142: 6732 | CI142: 6834 | CJ142: 6936 | CK142: 7038 | CL142: 7140 | CM142: 7242 | CN142: 7344 | CO142: 7446 | CP142: 7548 | CQ142: 7650 | CR142: 7752 | CS142: 7854 | CT142: 7956 | CU142: 8058 | CV142: 8160 | CW142: 8262 | CX142: 8364 | CY142: 8466 | CZ142: 8568 | DA142: 8670 | DB142: 8772 | DC142: 8874 | DD142: 8976 | DE142: 9078 | DF142: 9180
A143: 60 | B143: BX 5U1 | C143: 992 | S143: 1664 | T143: 3296 | U143: 103 | V143: 206 | W143: 309 | X143: 412 | Y143: 515 | Z143: 618 | AA143: 721 | AB143: 824 | AC143: 927 | AD143: 1030 | AE143: 1133 | AF143: 1236 | AG143: 1339 | AH143: 1442 | AI143: 1545 | AJ143: 1648 | AK143: 1751 | AL143: 1854 | AM143: 1957 | AN143: 2060 | AO143: 2163 | AP143: 2266 | AQ143: 2369 | AR143: 2472 | AS143: 2575 | AT143: 2678 | AU143: 2781 | AV143: 2884 | AW143: 2987 | AX143: 3090 | AY143: 3193 | AZ143: 3296 | BA143: 3399 | BB143: 3502 | BC143: 3605 | BD143: 3708 | BE143: 3811 | BF143: 3914 | BG143: 4017 | BH143: 4120 | BI143: 4223 | BJ143: 4326 | BK143: 4429 | BL143: 4532 | BM143: 4635 | BN143: 4738 | BO143: 4841 | BP143: 4944 | BQ143: 5047 | BR143: 5150 | BS143: 5253 | BT143: 5356 | BU143: 5459 | BV143: 5562 | BW143: 5665 | BX143: 5768 | BY143: 5871 | BZ143: 5974 | CA143: 6077 | CB143: 6180 | CC143: 6283 | CD143: 6386 | CE143: 6489 | CF143: 6592 | CG143: 6695 | CH143: 6798 | CI143: 6901 | CJ143: 7004 | CK143: 7107 | CL143: 7210 | CM143: 7313 | CN143: 7416 | CO143: 7519 | CP143: 7622 | CQ143: 7725 | CR143: 7828 | CS143: 7931 | CT143: 8034 | CU143: 8137 | CV143: 8240 | CW143: 8343 | CX143: 8446 | CY143: 8549 | CZ143: 8652 | DA143: 8755 | DB143: 8858 | DC143: 8961 | DD143: 9064 | DE143: 9167 | DF143: 9270
A144: 61 | B144: BX 5U1 | C144: 992 | S144: 1680 | T144: 3328 | U144: 104 | V144: 208 | W144: 312 | X144: 416 | Y144: 520 | Z144: 624 | AA144: 728 | AB144: 832 | AC144: 936 | AD144: 1040 | AE144: 1144 | AF144: 1248 | AG144: 1352 | AH144: 1456 | AI144: 1560 | AJ144: 1664 | AK144: 1768 | AL144: 1872 | AM144: 1976 | AN144: 2080 | AO144: 2184 | AP144: 2288 | AQ144: 2392 | AR144: 2496 | AS144: 2600 | AT144: 2704 | AU144: 2808 | AV144: 2912 | AW144: 3016 | AX144: 3120 | AY144: 3224 | AZ144: 3328 | BA144: 3432 | BB144: 3536 | BC144: 3640 | BD144: 3744 | BE144: 3848 | BF144: 3952 | BG144: 4056 | BH144: 4160 | BI144: 4264 | BJ144: 4368 | BK144: 4472 | BL144: 4576 | BM144: 4680 | BN144: 4784 | BO144: 4888 | BP144: 4992 | BQ144: 5096 | BR144: 5200 | BS144: 5304 | BT144: 5408 | BU144: 5512 | BV144: 5616 | BW144: 5720 | BX144: 5824 | BY144: 5928 | BZ144: 6032 | CA144: 6136 | CB144: 6240 | CC144: 6344 | CD144: 6448 | CE144: 6552 | CF144: 6656 | CG144: 6760 | CH144: 6864 | CI144: 6968 | CJ144: 7072 | CK144: 7176 | CL144: 7280 | CM144: 7384 | CN144: 7488 | CO144: 7592 | CP144: 7696 | CQ144: 7800 | CR144: 7904 | CS144: 8008 | CT144: 8112 | CU144: 8216 | CV144: 8320 | CW144: 8424 | CX144: 8528 | CY144: 8632 | CZ144: 8736 | DA144: 8840 | DB144: 8944 | DC144: 9048 | DD144: 9152 | DE144: 9256 | DF144: 9360
A145: 62 | B145: BX 5U1 | C145: 992 | S145: 1696 | T145: 3360 | U145: 105 | V145: 210 | W145: 315 | X145: 420 | Y145: 525 | Z145: 630 | AA145: 735 | AB145: 840 | AC145: 945 | AD145: 1050 | AE145: 1155 | AF145: 1260 | AG145: 1365 | AH145: 1470 | AI145: 1575 | AJ145: 1680 | AK145: 1785 | AL145: 1890 | AM145: 1995 | AN145: 2100 | AO145: 2205 | AP145: 2310 | AQ145: 2415 | AR145: 2520 | AS145: 2625 | AT145: 2730 | AU145: 2835 | AV145: 2940 | AW145: 3045 | AX145: 3150 | AY145: 3255 | AZ145: 3360 | BA145: 3465 | BB145: 3570 | BC145: 3675 | BD145: 3780 | BE145: 3885 | BF145: 3990 | BG145: 4095 | BH145: 4200 | BI145: 4305 | BJ145: 4410 | BK145: 4515 | BL145: 4620 | BM145: 4725 | BN145: 4830 | BO145: 4935 | BP145: 5040 | BQ145: 5145 | BR145: 5250 | BS145: 5355 | BT145: 5460 | BU145: 5565 | BV145: 5670 | BW145: 5775 | BX145: 5880 | BY145: 5985 | BZ145: 6090 | CA145: 6195 | CB145: 6300 | CC145: 6405 | CD145: 6510 | CE145: 6615 | CF145: 6720 | CG145: 6825 | CH145: 6930 | CI145: 7035 | CJ145: 7140 | CK145: 7245 | CL145: 7350 | CM145: 7455 | CN145: 7560 | CO145: 7665 | CP145: 7770 | CQ145: 7875 | CR145: 7980 | CS145: 8085 | CT145: 8190 | CU145: 8295 | CV145: 8400 | CW145: 8505 | CX145: 8610 | CY145: 8715 | CZ145: 8820 | DA145: 8925 | DB145: 9030 | DC145: 9135 | DD145: 9240 | DE145: 9345 | DF145: 9450
A146: 63 | B146: BX 5U1 | C146: 992 | S146: 1712 | T146: 3392 | U146: 106 | V146: 212 | W146: 318 | X146: 424 | Y146: 530 | Z146: 636 | AA146: 742 | AB146: 848 | AC146: 954 | AD146: 1060 | AE146: 1166 | AF146: 1272 | AG146: 1378 | AH146: 1484 | AI146: 1590 | AJ146: 1696 | AK146: 1802 | AL146: 1908 | AM146: 2014 | AN146: 2120 | AO146: 2226 | AP146: 2332 | AQ146: 2438 | AR146: 2544 | AS146: 2650 | AT146: 2756 | AU146: 2862 | AV146: 2968 | AW146: 3074 | AX146: 3180 | AY146: 3286 | AZ146: 3392 | BA146: 3498 | BB146: 3604 | BC146: 3710 | BD146: 3816 | BE146: 3922 | BF146: 4028 | BG146: 4134 | BH146: 4240 | BI146: 4346 | BJ146: 4452 | BK146: 4558 | BL146: 4664 | BM146: 4770 | BN146: 4876 | BO146: 4982 | BP146: 5088 | BQ146: 5194 | BR146: 5300 | BS146: 5406 | BT146: 5512 | BU146: 5618 | BV146: 5724 | BW146: 5830 | BX146: 5936 | BY146: 6042 | BZ146: 6148 | CA146: 6254 | CB146: 6360 | CC146: 6466 | CD146: 6572 | CE146: 6678 | CF146: 6784 | CG146: 6890 | CH146: 6996 | CI146: 7102 | CJ146: 7208 | CK146: 7314 | CL146: 7420 | CM146: 7526 | CN146: 7632 | CO146: 7738 | CP146: 7844 | CQ146: 7950 | CR146: 8056 | CS146: 8162 | CT146: 8268 | CU146: 8374 | CV146: 8480 | CW146: 8586 | CX146: 8692 | CY146: 8798 | CZ146: 8904 | DA146: 9010 | DB146: 9116 | DC146: 9222 | DD146: 9328 | DE146: 9434 | DF146: 9540
A147: 64 | B147: BX 5U1 | C147: 992 | S147: 1728 | T147: 3424 | U147: 107 | V147: 214 | W147: 321 | X147: 428 | Y147: 535 | Z147: 642 | AA147: 749 | AB147: 856 | AC147: 963 | AD147: 1070 | AE147: 1177 | AF147: 1284 | AG147: 1391 | AH147: 1498 | AI147: 1605 | AJ147: 1712 | AK147: 1819 | AL147: 1926 | AM147: 2033 | AN147: 2140 | AO147: 2247 | AP147: 2354 | AQ147: 2461 | AR147: 2568 | AS147: 2675 | AT147: 2782 | AU147: 2889 | AV147: 2996 | AW147: 3103 | AX147: 3210 | AY147: 3317 | AZ147: 3424 | BA147: 3531 | BB147: 3638 | BC147: 3745 | BD147: 3852 | BE147: 3959 | BF147: 4066 | BG147: 4173 | BH147: 4280 | BI147: 4387 | BJ147: 4494 | BK147: 4601 | BL147: 4708 | BM147: 4815 | BN147: 4922 | BO147: 5029 | BP147: 5136 | BQ147: 5243 | BR147: 5350 | BS147: 5457 | BT147: 5564 | BU147: 5671 | BV147: 5778 | BW147: 5885 | BX147: 5992 | BY147: 6099 | BZ147: 6206 | CA147: 6313 | CB147: 6420 | CC147: 6527 | CD147: 6634 | CE147: 6741 | CF147: 6848 | CG147: 6955 | CH147: 7062 | CI147: 7169 | CJ147: 7276 | CK147: 7383 | CL147: 7490 | CM147: 7597 | CN147: 7704 | CO147: 7811 | CP147: 7918 | CQ147: 8025 | CR147: 8132 | CS147: 8239 | CT147: 8346 | CU147: 8453 | CV147: 8560 | CW147: 8667 | CX147: 8774 | CY147: 8881 | CZ147: 8988 | DA147: 9095 | DB147: 9202 | DC147: 9309 | DD147: 9416 | DE147: 9523 | DF147: 9630
A148: 65 | B148: BX 5U2 | C148: =D148 -> 1440 | D148: =E148*E3 -> 1440 | E148: 22.5 | S148: 1744 | T148: 3456 | U148: 108 | V148: 216 | W148: 324 | X148: 432 | Y148: 540 | Z148: 648 | AA148: 756 | AB148: 864 | AC148: 972 | AD148: 1080 | AE148: 1188 | AF148: 1296 | AG148: 1404 | AH148: 1512 | AI148: 1620 | AJ148: 1728 | AK148: 1836 | AL148: 1944 | AM148: 2052 | AN148: 2160 | AO148: 2268 | AP148: 2376 | AQ148: 2484 | AR148: 2592 | AS148: 2700 | AT148: 2808 | AU148: 2916 | AV148: 3024 | AW148: 3132 | AX148: 3240 | AY148: 3348 | AZ148: 3456 | BA148: 3564 | BB148: 3672 | BC148: 3780 | BD148: 3888 | BE148: 3996 | BF148: 4104 | BG148: 4212 | BH148: 4320 | BI148: 4428 | BJ148: 4536 | BK148: 4644 | BL148: 4752 | BM148: 4860 | BN148: 4968 | BO148: 5076 | BP148: 5184 | BQ148: 5292 | BR148: 5400 | BS148: 5508 | BT148: 5616 | BU148: 5724 | BV148: 5832 | BW148: 5940 | BX148: 6048 | BY148: 6156 | BZ148: 6264 | CA148: 6372 | CB148: 6480 | CC148: 6588 | CD148: 6696 | CE148: 6804 | CF148: 6912 | CG148: 7020 | CH148: 7128 | CI148: 7236 | CJ148: 7344 | CK148: 7452 | CL148: 7560 | CM148: 7668 | CN148: 7776 | CO148: 7884 | CP148: 7992 | CQ148: 8100 | CR148: 8208 | CS148: 8316 | CT148: 8424 | CU148: 8532 | CV148: 8640 | CW148: 8748 | CX148: 8856 | CY148: 8964 | CZ148: 9072 | DA148: 9180 | DB148: 9288 | DC148: 9396 | DD148: 9504 | DE148: 9612 | DF148: 9720
A149: 66 | B149: BX 5U2 | C149: =C148 -> 1440 | S149: 1760 | T149: 3488 | U149: 109 | V149: 218 | W149: 327 | X149: 436 | Y149: 545 | Z149: 654 | AA149: 763 | AB149: 872 | AC149: 981 | AD149: 1090 | AE149: 1199 | AF149: 1308 | AG149: 1417 | AH149: 1526 | AI149: 1635 | AJ149: 1744 | AK149: 1853 | AL149: 1962 | AM149: 2071 | AN149: 2180 | AO149: 2289 | AP149: 2398 | AQ149: 2507 | AR149: 2616 | AS149: 2725 | AT149: 2834 | AU149: 2943 | AV149: 3052 | AW149: 3161 | AX149: 3270 | AY149: 3379 | AZ149: 3488 | BA149: 3597 | BB149: 3706 | BC149: 3815 | BD149: 3924 | BE149: 4033 | BF149: 4142 | BG149: 4251 | BH149: 4360 | BI149: 4469 | BJ149: 4578 | BK149: 4687 | BL149: 4796 | BM149: 4905 | BN149: 5014 | BO149: 5123 | BP149: 5232 | BQ149: 5341 | BR149: 5450 | BS149: 5559 | BT149: 5668 | BU149: 5777 | BV149: 5886 | BW149: 5995 | BX149: 6104 | BY149: 6213 | BZ149: 6322 | CA149: 6431 | CB149: 6540 | CC149: 6649 | CD149: 6758 | CE149: 6867 | CF149: 6976 | CG149: 7085 | CH149: 7194 | CI149: 7303 | CJ149: 7412 | CK149: 7521 | CL149: 7630 | CM149: 7739 | CN149: 7848 | CO149: 7957 | CP149: 8066 | CQ149: 8175 | CR149: 8284 | CS149: 8393 | CT149: 8502 | CU149: 8611 | CV149: 8720 | CW149: 8829 | CX149: 8938 | CY149: 9047 | CZ149: 9156 | DA149: 9265 | DB149: 9374 | DC149: 9483 | DD149: 9592 | DE149: 9701 | DF149: 9810
A150: 67 | B150: BX 5U2 | C150: 1440 | S150: 1776 | T150: 3520 | U150: 110 | V150: 220 | W150: 330 | X150: 440 | Y150: 550 | Z150: 660 | AA150: 770 | AB150: 880 | AC150: 990 | AD150: 1100 | AE150: 1210 | AF150: 1320 | AG150: 1430 | AH150: 1540 | AI150: 1650 | AJ150: 1760 | AK150: 1870 | AL150: 1980 | AM150: 2090 | AN150: 2200 | AO150: 2310 | AP150: 2420 | AQ150: 2530 | AR150: 2640 | AS150: 2750 | AT150: 2860 | AU150: 2970 | AV150: 3080 | AW150: 3190 | AX150: 3300 | AY150: 3410 | AZ150: 3520 | BA150: 3630 | BB150: 3740 | BC150: 3850 | BD150: 3960 | BE150: 4070 | BF150: 4180 | BG150: 4290 | BH150: 4400 | BI150: 4510 | BJ150: 4620 | BK150: 4730 | BL150: 4840 | BM150: 4950 | BN150: 5060 | BO150: 5170 | BP150: 5280 | BQ150: 5390 | BR150: 5500 | BS150: 5610 | BT150: 5720 | BU150: 5830 | BV150: 5940 | BW150: 6050 | BX150: 6160 | BY150: 6270 | BZ150: 6380 | CA150: 6490 | CB150: 6600 | CC150: 6710 | CD150: 6820 | CE150: 6930 | CF150: 7040 | CG150: 7150 | CH150: 7260 | CI150: 7370 | CJ150: 7480 | CK150: 7590 | CL150: 7700 | CM150: 7810 | CN150: 7920 | CO150: 8030 | CP150: 8140 | CQ150: 8250 | CR150: 8360 | CS150: 8470 | CT150: 8580 | CU150: 8690 | CV150: 8800 | CW150: 8910 | CX150: 9020 | CY150: 9130 | CZ150: 9240 | DA150: 9350 | DB150: 9460 | DC150: 9570 | DD150: 9680 | DE150: 9790 | DF150: 9900
A151: 68 | B151: BX 5U2 | C151: 1440 | S151: 1792 | T151: 3552 | U151: 111 | V151: 222 | W151: 333 | X151: 444 | Y151: 555 | Z151: 666 | AA151: 777 | AB151: 888 | AC151: 999 | AD151: 1110 | AE151: 1221 | AF151: 1332 | AG151: 1443 | AH151: 1554 | AI151: 1665 | AJ151: 1776 | AK151: 1887 | AL151: 1998 | AM151: 2109 | AN151: 2220 | AO151: 2331 | AP151: 2442 | AQ151: 2553 | AR151: 2664 | AS151: 2775 | AT151: 2886 | AU151: 2997 | AV151: 3108 | AW151: 3219 | AX151: 3330 | AY151: 3441 | AZ151: 3552 | BA151: 3663 | BB151: 3774 | BC151: 3885 | BD151: 3996 | BE151: 4107 | BF151: 4218 | BG151: 4329 | BH151: 4440 | BI151: 4551 | BJ151: 4662 | BK151: 4773 | BL151: 4884 | BM151: 4995 | BN151: 5106 | BO151: 5217 | BP151: 5328 | BQ151: 5439 | BR151: 5550 | BS151: 5661 | BT151: 5772 | BU151: 5883 | BV151: 5994 | BW151: 6105 | BX151: 6216 | BY151: 6327 | BZ151: 6438 | CA151: 6549 | CB151: 6660 | CC151: 6771 | CD151: 6882 | CE151: 6993 | CF151: 7104 | CG151: 7215 | CH151: 7326 | CI151: 7437 | CJ151: 7548 | CK151: 7659 | CL151: 7770 | CM151: 7881 | CN151: 7992 | CO151: 8103 | CP151: 8214 | CQ151: 8325 | CR151: 8436 | CS151: 8547 | CT151: 8658 | CU151: 8769 | CV151: 8880 | CW151: 8991 | CX151: 9102 | CY151: 9213 | CZ151: 9324 | DA151: 9435 | DB151: 9546 | DC151: 9657 | DD151: 9768 | DE151: 9879 | DF151: 9990
A152: 69 | B152: BX 5U2 | C152: 1440 | S152: 1808 | T152: 3584 | U152: 112 | V152: 224 | W152: 336 | X152: 448 | Y152: 560 | Z152: 672 | AA152: 784 | AB152: 896 | AC152: 1008 | AD152: 1120 | AE152: 1232 | AF152: 1344 | AG152: 1456 | AH152: 1568 | AI152: 1680 | AJ152: 1792 | AK152: 1904 | AL152: 2016 | AM152: 2128 | AN152: 2240 | AO152: 2352 | AP152: 2464 | AQ152: 2576 | AR152: 2688 | AS152: 2800 | AT152: 2912 | AU152: 3024 | AV152: 3136 | AW152: 3248 | AX152: 3360 | AY152: 3472 | AZ152: 3584 | BA152: 3696 | BB152: 3808 | BC152: 3920 | BD152: 4032 | BE152: 4144 | BF152: 4256 | BG152: 4368 | BH152: 4480 | BI152: 4592 | BJ152: 4704 | BK152: 4816 | BL152: 4928 | BM152: 5040 | BN152: 5152 | BO152: 5264 | BP152: 5376 | BQ152: 5488 | BR152: 5600 | BS152: 5712 | BT152: 5824 | BU152: 5936 | BV152: 6048 | BW152: 6160 | BX152: 6272 | BY152: 6384 | BZ152: 6496 | CA152: 6608 | CB152: 6720 | CC152: 6832 | CD152: 6944 | CE152: 7056 | CF152: 7168 | CG152: 7280 | CH152: 7392 | CI152: 7504 | CJ152: 7616 | CK152: 7728 | CL152: 7840 | CM152: 7952 | CN152: 8064 | CO152: 8176 | CP152: 8288 | CQ152: 8400 | CR152: 8512 | CS152: 8624 | CT152: 8736 | CU152: 8848 | CV152: 8960 | CW152: 9072 | CX152: 9184 | CY152: 9296 | CZ152: 9408 | DA152: 9520 | DB152: 9632 | DC152: 9744 | DD152: 9856 | DE152: 9968 | DF152: 10080
A153: 70 | B153: BX 5U2 | C153: 1440 | S153: 1824 | T153: 3616 | U153: 113 | V153: 226 | W153: 339 | X153: 452 | Y153: 565 | Z153: 678 | AA153: 791 | AB153: 904 | AC153: 1017 | AD153: 1130 | AE153: 1243 | AF153: 1356 | AG153: 1469 | AH153: 1582 | AI153: 1695 | AJ153: 1808 | AK153: 1921 | AL153: 2034 | AM153: 2147 | AN153: 2260 | AO153: 2373 | AP153: 2486 | AQ153: 2599 | AR153: 2712 | AS153: 2825 | AT153: 2938 | AU153: 3051 | AV153: 3164 | AW153: 3277 | AX153: 3390 | AY153: 3503 | AZ153: 3616 | BA153: 3729 | BB153: 3842 | BC153: 3955 | BD153: 4068 | BE153: 4181 | BF153: 4294 | BG153: 4407 | BH153: 4520 | BI153: 4633 | BJ153: 4746 | BK153: 4859 | BL153: 4972 | BM153: 5085 | BN153: 5198 | BO153: 5311 | BP153: 5424 | BQ153: 5537 | BR153: 5650 | BS153: 5763 | BT153: 5876 | BU153: 5989 | BV153: 6102 | BW153: 6215 | BX153: 6328 | BY153: 6441 | BZ153: 6554 | CA153: 6667 | CB153: 6780 | CC153: 6893 | CD153: 7006 | CE153: 7119 | CF153: 7232 | CG153: 7345 | CH153: 7458 | CI153: 7571 | CJ153: 7684 | CK153: 7797 | CL153: 7910 | CM153: 8023 | CN153: 8136 | CO153: 8249 | CP153: 8362 | CQ153: 8475 | CR153: 8588 | CS153: 8701 | CT153: 8814 | CU153: 8927 | CV153: 9040 | CW153: 9153 | CX153: 9266 | CY153: 9379 | CZ153: 9492 | DA153: 9605 | DB153: 9718 | DC153: 9831 | DD153: 9944 | DE153: 10057 | DF153: 10170
A154: 71 | B154: BX 5U2 | C154: 1440 | S154: 1840 | T154: 3648 | U154: 114 | V154: 228 | W154: 342 | X154: 456 | Y154: 570 | Z154: 684 | AA154: 798 | AB154: 912 | AC154: 1026 | AD154: 1140 | AE154: 1254 | AF154: 1368 | AG154: 1482 | AH154: 1596 | AI154: 1710 | AJ154: 1824 | AK154: 1938 | AL154: 2052 | AM154: 2166 | AN154: 2280 | AO154: 2394 | AP154: 2508 | AQ154: 2622 | AR154: 2736 | AS154: 2850 | AT154: 2964 | AU154: 3078 | AV154: 3192 | AW154: 3306 | AX154: 3420 | AY154: 3534 | AZ154: 3648 | BA154: 3762 | BB154: 3876 | BC154: 3990 | BD154: 4104 | BE154: 4218 | BF154: 4332 | BG154: 4446 | BH154: 4560 | BI154: 4674 | BJ154: 4788 | BK154: 4902 | BL154: 5016 | BM154: 5130 | BN154: 5244 | BO154: 5358 | BP154: 5472 | BQ154: 5586 | BR154: 5700 | BS154: 5814 | BT154: 5928 | BU154: 6042 | BV154: 6156 | BW154: 6270 | BX154: 6384 | BY154: 6498 | BZ154: 6612 | CA154: 6726 | CB154: 6840 | CC154: 6954 | CD154: 7068 | CE154: 7182 | CF154: 7296 | CG154: 7410 | CH154: 7524 | CI154: 7638 | CJ154: 7752 | CK154: 7866 | CL154: 7980 | CM154: 8094 | CN154: 8208 | CO154: 8322 | CP154: 8436 | CQ154: 8550 | CR154: 8664 | CS154: 8778 | CT154: 8892 | CU154: 9006 | CV154: 9120 | CW154: 9234 | CX154: 9348 | CY154: 9462 | CZ154: 9576 | DA154: 9690 | DB154: 9804 | DC154: 9918 | DD154: 10032 | DE154: 10146 | DF154: 10260
A155: 72 | B155: BX 5U2 | C155: 1440 | S155: 1856 | T155: 3680 | U155: 115 | V155: 230 | W155: 345 | X155: 460 | Y155: 575 | Z155: 690 | AA155: 805 | AB155: 920 | AC155: 1035 | AD155: 1150 | AE155: 1265 | AF155: 1380 | AG155: 1495 | AH155: 1610 | AI155: 1725 | AJ155: 1840 | AK155: 1955 | AL155: 2070 | AM155: 2185 | AN155: 2300 | AO155: 2415 | AP155: 2530 | AQ155: 2645 | AR155: 2760 | AS155: 2875 | AT155: 2990 | AU155: 3105 | AV155: 3220 | AW155: 3335 | AX155: 3450 | AY155: 3565 | AZ155: 3680 | BA155: 3795 | BB155: 3910 | BC155: 4025 | BD155: 4140 | BE155: 4255 | BF155: 4370 | BG155: 4485 | BH155: 4600 | BI155: 4715 | BJ155: 4830 | BK155: 4945 | BL155: 5060 | BM155: 5175 | BN155: 5290 | BO155: 5405 | BP155: 5520 | BQ155: 5635 | BR155: 5750 | BS155: 5865 | BT155: 5980 | BU155: 6095 | BV155: 6210 | BW155: 6325 | BX155: 6440 | BY155: 6555 | BZ155: 6670 | CA155: 6785 | CB155: 6900 | CC155: 7015 | CD155: 7130 | CE155: 7245 | CF155: 7360 | CG155: 7475 | CH155: 7590 | CI155: 7705 | CJ155: 7820 | CK155: 7935 | CL155: 8050 | CM155: 8165 | CN155: 8280 | CO155: 8395 | CP155: 8510 | CQ155: 8625 | CR155: 8740 | CS155: 8855 | CT155: 8970 | CU155: 9085 | CV155: 9200 | CW155: 9315 | CX155: 9430 | CY155: 9545 | CZ155: 9660 | DA155: 9775 | DB155: 9890 | DC155: 10005 | DD155: 10120 | DE155: 10235 | DF155: 10350
A156: 73 | B156: BX 5U2 | C156: 1440 | S156: 1872 | T156: 3712 | U156: 116 | V156: 232 | W156: 348 | X156: 464 | Y156: 580 | Z156: 696 | AA156: 812 | AB156: 928 | AC156: 1044 | AD156: 1160 | AE156: 1276 | AF156: 1392 | AG156: 1508 | AH156: 1624 | AI156: 1740 | AJ156: 1856 | AK156: 1972 | AL156: 2088 | AM156: 2204 | AN156: 2320 | AO156: 2436 | AP156: 2552 | AQ156: 2668 | AR156: 2784 | AS156: 2900 | AT156: 3016 | AU156: 3132 | AV156: 3248 | AW156: 3364 | AX156: 3480 | AY156: 3596 | AZ156: 3712 | BA156: 3828 | BB156: 3944 | BC156: 4060 | BD156: 4176 | BE156: 4292 | BF156: 4408 | BG156: 4524 | BH156: 4640 | BI156: 4756 | BJ156: 4872 | BK156: 4988 | BL156: 5104 | BM156: 5220 | BN156: 5336 | BO156: 5452 | BP156: 5568 | BQ156: 5684 | BR156: 5800 | BS156: 5916 | BT156: 6032 | BU156: 6148 | BV156: 6264 | BW156: 6380 | BX156: 6496 | BY156: 6612 | BZ156: 6728 | CA156: 6844 | CB156: 6960 | CC156: 7076 | CD156: 7192 | CE156: 7308 | CF156: 7424 | CG156: 7540 | CH156: 7656 | CI156: 7772 | CJ156: 7888 | CK156: 8004 | CL156: 8120 | CM156: 8236 | CN156: 8352 | CO156: 8468 | CP156: 8584 | CQ156: 8700 | CR156: 8816 | CS156: 8932 | CT156: 9048 | CU156: 9164 | CV156: 9280 | CW156: 9396 | CX156: 9512 | CY156: 9628 | CZ156: 9744 | DA156: 9860 | DB156: 9976 | DC156: 10092 | DD156: 10208 | DE156: 10324 | DF156: 10440
A157: 74 | B157: BX 5U2 | C157: 1440 | S157: 1888 | T157: 3744 | U157: 117 | V157: 234 | W157: 351 | X157: 468 | Y157: 585 | Z157: 702 | AA157: 819 | AB157: 936 | AC157: 1053 | AD157: 1170 | AE157: 1287 | AF157: 1404 | AG157: 1521 | AH157: 1638 | AI157: 1755 | AJ157: 1872 | AK157: 1989 | AL157: 2106 | AM157: 2223 | AN157: 2340 | AO157: 2457 | AP157: 2574 | AQ157: 2691 | AR157: 2808 | AS157: 2925 | AT157: 3042 | AU157: 3159 | AV157: 3276 | AW157: 3393 | AX157: 3510 | AY157: 3627 | AZ157: 3744 | BA157: 3861 | BB157: 3978 | BC157: 4095 | BD157: 4212 | BE157: 4329 | BF157: 4446 | BG157: 4563 | BH157: 4680 | BI157: 4797 | BJ157: 4914 | BK157: 5031 | BL157: 5148 | BM157: 5265 | BN157: 5382 | BO157: 5499 | BP157: 5616 | BQ157: 5733 | BR157: 5850 | BS157: 5967 | BT157: 6084 | BU157: 6201 | BV157: 6318 | BW157: 6435 | BX157: 6552 | BY157: 6669 | BZ157: 6786 | CA157: 6903 | CB157: 7020 | CC157: 7137 | CD157: 7254 | CE157: 7371 | CF157: 7488 | CG157: 7605 | CH157: 7722 | CI157: 7839 | CJ157: 7956 | CK157: 8073 | CL157: 8190 | CM157: 8307 | CN157: 8424 | CO157: 8541 | CP157: 8658 | CQ157: 8775 | CR157: 8892 | CS157: 9009 | CT157: 9126 | CU157: 9243 | CV157: 9360 | CW157: 9477 | CX157: 9594 | CY157: 9711 | CZ157: 9828 | DA157: 9945 | DB157: 10062 | DC157: 10179 | DD157: 10296 | DE157: 10413 | DF157: 10530
A158: 75 | B158: BX 5U2 | C158: 1440 | S158: 1904 | T158: 3776 | U158: 118 | V158: 236 | W158: 354 | X158: 472 | Y158: 590 | Z158: 708 | AA158: 826 | AB158: 944 | AC158: 1062 | AD158: 1180 | AE158: 1298 | AF158: 1416 | AG158: 1534 | AH158: 1652 | AI158: 1770 | AJ158: 1888 | AK158: 2006 | AL158: 2124 | AM158: 2242 | AN158: 2360 | AO158: 2478 | AP158: 2596 | AQ158: 2714 | AR158: 2832 | AS158: 2950 | AT158: 3068 | AU158: 3186 | AV158: 3304 | AW158: 3422 | AX158: 3540 | AY158: 3658 | AZ158: 3776 | BA158: 3894 | BB158: 4012 | BC158: 4130 | BD158: 4248 | BE158: 4366 | BF158: 4484 | BG158: 4602 | BH158: 4720 | BI158: 4838 | BJ158: 4956 | BK158: 5074 | BL158: 5192 | BM158: 5310 | BN158: 5428 | BO158: 5546 | BP158: 5664 | BQ158: 5782 | BR158: 5900 | BS158: 6018 | BT158: 6136 | BU158: 6254 | BV158: 6372 | BW158: 6490 | BX158: 6608 | BY158: 6726 | BZ158: 6844 | CA158: 6962 | CB158: 7080 | CC158: 7198 | CD158: 7316 | CE158: 7434 | CF158: 7552 | CG158: 7670 | CH158: 7788 | CI158: 7906 | CJ158: 8024 | CK158: 8142 | CL158: 8260 | CM158: 8378 | CN158: 8496 | CO158: 8614 | CP158: 8732 | CQ158: 8850 | CR158: 8968 | CS158: 9086 | CT158: 9204 | CU158: 9322 | CV158: 9440 | CW158: 9558 | CX158: 9676 | CY158: 9794 | CZ158: 9912 | DA158: 10030 | DB158: 10148 | DC158: 10266 | DD158: 10384 | DE158: 10502 | DF158: 10620
A159: 76 | B159: BX 5U2 | C159: 1440 | S159: 1920 | T159: 3808 | U159: 119 | V159: 238 | W159: 357 | X159: 476 | Y159: 595 | Z159: 714 | AA159: 833 | AB159: 952 | AC159: 1071 | AD159: 1190 | AE159: 1309 | AF159: 1428 | AG159: 1547 | AH159: 1666 | AI159: 1785 | AJ159: 1904 | AK159: 2023 | AL159: 2142 | AM159: 2261 | AN159: 2380 | AO159: 2499 | AP159: 2618 | AQ159: 2737 | AR159: 2856 | AS159: 2975 | AT159: 3094 | AU159: 3213 | AV159: 3332 | AW159: 3451 | AX159: 3570 | AY159: 3689 | AZ159: 3808 | BA159: 3927 | BB159: 4046 | BC159: 4165 | BD159: 4284 | BE159: 4403 | BF159: 4522 | BG159: 4641 | BH159: 4760 | BI159: 4879 | BJ159: 4998 | BK159: 5117 | BL159: 5236 | BM159: 5355 | BN159: 5474 | BO159: 5593 | BP159: 5712 | BQ159: 5831 | BR159: 5950 | BS159: 6069 | BT159: 6188 | BU159: 6307 | BV159: 6426 | BW159: 6545 | BX159: 6664 | BY159: 6783 | BZ159: 6902 | CA159: 7021 | CB159: 7140 | CC159: 7259 | CD159: 7378 | CE159: 7497 | CF159: 7616 | CG159: 7735 | CH159: 7854 | CI159: 7973 | CJ159: 8092 | CK159: 8211 | CL159: 8330 | CM159: 8449 | CN159: 8568 | CO159: 8687 | CP159: 8806 | CQ159: 8925 | CR159: 9044 | CS159: 9163 | CT159: 9282 | CU159: 9401 | CV159: 9520 | CW159: 9639 | CX159: 9758 | CY159: 9877 | CZ159: 9996 | DA159: 10115 | DB159: 10234 | DC159: 10353 | DD159: 10472 | DE159: 10591 | DF159: 10710
A160: 77 | B160: BX 5U2 | C160: 1440 | S160: 1936 | T160: 3840 | U160: 120 | V160: 240 | W160: 360 | X160: 480 | Y160: 600 | Z160: 720 | AA160: 840 | AB160: 960 | AC160: 1080 | AD160: 1200 | AE160: 1320 | AF160: 1440 | AG160: 1560 | AH160: 1680 | AI160: 1800 | AJ160: 1920 | AK160: 2040 | AL160: 2160 | AM160: 2280 | AN160: 2400 | AO160: 2520 | AP160: 2640 | AQ160: 2760 | AR160: 2880 | AS160: 3000 | AT160: 3120 | AU160: 3240 | AV160: 3360 | AW160: 3480 | AX160: 3600 | AY160: 3720 | AZ160: 3840 | BA160: 3960 | BB160: 4080 | BC160: 4200 | BD160: 4320 | BE160: 4440 | BF160: 4560 | BG160: 4680 | BH160: 4800 | BI160: 4920 | BJ160: 5040 | BK160: 5160 | BL160: 5280 | BM160: 5400 | BN160: 5520 | BO160: 5640 | BP160: 5760 | BQ160: 5880 | BR160: 6000 | BS160: 6120 | BT160: 6240 | BU160: 6360 | BV160: 6480 | BW160: 6600 | BX160: 6720 | BY160: 6840 | BZ160: 6960 | CA160: 7080 | CB160: 7200 | CC160: 7320 | CD160: 7440 | CE160: 7560 | CF160: 7680 | CG160: 7800 | CH160: 7920 | CI160: 8040 | CJ160: 8160 | CK160: 8280 | CL160: 8400 | CM160: 8520 | CN160: 8640 | CO160: 8760 | CP160: 8880 | CQ160: 9000 | CR160: 9120 | CS160: 9240 | CT160: 9360 | CU160: 9480 | CV160: 9600 | CW160: 9720 | CX160: 9840 | CY160: 9960 | CZ160: 10080 | DA160: 10200 | DB160: 10320 | DC160: 10440 | DD160: 10560 | DE160: 10680 | DF160: 10800
A161: 78 | B161: BX 5U2 | C161: 1440 | S161: 1952 | T161: 3872 | U161: 121 | V161: 242 | W161: 363 | X161: 484 | Y161: 605 | Z161: 726 | AA161: 847 | AB161: 968 | AC161: 1089 | AD161: 1210 | AE161: 1331 | AF161: 1452 | AG161: 1573 | AH161: 1694 | AI161: 1815 | AJ161: 1936 | AK161: 2057 | AL161: 2178 | AM161: 2299 | AN161: 2420 | AO161: 2541 | AP161: 2662 | AQ161: 2783 | AR161: 2904 | AS161: 3025 | AT161: 3146 | AU161: 3267 | AV161: 3388 | AW161: 3509 | AX161: 3630 | AY161: 3751 | AZ161: 3872 | BA161: 3993 | BB161: 4114 | BC161: 4235 | BD161: 4356 | BE161: 4477 | BF161: 4598 | BG161: 4719 | BH161: 4840 | BI161: 4961 | BJ161: 5082 | BK161: 5203 | BL161: 5324 | BM161: 5445 | BN161: 5566 | BO161: 5687 | BP161: 5808 | BQ161: 5929 | BR161: 6050 | BS161: 6171 | BT161: 6292 | BU161: 6413 | BV161: 6534 | BW161: 6655 | BX161: 6776 | BY161: 6897 | BZ161: 7018 | CA161: 7139 | CB161: 7260 | CC161: 7381 | CD161: 7502 | CE161: 7623 | CF161: 7744 | CG161: 7865 | CH161: 7986 | CI161: 8107 | CJ161: 8228 | CK161: 8349 | CL161: 8470 | CM161: 8591 | CN161: 8712 | CO161: 8833 | CP161: 8954 | CQ161: 9075 | CR161: 9196 | CS161: 9317 | CT161: 9438 | CU161: 9559 | CV161: 9680 | CW161: 9801 | CX161: 9922 | CY161: 10043 | CZ161: 10164 | DA161: 10285 | DB161: 10406 | DC161: 10527 | DD161: 10648 | DE161: 10769 | DF161: 10890
A162: 79 | B162: BX 5U2 | C162: 1440 | S162: 1968 | T162: 3904 | U162: 122 | V162: 244 | W162: 366 | X162: 488 | Y162: 610 | Z162: 732 | AA162: 854 | AB162: 976 | AC162: 1098 | AD162: 1220 | AE162: 1342 | AF162: 1464 | AG162: 1586 | AH162: 1708 | AI162: 1830 | AJ162: 1952 | AK162: 2074 | AL162: 2196 | AM162: 2318 | AN162: 2440 | AO162: 2562 | AP162: 2684 | AQ162: 2806 | AR162: 2928 | AS162: 3050 | AT162: 3172 | AU162: 3294 | AV162: 3416 | AW162: 3538 | AX162: 3660 | AY162: 3782 | AZ162: 3904 | BA162: 4026 | BB162: 4148 | BC162: 4270 | BD162: 4392 | BE162: 4514 | BF162: 4636 | BG162: 4758 | BH162: 4880 | BI162: 5002 | BJ162: 5124 | BK162: 5246 | BL162: 5368 | BM162: 5490 | BN162: 5612 | BO162: 5734 | BP162: 5856 | BQ162: 5978 | BR162: 6100 | BS162: 6222 | BT162: 6344 | BU162: 6466 | BV162: 6588 | BW162: 6710 | BX162: 6832 | BY162: 6954 | BZ162: 7076 | CA162: 7198 | CB162: 7320 | CC162: 7442 | CD162: 7564 | CE162: 7686 | CF162: 7808 | CG162: 7930 | CH162: 8052 | CI162: 8174 | CJ162: 8296 | CK162: 8418 | CL162: 8540 | CM162: 8662 | CN162: 8784 | CO162: 8906 | CP162: 9028 | CQ162: 9150 | CR162: 9272 | CS162: 9394 | CT162: 9516 | CU162: 9638 | CV162: 9760 | CW162: 9882 | CX162: 10004 | CY162: 10126 | CZ162: 10248 | DA162: 10370 | DB162: 10492 | DC162: 10614 | DD162: 10736 | DE162: 10858 | DF162: 10980
A163: 80 | B163: BX 5U2 | C163: 1440 | S163: 1984 | T163: 3936 | U163: 123 | V163: 246 | W163: 369 | X163: 492 | Y163: 615 | Z163: 738 | AA163: 861 | AB163: 984 | AC163: 1107 | AD163: 1230 | AE163: 1353 | AF163: 1476 | AG163: 1599 | AH163: 1722 | AI163: 1845 | AJ163: 1968 | AK163: 2091 | AL163: 2214 | AM163: 2337 | AN163: 2460 | AO163: 2583 | AP163: 2706 | AQ163: 2829 | AR163: 2952 | AS163: 3075 | AT163: 3198 | AU163: 3321 | AV163: 3444 | AW163: 3567 | AX163: 3690 | AY163: 3813 | AZ163: 3936 | BA163: 4059 | BB163: 4182 | BC163: 4305 | BD163: 4428 | BE163: 4551 | BF163: 4674 | BG163: 4797 | BH163: 4920 | BI163: 5043 | BJ163: 5166 | BK163: 5289 | BL163: 5412 | BM163: 5535 | BN163: 5658 | BO163: 5781 | BP163: 5904 | BQ163: 6027 | BR163: 6150 | BS163: 6273 | BT163: 6396 | BU163: 6519 | BV163: 6642 | BW163: 6765 | BX163: 6888 | BY163: 7011 | BZ163: 7134 | CA163: 7257 | CB163: 7380 | CC163: 7503 | CD163: 7626 | CE163: 7749 | CF163: 7872 | CG163: 7995 | CH163: 8118 | CI163: 8241 | CJ163: 8364 | CK163: 8487 | CL163: 8610 | CM163: 8733 | CN163: 8856 | CO163: 8979 | CP163: 9102 | CQ163: 9225 | CR163: 9348 | CS163: 9471 | CT163: 9594 | CU163: 9717 | CV163: 9840 | CW163: 9963 | CX163: 10086 | CY163: 10209 | CZ163: 10332 | DA163: 10455 | DB163: 10578 | DC163: 10701 | DD163: 10824 | DE163: 10947 | DF163: 11070
A164: 81 | B164: BX 5U2 | C164: 1440 | S164: 2000 | T164: 3968 | U164: 124 | V164: 248 | W164: 372 | X164: 496 | Y164: 620 | Z164: 744 | AA164: 868 | AB164: 992 | AC164: 1116 | AD164: 1240 | AE164: 1364 | AF164: 1488 | AG164: 1612 | AH164: 1736 | AI164: 1860 | AJ164: 1984 | AK164: 2108 | AL164: 2232 | AM164: 2356 | AN164: 2480 | AO164: 2604 | AP164: 2728 | AQ164: 2852 | AR164: 2976 | AS164: 3100 | AT164: 3224 | AU164: 3348 | AV164: 3472 | AW164: 3596 | AX164: 3720 | AY164: 3844 | AZ164: 3968 | BA164: 4092 | BB164: 4216 | BC164: 4340 | BD164: 4464 | BE164: 4588 | BF164: 4712 | BG164: 4836 | BH164: 4960 | BI164: 5084 | BJ164: 5208 | BK164: 5332 | BL164: 5456 | BM164: 5580 | BN164: 5704 | BO164: 5828 | BP164: 5952 | BQ164: 6076 | BR164: 6200 | BS164: 6324 | BT164: 6448 | BU164: 6572 | BV164: 6696 | BW164: 6820 | BX164: 6944 | BY164: 7068 | BZ164: 7192 | CA164: 7316 | CB164: 7440 | CC164: 7564 | CD164: 7688 | CE164: 7812 | CF164: 7936 | CG164: 8060 | CH164: 8184 | CI164: 8308 | CJ164: 8432 | CK164: 8556 | CL164: 8680 | CM164: 8804 | CN164: 8928 | CO164: 9052 | CP164: 9176 | CQ164: 9300 | CR164: 9424 | CS164: 9548 | CT164: 9672 | CU164: 9796 | CV164: 9920 | CW164: 10044 | CX164: 10168 | CY164: 10292 | CZ164: 10416 | DA164: 10540 | DB164: 10664 | DC164: 10788 | DD164: 10912 | DE164: 11036 | DF164: 11160
A165: 82 | B165: BX 5U2 | C165: 1440 | S165: 2016 | T165: 4000 | U165: 125 | V165: 250 | W165: 375 | X165: 500 | Y165: 625 | Z165: 750 | AA165: 875 | AB165: 1000 | AC165: 1125 | AD165: 1250 | AE165: 1375 | AF165: 1500 | AG165: 1625 | AH165: 1750 | AI165: 1875 | AJ165: 2000 | AK165: 2125 | AL165: 2250 | AM165: 2375 | AN165: 2500 | AO165: 2625 | AP165: 2750 | AQ165: 2875 | AR165: 3000 | AS165: 3125 | AT165: 3250 | AU165: 3375 | AV165: 3500 | AW165: 3625 | AX165: 3750 | AY165: 3875 | AZ165: 4000 | BA165: 4125 | BB165: 4250 | BC165: 4375 | BD165: 4500 | BE165: 4625 | BF165: 4750 | BG165: 4875 | BH165: 5000 | BI165: 5125 | BJ165: 5250 | BK165: 5375 | BL165: 5500 | BM165: 5625 | BN165: 5750 | BO165: 5875 | BP165: 6000 | BQ165: 6125 | BR165: 6250 | BS165: 6375 | BT165: 6500 | BU165: 6625 | BV165: 6750 | BW165: 6875 | BX165: 7000 | BY165: 7125 | BZ165: 7250 | CA165: 7375 | CB165: 7500 | CC165: 7625 | CD165: 7750 | CE165: 7875 | CF165: 8000 | CG165: 8125 | CH165: 8250 | CI165: 8375 | CJ165: 8500 | CK165: 8625 | CL165: 8750 | CM165: 8875 | CN165: 9000 | CO165: 9125 | CP165: 9250 | CQ165: 9375 | CR165: 9500 | CS165: 9625 | CT165: 9750 | CU165: 9875 | CV165: 10000 | CW165: 10125 | CX165: 10250 | CY165: 10375 | CZ165: 10500 | DA165: 10625 | DB165: 10750 | DC165: 10875 | DD165: 11000 | DE165: 11125 | DF165: 11250
A166: 83 | B166: BX 5U2 | C166: 1440 | S166: 2032 | T166: 4032 | U166: 126 | V166: 252 | W166: 378 | X166: 504 | Y166: 630 | Z166: 756 | AA166: 882 | AB166: 1008 | AC166: 1134 | AD166: 1260 | AE166: 1386 | AF166: 1512 | AG166: 1638 | AH166: 1764 | AI166: 1890 | AJ166: 2016 | AK166: 2142 | AL166: 2268 | AM166: 2394 | AN166: 2520 | AO166: 2646 | AP166: 2772 | AQ166: 2898 | AR166: 3024 | AS166: 3150 | AT166: 3276 | AU166: 3402 | AV166: 3528 | AW166: 3654 | AX166: 3780 | AY166: 3906 | AZ166: 4032 | BA166: 4158 | BB166: 4284 | BC166: 4410 | BD166: 4536 | BE166: 4662 | BF166: 4788 | BG166: 4914 | BH166: 5040 | BI166: 5166 | BJ166: 5292 | BK166: 5418 | BL166: 5544 | BM166: 5670 | BN166: 5796 | BO166: 5922 | BP166: 6048 | BQ166: 6174 | BR166: 6300 | BS166: 6426 | BT166: 6552 | BU166: 6678 | BV166: 6804 | BW166: 6930 | BX166: 7056 | BY166: 7182 | BZ166: 7308 | CA166: 7434 | CB166: 7560 | CC166: 7686 | CD166: 7812 | CE166: 7938 | CF166: 8064 | CG166: 8190 | CH166: 8316 | CI166: 8442 | CJ166: 8568 | CK166: 8694 | CL166: 8820 | CM166: 8946 | CN166: 9072 | CO166: 9198 | CP166: 9324 | CQ166: 9450 | CR166: 9576 | CS166: 9702 | CT166: 9828 | CU166: 9954 | CV166: 10080 | CW166: 10206 | CX166: 10332 | CY166: 10458 | CZ166: 10584 | DA166: 10710 | DB166: 10836 | DC166: 10962 | DD166: 11088 | DE166: 11214 | DF166: 11340
A167: 84 | B167: BX 5U2 | C167: 1440 | S167: 2048 | T167: 4064 | U167: 127 | V167: 254 | W167: 381 | X167: 508 | Y167: 635 | Z167: 762 | AA167: 889 | AB167: 1016 | AC167: 1143 | AD167: 1270 | AE167: 1397 | AF167: 1524 | AG167: 1651 | AH167: 1778 | AI167: 1905 | AJ167: 2032 | AK167: 2159 | AL167: 2286 | AM167: 2413 | AN167: 2540 | AO167: 2667 | AP167: 2794 | AQ167: 2921 | AR167: 3048 | AS167: 3175 | AT167: 3302 | AU167: 3429 | AV167: 3556 | AW167: 3683 | AX167: 3810 | AY167: 3937 | AZ167: 4064 | BA167: 4191 | BB167: 4318 | BC167: 4445 | BD167: 4572 | BE167: 4699 | BF167: 4826 | BG167: 4953 | BH167: 5080 | BI167: 5207 | BJ167: 5334 | BK167: 5461 | BL167: 5588 | BM167: 5715 | BN167: 5842 | BO167: 5969 | BP167: 6096 | BQ167: 6223 | BR167: 6350 | BS167: 6477 | BT167: 6604 | BU167: 6731 | BV167: 6858 | BW167: 6985 | BX167: 7112 | BY167: 7239 | BZ167: 7366 | CA167: 7493 | CB167: 7620 | CC167: 7747 | CD167: 7874 | CE167: 8001 | CF167: 8128 | CG167: 8255 | CH167: 8382 | CI167: 8509 | CJ167: 8636 | CK167: 8763 | CL167: 8890 | CM167: 9017 | CN167: 9144 | CO167: 9271 | CP167: 9398 | CQ167: 9525 | CR167: 9652 | CS167: 9779 | CT167: 9906 | CU167: 10033 | CV167: 10160 | CW167: 10287 | CX167: 10414 | CY167: 10541 | CZ167: 10668 | DA167: 10795 | DB167: 10922 | DC167: 11049 | DD167: 11176 | DE167: 11303 | DF167: 11430
A168: 85 | B168: BX 5U2 | C168: 1440 | S168: 2064 | T168: 4096 | U168: 128 | V168: 256 | W168: 384 | X168: 512 | Y168: 640 | Z168: 768 | AA168: 896 | AB168: 1024 | AC168: 1152 | AD168: 1280 | AE168: 1408 | AF168: 1536 | AG168: 1664 | AH168: 1792 | AI168: 1920 | AJ168: 2048 | AK168: 2176 | AL168: 2304 | AM168: 2432 | AN168: 2560 | AO168: 2688 | AP168: 2816 | AQ168: 2944 | AR168: 3072 | AS168: 3200 | AT168: 3328 | AU168: 3456 | AV168: 3584 | AW168: 3712 | AX168: 3840 | AY168: 3968 | AZ168: 4096 | BA168: 4224 | BB168: 4352 | BC168: 4480 | BD168: 4608 | BE168: 4736 | BF168: 4864 | BG168: 4992 | BH168: 5120 | BI168: 5248 | BJ168: 5376 | BK168: 5504 | BL168: 5632 | BM168: 5760 | BN168: 5888 | BO168: 6016 | BP168: 6144 | BQ168: 6272 | BR168: 6400 | BS168: 6528 | BT168: 6656 | BU168: 6784 | BV168: 6912 | BW168: 7040 | BX168: 7168 | BY168: 7296 | BZ168: 7424 | CA168: 7552 | CB168: 7680 | CC168: 7808 | CD168: 7936 | CE168: 8064 | CF168: 8192 | CG168: 8320 | CH168: 8448 | CI168: 8576 | CJ168: 8704 | CK168: 8832 | CL168: 8960 | CM168: 9088 | CN168: 9216 | CO168: 9344 | CP168: 9472 | CQ168: 9600 | CR168: 9728 | CS168: 9856 | CT168: 9984 | CU168: 10112 | CV168: 10240 | CW168: 10368 | CX168: 10496 | CY168: 10624 | CZ168: 10752 | DA168: 10880 | DB168: 11008 | DC168: 11136 | DD168: 11264 | DE168: 11392 | DF168: 11520
A169: 86 | B169: BX 5U2 | C169: 1440 | S169: 2080 | T169: 4128 | U169: 129 | V169: 258 | W169: 387 | X169: 516 | Y169: 645 | Z169: 774 | AA169: 903 | AB169: 1032 | AC169: 1161 | AD169: 1290 | AE169: 1419 | AF169: 1548 | AG169: 1677 | AH169: 1806 | AI169: 1935 | AJ169: 2064 | AK169: 2193 | AL169: 2322 | AM169: 2451 | AN169: 2580 | AO169: 2709 | AP169: 2838 | AQ169: 2967 | AR169: 3096 | AS169: 3225 | AT169: 3354 | AU169: 3483 | AV169: 3612 | AW169: 3741 | AX169: 3870 | AY169: 3999 | AZ169: 4128 | BA169: 4257 | BB169: 4386 | BC169: 4515 | BD169: 4644 | BE169: 4773 | BF169: 4902 | BG169: 5031 | BH169: 5160 | BI169: 5289 | BJ169: 5418 | BK169: 5547 | BL169: 5676 | BM169: 5805 | BN169: 5934 | BO169: 6063 | BP169: 6192 | BQ169: 6321 | BR169: 6450 | BS169: 6579 | BT169: 6708 | BU169: 6837 | BV169: 6966 | BW169: 7095 | BX169: 7224 | BY169: 7353 | BZ169: 7482 | CA169: 7611 | CB169: 7740 | CC169: 7869 | CD169: 7998 | CE169: 8127 | CF169: 8256 | CG169: 8385 | CH169: 8514 | CI169: 8643 | CJ169: 8772 | CK169: 8901 | CL169: 9030 | CM169: 9159 | CN169: 9288 | CO169: 9417 | CP169: 9546 | CQ169: 9675 | CR169: 9804 | CS169: 9933 | CT169: 10062 | CU169: 10191 | CV169: 10320 | CW169: 10449 | CX169: 10578 | CY169: 10707 | CZ169: 10836 | DA169: 10965 | DB169: 11094 | DC169: 11223 | DD169: 11352 | DE169: 11481 | DF169: 11610
A170: 87 | B170: BX 5U2 | C170: 1440 | S170: 2096 | T170: 4160 | U170: 130 | V170: 260 | W170: 390 | X170: 520 | Y170: 650 | Z170: 780 | AA170: 910 | AB170: 1040 | AC170: 1170 | AD170: 1300 | AE170: 1430 | AF170: 1560 | AG170: 1690 | AH170: 1820 | AI170: 1950 | AJ170: 2080 | AK170: 2210 | AL170: 2340 | AM170: 2470 | AN170: 2600 | AO170: 2730 | AP170: 2860 | AQ170: 2990 | AR170: 3120 | AS170: 3250 | AT170: 3380 | AU170: 3510 | AV170: 3640 | AW170: 3770 | AX170: 3900 | AY170: 4030 | AZ170: 4160 | BA170: 4290 | BB170: 4420 | BC170: 4550 | BD170: 4680 | BE170: 4810 | BF170: 4940 | BG170: 5070 | BH170: 5200 | BI170: 5330 | BJ170: 5460 | BK170: 5590 | BL170: 5720 | BM170: 5850 | BN170: 5980 | BO170: 6110 | BP170: 6240 | BQ170: 6370 | BR170: 6500 | BS170: 6630 | BT170: 6760 | BU170: 6890 | BV170: 7020 | BW170: 7150 | BX170: 7280 | BY170: 7410 | BZ170: 7540 | CA170: 7670 | CB170: 7800 | CC170: 7930 | CD170: 8060 | CE170: 8190 | CF170: 8320 | CG170: 8450 | CH170: 8580 | CI170: 8710 | CJ170: 8840 | CK170: 8970 | CL170: 9100 | CM170: 9230 | CN170: 9360 | CO170: 9490 | CP170: 9620 | CQ170: 9750 | CR170: 9880 | CS170: 10010 | CT170: 10140 | CU170: 10270 | CV170: 10400 | CW170: 10530 | CX170: 10660 | CY170: 10790 | CZ170: 10920 | DA170: 11050 | DB170: 11180 | DC170: 11310 | DD170: 11440 | DE170: 11570 | DF170: 11700
A171: 88 | B171: BX 5U2 | C171: 1440 | S171: 2112 | T171: 4192 | U171: 131 | V171: 262 | W171: 393 | X171: 524 | Y171: 655 | Z171: 786 | AA171: 917 | AB171: 1048 | AC171: 1179 | AD171: 1310 | AE171: 1441 | AF171: 1572 | AG171: 1703 | AH171: 1834 | AI171: 1965 | AJ171: 2096 | AK171: 2227 | AL171: 2358 | AM171: 2489 | AN171: 2620 | AO171: 2751 | AP171: 2882 | AQ171: 3013 | AR171: 3144 | AS171: 3275 | AT171: 3406 | AU171: 3537 | AV171: 3668 | AW171: 3799 | AX171: 3930 | AY171: 4061 | AZ171: 4192 | BA171: 4323 | BB171: 4454 | BC171: 4585 | BD171: 4716 | BE171: 4847 | BF171: 4978 | BG171: 5109 | BH171: 5240 | BI171: 5371 | BJ171: 5502 | BK171: 5633 | BL171: 5764 | BM171: 5895 | BN171: 6026 | BO171: 6157 | BP171: 6288 | BQ171: 6419 | BR171: 6550 | BS171: 6681 | BT171: 6812 | BU171: 6943 | BV171: 7074 | BW171: 7205 | BX171: 7336 | BY171: 7467 | BZ171: 7598 | CA171: 7729 | CB171: 7860 | CC171: 7991 | CD171: 8122 | CE171: 8253 | CF171: 8384 | CG171: 8515 | CH171: 8646 | CI171: 8777 | CJ171: 8908 | CK171: 9039 | CL171: 9170 | CM171: 9301 | CN171: 9432 | CO171: 9563 | CP171: 9694 | CQ171: 9825 | CR171: 9956 | CS171: 10087 | CT171: 10218 | CU171: 10349 | CV171: 10480 | CW171: 10611 | CX171: 10742 | CY171: 10873 | CZ171: 11004 | DA171: 11135 | DB171: 11266 | DC171: 11397 | DD171: 11528 | DE171: 11659 | DF171: 11790
A172: 89 | B172: BX 5U2 | C172: 1440 | S172: 2128 | T172: 4224 | U172: 132 | V172: 264 | W172: 396 | X172: 528 | Y172: 660 | Z172: 792 | AA172: 924 | AB172: 1056 | AC172: 1188 | AD172: 1320 | AE172: 1452 | AF172: 1584 | AG172: 1716 | AH172: 1848 | AI172: 1980 | AJ172: 2112 | AK172: 2244 | AL172: 2376 | AM172: 2508 | AN172: 2640 | AO172: 2772 | AP172: 2904 | AQ172: 3036 | AR172: 3168 | AS172: 3300 | AT172: 3432 | AU172: 3564 | AV172: 3696 | AW172: 3828 | AX172: 3960 | AY172: 4092 | AZ172: 4224 | BA172: 4356 | BB172: 4488 | BC172: 4620 | BD172: 4752 | BE172: 4884 | BF172: 5016 | BG172: 5148 | BH172: 5280 | BI172: 5412 | BJ172: 5544 | BK172: 5676 | BL172: 5808 | BM172: 5940 | BN172: 6072 | BO172: 6204 | BP172: 6336 | BQ172: 6468 | BR172: 6600 | BS172: 6732 | BT172: 6864 | BU172: 6996 | BV172: 7128 | BW172: 7260 | BX172: 7392 | BY172: 7524 | BZ172: 7656 | CA172: 7788 | CB172: 7920 | CC172: 8052 | CD172: 8184 | CE172: 8316 | CF172: 8448 | CG172: 8580 | CH172: 8712 | CI172: 8844 | CJ172: 8976 | CK172: 9108 | CL172: 9240 | CM172: 9372 | CN172: 9504 | CO172: 9636 | CP172: 9768 | CQ172: 9900 | CR172: 10032 | CS172: 10164 | CT172: 10296 | CU172: 10428 | CV172: 10560 | CW172: 10692 | CX172: 10824 | CY172: 10956 | CZ172: 11088 | DA172: 11220 | DB172: 11352 | DC172: 11484 | DD172: 11616 | DE172: 11748 | DF172: 11880
A173: 90 | B173: BX 5U2 | C173: 1440 | S173: 2144 | T173: 4256 | U173: 133 | V173: 266 | W173: 399 | X173: 532 | Y173: 665 | Z173: 798 | AA173: 931 | AB173: 1064 | AC173: 1197 | AD173: 1330 | AE173: 1463 | AF173: 1596 | AG173: 1729 | AH173: 1862 | AI173: 1995 | AJ173: 2128 | AK173: 2261 | AL173: 2394 | AM173: 2527 | AN173: 2660 | AO173: 2793 | AP173: 2926 | AQ173: 3059 | AR173: 3192 | AS173: 3325 | AT173: 3458 | AU173: 3591 | AV173: 3724 | AW173: 3857 | AX173: 3990 | AY173: 4123 | AZ173: 4256 | BA173: 4389 | BB173: 4522 | BC173: 4655 | BD173: 4788 | BE173: 4921 | BF173: 5054 | BG173: 5187 | BH173: 5320 | BI173: 5453 | BJ173: 5586 | BK173: 5719 | BL173: 5852 | BM173: 5985 | BN173: 6118 | BO173: 6251 | BP173: 6384 | BQ173: 6517 | BR173: 6650 | BS173: 6783 | BT173: 6916 | BU173: 7049 | BV173: 7182 | BW173: 7315 | BX173: 7448 | BY173: 7581 | BZ173: 7714 | CA173: 7847 | CB173: 7980 | CC173: 8113 | CD173: 8246 | CE173: 8379 | CF173: 8512 | CG173: 8645 | CH173: 8778 | CI173: 8911 | CJ173: 9044 | CK173: 9177 | CL173: 9310 | CM173: 9443 | CN173: 9576 | CO173: 9709 | CP173: 9842 | CQ173: 9975 | CR173: 10108 | CS173: 10241 | CT173: 10374 | CU173: 10507 | CV173: 10640 | CW173: 10773 | CX173: 10906 | CY173: 11039 | CZ173: 11172 | DA173: 11305 | DB173: 11438 | DC173: 11571 | DD173: 11704 | DE173: 11837 | DF173: 11970
A174: 91 | B174: BX 5U2 | C174: 1440 | S174: 2160 | T174: 4288 | U174: 134 | V174: 268 | W174: 402 | X174: 536 | Y174: 670 | Z174: 804 | AA174: 938 | AB174: 1072 | AC174: 1206 | AD174: 1340 | AE174: 1474 | AF174: 1608 | AG174: 1742 | AH174: 1876 | AI174: 2010 | AJ174: 2144 | AK174: 2278 | AL174: 2412 | AM174: 2546 | AN174: 2680 | AO174: 2814 | AP174: 2948 | AQ174: 3082 | AR174: 3216 | AS174: 3350 | AT174: 3484 | AU174: 3618 | AV174: 3752 | AW174: 3886 | AX174: 4020 | AY174: 4154 | AZ174: 4288 | BA174: 4422 | BB174: 4556 | BC174: 4690 | BD174: 4824 | BE174: 4958 | BF174: 5092 | BG174: 5226 | BH174: 5360 | BI174: 5494 | BJ174: 5628 | BK174: 5762 | BL174: 5896 | BM174: 6030 | BN174: 6164 | BO174: 6298 | BP174: 6432 | BQ174: 6566 | BR174: 6700 | BS174: 6834 | BT174: 6968 | BU174: 7102 | BV174: 7236 | BW174: 7370 | BX174: 7504 | BY174: 7638 | BZ174: 7772 | CA174: 7906 | CB174: 8040 | CC174: 8174 | CD174: 8308 | CE174: 8442 | CF174: 8576 | CG174: 8710 | CH174: 8844 | CI174: 8978 | CJ174: 9112 | CK174: 9246 | CL174: 9380 | CM174: 9514 | CN174: 9648 | CO174: 9782 | CP174: 9916 | CQ174: 10050 | CR174: 10184 | CS174: 10318 | CT174: 10452 | CU174: 10586 | CV174: 10720 | CW174: 10854 | CX174: 10988 | CY174: 11122 | CZ174: 11256 | DA174: 11390 | DB174: 11524 | DC174: 11658 | DD174: 11792 | DE174: 11926 | DF174: 12060
A175: 92 | B175: BX 5U2 | C175: 1440 | S175: 2176 | T175: 4320 | U175: 135 | V175: 270 | W175: 405 | X175: 540 | Y175: 675 | Z175: 810 | AA175: 945 | AB175: 1080 | AC175: 1215 | AD175: 1350 | AE175: 1485 | AF175: 1620 | AG175: 1755 | AH175: 1890 | AI175: 2025 | AJ175: 2160 | AK175: 2295 | AL175: 2430 | AM175: 2565 | AN175: 2700 | AO175: 2835 | AP175: 2970 | AQ175: 3105 | AR175: 3240 | AS175: 3375 | AT175: 3510 | AU175: 3645 | AV175: 3780 | AW175: 3915 | AX175: 4050 | AY175: 4185 | AZ175: 4320 | BA175: 4455 | BB175: 4590 | BC175: 4725 | BD175: 4860 | BE175: 4995 | BF175: 5130 | BG175: 5265 | BH175: 5400 | BI175: 5535 | BJ175: 5670 | BK175: 5805 | BL175: 5940 | BM175: 6075 | BN175: 6210 | BO175: 6345 | BP175: 6480 | BQ175: 6615 | BR175: 6750 | BS175: 6885 | BT175: 7020 | BU175: 7155 | BV175: 7290 | BW175: 7425 | BX175: 7560 | BY175: 7695 | BZ175: 7830 | CA175: 7965 | CB175: 8100 | CC175: 8235 | CD175: 8370 | CE175: 8505 | CF175: 8640 | CG175: 8775 | CH175: 8910 | CI175: 9045 | CJ175: 9180 | CK175: 9315 | CL175: 9450 | CM175: 9585 | CN175: 9720 | CO175: 9855 | CP175: 9990 | CQ175: 10125 | CR175: 10260 | CS175: 10395 | CT175: 10530 | CU175: 10665 | CV175: 10800 | CW175: 10935 | CX175: 11070 | CY175: 11205 | CZ175: 11340 | DA175: 11475 | DB175: 11610 | DC175: 11745 | DD175: 11880 | DE175: 12015 | DF175: 12150
A176: 93 | B176: BX 5U2 | C176: 1440 | S176: 2192 | T176: 4352 | U176: 136 | V176: 272 | W176: 408 | X176: 544 | Y176: 680 | Z176: 816 | AA176: 952 | AB176: 1088 | AC176: 1224 | AD176: 1360 | AE176: 1496 | AF176: 1632 | AG176: 1768 | AH176: 1904 | AI176: 2040 | AJ176: 2176 | AK176: 2312 | AL176: 2448 | AM176: 2584 | AN176: 2720 | AO176: 2856 | AP176: 2992 | AQ176: 3128 | AR176: 3264 | AS176: 3400 | AT176: 3536 | AU176: 3672 | AV176: 3808 | AW176: 3944 | AX176: 4080 | AY176: 4216 | AZ176: 4352 | BA176: 4488 | BB176: 4624 | BC176: 4760 | BD176: 4896 | BE176: 5032 | BF176: 5168 | BG176: 5304 | BH176: 5440 | BI176: 5576 | BJ176: 5712 | BK176: 5848 | BL176: 5984 | BM176: 6120 | BN176: 6256 | BO176: 6392 | BP176: 6528 | BQ176: 6664 | BR176: 6800 | BS176: 6936 | BT176: 7072 | BU176: 7208 | BV176: 7344 | BW176: 7480 | BX176: 7616 | BY176: 7752 | BZ176: 7888 | CA176: 8024 | CB176: 8160 | CC176: 8296 | CD176: 8432 | CE176: 8568 | CF176: 8704 | CG176: 8840 | CH176: 8976 | CI176: 9112 | CJ176: 9248 | CK176: 9384 | CL176: 9520 | CM176: 9656 | CN176: 9792 | CO176: 9928 | CP176: 10064 | CQ176: 10200 | CR176: 10336 | CS176: 10472 | CT176: 10608 | CU176: 10744 | CV176: 10880 | CW176: 11016 | CX176: 11152 | CY176: 11288 | CZ176: 11424 | DA176: 11560 | DB176: 11696 | DC176: 11832 | DD176: 11968 | DE176: 12104 | DF176: 12240
A177: 94 | B177: BX 5U2 | C177: 1440 | S177: 2208 | T177: 4384 | U177: 137 | V177: 274 | W177: 411 | X177: 548 | Y177: 685 | Z177: 822 | AA177: 959 | AB177: 1096 | AC177: 1233 | AD177: 1370 | AE177: 1507 | AF177: 1644 | AG177: 1781 | AH177: 1918 | AI177: 2055 | AJ177: 2192 | AK177: 2329 | AL177: 2466 | AM177: 2603 | AN177: 2740 | AO177: 2877 | AP177: 3014 | AQ177: 3151 | AR177: 3288 | AS177: 3425 | AT177: 3562 | AU177: 3699 | AV177: 3836 | AW177: 3973 | AX177: 4110 | AY177: 4247 | AZ177: 4384 | BA177: 4521 | BB177: 4658 | BC177: 4795 | BD177: 4932 | BE177: 5069 | BF177: 5206 | BG177: 5343 | BH177: 5480 | BI177: 5617 | BJ177: 5754 | BK177: 5891 | BL177: 6028 | BM177: 6165 | BN177: 6302 | BO177: 6439 | BP177: 6576 | BQ177: 6713 | BR177: 6850 | BS177: 6987 | BT177: 7124 | BU177: 7261 | BV177: 7398 | BW177: 7535 | BX177: 7672 | BY177: 7809 | BZ177: 7946 | CA177: 8083 | CB177: 8220 | CC177: 8357 | CD177: 8494 | CE177: 8631 | CF177: 8768 | CG177: 8905 | CH177: 9042 | CI177: 9179 | CJ177: 9316 | CK177: 9453 | CL177: 9590 | CM177: 9727 | CN177: 9864 | CO177: 10001 | CP177: 10138 | CQ177: 10275 | CR177: 10412 | CS177: 10549 | CT177: 10686 | CU177: 10823 | CV177: 10960 | CW177: 11097 | CX177: 11234 | CY177: 11371 | CZ177: 11508 | DA177: 11645 | DB177: 11782 | DC177: 11919 | DD177: 12056 | DE177: 12193 | DF177: 12330
A178: 95 | B178: BX 5U2 | C178: 1440 | S178: 2224 | T178: 4416 | U178: 138 | V178: 276 | W178: 414 | X178: 552 | Y178: 690 | Z178: 828 | AA178: 966 | AB178: 1104 | AC178: 1242 | AD178: 1380 | AE178: 1518 | AF178: 1656 | AG178: 1794 | AH178: 1932 | AI178: 2070 | AJ178: 2208 | AK178: 2346 | AL178: 2484 | AM178: 2622 | AN178: 2760 | AO178: 2898 | AP178: 3036 | AQ178: 3174 | AR178: 3312 | AS178: 3450 | AT178: 3588 | AU178: 3726 | AV178: 3864 | AW178: 4002 | AX178: 4140 | AY178: 4278 | AZ178: 4416 | BA178: 4554 | BB178: 4692 | BC178: 4830 | BD178: 4968 | BE178: 5106 | BF178: 5244 | BG178: 5382 | BH178: 5520 | BI178: 5658 | BJ178: 5796 | BK178: 5934 | BL178: 6072 | BM178: 6210 | BN178: 6348 | BO178: 6486 | BP178: 6624 | BQ178: 6762 | BR178: 6900 | BS178: 7038 | BT178: 7176 | BU178: 7314 | BV178: 7452 | BW178: 7590 | BX178: 7728 | BY178: 7866 | BZ178: 8004 | CA178: 8142 | CB178: 8280 | CC178: 8418 | CD178: 8556 | CE178: 8694 | CF178: 8832 | CG178: 8970 | CH178: 9108 | CI178: 9246 | CJ178: 9384 | CK178: 9522 | CL178: 9660 | CM178: 9798 | CN178: 9936 | CO178: 10074 | CP178: 10212 | CQ178: 10350 | CR178: 10488 | CS178: 10626 | CT178: 10764 | CU178: 10902 | CV178: 11040 | CW178: 11178 | CX178: 11316 | CY178: 11454 | CZ178: 11592 | DA178: 11730 | DB178: 11868 | DC178: 12006 | DD178: 12144 | DE178: 12282 | DF178: 12420
A179: 96 | B179: BX 5U2 | C179: 1440 | S179: 2240 | T179: 4448 | U179: 139 | V179: 278 | W179: 417 | X179: 556 | Y179: 695 | Z179: 834 | AA179: 973 | AB179: 1112 | AC179: 1251 | AD179: 1390 | AE179: 1529 | AF179: 1668 | AG179: 1807 | AH179: 1946 | AI179: 2085 | AJ179: 2224 | AK179: 2363 | AL179: 2502 | AM179: 2641 | AN179: 2780 | AO179: 2919 | AP179: 3058 | AQ179: 3197 | AR179: 3336 | AS179: 3475 | AT179: 3614 | AU179: 3753 | AV179: 3892 | AW179: 4031 | AX179: 4170 | AY179: 4309 | AZ179: 4448 | BA179: 4587 | BB179: 4726 | BC179: 4865 | BD179: 5004 | BE179: 5143 | BF179: 5282 | BG179: 5421 | BH179: 5560 | BI179: 5699 | BJ179: 5838 | BK179: 5977 | BL179: 6116 | BM179: 6255 | BN179: 6394 | BO179: 6533 | BP179: 6672 | BQ179: 6811 | BR179: 6950 | BS179: 7089 | BT179: 7228 | BU179: 7367 | BV179: 7506 | BW179: 7645 | BX179: 7784 | BY179: 7923 | BZ179: 8062 | CA179: 8201 | CB179: 8340 | CC179: 8479 | CD179: 8618 | CE179: 8757 | CF179: 8896 | CG179: 9035 | CH179: 9174 | CI179: 9313 | CJ179: 9452 | CK179: 9591 | CL179: 9730 | CM179: 9869 | CN179: 10008 | CO179: 10147 | CP179: 10286 | CQ179: 10425 | CR179: 10564 | CS179: 10703 | CT179: 10842 | CU179: 10981 | CV179: 11120 | CW179: 11259 | CX179: 11398 | CY179: 11537 | CZ179: 11676 | DA179: 11815 | DB179: 11954 | DC179: 12093 | DD179: 12232 | DE179: 12371 | DF179: 12510
A180: 97 | B180: BX 5U2 | C180: 1440 | S180: 2256 | T180: 4480 | U180: 140 | V180: 280 | W180: 420 | X180: 560 | Y180: 700 | Z180: 840 | AA180: 980 | AB180: 1120 | AC180: 1260 | AD180: 1400 | AE180: 1540 | AF180: 1680 | AG180: 1820 | AH180: 1960 | AI180: 2100 | AJ180: 2240 | AK180: 2380 | AL180: 2520 | AM180: 2660 | AN180: 2800 | AO180: 2940 | AP180: 3080 | AQ180: 3220 | AR180: 3360 | AS180: 3500 | AT180: 3640 | AU180: 3780 | AV180: 3920 | AW180: 4060 | AX180: 4200 | AY180: 4340 | AZ180: 4480 | BA180: 4620 | BB180: 4760 | BC180: 4900 | BD180: 5040 | BE180: 5180 | BF180: 5320 | BG180: 5460 | BH180: 5600 | BI180: 5740 | BJ180: 5880 | BK180: 6020 | BL180: 6160 | BM180: 6300 | BN180: 6440 | BO180: 6580 | BP180: 6720 | BQ180: 6860 | BR180: 7000 | BS180: 7140 | BT180: 7280 | BU180: 7420 | BV180: 7560 | BW180: 7700 | BX180: 7840 | BY180: 7980 | BZ180: 8120 | CA180: 8260 | CB180: 8400 | CC180: 8540 | CD180: 8680 | CE180: 8820 | CF180: 8960 | CG180: 9100 | CH180: 9240 | CI180: 9380 | CJ180: 9520 | CK180: 9660 | CL180: 9800 | CM180: 9940 | CN180: 10080 | CO180: 10220 | CP180: 10360 | CQ180: 10500 | CR180: 10640 | CS180: 10780 | CT180: 10920 | CU180: 11060 | CV180: 11200 | CW180: 11340 | CX180: 11480 | CY180: 11620 | CZ180: 11760 | DA180: 11900 | DB180: 12040 | DC180: 12180 | DD180: 12320 | DE180: 12460 | DF180: 12600
A181: 98 | B181: BX 5U2 | C181: 1440 | S181: 2272 | T181: 4512 | U181: 141 | V181: 282 | W181: 423 | X181: 564 | Y181: 705 | Z181: 846 | AA181: 987 | AB181: 1128 | AC181: 1269 | AD181: 1410 | AE181: 1551 | AF181: 1692 | AG181: 1833 | AH181: 1974 | AI181: 2115 | AJ181: 2256 | AK181: 2397 | AL181: 2538 | AM181: 2679 | AN181: 2820 | AO181: 2961 | AP181: 3102 | AQ181: 3243 | AR181: 3384 | AS181: 3525 | AT181: 3666 | AU181: 3807 | AV181: 3948 | AW181: 4089 | AX181: 4230 | AY181: 4371 | AZ181: 4512 | BA181: 4653 | BB181: 4794 | BC181: 4935 | BD181: 5076 | BE181: 5217 | BF181: 5358 | BG181: 5499 | BH181: 5640 | BI181: 5781 | BJ181: 5922 | BK181: 6063 | BL181: 6204 | BM181: 6345 | BN181: 6486 | BO181: 6627 | BP181: 6768 | BQ181: 6909 | BR181: 7050 | BS181: 7191 | BT181: 7332 | BU181: 7473 | BV181: 7614 | BW181: 7755 | BX181: 7896 | BY181: 8037 | BZ181: 8178 | CA181: 8319 | CB181: 8460 | CC181: 8601 | CD181: 8742 | CE181: 8883 | CF181: 9024 | CG181: 9165 | CH181: 9306 | CI181: 9447 | CJ181: 9588 | CK181: 9729 | CL181: 9870 | CM181: 10011 | CN181: 10152 | CO181: 10293 | CP181: 10434 | CQ181: 10575 | CR181: 10716 | CS181: 10857 | CT181: 10998 | CU181: 11139 | CV181: 11280 | CW181: 11421 | CX181: 11562 | CY181: 11703 | CZ181: 11844 | DA181: 11985 | DB181: 12126 | DC181: 12267 | DD181: 12408 | DE181: 12549 | DF181: 12690
A182: 99 | B182: BX 5U2 | C182: 1440 | S182: 2288 | T182: 4544 | U182: 142 | V182: 284 | W182: 426 | X182: 568 | Y182: 710 | Z182: 852 | AA182: 994 | AB182: 1136 | AC182: 1278 | AD182: 1420 | AE182: 1562 | AF182: 1704 | AG182: 1846 | AH182: 1988 | AI182: 2130 | AJ182: 2272 | AK182: 2414 | AL182: 2556 | AM182: 2698 | AN182: 2840 | AO182: 2982 | AP182: 3124 | AQ182: 3266 | AR182: 3408 | AS182: 3550 | AT182: 3692 | AU182: 3834 | AV182: 3976 | AW182: 4118 | AX182: 4260 | AY182: 4402 | AZ182: 4544 | BA182: 4686 | BB182: 4828 | BC182: 4970 | BD182: 5112 | BE182: 5254 | BF182: 5396 | BG182: 5538 | BH182: 5680 | BI182: 5822 | BJ182: 5964 | BK182: 6106 | BL182: 6248 | BM182: 6390 | BN182: 6532 | BO182: 6674 | BP182: 6816 | BQ182: 6958 | BR182: 7100 | BS182: 7242 | BT182: 7384 | BU182: 7526 | BV182: 7668 | BW182: 7810 | BX182: 7952 | BY182: 8094 | BZ182: 8236 | CA182: 8378 | CB182: 8520 | CC182: 8662 | CD182: 8804 | CE182: 8946 | CF182: 9088 | CG182: 9230 | CH182: 9372 | CI182: 9514 | CJ182: 9656 | CK182: 9798 | CL182: 9940 | CM182: 10082 | CN182: 10224 | CO182: 10366 | CP182: 10508 | CQ182: 10650 | CR182: 10792 | CS182: 10934 | CT182: 11076 | CU182: 11218 | CV182: 11360 | CW182: 11502 | CX182: 11644 | CY182: 11786 | CZ182: 11928 | DA182: 12070 | DB182: 12212 | DC182: 12354 | DD182: 12496 | DE182: 12638 | DF182: 12780
A183: 100 | B183: BX 5U2 | C183: 1440 | S183: 2304 | T183: 4576 | U183: 143 | V183: 286 | W183: 429 | X183: 572 | Y183: 715 | Z183: 858 | AA183: 1001 | AB183: 1144 | AC183: 1287 | AD183: 1430 | AE183: 1573 | AF183: 1716 | AG183: 1859 | AH183: 2002 | AI183: 2145 | AJ183: 2288 | AK183: 2431 | AL183: 2574 | AM183: 2717 | AN183: 2860 | AO183: 3003 | AP183: 3146 | AQ183: 3289 | AR183: 3432 | AS183: 3575 | AT183: 3718 | AU183: 3861 | AV183: 4004 | AW183: 4147 | AX183: 4290 | AY183: 4433 | AZ183: 4576 | BA183: 4719 | BB183: 4862 | BC183: 5005 | BD183: 5148 | BE183: 5291 | BF183: 5434 | BG183: 5577 | BH183: 5720 | BI183: 5863 | BJ183: 6006 | BK183: 6149 | BL183: 6292 | BM183: 6435 | BN183: 6578 | BO183: 6721 | BP183: 6864 | BQ183: 7007 | BR183: 7150 | BS183: 7293 | BT183: 7436 | BU183: 7579 | BV183: 7722 | BW183: 7865 | BX183: 8008 | BY183: 8151 | BZ183: 8294 | CA183: 8437 | CB183: 8580 | CC183: 8723 | CD183: 8866 | CE183: 9009 | CF183: 9152 | CG183: 9295 | CH183: 9438 | CI183: 9581 | CJ183: 9724 | CK183: 9867 | CL183: 10010 | CM183: 10153 | CN183: 10296 | CO183: 10439 | CP183: 10582 | CQ183: 10725 | CR183: 10868 | CS183: 11011 | CT183: 11154 | CU183: 11297 | CV183: 11440 | CW183: 11583 | CX183: 11726 | CY183: 11869 | CZ183: 12012 | DA183: 12155 | DB183: 12298 | DC183: 12441 | DD183: 12584 | DE183: 12727 | DF183: 12870
A184: 101 | B184: BX 5U2 | C184: 1440 | S184: 2320 | T184: 4608 | U184: 144 | V184: 288 | W184: 432 | X184: 576 | Y184: 720 | Z184: 864 | AA184: 1008 | AB184: 1152 | AC184: 1296 | AD184: 1440 | AE184: 1584 | AF184: 1728 | AG184: 1872 | AH184: 2016 | AI184: 2160 | AJ184: 2304 | AK184: 2448 | AL184: 2592 | AM184: 2736 | AN184: 2880 | AO184: 3024 | AP184: 3168 | AQ184: 3312 | AR184: 3456 | AS184: 3600 | AT184: 3744 | AU184: 3888 | AV184: 4032 | AW184: 4176 | AX184: 4320 | AY184: 4464 | AZ184: 4608 | BA184: 4752 | BB184: 4896 | BC184: 5040 | BD184: 5184 | BE184: 5328 | BF184: 5472 | BG184: 5616 | BH184: 5760 | BI184: 5904 | BJ184: 6048 | BK184: 6192 | BL184: 6336 | BM184: 6480 | BN184: 6624 | BO184: 6768 | BP184: 6912 | BQ184: 7056 | BR184: 7200 | BS184: 7344 | BT184: 7488 | BU184: 7632 | BV184: 7776 | BW184: 7920 | BX184: 8064 | BY184: 8208 | BZ184: 8352 | CA184: 8496 | CB184: 8640 | CC184: 8784 | CD184: 8928 | CE184: 9072 | CF184: 9216 | CG184: 9360 | CH184: 9504 | CI184: 9648 | CJ184: 9792 | CK184: 9936 | CL184: 10080 | CM184: 10224 | CN184: 10368 | CO184: 10512 | CP184: 10656 | CQ184: 10800 | CR184: 10944 | CS184: 11088 | CT184: 11232 | CU184: 11376 | CV184: 11520 | CW184: 11664 | CX184: 11808 | CY184: 11952 | CZ184: 12096 | DA184: 12240 | DB184: 12384 | DC184: 12528 | DD184: 12672 | DE184: 12816 | DF184: 12960
A185: 102 | B185: BX 5U2 | C185: 1440 | S185: 2336 | T185: 4640 | U185: 145 | V185: 290 | W185: 435 | X185: 580 | Y185: 725 | Z185: 870 | AA185: 1015 | AB185: 1160 | AC185: 1305 | AD185: 1450 | AE185: 1595 | AF185: 1740 | AG185: 1885 | AH185: 2030 | AI185: 2175 | AJ185: 2320 | AK185: 2465 | AL185: 2610 | AM185: 2755 | AN185: 2900 | AO185: 3045 | AP185: 3190 | AQ185: 3335 | AR185: 3480 | AS185: 3625 | AT185: 3770 | AU185: 3915 | AV185: 4060 | AW185: 4205 | AX185: 4350 | AY185: 4495 | AZ185: 4640 | BA185: 4785 | BB185: 4930 | BC185: 5075 | BD185: 5220 | BE185: 5365 | BF185: 5510 | BG185: 5655 | BH185: 5800 | BI185: 5945 | BJ185: 6090 | BK185: 6235 | BL185: 6380 | BM185: 6525 | BN185: 6670 | BO185: 6815 | BP185: 6960 | BQ185: 7105 | BR185: 7250 | BS185: 7395 | BT185: 7540 | BU185: 7685 | BV185: 7830 | BW185: 7975 | BX185: 8120 | BY185: 8265 | BZ185: 8410 | CA185: 8555 | CB185: 8700 | CC185: 8845 | CD185: 8990 | CE185: 9135 | CF185: 9280 | CG185: 9425 | CH185: 9570 | CI185: 9715 | CJ185: 9860 | CK185: 10005 | CL185: 10150 | CM185: 10295 | CN185: 10440 | CO185: 10585 | CP185: 10730 | CQ185: 10875 | CR185: 11020 | CS185: 11165 | CT185: 11310 | CU185: 11455 | CV185: 11600 | CW185: 11745 | CX185: 11890 | CY185: 12035 | CZ185: 12180 | DA185: 12325 | DB185: 12470 | DC185: 12615 | DD185: 12760 | DE185: 12905 | DF185: 13050
A186: 103 | B186: BX 5U2 | C186: 1440 | S186: 2352 | T186: 4672 | U186: 146 | V186: 292 | W186: 438 | X186: 584 | Y186: 730 | Z186: 876 | AA186: 1022 | AB186: 1168 | AC186: 1314 | AD186: 1460 | AE186: 1606 | AF186: 1752 | AG186: 1898 | AH186: 2044 | AI186: 2190 | AJ186: 2336 | AK186: 2482 | AL186: 2628 | AM186: 2774 | AN186: 2920 | AO186: 3066 | AP186: 3212 | AQ186: 3358 | AR186: 3504 | AS186: 3650 | AT186: 3796 | AU186: 3942 | AV186: 4088 | AW186: 4234 | AX186: 4380 | AY186: 4526 | AZ186: 4672 | BA186: 4818 | BB186: 4964 | BC186: 5110 | BD186: 5256 | BE186: 5402 | BF186: 5548 | BG186: 5694 | BH186: 5840 | BI186: 5986 | BJ186: 6132 | BK186: 6278 | BL186: 6424 | BM186: 6570 | BN186: 6716 | BO186: 6862 | BP186: 7008 | BQ186: 7154 | BR186: 7300 | BS186: 7446 | BT186: 7592 | BU186: 7738 | BV186: 7884 | BW186: 8030 | BX186: 8176 | BY186: 8322 | BZ186: 8468 | CA186: 8614 | CB186: 8760 | CC186: 8906 | CD186: 9052 | CE186: 9198 | CF186: 9344 | CG186: 9490 | CH186: 9636 | CI186: 9782 | CJ186: 9928 | CK186: 10074 | CL186: 10220 | CM186: 10366 | CN186: 10512 | CO186: 10658 | CP186: 10804 | CQ186: 10950 | CR186: 11096 | CS186: 11242 | CT186: 11388 | CU186: 11534 | CV186: 11680 | CW186: 11826 | CX186: 11972 | CY186: 12118 | CZ186: 12264 | DA186: 12410 | DB186: 12556 | DC186: 12702 | DD186: 12848 | DE186: 12994 | DF186: 13140
A187: 104 | B187: BX 5U2 | C187: 1440 | S187: 2368 | T187: 4704 | U187: 147 | V187: 294 | W187: 441 | X187: 588 | Y187: 735 | Z187: 882 | AA187: 1029 | AB187: 1176 | AC187: 1323 | AD187: 1470 | AE187: 1617 | AF187: 1764 | AG187: 1911 | AH187: 2058 | AI187: 2205 | AJ187: 2352 | AK187: 2499 | AL187: 2646 | AM187: 2793 | AN187: 2940 | AO187: 3087 | AP187: 3234 | AQ187: 3381 | AR187: 3528 | AS187: 3675 | AT187: 3822 | AU187: 3969 | AV187: 4116 | AW187: 4263 | AX187: 4410 | AY187: 4557 | AZ187: 4704 | BA187: 4851 | BB187: 4998 | BC187: 5145 | BD187: 5292 | BE187: 5439 | BF187: 5586 | BG187: 5733 | BH187: 5880 | BI187: 6027 | BJ187: 6174 | BK187: 6321 | BL187: 6468 | BM187: 6615 | BN187: 6762 | BO187: 6909 | BP187: 7056 | BQ187: 7203 | BR187: 7350 | BS187: 7497 | BT187: 7644 | BU187: 7791 | BV187: 7938 | BW187: 8085 | BX187: 8232 | BY187: 8379 | BZ187: 8526 | CA187: 8673 | CB187: 8820 | CC187: 8967 | CD187: 9114 | CE187: 9261 | CF187: 9408 | CG187: 9555 | CH187: 9702 | CI187: 9849 | CJ187: 9996 | CK187: 10143 | CL187: 10290 | CM187: 10437 | CN187: 10584 | CO187: 10731 | CP187: 10878 | CQ187: 11025 | CR187: 11172 | CS187: 11319 | CT187: 11466 | CU187: 11613 | CV187: 11760 | CW187: 11907 | CX187: 12054 | CY187: 12201 | CZ187: 12348 | DA187: 12495 | DB187: 12642 | DC187: 12789 | DD187: 12936 | DE187: 13083 | DF187: 13230
A188: 105 | B188: BX 5U2 | C188: 1440 | S188: 2384 | T188: 4736 | U188: 148 | V188: 296 | W188: 444 | X188: 592 | Y188: 740 | Z188: 888 | AA188: 1036 | AB188: 1184 | AC188: 1332 | AD188: 1480 | AE188: 1628 | AF188: 1776 | AG188: 1924 | AH188: 2072 | AI188: 2220 | AJ188: 2368 | AK188: 2516 | AL188: 2664 | AM188: 2812 | AN188: 2960 | AO188: 3108 | AP188: 3256 | AQ188: 3404 | AR188: 3552 | AS188: 3700 | AT188: 3848 | AU188: 3996 | AV188: 4144 | AW188: 4292 | AX188: 4440 | AY188: 4588 | AZ188: 4736 | BA188: 4884 | BB188: 5032 | BC188: 5180 | BD188: 5328 | BE188: 5476 | BF188: 5624 | BG188: 5772 | BH188: 5920 | BI188: 6068 | BJ188: 6216 | BK188: 6364 | BL188: 6512 | BM188: 6660 | BN188: 6808 | BO188: 6956 | BP188: 7104 | BQ188: 7252 | BR188: 7400 | BS188: 7548 | BT188: 7696 | BU188: 7844 | BV188: 7992 | BW188: 8140 | BX188: 8288 | BY188: 8436 | BZ188: 8584 | CA188: 8732 | CB188: 8880 | CC188: 9028 | CD188: 9176 | CE188: 9324 | CF188: 9472 | CG188: 9620 | CH188: 9768 | CI188: 9916 | CJ188: 10064 | CK188: 10212 | CL188: 10360 | CM188: 10508 | CN188: 10656 | CO188: 10804 | CP188: 10952 | CQ188: 11100 | CR188: 11248 | CS188: 11396 | CT188: 11544 | CU188: 11692 | CV188: 11840 | CW188: 11988 | CX188: 12136 | CY188: 12284 | CZ188: 12432 | DA188: 12580 | DB188: 12728 | DC188: 12876 | DD188: 13024 | DE188: 13172 | DF188: 13320
A189: 106 | B189: BX 5U2 | C189: 1440 | S189: 2400 | T189: 4768 | U189: 149 | V189: 298 | W189: 447 | X189: 596 | Y189: 745 | Z189: 894 | AA189: 1043 | AB189: 1192 | AC189: 1341 | AD189: 1490 | AE189: 1639 | AF189: 1788 | AG189: 1937 | AH189: 2086 | AI189: 2235 | AJ189: 2384 | AK189: 2533 | AL189: 2682 | AM189: 2831 | AN189: 2980 | AO189: 3129 | AP189: 3278 | AQ189: 3427 | AR189: 3576 | AS189: 3725 | AT189: 3874 | AU189: 4023 | AV189: 4172 | AW189: 4321 | AX189: 4470 | AY189: 4619 | AZ189: 4768 | BA189: 4917 | BB189: 5066 | BC189: 5215 | BD189: 5364 | BE189: 5513 | BF189: 5662 | BG189: 5811 | BH189: 5960 | BI189: 6109 | BJ189: 6258 | BK189: 6407 | BL189: 6556 | BM189: 6705 | BN189: 6854 | BO189: 7003 | BP189: 7152 | BQ189: 7301 | BR189: 7450 | BS189: 7599 | BT189: 7748 | BU189: 7897 | BV189: 8046 | BW189: 8195 | BX189: 8344 | BY189: 8493 | BZ189: 8642 | CA189: 8791 | CB189: 8940 | CC189: 9089 | CD189: 9238 | CE189: 9387 | CF189: 9536 | CG189: 9685 | CH189: 9834 | CI189: 9983 | CJ189: 10132 | CK189: 10281 | CL189: 10430 | CM189: 10579 | CN189: 10728 | CO189: 10877 | CP189: 11026 | CQ189: 11175 | CR189: 11324 | CS189: 11473 | CT189: 11622 | CU189: 11771 | CV189: 11920 | CW189: 12069 | CX189: 12218 | CY189: 12367 | CZ189: 12516 | DA189: 12665 | DB189: 12814 | DC189: 12963 | DD189: 13112 | DE189: 13261 | DF189: 13410
A190: 107 | B190: BX 5U2 | C190: 1440 | S190: 2416 | T190: 4800 | U190: 150 | V190: 300 | W190: 450 | X190: 600 | Y190: 750 | Z190: 900 | AA190: 1050 | AB190: 1200 | AC190: 1350 | AD190: 1500 | AE190: 1650 | AF190: 1800 | AG190: 1950 | AH190: 2100 | AI190: 2250 | AJ190: 2400 | AK190: 2550 | AL190: 2700 | AM190: 2850 | AN190: 3000 | AO190: 3150 | AP190: 3300 | AQ190: 3450 | AR190: 3600 | AS190: 3750 | AT190: 3900 | AU190: 4050 | AV190: 4200 | AW190: 4350 | AX190: 4500 | AY190: 4650 | AZ190: 4800 | BA190: 4950 | BB190: 5100 | BC190: 5250 | BD190: 5400 | BE190: 5550 | BF190: 5700 | BG190: 5850 | BH190: 6000 | BI190: 6150 | BJ190: 6300 | BK190: 6450 | BL190: 6600 | BM190: 6750 | BN190: 6900 | BO190: 7050 | BP190: 7200 | BQ190: 7350 | BR190: 7500 | BS190: 7650 | BT190: 7800 | BU190: 7950 | BV190: 8100 | BW190: 8250 | BX190: 8400 | BY190: 8550 | BZ190: 8700 | CA190: 8850 | CB190: 9000 | CC190: 9150 | CD190: 9300 | CE190: 9450 | CF190: 9600 | CG190: 9750 | CH190: 9900 | CI190: 10050 | CJ190: 10200 | CK190: 10350 | CL190: 10500 | CM190: 10650 | CN190: 10800 | CO190: 10950 | CP190: 11100 | CQ190: 11250 | CR190: 11400 | CS190: 11550 | CT190: 11700 | CU190: 11850 | CV190: 12000 | CW190: 12150 | CX190: 12300 | CY190: 12450 | CZ190: 12600 | DA190: 12750 | DB190: 12900 | DC190: 13050 | DD190: 13200 | DE190: 13350 | DF190: 13500
A191: 108 | B191: BX 5U2 | C191: 1440 | S191: 2432 | T191: 4832 | U191: 151 | V191: 302 | W191: 453 | X191: 604 | Y191: 755 | Z191: 906 | AA191: 1057 | AB191: 1208 | AC191: 1359 | AD191: 1510 | AE191: 1661 | AF191: 1812 | AG191: 1963 | AH191: 2114 | AI191: 2265 | AJ191: 2416 | AK191: 2567 | AL191: 2718 | AM191: 2869 | AN191: 3020 | AO191: 3171 | AP191: 3322 | AQ191: 3473 | AR191: 3624 | AS191: 3775 | AT191: 3926 | AU191: 4077 | AV191: 4228 | AW191: 4379 | AX191: 4530 | AY191: 4681 | AZ191: 4832 | BA191: 4983 | BB191: 5134 | BC191: 5285 | BD191: 5436 | BE191: 5587 | BF191: 5738 | BG191: 5889 | BH191: 6040 | BI191: 6191 | BJ191: 6342 | BK191: 6493 | BL191: 6644 | BM191: 6795 | BN191: 6946 | BO191: 7097 | BP191: 7248 | BQ191: 7399 | BR191: 7550 | BS191: 7701 | BT191: 7852 | BU191: 8003 | BV191: 8154 | BW191: 8305 | BX191: 8456 | BY191: 8607 | BZ191: 8758 | CA191: 8909 | CB191: 9060 | CC191: 9211 | CD191: 9362 | CE191: 9513 | CF191: 9664 | CG191: 9815 | CH191: 9966 | CI191: 10117 | CJ191: 10268 | CK191: 10419 | CL191: 10570 | CM191: 10721 | CN191: 10872 | CO191: 11023 | CP191: 11174 | CQ191: 11325 | CR191: 11476 | CS191: 11627 | CT191: 11778 | CU191: 11929 | CV191: 12080 | CW191: 12231 | CX191: 12382 | CY191: 12533 | CZ191: 12684 | DA191: 12835 | DB191: 12986 | DC191: 13137 | DD191: 13288 | DE191: 13439 | DF191: 13590
A192: 109 | B192: BX 5U2 | C192: 1440 | S192: 2448 | T192: 4864 | U192: 152 | V192: 304 | W192: 456 | X192: 608 | Y192: 760 | Z192: 912 | AA192: 1064 | AB192: 1216 | AC192: 1368 | AD192: 1520 | AE192: 1672 | AF192: 1824 | AG192: 1976 | AH192: 2128 | AI192: 2280 | AJ192: 2432 | AK192: 2584 | AL192: 2736 | AM192: 2888 | AN192: 3040 | AO192: 3192 | AP192: 3344 | AQ192: 3496 | AR192: 3648 | AS192: 3800 | AT192: 3952 | AU192: 4104 | AV192: 4256 | AW192: 4408 | AX192: 4560 | AY192: 4712 | AZ192: 4864 | BA192: 5016 | BB192: 5168 | BC192: 5320 | BD192: 5472 | BE192: 5624 | BF192: 5776 | BG192: 5928 | BH192: 6080 | BI192: 6232 | BJ192: 6384 | BK192: 6536 | BL192: 6688 | BM192: 6840 | BN192: 6992 | BO192: 7144 | BP192: 7296 | BQ192: 7448 | BR192: 7600 | BS192: 7752 | BT192: 7904 | BU192: 8056 | BV192: 8208 | BW192: 8360 | BX192: 8512 | BY192: 8664 | BZ192: 8816 | CA192: 8968 | CB192: 9120 | CC192: 9272 | CD192: 9424 | CE192: 9576 | CF192: 9728 | CG192: 9880 | CH192: 10032 | CI192: 10184 | CJ192: 10336 | CK192: 10488 | CL192: 10640 | CM192: 10792 | CN192: 10944 | CO192: 11096 | CP192: 11248 | CQ192: 11400 | CR192: 11552 | CS192: 11704 | CT192: 11856 | CU192: 12008 | CV192: 12160 | CW192: 12312 | CX192: 12464 | CY192: 12616 | CZ192: 12768 | DA192: 12920 | DB192: 13072 | DC192: 13224 | DD192: 13376 | DE192: 13528 | DF192: 13680
A193: 110 | B193: BX 5U2 | C193: 1440 | S193: 2464 | T193: 4896 | U193: 153 | V193: 306 | W193: 459 | X193: 612 | Y193: 765 | Z193: 918 | AA193: 1071 | AB193: 1224 | AC193: 1377 | AD193: 1530 | AE193: 1683 | AF193: 1836 | AG193: 1989 | AH193: 2142 | AI193: 2295 | AJ193: 2448 | AK193: 2601 | AL193: 2754 | AM193: 2907 | AN193: 3060 | AO193: 3213 | AP193: 3366 | AQ193: 3519 | AR193: 3672 | AS193: 3825 | AT193: 3978 | AU193: 4131 | AV193: 4284 | AW193: 4437 | AX193: 4590 | AY193: 4743 | AZ193: 4896 | BA193: 5049 | BB193: 5202 | BC193: 5355 | BD193: 5508 | BE193: 5661 | BF193: 5814 | BG193: 5967 | BH193: 6120 | BI193: 6273 | BJ193: 6426 | BK193: 6579 | BL193: 6732 | BM193: 6885 | BN193: 7038 | BO193: 7191 | BP193: 7344 | BQ193: 7497 | BR193: 7650 | BS193: 7803 | BT193: 7956 | BU193: 8109 | BV193: 8262 | BW193: 8415 | BX193: 8568 | BY193: 8721 | BZ193: 8874 | CA193: 9027 | CB193: 9180 | CC193: 9333 | CD193: 9486 | CE193: 9639 | CF193: 9792 | CG193: 9945 | CH193: 10098 | CI193: 10251 | CJ193: 10404 | CK193: 10557 | CL193: 10710 | CM193: 10863 | CN193: 11016 | CO193: 11169 | CP193: 11322 | CQ193: 11475 | CR193: 11628 | CS193: 11781 | CT193: 11934 | CU193: 12087 | CV193: 12240 | CW193: 12393 | CX193: 12546 | CY193: 12699 | CZ193: 12852 | DA193: 13005 | DB193: 13158 | DC193: 13311 | DD193: 13464 | DE193: 13617 | DF193: 13770
A194: 111 | B194: BX 5U2 | C194: 1440 | S194: 2480 | T194: 4928 | U194: 154 | V194: 308 | W194: 462 | X194: 616 | Y194: 770 | Z194: 924 | AA194: 1078 | AB194: 1232 | AC194: 1386 | AD194: 1540 | AE194: 1694 | AF194: 1848 | AG194: 2002 | AH194: 2156 | AI194: 2310 | AJ194: 2464 | AK194: 2618 | AL194: 2772 | AM194: 2926 | AN194: 3080 | AO194: 3234 | AP194: 3388 | AQ194: 3542 | AR194: 3696 | AS194: 3850 | AT194: 4004 | AU194: 4158 | AV194: 4312 | AW194: 4466 | AX194: 4620 | AY194: 4774 | AZ194: 4928 | BA194: 5082 | BB194: 5236 | BC194: 5390 | BD194: 5544 | BE194: 5698 | BF194: 5852 | BG194: 6006 | BH194: 6160 | BI194: 6314 | BJ194: 6468 | BK194: 6622 | BL194: 6776 | BM194: 6930 | BN194: 7084 | BO194: 7238 | BP194: 7392 | BQ194: 7546 | BR194: 7700 | BS194: 7854 | BT194: 8008 | BU194: 8162 | BV194: 8316 | BW194: 8470 | BX194: 8624 | BY194: 8778 | BZ194: 8932 | CA194: 9086 | CB194: 9240 | CC194: 9394 | CD194: 9548 | CE194: 9702 | CF194: 9856 | CG194: 10010 | CH194: 10164 | CI194: 10318 | CJ194: 10472 | CK194: 10626 | CL194: 10780 | CM194: 10934 | CN194: 11088 | CO194: 11242 | CP194: 11396 | CQ194: 11550 | CR194: 11704 | CS194: 11858 | CT194: 12012 | CU194: 12166 | CV194: 12320 | CW194: 12474 | CX194: 12628 | CY194: 12782 | CZ194: 12936 | DA194: 13090 | DB194: 13244 | DC194: 13398 | DD194: 13552 | DE194: 13706 | DF194: 13860
A195: 112 | B195: BX 5U2 | C195: 1440 | S195: 2496 | T195: 4960 | U195: 155 | V195: 310 | W195: 465 | X195: 620 | Y195: 775 | Z195: 930 | AA195: 1085 | AB195: 1240 | AC195: 1395 | AD195: 1550 | AE195: 1705 | AF195: 1860 | AG195: 2015 | AH195: 2170 | AI195: 2325 | AJ195: 2480 | AK195: 2635 | AL195: 2790 | AM195: 2945 | AN195: 3100 | AO195: 3255 | AP195: 3410 | AQ195: 3565 | AR195: 3720 | AS195: 3875 | AT195: 4030 | AU195: 4185 | AV195: 4340 | AW195: 4495 | AX195: 4650 | AY195: 4805 | AZ195: 4960 | BA195: 5115 | BB195: 5270 | BC195: 5425 | BD195: 5580 | BE195: 5735 | BF195: 5890 | BG195: 6045 | BH195: 6200 | BI195: 6355 | BJ195: 6510 | BK195: 6665 | BL195: 6820 | BM195: 6975 | BN195: 7130 | BO195: 7285 | BP195: 7440 | BQ195: 7595 | BR195: 7750 | BS195: 7905 | BT195: 8060 | BU195: 8215 | BV195: 8370 | BW195: 8525 | BX195: 8680 | BY195: 8835 | BZ195: 8990 | CA195: 9145 | CB195: 9300 | CC195: 9455 | CD195: 9610 | CE195: 9765 | CF195: 9920 | CG195: 10075 | CH195: 10230 | CI195: 10385 | CJ195: 10540 | CK195: 10695 | CL195: 10850 | CM195: 11005 | CN195: 11160 | CO195: 11315 | CP195: 11470 | CQ195: 11625 | CR195: 11780 | CS195: 11935 | CT195: 12090 | CU195: 12245 | CV195: 12400 | CW195: 12555 | CX195: 12710 | CY195: 12865 | CZ195: 13020 | DA195: 13175 | DB195: 13330 | DC195: 13485 | DD195: 13640 | DE195: 13795 | DF195: 13950
A196: 113 | B196: BX 5U2 | C196: 1440 | S196: 2512 | T196: 4992 | U196: 156 | V196: 312 | W196: 468 | X196: 624 | Y196: 780 | Z196: 936 | AA196: 1092 | AB196: 1248 | AC196: 1404 | AD196: 1560 | AE196: 1716 | AF196: 1872 | AG196: 2028 | AH196: 2184 | AI196: 2340 | AJ196: 2496 | AK196: 2652 | AL196: 2808 | AM196: 2964 | AN196: 3120 | AO196: 3276 | AP196: 3432 | AQ196: 3588 | AR196: 3744 | AS196: 3900 | AT196: 4056 | AU196: 4212 | AV196: 4368 | AW196: 4524 | AX196: 4680 | AY196: 4836 | AZ196: 4992 | BA196: 5148 | BB196: 5304 | BC196: 5460 | BD196: 5616 | BE196: 5772 | BF196: 5928 | BG196: 6084 | BH196: 6240 | BI196: 6396 | BJ196: 6552 | BK196: 6708 | BL196: 6864 | BM196: 7020 | BN196: 7176 | BO196: 7332 | BP196: 7488 | BQ196: 7644 | BR196: 7800 | BS196: 7956 | BT196: 8112 | BU196: 8268 | BV196: 8424 | BW196: 8580 | BX196: 8736 | BY196: 8892 | BZ196: 9048 | CA196: 9204 | CB196: 9360 | CC196: 9516 | CD196: 9672 | CE196: 9828 | CF196: 9984 | CG196: 10140 | CH196: 10296 | CI196: 10452 | CJ196: 10608 | CK196: 10764 | CL196: 10920 | CM196: 11076 | CN196: 11232 | CO196: 11388 | CP196: 11544 | CQ196: 11700 | CR196: 11856 | CS196: 12012 | CT196: 12168 | CU196: 12324 | CV196: 12480 | CW196: 12636 | CX196: 12792 | CY196: 12948 | CZ196: 13104 | DA196: 13260 | DB196: 13416 | DC196: 13572 | DD196: 13728 | DE196: 13884 | DF196: 14040
A197: 114 | B197: BX 5U2 | C197: 1440 | S197: 2528 | T197: 5024 | U197: 157 | V197: 314 | W197: 471 | X197: 628 | Y197: 785 | Z197: 942 | AA197: 1099 | AB197: 1256 | AC197: 1413 | AD197: 1570 | AE197: 1727 | AF197: 1884 | AG197: 2041 | AH197: 2198 | AI197: 2355 | AJ197: 2512 | AK197: 2669 | AL197: 2826 | AM197: 2983 | AN197: 3140 | AO197: 3297 | AP197: 3454 | AQ197: 3611 | AR197: 3768 | AS197: 3925 | AT197: 4082 | AU197: 4239 | AV197: 4396 | AW197: 4553 | AX197: 4710 | AY197: 4867 | AZ197: 5024 | BA197: 5181 | BB197: 5338 | BC197: 5495 | BD197: 5652 | BE197: 5809 | BF197: 5966 | BG197: 6123 | BH197: 6280 | BI197: 6437 | BJ197: 6594 | BK197: 6751 | BL197: 6908 | BM197: 7065 | BN197: 7222 | BO197: 7379 | BP197: 7536 | BQ197: 7693 | BR197: 7850 | BS197: 8007 | BT197: 8164 | BU197: 8321 | BV197: 8478 | BW197: 8635 | BX197: 8792 | BY197: 8949 | BZ197: 9106 | CA197: 9263 | CB197: 9420 | CC197: 9577 | CD197: 9734 | CE197: 9891 | CF197: 10048 | CG197: 10205 | CH197: 10362 | CI197: 10519 | CJ197: 10676 | CK197: 10833 | CL197: 10990 | CM197: 11147 | CN197: 11304 | CO197: 11461 | CP197: 11618 | CQ197: 11775 | CR197: 11932 | CS197: 12089 | CT197: 12246 | CU197: 12403 | CV197: 12560 | CW197: 12717 | CX197: 12874 | CY197: 13031 | CZ197: 13188 | DA197: 13345 | DB197: 13502 | DC197: 13659 | DD197: 13816 | DE197: 13973 | DF197: 14130
A198: 115 | B198: BX 5U2 | C198: 1440 | S198: 2544 | T198: 5056 | U198: 158 | V198: 316 | W198: 474 | X198: 632 | Y198: 790 | Z198: 948 | AA198: 1106 | AB198: 1264
A199: 116 | B199: BX 5U2 | C199: 1440 | S199: 2560 | T199: 5088 | U199: 159 | V199: 318 | W199: 477 | X199: 636 | Y199: 795 | Z199: 954 | AA199: 1113 | AB199: 1272
A200: 117 | B200: BX 5U2 | C200: 1440 | S200: 2576 | T200: 5120 | U200: 160 | V200: 320 | W200: 480 | X200: 640 | Y200: 800 | Z200: 960 | AA200: 1120 | AB200: 1280
A201: 118 | B201: BX 5U2 | C201: 1440 | S201: 2592 | T201: 5152 | U201: 161 | V201: 322 | W201: 483 | X201: 644 | Y201: 805 | Z201: 966 | AA201: 1127 | AB201: 1288
A202: 119 | B202: BX 5U2 | C202: 1440 | S202: 2608 | T202: 5184 | U202: 162 | V202: 324 | W202: 486 | X202: 648 | Y202: 810 | Z202: 972 | AA202: 1134 | AB202: 1296
A203: 120 | B203: BX 5U2 | C203: 1440 | S203: 2624 | T203: 5216 | U203: 163 | V203: 326 | W203: 489 | X203: 652 | Y203: 815 | Z203: 978 | AA203: 1141 | AB203: 1304
A204: 121 | B204: BX 5U2 | C204: 1440 | S204: 2640 | T204: 5248 | U204: 164 | V204: 328 | W204: 492 | X204: 656 | Y204: 820 | Z204: 984 | AA204: 1148 | AB204: 1312
A205: 122 | B205: BX 5U2 | C205: 1440 | S205: 2656 | T205: 5280 | U205: 165 | V205: 330 | W205: 495 | X205: 660 | Y205: 825 | Z205: 990 | AA205: 1155 | AB205: 1320
A206: 123 | B206: BX 5U2 | C206: 1440 | S206: 2672 | T206: 5312 | U206: 166 | V206: 332 | W206: 498 | X206: 664 | Y206: 830 | Z206: 996 | AA206: 1162 | AB206: 1328
A207: 124 | B207: BX 5U2 | C207: 1440 | S207: 2688 | T207: 5344 | U207: 167 | V207: 334 | W207: 501 | X207: 668 | Y207: 835 | Z207: 1002 | AA207: 1169 | AB207: 1336
A208: 125 | B208: BX 5U2 | C208: 1440 | S208: 2704 | T208: 5376 | U208: 168 | V208: 336 | W208: 504 | X208: 672 | Y208: 840 | Z208: 1008 | AA208: 1176 | AB208: 1344
A209: 126 | B209: BX 5U2 | C209: 1440 | S209: 2720 | T209: 5408 | U209: 169 | V209: 338 | W209: 507 | X209: 676 | Y209: 845 | Z209: 1014 | AA209: 1183 | AB209: 1352
A210: 127 | B210: BX 5U2 | C210: 1440 | S210: 2736 | T210: 5440 | U210: 170 | V210: 340 | W210: 510 | X210: 680 | Y210: 850 | Z210: 1020 | AA210: 1190 | AB210: 1360
A211: 128 | B211: BX 5U2 | C211: 1440 | S211: 2752 | T211: 5472 | U211: 171 | V211: 342 | W211: 513 | X211: 684 | Y211: 855 | Z211: 1026 | AA211: 1197 | AB211: 1368
A212: 129 | B212: BX 5U3 | C212: =D212 -> 1920 | D212: =E212*E3 -> 1920 | E212: 30 | S212: 2768 | T212: 5504 | U212: 172 | V212: 344 | W212: 516 | X212: 688 | Y212: 860 | Z212: 1032 | AA212: 1204 | AB212: 1376
... 871 more rows

Sheet Таблички (hidden)
B1: Рекламно производственная компания "Белый Сокол"
B4: Нестандартные таблички от 1 м2
B6: Количество | C6: Размер в см. | E6: Площадь м2
C7: Ширина | D7: Высота
B8: 1 | C8: 30 | D8: 20 | E8: =C8*D8/10000 -> 0.06
U10: Стандартные таблички
B11: Материал: | C11: Профиль | E11: Карманы 1 | I11: Карманы 2 | L11: Карманы 3 | U11: Стенды | X11: Кол-во
U12: Карманы | V12: Размеры
U13: 1 | V13: 30х45 | Y13: =FALSE -> FALSE | Z13: =IF(Y13,300)*X13 -> 0
B14: Рама | C14: Печать. Плоттер. | F14: Количество | I14: Количество | L14: Количество | U14: 2 | V14: 60х50 | Y14: =FALSE -> FALSE | Z14: =IF(Y14,650)*X14 -> 0
F15: 8 | I15: 1 | L15: 1 | U15: 3 | V15: 80х50 | Y15: =FALSE -> FALSE | Z15: =IF(Y15,900)*X15 -> 0
U16: 4 | V16: 60х80 | Y16: =FALSE -> FALSE | Z16: =IF(Y16,1120)*X16 -> 0
B17: Монтаж | C17: Доставка | U17: 6 | V17: 80х80 | X17: 1 | Y17: =FALSE -> FALSE | Z17: =IF(Y17,1560)*X17 -> 0
C18: Легковой автомобиль | U18: 8 | V18: 105х85 | Y18: =FALSE -> FALSE | Z18: =IF(Y18,1940)*X18 -> 0
U19: 10 | V19: 130х85 | X19: 0 | Y19: =FALSE -> FALSE | Z19: =IF(Y19,2258)*X19 -> 0
C20: Грузовая ГАЗель | U20: Итого | Z20: =SUM(Z13:Z19) -> 0
W21: =IF(Z20>10000,"Возможна скидка до 15%","Скидки НЕТ") -> Скидки НЕТ
D22: профиль | E22: рама | F22: печать | G22: Доставка легк. | H22: Доставка груз. | I22: Монтаж | J22: Карманы 1 | K22: Карманы 2 | L22: Карманы 3
C23: =ФТабл.!E4*E8 -> 118.9032 | D23: =IF(ФТабл.!K3=1,ФТабл.!G3*1,IF(ФТабл.!K3=2,ФТабл.!I12,IF(ФТабл.!K3=3,ФТабл.!I13,IF(ФТабл.!K3=4,ФТабл.!I14))))*B8 -> 150 | E23: =IF(ФТабл.!O3=1,ФТабл.!I10=0,IF(ФТабл.!O3=2,ФТабл.!I10*ФТабл.!N6))*B8 -> 250 | F23: =VLOOKUP(ФТабл.!T3,ФТабл.!P3:S10,4,0)*E8 -> 2.04 | G23: =IF(ФТабл.!C33=1,ФТабл.!C34,IF(ФТабл.!C33=2,ФТабл.!C35,IF(ФТабл.!C33=3,ФТабл.!C36,IF(ФТабл.!C33=4,ФТабл.!C37,IF(ФТабл.!C33=5,ФТабл.!C38,IF(ФТабл.!C33=6,ФТабл.!C39,IF(ФТабл.!C33=7,ФТабл.!C40))))))) -> 800 | H23: =IF(ФТабл.!D33=1,ФТабл.!D34,IF(ФТабл.!D33=2,ФТабл.!D35,IF(ФТабл.!D33=3,ФТабл.!D36,IF(ФТабл.!D33=4,ФТабл.!D37,IF(ФТабл.!D33=5,ФТабл.!D38,IF(ФТабл.!D33=6,ФТабл.!D39,IF(ФТабл.!D33=7,ФТабл.!D40))))))) -> 1800 | I23: =IF(ФТабл.!D25=1,ФТабл.!C26,IF(ФТабл.!D25=2,ФТабл.!C27,IF(ФТабл.!D25=3,ФТабл.!C28,IF(ФТабл.!D25=4,ФТабл.!E29,IF(ФТабл.!D25=5,ФТабл.!E30)))))*B8 -> 800 | J23: =ФТабл.!N33*Таблички!F15 -> 3200 | K23: =ФТабл.!R33*Таблички!I15 -> 400 | L23: =ФТабл.!U33*Таблички!L15 -> 250
B24: Стоимость | C24: =C23+D23+E23+F23+G23+H23+ФТабл.!E22+I23+J23+K23+L23 -> 7770.9432 | D24: =C23/E8 -> 1981.72
B25: =IF(C24>20000,"Возможна скидка до 20%","Возможна скидка до 10%") -> Возможна скидка до 10% | E25: доделать
E26: рама в зависимости от размера разная цена
E27: Баннера
C29: Бланк заказа'!A1
B32: пвх

Sheet Буквы (hidden)
A2: Коммерческое предложение на изготовление объемных букв
A4: Буквы | D4: Вид букв
B5: Кол-во букв | C5: Высота буквы (ширина) | D5: Цена за 1 см высоты буквы (руб.) | E5: Тип шрифта | H5: "Золотой" или "серебряный" профиль (наценка - 20%) | I5: Neon 2 нити или LED (15%). Толщина линии буквы от 15 до 30 см. | J5: Сумма | K5: Покраска
E6: (наценка на шрифт: сложный и рукописный – 15%, с засечками – 20%)
B7: 15 | C7: 110 | D7: =ФБуквы!D33 -> 144.0523462 | J7: =ФБуквы!E33+ФБуквы!H33+ФБуквы!I33 -> 237686.3712
B8: 1 | C8: 158 | D8: =VLOOKUP(ФБуквы!B14,ФБуквы!A20:G28,4,0) -> 144.0523462 | J8: =ФБуквы!E34+ФБуквы!H34+ФБуквы!I34 -> 22760.27069
H10: Скидка, % | I10: 0 | J10: Итого: | K10: =SUM(J7:J8)+SUM(K7:K8) -> 260446.6419
A11: Комплектация | J11: Итого со скидкой | K11: =K10*(100-I10)/100 -> 260446.6419
E13: Кол-во | F13: Цена за 1 ед. | G13: Сумма
I15: Доделать
A16: Cпециальный высоковольтный кабель для питания неоновых трубок Италия
A17: Жесткая упаковка | H17: если нужно | I17: Светодиоды Объёмная буква
A19: Доставка по Самаре | H19: если нужно
A20: Монтаж | H20: если нужно
A21: Итого с комплектацией (руб.): | G21: =K11+SUM(G14:G20) -> 260446.6419
A23: Срок изготовления: 12 раб.дн. (с момента поступления денежных средств на расчетный счет)
A24: Цены указаны с учетом НДС
A25: Транспортные расходы в расчет стоимости не включены
A26: Коммерческое предложение действительно в течение 10 дней
A40: Добавить
A41: Неон в 2 нити
A43: Просто объёмные буквы
A44: Объёмные буквы светодиоды, неон

Sheet Печать (hidden)
B1: Рекламно производственная компания "Белый Сокол"
B3: Баннеры
B5: Количество | C5: Размер в см. | E5: Площадь м2
C6: Ширина | D6: Высота
B7: 1 | C7: 980 | D7: 260 | E7: =C7*D7/10000 -> 25.48
B9: Материал: | E9: Проклейка | U9: Стенды | X9: Кол-во
U10: Карманы | V10: Размеры
E11: Люверсы, см | U11: 1 | V11: 30х45 | Y11: =FALSE -> FALSE | Z11: =IF(Y11,300)*X11 -> 0
B12: Рама
U13: 2 | V13: 60х50 | Y13: =FALSE -> FALSE | Z13: =IF(Y13,650)*X13 -> 0
B14: Профиль | U14: 3 | V14: 80х50 | Y14: =FALSE -> FALSE | Z14: =IF(Y14,900)*X14 -> 0
U16: 4 | V16: 60х80 | Y16: =FALSE -> FALSE | Z16: =IF(Y16,1120)*X16 -> 0
B17: Монтаж
C18: Доставка | U18: 6 | V18: 80х80 | X18: 1 | Y18: =FALSE -> FALSE | Z18: =IF(Y18,1560)*X18 -> 0
C19: Легковой автомобиль | U19: 8 | V19: 105х85 | Y19: =FALSE -> FALSE | Z19: =IF(Y19,1940)*X19 -> 0
U20: 10 | V20: 130х85 | X20: 0 | Y20: =FALSE -> FALSE | Z20: =IF(Y20,2258)*X20 -> 0
C21: Грузовая ГАЗель | U21: Итого | Z21: =SUM(Z11:Z20) -> 0
W22: =IF(Z21>10000,"Возможна скидка до 15%","Скидки НЕТ") -> Скидки НЕТ
C23: Материал | D23: профиль | E23: рама | F23: печать | G23: Люверсы | H23: Проклейка | I23: Доставка легк. | J23: Доставка груз. | K23: Монтаж
C24: =VLOOKUP(ФТабл.!B61,ФТабл.!A63:G88,7,0)*E7 -> 10192 | D24: =VLOOKUP(ФТабл.!H104,ФТабл.!G105:I107,3,0) -> 0 | E24: =IF(ФТабл.!O62=1,ФТабл.!I62=0,IF(ФТабл.!O3=2,ФТабл.!I62*ФТабл.!N65))*B7 -> 6370 | F24: =VLOOKUP(ФТабл.!B91,ФТабл.!A93:D96,4,0)*E7 -> 0 | G24: =VLOOKUP(ФТабл.!H91,ФТабл.!G93:J97,4,0) -> 2149.333333 | H24: =VLOOKUP(ФТабл.!H99,ФТабл.!G101:I102,3,0) -> 1736 | I24: =IF(ФТабл.!C33=1,ФТабл.!C34,IF(ФТабл.!C33=2,ФТабл.!C35,IF(ФТабл.!C33=3,ФТабл.!C36,IF(ФТабл.!C33=4,ФТабл.!C37,IF(ФТабл.!C33=5,ФТабл.!C38,IF(ФТабл.!C33=6,ФТабл.!C39,IF(ФТабл.!C33=7,ФТабл.!C40))))))) -> 800 | J24: =IF(ФТабл.!D33=1,ФТабл.!D34,IF(ФТабл.!D33=2,ФТабл.!D35,IF(ФТабл.!D33=3,ФТабл.!D36,IF(ФТабл.!D33=4,ФТабл.!D37,IF(ФТабл.!D33=5,ФТабл.!D38,IF(ФТабл.!D33=6,ФТабл.!D39,IF(ФТабл.!D33=7,ФТабл.!D40))))))) -> 1800 | K24: =VLOOKUP(ФТабл.!B100,ФТабл.!A102:E106,5,0) -> 0
B25: Стоимость | C25: =C24+D24+E24+F24+I24+J24+G24+H24+K24 -> 23047.33333 | D25: =C24/E7 -> 400
B26: =IF(C25>20000,"Возможна скидка до 20%","Возможна скидка до 10%") -> Возможна скидка до 20%
E28: Баннера
B41: добавить
B42: баннеры

Sheet ФТабл. (hidden)
D2: м.кв. | H2: Профили | M2: Рама | Q2: Печать
A3: 1 | B3: Оцинкованное железо | D3: =I43 -> 1794.5 | E3: 4 | H3: Без профиля | J3: 0 | K3: 2 | M3: Нет | O3: 2 | P3: 1 | Q3: Фон | R3: 200 | S3: =R3-336 -> -136 | T3: 4
A4: 2 | B4: ПВХ 2 мм | D4: 1656.12 | E4: =VLOOKUP(E3,A3:D17,4,0) -> 1981.72 | H4: Клемшина (ПВХ профиль, уголок) | M4: С рамой | P4: 2 | Q4: 540 dpi | R4: 336 | S4: 0
A5: 3 | B5: ПВХ 3 мм | D5: 1802.64 | H5: Нильсен | P5: 3 | Q5: 720 dpi | R5: 353 | S5: 17
A6: 4 | B6: ПВХ 4 мм | D6: 1981.72 | H6: Уголок из алюминия | M6: Стоимость рамы | N6: 250 | P6: 4 | Q6: 1440 dpi | R6: 370 | S6: 34
A7: 5 | B7: ПВХ 5 мм. | D7: 2144.52 | P7: 5 | Q7: Плоттер 2 цвета | R7: 400 | S7: 64
A8: 6 | B8: ПВХ 6 мм. | D8: 2681.76 | P8: 6 | Q8: Плоттер 3 цвета | R8: 600 | S8: 264
A9: 7 | B9: ПВХ 8 мм | D9: 2904.5 | H9: Площадь единицы продукции (кв.м) | I9: =Таблички!C8*Таблички!D8/10000 -> 0.06 | P9: 7 | Q9: Плоттер 3 - 5 цветов | R9: 800 | S9: 464
A10: 8 | B10: ПВХ 10 мм | D10: =I50 -> 3458.02 | H10: Периметр | I10: =((Таблички!C8*2)+(Таблички!D8*2))/100 -> 1 | P10: 8 | Q10: Транслюцентная плёнка | R10: 880 | S10: 544
A11: 9 | B11: Композитный материал | D11: 2914.675 | H11: Общая площадь | I11: =Таблички!C8*Таблички!D8*Таблички!B8/10000 -> 0.06
A12: 10 | B12: Сот. Поликарб. 4 мм | D12: 1681.1875 | H12: Профиль ПВХ | I12: =(((Таблички!C8*2)+(Таблички!D8*2))*150)/100 -> 150
A13: 11 | B13: Сот. Поликарб. 6 мм | D13: 2002.551587 | H13: Нильсен | I13: =((((Таблички!C8*2)+(Таблички!D8*2))*140)/100)+200 -> 340
A14: 12 | B14: Сот. Поликарб. 8 мм | D14: 2155.25 | H14: Уголок из алюминия | I14: =(((Таблички!C8*2)+(Таблички!D8*2))*180)/100 -> 180
A15: 13 | B15: Акрил 1 мм | D15: 1543.855833
A16: 14 | B16: Акрил 2 мм | D16: 2716.355
A17: 15 | B17: Акрил 3 мм. | D17: 3575.371667
B19: Пенокартон 10мм белый FOAM-X
B22: Односторонняя | D22: 1 | E22: =IF(D22=1,0,IF(D22=2,I11*700)) -> 0
B23: Двухсторонняя | M23: Карманы цена
B25: Монтаж | D25: 3
B26: Нет | C26: 0 | G26: Выезд | H26: 800
B27: До 2 м (без лестницы) | C27: =IF(I9<1,800,IF(I9<3,1920,IF(I9<6,3840,IF(I9<10,5720)))) -> 800 | G27: Работа | H27: 800
B28: От 2 до 7 м. | C28: =IF(I9<1,800,IF(I9<3,1920,IF(I9<6,3840,IF(I9<10,5720)))) -> 800
B29: От 7 м. (с АГП) | C29: =IF(I9<1,800,IF(I9<3,1920,IF(I9<6,3840,IF(I9<10,5720)))) -> 800 | D29: 5200 | E29: =D29+C29 -> 6000
B30: Альпинисты | C30: =IF(I9<1,800,IF(I9<10,I9*1000,IF(I9<50,I9*800))) -> 800 | D30: 4000 | E30: =D30+C30 -> 4800
L31: 1 | P31: 2 | S31: 3
C32: Выезд на монтаж | E32: Дост-ка легков | M32: 6 | N32: Цена | Q32: 6 | R32: Цена | T32: 9 | U32: Цена
B33: Доставка | C33: 2 | D33: 3 | M33: Карманы | N33: =VLOOKUP(M32,L34:N45,3,0) -> 400 | Q33: Карманы | R33: =VLOOKUP(Q32,P34:R45,3,0) -> 400 | T33: Карманы | U33: =VLOOKUP(T32,S34:U45,3,0) -> 250
B34: Нет | C34: 0 | D34: 0 | L34: 1 | M34: Нет | N34: 0 | P34: 1 | Q34: Нет | R34: 0 | S34: 1 | T34: Нет | U34: 0
B35: Самара | C35: 800 | D35: 1050 | E35: 600 | L35: 2 | M35: А5 | N35: 80 | P35: 2 | Q35: А5 | R35: 80 | S35: 2 | T35: А5 | U35: 80
B36: Сухая, Мехзавод | C36: 800 | D36: 1800 | E36: 600 | L36: 3 | M36: А4 | N36: 150 | P36: 3 | Q36: А4 | R36: 150 | S36: 3 | T36: А4 | U36: 150
B37: Тольятти | C37: 2100 | D37: 4500 | E37: 1500 | L37: 4 | M37: А3 | N37: 200 | P37: 4 | Q37: А3 | R37: 200 | S37: 4 | T37: А3 | U37: 200
B38: Новокуйбышевск | C38: 1000 | D38: 2000 | E38: 800 | L38: 5 | M38: А2 | N38: 300 | P38: 5 | Q38: А2 | R38: 300 | S38: 5 | T38: А2 | U38: 300
B39: Сызрань | C39: 3200 | D39: 6500 | E39: 2200 | L39: 6 | M39: А1 | N39: 400 | P39: 6 | Q39: А1 | R39: 400 | S39: 6 | T39: А1 | U39: 400
B40: Красный Яр | C40: 1300 | D40: 2600 | E40: 1000 | L40: 7 | M40: А0 | P40: 7 | Q40: А0 | S40: 7 | T40: А0
L41: 8 | M41: Под визитки объём | N41: 150 | P41: 8 | Q41: Под визитки объём | R41: 150 | S41: 8 | T41: Под визитки объём | U41: 150
C42: Лист | E42: 10% обрезки | F42: Плёнка | G42: Изготовление | H42: Прибыль 85% | I42: Итого: | L42: 9 | M42: А5 объём | N42: 250 | P42: 9 | Q42: А5 объём | R42: 250 | S42: 9 | T42: А5 объём | U42: 250
B43: Оцинкованное железо | D43: 300 | E43: =D43+(D43*0.1) -> 330 | F43: 340 | G43: 300 | H43: =(E43+F43+G43)*0.85 -> 824.5 | I43: =H43+G43+F43+E43 -> 1794.5 | J43: =I43+H43 -> 2619 | L43: 10 | M43: А4 объём | N43: 300 | P43: 10 | Q43: А4 объём | R43: 300 | S43: 10 | T43: А4 объём | U43: 300
B44: ПВХ 2 мм | C44: =Матер!D5 -> 1450 | D44: =C44/6.25 -> 232 | E44: =D44+(D44*0.1) -> 255.2 | F44: 340 | G44: 300 | H44: =(E44+F44+G44)*0.85 -> 760.92 | I44: 1656.12 | L44: 11 | M44: А3 объём | N44: 450 | P44: 11 | Q44: А3 объём | R44: 450 | S44: 11 | T44: А3 объём | U44: 450
B45: ПВХ 3 мм | C45: =Матер!D6 -> 1900 | D45: 304 | E45: 334.4 | F45: 340 | G45: 300 | H45: 828.24 | I45: 1802.64 | L45: 12 | M45: А2 объём | N45: 600 | P45: 12 | Q45: А2 объём | R45: 600 | S45: 12 | T45: А2 объём | U45: 600
B46: ПВХ 4 мм | C46: =Матер!D7 -> 2450 | D46: 392 | E46: 431.2 | F46: 340 | G46: 300 | H46: 910.52 | I46: 1981.72
B47: ПВХ 5 мм. | C47: =Матер!D8 -> 2950 | D47: 472 | E47: 519.2 | F47: 340 | G47: 300 | H47: 985.32 | I47: 2144.52
B48: ПВХ 6 мм. | C48: 4600 | D48: 736 | E48: 809.6 | F48: 340 | G48: 300 | H48: 1232.16 | I48: 2681.76
B49: ПВХ 8 мм | C49: =Матер!D9 -> 5000 | D49: 800 | E49: 880 | F49: 340 | G49: 350 | H49: 1334.5 | I49: 2904.5
B50: ПВХ 10 мм | C50: =Матер!D10 -> 6700 | D50: 1072 | E50: 1179.2 | F50: 340 | G50: 350 | H50: 1588.82 | I50: 3458.02
B51: Композитный материал | C51: 4830 | D51: =C51/6 -> 805 | E51: 885.5 | F51: 340 | G51: 350 | H51: =(E51+F51+G51)*0.85 -> 1339.175 | I51: 2914.675
B52: Сот. Поликарб. 4 мм | C52: 5418 | D52: =C52/25.2 -> 215 | E52: =D52+(D52*0.25) -> 268.75 | F52: 340 | G52: 300 | H52: 772.4375 | I52: 1681.1875
B53: Сот. Поликарб. 6 мм | C53: 8920 | D53: =C53/25.2 -> 353.968254 | E53: =D53+(D53*0.25) -> 442.4603175 | F53: 340 | G53: 300 | H53: 920.0912698 | I53: =H53+G53+F53+E53 -> 2002.551587
B54: Сот. Поликарб. 8 мм | C54: 10584 | D54: =C54/25.2 -> 420 | E54: =D54+(D54*0.25) -> 525 | F54: 340 | G54: 300 | H54: 990.25 | I54: =H54+G54+F54+E54 -> 2155.25
B55: Акрил 1 мм | C55: 1061 | D55: =C55/6 -> 176.8333333 | E55: 194.5166667 | F55: 340 | G55: 300 | H55: 709.3391667 | I55: =H55+G55+F55+E55 -> 1543.855833
B56: Акрил 2 мм | C56: =Матер!D11 -> 4518 | D56: =C56/6 -> 753 | E56: 828.3 | F56: 340 | G56: 300 | H56: 1248.055 | I56: =H56+G56+F56+E56 -> 2716.355
B57: Акрил 3 мм. | C57: =Матер!D12 -> 6778 | D57: =C57/6 -> 1129.666667 | E57: 1242.633333 | F57: 340 | G57: 350 | H57: 1642.738333 | I57: =H57+G57+F57+E57 -> 3575.371667
H58: =(E43+F43+G43)*1.8 -> 1746
B59: Баннеры
I60: 1
B61: 20 | H61: Параметры | M61: Рама
B62: Интерьерная печать | D62: <10 | E62: 10-20 | F62: >20 | H62: Площадь единицы продукции (кв.м) | I62: =Печать!E7 -> 25.48 | M62: Нет | O62: 2
A63: 1 | B63: ИНТЕРЬЕРНАЯ ПЕЧАТЬ | C63: 0 | H63: Периметр | I63: =((Печать!C7*2)+(Печать!D7*2))/100 -> 24.8 | M63: С рамой
A64: 2 | B64: Баннер 330 гр/м2. Лам. | C64: 260 | D64: =C64+(C64*0.25) -> 325 | E64: =D64-20 -> 305 | F64: =E64-15 -> 290 | G64: =(IF(I62<10,D64,IF(I62<20,E64,IF(I62<5000,F64)))) -> 290 | H64: Общая площадь | I64: =Печать!C7*Печать!D7*Печать!B7/10000 -> 25.48
A65: 3 | B65: Баннер 440 гр/м2. Лам. | C65: 290 | D65: 362.5 | E65: =D65-20 -> 342.5 | F65: =E65-15 -> 327.5 | G65: =(IF(I62<10,D65,IF(I62<20,E65,IF(I62<5000,F65)))) -> 327.5 | M65: Стоимость рамы | N65: 250
A66: 4 | B66: Баннер 440 гр/м2. Литой | C66: 300 | D66: 375 | E66: 355 | F66: 340 | G66: =(IF(I62<10,D66,IF(I62<20,E66,IF(I62<5000,F66)))) -> 340
A67: 5 | B67: Баннер 510 гр/м2 Литой | C67: 330 | D67: 412.5 | E67: 392.5 | F67: 377.5 | G67: =(IF(I62<10,D67,IF(I62<20,E67,IF(I62<5000,F67)))) -> 377.5
A68: 6 | B68: Баннер трансл 450 гр/м2 | C68: 482 | D68: 602.5 | E68: 582.5 | F68: 567.5 | G68: =(IF(I62<10,D68,IF(I62<20,E68,IF(I62<5000,F68)))) -> 567.5
A69: 7 | B69: Баннер сетка 370 гр/м2. | C69: 300 | D69: 375 | E69: 355 | F69: 340 | G69: =(IF(I67<10,D69,IF(I67<20,E69,IF(I67<5000,F69)))) -> 375
A70: 8 | B70: Blackout, 540 гр | C70: 700 | D70: =C70+(C70*0.25) -> 875 | E70: 855 | F70: 840 | G70: =(IF(I62<10,D70,IF(I62<20,E70,IF(I62<5000,F70)))) -> 840
A71: 9 | B71: Плёнка backlit | C71: 750 | D71: =C71+(C71*0.25) -> 937.5 | E71: 917.5 | F71: 902.5 | G71: =(IF(I62<10,D71,IF(I62<20,E71,IF(I62<5000,F71)))) -> 902.5
A72: 10 | B72: Транслюцентный плёнка | C72: 700 | D72: 875 | E72: 855 | F72: 840 | G72: =(IF(I62<10,D72,IF(I62<20,E72,IF(I62<5000,F72)))) -> 840
A73: 11 | B73: Холст синтетический | C73: 1300 | D73: 1625 | E73: 1605 | F73: 1590 | G73: =(IF(I62<10,D73,IF(I62<20,E73,IF(I62<5000,F73)))) -> 1590
A74: 12 | B74: Холст натуральный лен | C74: 2000 | D74: 2500 | E74: 2480 | F74: 2465 | G74: =(IF(I62<10,D74,IF(I62<20,E74,IF(I62<5000,F74)))) -> 2465
A75: 13 | B75: Плоттер, резка, выборка | C75: 700 | D75: 875 | E75: 855 | F75: 840 | G75: =(IF(I62<10,D75,IF(I62<20,E75,IF(I62<5000,F75)))) -> 840
A76: 14 | B76: Плёнка Оракал | C76: 300 | D76: 375 | E76: 355 | F76: 340 | G76: =(IF(I62<10,D76,IF(I62<20,E76,IF(I62<5000,F76)))) -> 340
A77: 15 | G77: =(IF(I63<10,D77,IF(I63<20,E77,IF(I63<5000,F77)))) -> 0
A78: 16 | B78: ШИРОКОФОРМАТНАЯ ПЕЧАТЬ | D78: <100 | E78: 100-200 | F78: >200
A79: 17 | B79: Китай 330 гр | C79: 168 | D79: =C79+(C79*0.4) -> 235.2 | E79: =D79-10 -> 225.2 | F79: =E79-10 -> 215.2 | G79: =(IF(I62<10,D79,IF(I62<20,E79,IF(I62<5000,F79)))) -> 215.2
A80: 18 | B80: Китай , 440 гр | C80: 212 | D80: =C80+(C80*0.4) -> 296.8 | E80: =D80-10 -> 286.8 | F80: =E80-10 -> 276.8 | G80: =(IF(I62<10,D80,IF(I62<20,E80,IF(I62<5000,F80)))) -> 276.8
A81: 19 | B81: Корея (литой), 440 гр | C81: 243 | D81: 340.2 | E81: 330.2 | F81: 320.2 | G81: =(IF(I62<10,D81,IF(I62<20,E81,IF(I62<5000,F81)))) -> 320.2
A82: 20 | B82: Европа, 510 гр | C82: 300 | D82: 420 | E82: 410 | F82: 400 | G82: =(IF(I62<10,D82,IF(I62<20,E82,IF(I62<5000,F82)))) -> 400
A83: 21 | B83: Blackout (двухстор), 710 гр | C83: 750 | D83: 1050 | E83: 1040 | F83: 1030 | G83: =(IF(I62<10,D83,IF(I62<20,E83,IF(I62<5000,F83)))) -> 1030
A84: 22 | B84: Баннер транслюц. 450 гр | C84: 437 | D84: 611.8 | E84: 601.8 | F84: 591.8 | G84: =(IF(I62<10,D84,IF(I62<20,E84,IF(I62<5000,F84)))) -> 591.8
A85: 23 | B85: Баннер сетка 370 гр/м2. | C85: 293 | D85: 410.2 | E85: 400.2 | F85: 390.2 | G85: =(IF(I62<10,D85,IF(I62<20,E85,IF(I62<5000,F85)))) -> 390.2
A86: 24 | B86: Бумага с синей подложкой | C86: 100 | D86: 140 | E86: 130 | F86: 120 | G86: =(IF(I62<10,D86,IF(I62<20,E86,IF(I62<5000,F86)))) -> 120
A87: 25 | B87: Транслюценная бумага | C87: 162 | D87: 226.8 | E87: 216.8 | F87: 206.8 | G87: =(IF(I62<10,D87,IF(I62<20,E87,IF(I62<5000,F87)))) -> 206.8
A88: 26 | B88: Перфорированная пленка | C88: 687 | D88: 961.8 | E88: 951.8 | F88: 941.8 | G88: =(IF(I62<10,D88,IF(I62<20,E88,IF(I62<5000,F88)))) -> 941.8
B91: 2 | H91: 3 | K91: руб/шт
B92: Печать | H92: Люверсы, см | I92: Количество | J92: цена | K92: 26
A93: 1 | B93: Нет | D93: 0 | G93: 1 | H93: Нет | I93: 0 | J93: 0
A94: 2 | B94: 540 dpi | D94: 0 | G94: 2 | H94: 20 | I94: =I63*100/H94 -> 124 | J94: =I94*K92 -> 3224
A95: 3 | B95: 720 dpi | D95: 0 | G95: 3 | H95: 30 | I95: =I63*100/H95 -> 82.66666667 | J95: =I95*K92 -> 2149.333333
A96: 4 | B96: 1440 dpi | D96: 0 | G96: 4 | H96: 40 | I96: =I63*100/H96 -> 62 | J96: =I96*K92 -> 1612
G97: 5 | H97: 50 | I97: =I63*100/H97 -> 49.6 | J97: =I97*K92 -> 1289.6
H99: 2
B100: 1 | H100: Проклейка | J100: руб/м.п.
B101: Монтаж | D101: 3 | G101: 1 | H101: Нет | I101: 0 | J101: 70
A102: 1 | B102: Нет | C102: 0 | G102: 2 | H102: Да | I102: =I63*J101 -> 1736
A103: 2 | B103: До 2 м (без лестницы) | C103: =IF(I62<1,800,IF(I62<5,1920,IF(I62<10,I62*400,IF(I62<50,I62*300)))) -> 7644 | E103: =C103 -> 7644
A104: 3 | B104: От 2 до 7 м. | C104: =IF(I62<1,1000,IF(I62<5,2500,IF(I62<10,I62*500,IF(I6<50,I62*400)))) -> 10192 | E104: =C104 -> 10192 | H104: 1
A105: 4 | B105: От 7 м. (с АГП) | C105: =IF(I62<1,1000,IF(I62<5,2500,IF(I62<10,I62*500,IF(I62<50,I62*400,IF(I62<100,I62*300))))) -> 10192 | D105: =IF(I62<10,5200,IF(I62<20,6500,IF(I62<30,9100,IF(I62<50,10400)))) -> 9100 | E105: =D105+C105 -> 19292 | G105: 1 | H105: Нет | I105: 0 | J105: руб/м.п.
A106: 5 | B106: Альпинисты | C106: =IF(I62<1,800,IF(I62<10,I62*1000,IF(I62<50,I62*800))) -> 20384 | D106: =IF(I62<5,2000,IF(I62<10,3000,IF(I62<50,5000))) -> 5000 | E106: =D106+C106 -> 25384 | G106: 2 | H106: Профиль из оцинковки | I106: =I63*J106 -> 8630.4 | J106: 348
G107: 3 | H107: Профиль из АКП | I107: =I64*J107 -> 13377 | J107: 525

Sheet ФБуквы (hidden)
B1: Вид буквы | E1: Вид шрифта | I1: «золотой» и «серебряный» профиль (наценка - 20%) | J1: Закатка пленкой (10-20%)
B2: Псевдообъём
B3: Псевдообъём, "Элькамет"
B4: Псевдообъём, пластиковый бок до 5 см
B5: =B23 -> 1. Объёмная буква (LED в лицо)
B6: Псевдообъём, LED контражур
B7: =B25 -> 2. Акрил-Лайт | E7: Простой
B8: =B26 -> 3. Пластик-Лайт | E8: Сложный, рукописный | H8: 1 | I8: FALSE | J8: FALSE
B9: =B27 -> 4. ALS - лайт (ALS, Элькамет, LED) | E9: Шрифт с засечками | H9: 2 | I9: =FALSE -> FALSE | J9: =FALSE -> FALSE
B10: Объёмные буквы (без подсветки) | H10: 3 | I10: =TRUE -> TRUE | J10: =FALSE -> FALSE
E11: строка 1 | F11: 1 | H11: 4 | I11: =FALSE -> FALSE | J11: =FALSE -> FALSE
B12: Буква с контражуром | E12: строка 2 | F12: 1
B13: Код строки в виде буквы | E13: строка 3 | F13: 1
B14: 7 | E14: строка 4 | F14: 1
D15: 1
C16: Цена* за 1 см высоты буквы в зависимости от ее вертикального размера **
B17: Размер буквы | C17: до 30 см. | D17: От 31 до 60 см | E17: От 61 до 90 см | F17: От 91 до 120 см | G17: Более 121см
B19: Вид буквы
A20: 1 | B20: Несветовая буква | C20: 8 | D20: 11.23 | E20: 14.5 | F20: 17.66 | G20: 26.24 | H20: =IF(C33>=121,G20,IF(C33>=91,F20,IF(C33>=61,E20,IF(C33>=31,D20,IF(C33>0,C20,0))))) -> 17.66 | I20: =IF(C34>=121,G20,IF(C34>=91,F20,IF(C34>=61,E20,IF(C34>=31,D20,IF(C34>0,C20,0))))) -> 26.24
A21: 2 | B21: Псевдообъём, "Элькамет" | C21: 23.38 | D21: 26.6 | E21: 29.8 | F21: 33 | G21: 40 | H21: =IF(C33>=121,G21,IF(C33>=91,F21,IF(C33>=61,E21,IF(C33>=31,D21,IF(C33>0,C21,0))))) -> 33 | I21: =IF(C34>=121,G21,IF(C34>=91,F21,IF(C34>=61,E21,IF(C34>=31,D21,IF(C34>0,C21,0))))) -> 40
A22: 3 | B22: Псевдообъём, пластиковый бок до 5 см. | C22: 30 | D22: 27 | E22: 26 | F22: 25 | G22: 25 | H22: =IF(C33>=121,G22,IF(C33>=91,F22,IF(C33>=61,E22,IF(C33>=31,D22,IF(C33>0,C22,0))))) -> 25 | I22: =IF(C34>=121,G22,IF(C34>=91,F22,IF(C34>=61,E22,IF(C34>=31,D22,IF(C34>0,C22,0))))) -> 25
A23: 4 | B23: 1. Объёмная буква (LED в лицо) | C23: =F74 -> 126.917057 | D23: =C23 -> 126.917057 | E23: =D23 -> 126.917057 | F23: =E23 -> 126.917057 | G23: =F23 -> 126.917057 | H23: =IF(C33>=121,G23,IF(C33>=91,F23,IF(C33>=61,E23,IF(C33>=31,D23,IF(C33>0,C23,0))))) -> 126.917057 | I23: =IF(C34>=121,G23,IF(C34>=91,F23,IF(C34>=61,E23,IF(C34>=31,D23,IF(C34>0,C23,0))))) -> 126.917057
A24: 5 | B24: Псевдообъём, LED контражур | C24: 85.77 | D24: 89 | E24: 92 | F24: 95.4 | G24: 104 | H24: =IF(C33>=121,G24,IF(C33>=91,F24,IF(C33>=61,E24,IF(C33>=31,D24,IF(C33>0,C24,0))))) -> 95.4 | I24: =IF(C34>=121,G24,IF(C34>=91,F24,IF(C34>=61,E24,IF(C34>=31,D24,IF(C34>0,C24,0))))) -> 104
A25: 6 | B25: 2. Акрил-Лайт | C25: =F94 -> 155.9064262 | D25: =F93 -> 144.357802 | E25: =D25 -> 144.357802 | F25: =E25 -> 144.357802 | G25: =F25 -> 144.357802 | H25: =IF(C33>=121,G25,IF(C33>=91,F25,IF(C33>=61,E25,IF(C33>=31,D25,IF(C33>0,C25,0))))) -> 144.357802 | I25: =IF(C34>=121,G25,IF(C34>=91,F25,IF(C34>=61,E25,IF(C34>=31,D25,IF(C34>0,C25,0))))) -> 144.357802
A26: 7 | B26: 3. Пластик-Лайт | C26: =F56 -> 144.0523462 | D26: =F56 -> 144.0523462 | E26: =F56 -> 144.0523462 | F26: =F56 -> 144.0523462 | G26: =F56 -> 144.0523462 | H26: =IF(C33>=121,G26,IF(C33>=91,F26,IF(C33>=61,E26,IF(C33>=31,D26,IF(C33>0,C26,0))))) -> 144.0523462 | I26: =IF(C34>=121,G26,IF(C34>=91,F26,IF(C34>=61,E26,IF(C34>=31,D26,IF(C34>0,C26,0))))) -> 144.0523462
A27: 8 | B27: 4. ALS - лайт (ALS, Элькамет, LED) | C27: =F115 -> 167.4052942
A28: 9 | B28: Объёмные буквы (без подсветки) | C28: 49 | D28: 48 | E28: 50 | F28: 51 | G28: 55 | H28: =IF(C33>=121,G28,IF(C33>=91,F28,IF(C33>=61,E28,IF(C33>=31,D28,IF(C33>0,C28,0))))) -> 51 | I28: =IF(C34>=121,G28,IF(C34>=91,F28,IF(C34>=61,E28,IF(C34>=31,D28,IF(C34>0,C28,0))))) -> 55
B29: Дополнительная нитка неона (цены указаны с 1-ой ниткой неона) | C29: От 0,6 за 1 см высоты буквы
H30: наценка | I30: наценка
B31: Кол-во букв | C31: Высота буквы (ширина) | D31: Цена за 1 см высоты буквы ($) | E31: Тип шрифта (сумма с наценкой на шрифт) | H31: «золотой» и «серебряный» профиль (наценка - 20%) | I31: Закатка пленкой (10-20%) | J31: Дополнительные нитки неона (0,6 $ за 1 см высоты)
E32: (наценка на шрифт: сложный и рукописный – 15%, с засечками – 20%) | J32: Кол-во | K32: Сумма за доп. неон
B33: =Буквы!B7 -> 15 | C33: =Буквы!C7 -> 110 | D33: =VLOOKUP(B14,A20:C28,3,0) -> 144.0523462 | E33: =IF(ФБуквы!F11=1,Буквы!B7*Буквы!C7*Буквы!D7,IF(ФБуквы!F11=2,Буквы!B7*Буквы!C7*Буквы!D7*1.15,IF(ФБуквы!F11=3,Буквы!B7*Буквы!C7*Буквы!D7*1.2))) -> 237686.3712 | H33: =IF(I8=TRUE,B33*C33*D33*0.2,0) -> 0 | I33: =IF(J8=TRUE,B33*C33*D33*0.15,0) -> 0
B34: =Буквы!B8 -> 1 | C34: =Буквы!C8 -> 158 | D34: =IF(B14=1,I20,IF(B14=2,I21,IF(B14=3,I22,IF(B14=4,I23,IF(B14=5,I24,IF(B14=6,I25,IF(B14=7,I26,IF(B14=8,I28)))))))) -> 144.0523462 | E34: =IF(ФБуквы!F12=1,Буквы!B8*Буквы!C8*Буквы!D8,IF(ФБуквы!F12=2,Буквы!B8*Буквы!C8*Буквы!D8*1.15,IF(ФБуквы!F12=3,Буквы!B8*Буквы!C8*Буквы!D8*1.2))) -> 22760.27069 | H34: =IF(I9=TRUE,B34*C34*D34*0.2,0) -> 0 | I34: =IF(J9=TRUE,B34*C34*D34*0.1,0) -> 0
B37: Первые буквы
B38: Пластик-лайт
B39: ПВХ 10 мм | C39: =(C33*C33/10000)+(C33*C33/10000*10%) -> 1.331 | D39: =C39*B33 -> 19.965 | E39: =D39*Матер!E10 -> 22294.25
B40: ПВХ 3 мм | C40: =C33*5*0.08/100 -> 0.44 | D40: =B33*C40 -> 6.6 | E40: =D40*Матер!E6 -> 2090
B41: Акрил 3 мм | C41: =(C33*C33/10000)+(C33*C33/10000*10%) -> 1.331 | D41: =B33*C41 -> 19.965 | E41: =D41*Матер!E12 -> 22553.795
B42: Плёнка 641 | C42: =C40 -> 0.44 | D42: =C42*B33 -> 6.6 | E42: =D42*Матер!D41 -> 1537.8
B43: Плёнка 8500 | C43: =C41 -> 1.331 | D43: =C43*B33 -> 19.965 | E43: =D43*Матер!D44 -> 12078.825
B44: Лента, модули | C44: =C33*3.5/100 -> 3.85 | D44: =C33*3/10*B33 -> 495 | E44: =D44*Матер!D73 -> 18315
B45: БП | C45: =D44*0.86/100 -> 4.257 | D45: =CEILING(C45,1) -> 5 | F45: =D45*1800 -> 9000 | G45: На каждые 100 ватт 1800 руб
B46: Космофен | E46: =C33*6*B33*115/10/100 -> 1138.5
B47: Крепёж | E47: =C33*6/100*0.3*B33*4 -> 118.8
B48: Итого материалы | E48: =SUM(E39:E47) -> 80126.97
B49: Материалы + прибыль | D49: 0.8 | E49: =E48+E48*D49 -> 144228.546
B50: Транспорт | E50: =E49*0.05 -> 7211.4273
B51: Фреза | C51: =(C33*5/100*B33)*4 -> 330 | D51: =40*1.8 -> 72 | E51: =D51*C51 -> 23760
B52: Субподряд
B53: Сборка | E53: ='ЗП буквы'!E3-'ЗП буквы'!E3*20% -> 22440
B54: Сборка + прибыль | D54: 1 | E54: =E53+E53*D54 -> 44880
B55: Итого | E55: =E54+E51+E50+E49 -> 220079.9733 | F55: =E55/B33/C33 -> 133.381802
B56: Итого +БП | D56: 0.08 | E56: =E55+(E55*D56) -> 237686.3712 | F56: =E56/B33/C33 -> 144.0523462
B59: LED в лицо по периметру
B60: =B39 -> ПВХ 10 мм | C60: 1.331 | D60: 19.965 | E60: 22294.25
B61: ПВХ 3 мм | C61: 0.44 | D61: 6.6 | E61: 2090
B62: Акрил 3 мм | C62: 1.331 | D62: 19.965 | E62: 22553.795
B63: Плёнка 641 | C63: 0.44 | D63: 6.6 | E63: 1537.8
B64: Пиксели | C64: =C33*5*B33 -> 8250 | D64: =C64/2 -> 4125 | E64: =D64*6 -> 24750
B65: =B45 -> БП | C65: =D64*0.05/100 -> 2.0625 | D65: =CEILING(C65,1) -> 3 | F65: =D65*1800 -> 5400
B66: =B46 -> Космофен | C66: =C46 -> 0 | D66: 0 | E66: 1138.5
B67: =B47 -> Крепёж | C67: 0 | D67: 0 | E67: 118.8
B68: =B48 -> Итого материалы | C68: =C48 -> 0 | D68: =D48 -> 0 | E68: =SUM(E60:E67) -> 74483.145
B69: =B49 -> Материалы + прибыль | C69: =C49 -> 0 | D69: 0.8 | E69: =E68+E68*D69 -> 134069.661
B70: Транспорт | C70: =C50 -> 0 | D70: =D50 -> 0 | E70: =E69*0.05 -> 6703.48305
B71: =B51 -> Фреза | C71: =C51 -> 330 | D71: =D51 -> 72 | E71: =E51 -> 23760
B72: =B53 -> Сборка | C72: =C53 -> 0 | D72: =D53 -> 0 | E72: =E53 -> 22440
B73: =B54 -> Сборка + прибыль | C73: =C54 -> 0 | D73: 1 | E73: =E72+E72*D73 -> 44880
B74: =B55 -> Итого | C74: =C55 -> 0 | D74: =D55 -> 0 | E74: =E73+E69+E70+E71 -> 209413.1441 | F74: =E74/B33/C33 -> 126.917057
B75: Итого +БП | D75: 0.08 | E75: =E74+(E74*D75) -> 226166.1956 | F75: =E75/C33/B33 -> 137.0704216
B78: Акрил-лайт
B79: =B39 -> ПВХ 10 мм | C79: =C39 -> 1.331 | D79: =D39 -> 19.965 | E79: =E39 -> 22294.25 | F79: =F39 -> 0
B80: Акрил 3 мм | C80: =C40 -> 0.44 | D80: =D40 -> 6.6 | E80: =D40*Матер!E12 -> 7455.8 | F80: =F40 -> 0
B81: =B41 -> Акрил 3 мм | C81: =C41 -> 1.331 | D81: =D41 -> 19.965 | E81: =E41 -> 22553.795 | F81: =F41 -> 0
B82: Плёнка 8500 | C82: =C43 -> 1.331 | D82: =D43 -> 19.965 | E82: =D82*Матер!D44 -> 12078.825 | F82: =F42 -> 0
B83: =B44 -> Лента, модули | C83: =C44 -> 3.85 | D83: 495 | E83: =E44 -> 18315 | F83: =F44 -> 0
B84: БП | C84: 4.257 | D84: 5 | F84: =F45 -> 9000 | G84: =G45 -> На каждые 100 ватт 1800 руб
B85: Космофен | C85: 0 | D85: 0 | E85: =E46 -> 1138.5 | F85: 0
B86: Крепёж | C86: 0 | D86: 0 | E86: =E47 -> 118.8 | F86: 0
B87: Итого материалы | C87: 0 | D87: 0 | E87: =SUM(E79:E86) -> 83954.97 | F87: 0
B88: Материалы + прибыль | C88: 0 | D88: 0.8 | E88: =E87+E87*D88 -> 151118.946 | F88: 0
B89: Транспорт | C89: 0 | D89: 0 | E89: =E50 -> 7211.4273 | F89: 0
B90: Фреза | C90: 330 | D90: 72 | E90: =E51 -> 23760 | F90: 0
B91: =B53 -> Сборка | C91: =C53 -> 0 | D91: 0.2 | E91: ='ЗП буквы'!E3 -> 28050 | F91: =F53 -> 0
B92: =B54 -> Сборка + прибыль | C92: 0 | D92: 1 | E92: =E91+E91*D92 -> 56100 | F92: =F54 -> 0
B93: Итого | C93: 0 | D93: 0 | E93: =E92+E89+E88+E90 -> 238190.3733 | F93: =E93/C33/B33 -> 144.357802
B94: Итого +БП | D94: 0.08 | E94: =E93+(E93*D94) -> 257245.6032 | F94: =E94/C33/B33 -> 155.9064262
B97: Als лайт
B98: =B39 -> ПВХ 10 мм | C98: =C33*C33/10000 -> 1.21 | D98: =C39*B33 -> 19.965 | E98: =D39*Матер!E10 -> 22294.25 | F98: =F39 -> 0
B99: ALS | C99: =C33*6/100 -> 6.6 | D99: =C99*B33 -> 99 | E99: =D99*Матер!E100 -> 23760 | F99: =F40 -> 0
B100: Элькамет | C100: =C33*6/100 -> 6.6 | D100: =C99*B33 -> 99 | E100: =D100*Матер!E99 -> 16830
B101: =B41 -> Акрил 3 мм | C101: =(C33*C33/10000)+(C33*C33/10000*10%) -> 1.331 | D101: =B33*C41 -> 19.965 | E101: =D41*Матер!E12 -> 22553.795 | F101: =F41 -> 0
B102: =B42 -> Плёнка 641 | C102: =C42 -> 0.44 | D102: =D42 -> 6.6 | E102: =E42 -> 1537.8 | F102: =F42 -> 0
B103: =B44 -> Лента, модули | C103: 3.85 | D103: 495 | E103: 18315 | F103: 0
B104: БП | C104: 4.257 | D104: 5 | E104: 0 | F104: 9000 | G104: =G45 -> На каждые 100 ватт 1800 руб
B105: Космофен | C105: 0 | D105: 0 | E105: 1138.5 | F105: 0
B106: Крепёж | C106: 0 | D106: 0 | E106: 118.8 | F106: 0
B107: =B48 -> Итого материалы | C107: =C48 -> 0 | D107: =D48 -> 0 | E107: =SUM(E98:E106) -> 106548.145 | F107: =F48 -> 0
B108: =B49 -> Материалы + прибыль | C108: 0 | D108: 0.8 | E108: =E107+E107*D108 -> 191786.661 | F108: 0
B109: Транспорт | C109: 0 | D109: 0 | E109: 7211.4273 | F109: 0
B110: Фреза | C110: =(C33*5/100*B33)*2 -> 165 | D110: 72 | E110: =D110*C110 -> 11880 | F110: 0
B111: Субподряд | C111: 0 | D111: 0 | E111: 0 | F111: 0
B112: Сборка | C112: 0 | D112: 0 | E112: ='ЗП буквы'!E3-'ЗП буквы'!E3*20% -> 22440 | F112: 0
B113: Сборка + прибыль | C113: 0 | D113: 1 | E113: =E112+E112*D113 -> 44880 | F113: 0
B114: Итого | C114: 0 | D114: 0 | E114: =E108+E109+E110+E113 -> 255758.0883 | F114: =E114/B33/C33 -> 155.004902
B115: Итого +БП | C115: 0 | D115: 0.08 | E115: =E114+E114*D115 -> 276218.7354 | F115: =E115/B33/C33 -> 167.4052942

Sheet Короба (hidden)
B1: Рекламно производственная компания "Белый Сокол"
B4: Нестандартные короба от 1 м2
B6: Количество | C6: Размер в см. | E6: Площадь м2
C7: Ширина | D7: Высота
B8: 1 | C8: 250 | D8: 70 | E8: =C8*D8/10000 -> 1.75
B11: Подсветка | C11: Для светодиодного короба
C12: Глубина
B14: Лицевая часть
U18: 4 | V18: 60х80 | Y18: =FALSE -> FALSE | Z18: =IF(Y18,1120)*X18 -> 0
B19: Монтаж | C19: Доставка | U19: 6 | V19: 80х80 | X19: 1 | Y19: =FALSE -> FALSE | Z19: =IF(Y19,1560)*X19 -> 0
C20: Легковой автомобиль | U20: 8 | V20: 105х85 | Y20: =FALSE -> FALSE | Z20: =IF(Y20,1940)*X20 -> 0
U21: 10 | V21: 130х85 | X21: 0 | Y21: =FALSE -> FALSE | Z21: =IF(Y21,2258)*X21 -> 0
C22: Грузовая ГАЗель | U22: Итого | Z22: =SUM(Z18:Z21) -> 0
W23: =IF(Z22>10000,"Возможна скидка до 15%","Скидки НЕТ") -> Скидки НЕТ
C24: Стоимость короба | E24: Лицевая | F24: Глубина | G24: Доставка легк. | H24: Доставка груз. | I24: Монтаж
C25: =IF(ФКороба!C10=1,ФКороба!C11,IF(ФКороба!C10=2,ФКороба!C12))+F25+E25 -> 23075 | E25: =ФКороба!D24 -> 350 | F25: =ФКороба!D31 -> 1900 | G25: =IF(ФТабл.!C33=1,ФТабл.!C34,IF(ФТабл.!C33=2,ФТабл.!C35,IF(ФТабл.!C33=3,ФТабл.!C36,IF(ФТабл.!C33=4,ФТабл.!C37,IF(ФТабл.!C33=5,ФТабл.!C38,IF(ФТабл.!C33=6,ФТабл.!C39,IF(ФТабл.!C33=7,ФТабл.!C40))))))) -> 800 | H25: =IF(ФТабл.!D33=1,ФТабл.!D34,IF(ФТабл.!D33=2,ФТабл.!D35,IF(ФТабл.!D33=3,ФТабл.!D36,IF(ФТабл.!D33=4,ФТабл.!D37,IF(ФТабл.!D33=5,ФТабл.!D38,IF(ФТабл.!D33=6,ФТабл.!D39,IF(ФТабл.!D33=7,ФТабл.!D40))))))) -> 1800 | I25: =IF(ФКороба!C16=1,ФКороба!C17,IF(ФКороба!C16=2,ФКороба!C18,IF(ФКороба!C16=3,ФКороба!C19,IF(ФКороба!C16=4,ФКороба!E20,IF(ФКороба!C16=5,ФКороба!E21))))) -> 0
B26: Стоимость | C26: =(C25+D25+G25+H25+I25)*B8 -> 25675 | D26: =C25/ФКороба!G3 -> 13185.71429

Sheet ФКороба (hidden)
B2: Короб | C2: 3 | F2: Площадь
B3: Односторонний | C3: =IF(C2=1,1,IF(C2=2,1.2,IF(C2=3,1.4))) -> 1.4 | F3: Единичного | G3: =Короба!C8*Короба!D8/10000 -> 1.75
B4: + боковое свечение | F4: Общая | G4: =Короба!D8*Короба!C8*Короба!B8/10000 -> 1.75
B5: Двухсторонний
B6: Композитный короб
B10: Подсветка | C10: 2
B11: Люминисцентные лампы | C11: =IF(G3<2,6500,IF(G3<5,6000,IF(G3<10,5500,IF(G3>=10,5000))))*G3*C3 -> 15925
B12: Светодиоды | C12: =IF(G3<10,8500,IF(G3>10,9000))*G3*C3 -> 20825
B13: Неон
B16: Монтаж | C16: 1
B17: Нет | C17: 0
B18: До 2 м (без лестницы) | C18: =IF(G3<1,600,IF(G3>=1,G3*800)) -> 1400
B19: От 2 до 7 м. | C19: =IF(G3<1,800,IF(G3>=1,G3*1000)) -> 1750
B20: От 7 м. (с АГП) | C20: =IF(G3<1,1000,IF(G3>=1,G3*1200)) -> 2100 | D20: =IF(G3<4,3200,IF(G3<10,6400,IF(G3<20,12800))) -> 3200 | E20: =D20+C20 -> 5300
B21: Альпинисты | C21: =IF(G3<1,1000,IF(G3>=1,G3*1200)) -> 2100 | D21: =IF(G3<3,2000,IF(G3<5,4000,IF(G3<10,8000))) -> 2000 | E21: =D21+C21 -> 4100
B23: Материалы | C23: 2
B24: Композит | C24: =G3*2500 -> 4375 | D24: =IF(C23=1,C24,IF(C23=2,C25,IF(C23=3,C26,IF(C23=4,C27)))) -> 350
B25: Акрил | C25: =G3*200 -> 350
B26: Сотовый поликарбонат | C26: 0
B27: Баннерная ткань | C27: 0
B29: Глубина короба | C29: 3
B30: ЛАМПЫ | C30: 0
B31: 250-300 мм | C31: 0 | D31: =IF(C29=1,C30,IF(C29=2,C31,IF(C29=3,C32,IF(C29=4,C33)))) -> 1900
B32: 200 мм | C32: 1900
B33: 100-150 мм | C33: 4000

Sheet Бланк заказа (hidden)
B2: БЛАНК-ЗАКАЗА № | F2: Дата поступления | G2: Срок сдачи
B4: Заказчик
B5: Конт. лицо со стороны Заказчика
B6: Монтаж /да, нет/ (Адрес)
B7: Менеджер | D7: Рамазанова Анфиса
B8: Доставка /да, нет/ (Адрес)
B18: Лицо ответственное за качество
B20: ОПИСАНИЕ ЗАКАЗА
A22: 1 | B22: Готовое изделие | D22: табличка | E22: Вывеска | F22: Буквы | G22: КОРОБ | H22: Иное
B23: Размер | D23: ширина | E23: 45 | F23: высота | G23: 453
B24: Материал | D24: ПВХ
B25: Используемые плёнки | D25: Фон | F25: Текст
B26: Примечание
A28: 2 | B28: Готовое изделие | D28: табличка | E28: Вывеска | F28: Буквы | G28: КОРОБ | H28: Иное
B29: Размер | D29: ширина | F29: высота
B30: Материал | D30: ПВХ
B31: Макет
B32: Примечание
B35: Стоимость заказа
C37: Выполненные работы.
C38: Название | G38: Количество | H38: Сумма
B39: Андрей
B42: Антон
B45: Максим
B48: Михаил
B51: Олег
B54: Павел

Sheet Лист3 (hidden)
A2: Буквы
B3: Кол-во букв | C3: Высота буквы (ширина) | D3: Вид букв | E3: Цена за 1 см. высоты буквы | H3: Тип шрифта (рукописный - 15%, с засечками - 20%) | I3: "Золотой" или "Серебрянный" профиль (наценка - 20%) | K3: Сумма
N4: пвх руб. | P4: Резка руб. | Q4: плёнка | R4: накатка | Y4: Итого | Z4: Стоимость | AA4: Прибыль
B5: 4 | C5: 30 | D5: несветовые, псевдообъёмные | E5: 20 | F5: 8 | G5: 11.23 | H5: 14.5 | I5: 17.66 | J5: 26.24 | K5: =Z5*B5 -> 961.92 | M5: =C5 -> 30 | N5: =C5*M5*0.03 -> 27 | P5: =C5*6*0.5 -> 90 | Q5: =M5*C5*0.012 -> 10.8 | R5: =M5*C5*0.025 -> 22.5 | Y5: =R5+Q5+P5+N5 -> 150.3 | Z5: =Y5*1.6 -> 240.48 | AA5: =Z5-Y5 -> 90.18
F6: 30 | G6: 60 | H6: 90 | I6: 120 | J6: 120- | S6: Элькамет | T6: Укладка элькамета
B7: 1 | C7: 200 | D7: несветовые, элькамет | F7: 23.38 | G7: 26.6 | H7: 29.8 | I7: 33 | J7: 40 | K7: =Z7*B7 -> 8320 | M7: =C7 -> 200 | N7: =C7*M7*0.03 -> 1200 | P7: =C7*6*0.5 -> 600 | Q7: =M7*C7*0.012 -> 480 | R7: =M7*C7*0.025 -> 1000 | S7: =M7*6*1 -> 1200 | T7: =C7*6*0.6 -> 720 | Y7: =R7+Q7+P7+N7+S7+T7 -> 5200 | Z7: =Y7*1.6 -> 8320 | AA7: =Z7-Y7 -> 3120
W8: LED | X8: Установка LED
B9: 1 | C9: 200 | D9: с элькаметом, LED в лицо | F9: 83.38 | G9: 86.6 | H9: 89.8 | I9: 93 | J9: =K9/C9 -> 101.6 | K9: =Z9*B9 -> 20320 | M9: =C9 -> 200 | N9: =C9*M9*0.03 -> 1200 | P9: =C9*6*0.5 -> 600 | Q9: =M9*C9*0.012 -> 480 | R9: =M9*C9*0.025 -> 1000 | S9: =M9*6*1 -> 1200 | T9: =C9*6*0.6 -> 720 | W9: =C9*6/1.6*5 -> 3750 | X9: =C9*6/1.6*5 -> 3750 | Y9: =R9+Q9+P9+N9+S9+T9+W9+X9 -> 12700 | Z9: =Y9*1.6 -> 20320 | AA9: =Z9-Y9 -> 7620
B11: 1 | C11: 200 | D11: с элькаметом, LED контражур | F11: 85.77 | G11: 89 | H11: 92 | I11: 95.4 | J11: 104 | K11: =Z11*B11 -> 20800 | M11: =C11 -> 200 | N11: =C11*M11*0.03 -> 1200 | P11: =C11*6*0.5 -> 600 | Q11: =M11*C11*0.012 -> 480 | R11: =M11*C11*0.025 -> 1000 | S11: =M11*6*1 -> 1200 | T11: =C11*6*0.6 -> 720 | W11: =C11*6*650*0.01 -> 7800 | Y11: =R11+Q11+P11+N11+S11+T11+W11+X11 -> 13000 | Z11: =Y11*1.6 -> 20800 | AA11: =Z11-Y11 -> 7800
B13: 1 | C13: 75 | D13: с элькаметом, НЕОН контражур | F13: 100 | G13: 103.4 | H13: 106.6 | I13: 109.8 | J13: 118.4 | K13: =Z13*B13 -> 7875 | M13: =C13 -> 75 | N13: =C13*M13*0.03 -> 168.75 | P13: =C13*6*0.5 -> 225 | Q13: =M13*C13*0.012 -> 67.5 | R13: =M13*C13*0.025 -> 140.625 | S13: =M13*6*1 -> 450 | T13: =C13*6*0.6 -> 270 | W13: =C13*4*1200*0.01 -> 3600 | Y13: =R13+Q13+P13+N13+S13+T13+W13+X13 -> 4921.875 | Z13: =Y13*1.6 -> 7875 | AA13: =Z13-Y13 -> 2953.125
O14: Акрил 3 мм. | U14: ALS | V14: Укладка ALS
B15: 6 | C15: 20 | D15: Объёмные буквы (ALS, Элькамет) | F15: 111.84 | G15: 118 | H15: 124.3 | I15: 130.56 | J15: 147.2 | K15: =Z15*B15 -> 13171.2 | M15: =C15 -> 20 | N15: =C15*M15*300*0.0001 -> 12 | O15: =C15*M15*630*0.0001 -> 25.2 | P15: =C15*6*0.5 -> 60 | Q15: =M15*C15*0.012 -> 4.8 | R15: =M15*C15*0.025 -> 10 | S15: =M15*6*1 -> 120 | T15: =C15*6*0.6 -> 72 | U15: =C15*6*110*0.01 -> 132 | V15: =C15*6*80*0.01 -> 96 | W15: =C15*6*650*0.01 -> 780 | Y15: =R15+Q15+(P15*2)+N15+S15+T15+W15+X15+U15+V15+O15 -> 1372 | Z15: =Y15*1.6 -> 2195.2 | AA15: =Z15-Y15 -> 823.2
B16: 1 | C16: 60 | D16: Толщина линии букв 15 - 30 см. | K16: =Z16*B16 -> 7084.8 | M16: =C16 -> 60 | N16: =C16*M16*300*0.0001 -> 108 | O16: =C16*M16*630*0.0001 -> 226.8 | P16: =C16*6*0.5 -> 180 | Q16: =M16*C16*0.012 -> 43.2 | R16: =M16*C16*0.025 -> 90 | S16: =M16*6*1 -> 360 | T16: =C16*6*0.6 -> 216 | U16: =C16*6*110*0.01 -> 396 | V16: =C16*6*80*0.01 -> 288 | W16: =C16*6*650*0.01 -> 2340 | Y16: =R16+Q16+(P16*2)+N16+S16+T16+W16+X16+U16+V16+O16 -> 4428 | Z16: =Y16*1.6 -> 7084.8 | AA16: =Z16-Y16 -> 2656.8
D19: Объёмные буквы из ПВХ
D21: Объёмные буквы из Акрила
D23: объёмные, LED
D24: объёмные, НЕОН
D25: объёмные, люминисцентные
D26: Пенополистирол буквы

Sheet Матер (hidden)
A1: Журнал данных прайс-листа и продаж по товарам
A3: Код товара | B3: Наименование товара | C3: Цена на дату | D3: Розн. цена за ед. | E3: Продано в розницу | F3: Продано оптом | G3: Всего продаж (шт.) | H3: Всего продаж ($)
B4: Листовой материал
A5: 1 | B5: ПВХ 2мм (2,0х3,0м) | C5: 26,01,2016 | D5: 1450 | E5: =D5/6 -> 241.6666667
A6: 2 | B6: ПВХ 3мм (2,0х3,0м) | C6: 26,01,2016 | D6: 1900 | E6: =D6/6 -> 316.6666667
A7: 3 | B7: ПВХ 4мм (2,0х3,0м) | C7: 26,01,2016 | D7: 2450 | E7: 408.3333333
A8: 4 | B8: ПВХ 5мм (2,0х3,0м) | C8: 26,01,2019 | D8: 2950 | E8: 491.6666667
A9: 6 | B9: ПВХ 8мм (2,0х3,0м) | C9: 26,01,2020 | D9: 5000 | E9: 833.3333333
A10: 7 | B10: ПВХ 10мм (2,0х3,0м) | C10: 26,01,2021 | D10: 6700 | E10: 1116.666667
A11: 8 | B11: Акрил 2мм (2,0х3,0м) | C11: 26,01,2022 | D11: 4518 | E11: 753
A12: 9 | B12: Акрил 3мм (2,0х3,0м) | C12: 26,01,2023 | D12: 6778 | E12: 1129.666667
A13: 10 | B13: Акрил 4мм (2,0х3,0м) | C13: 26,01,2024 | D13: 9037 | E13: 1506.166667
A14: 11 | B14: Акрил 5мм (2,0х3,0м) | C14: 26,01,2025 | D14: 10810 | E14: 1801.666667
A15: 12 | B15: Акрил 8мм (прозрачное) (2,0х3,0м) | C15: 26,01,2026 | D15: 15994 | E15: 2665.666667
A16: 13 | B16: Акрил 10 (прозрачное) (2,0х3,0м) | C16: 26,01,2027 | D16: 19992 | E16: 3332
A17: 14 | B17: Аркил 10мм (2,0х3,0м) | C17: 26,01,2028 | D17: 21795 | E17: 3632.5
A18: 15 | B18: Аркил цветной (1,5х1,7) | C18: 26,01,2029 | D18: 4007
A19: 16 | B19: Монолит.Поликарб 2 мм (2,0х3,0м) | C19: 26,01,2030 | D19: 4112 | E19: 685.3333333
A20: 17 | B20: Монолит.Поликарб 3мм (2,0х3,0м) | C20: 26,01,2031 | D20: 6168 | E20: 1028
A21: 18 | B21: Монолит.Поликарб 5мм (прозрачный 2,0х3,0м) | C21: 26,01,2032 | D21: 9789 | E21: 1631.5
A22: 19 | B22: Монолит.Поликарб 8мм (прозрачный 2,0х3,0м) | C22: 26,01,2033 | D22: 15663 | E22: 2610.5
A23: 20 | B23: Монолит.Поликарб 10мм (прозрачный 2,0х3,0м) | C23: 26,01,2034 | D23: 19579 | E23: 3263.166667
A24: 21 | B24: Сотовый поликарб. 4мм (кв.м) | C24: 26,01,2035 | D24: 215
A25: 22 | B25: Сотовый поликарб. 6мм (кв.м) | C25: 26,01,2036 | D25: 354
A26: 23 | B26: Сотовый поликарб. 8мм (кв.м) | C26: 26,01,2037 | D26: 420
A27: 24 | B27: Цинк 0,5мм (кв.м) | C27: 26,01,2038 | D27: 269
A28: 25 | B28: Цинк 0,7мм (кв.м) | C28: 26,01,2039 | D28: 340
A29: 26 | B29: АКП (Простые цвета )(кв.м) | C29: 26,01,2040 | D29: 805
A30: 27 | B30: АКП (зеркало, камень и тд )(кв.м) | C30: 26,01,2041 | D30: 1390
A31: 28 | B31: ПЭТ 0,5мм (1,22х2,04м) | C31: 26,01,2042 | D31: 425
A32: 29 | B32: ПЭТ 0,7мм (1,22х2,04м) | C32: 26,01,2043 | D32: 697
A33: 30 | B33: ПЭТ 1,0мм (1,22х2,04м) | C33: 26,01,2044 | D33: 1060
A34: 31 | B34: Пенокартон Artfoam 3мм (1,4х1,0м) | C34: 26,01,2045 | D34: 556
A35: 32 | B35: Пенокартон Artfoam 5мм (1,4х1,0м) | C35: 26,01,2046 | D35: 587
A36: 33 | B36: Пенокартон Artfoam 10мм (1,4х1,0м) | C36: 26,01,2047 | D36: 989
B37: Рулонный материал
A38: 1 | B38: Пленка Konflex | D38: 74
A39: 2 | B39: Пленка Oraget 3610 | D39: 118
A40: 3 | B40: Пленка Oracal 641 (Цвета 0-10) | D40: 196
A41: 4 | B41: Пленка Oracal 641 (Цвета 20-72 ) | D41: 233
A42: 5 | B42: Пленка Oracal 641 (цвета металик 90-92 ) | D42: 268
A43: 6 | B43: Пленка Oracal 8300 | D43: 516
A44: 7 | B44: Пленка Oracal 8500 | D44: 605
A45: 8 | B45: Пленка Oracal 970 (автомобильная литая) 1,52м. | D45: 1200
A46: 9 | B46: Пленка Oracal 352 (металезированная)цвета 00-003 | D46: 346
A47: 10 | B47: Пленка Oracal 352 (металезированная)цвета 003-901 | D47: 443
A48: 11 | B48: Пленка Oracal 352 (металезированная)цвета 907-911 | D48: 681
A49: 12 | B49: Пленка ПЭТ Бэклит 260 гр | D49: 279
A50: 13 | B50: Пленка Oracal 3110 (светоотраж) 1,24м | D50: 513
A51: 14 | B51: Пленка монтажная Orafol (MT-95) | D51: 103
A52: 15 | B52: Пленка orabond | D52: 330
A53: 16 | B53: Пленка "перфорированная" | D53: 324
A54: 17 | B54: Бумага постерная 220гр. | D54: 185
A55: 18 | B55: Банер 440гр. | D55: 96
A56: 19 | B56: Банер 330гр. | D56: 74
A57: 20 | B57: Банер "сетка" | D57: 134
A58: 21 | B58: Банер "транслюцентный" | D58: 127
A59: 22 | B59: Банер 400гр."Литой" | D59: 135
A60: 23 | B60: Холст синт. Oil canvas 260гр. | D60: 228
A61: 24 | B61: Холст нат. Troja 390гр | D61: 889
B62: Скотчи и клей
A63: 1 | B63: Космофен СА-12 (20гр) | D63: 115
A64: 2 | B64: Космофен plus | D64: 224
A65: 3 | B65: Космофен PMMA | D65: 534
A66: 4 | B66: Скотч BOMA19ммх50м | D66: 897
A67: 5 | B67: Скотч Orafol 6ммх50мм | D67: 312
A68: 6 | B68: Скотч Orafol 25ммх50мм | D68: 1058
A69: 7 | B69: Скотч упаковочный прозрачный,50ммх140м | D69: 55
A70: 8 | B70: Пленка-стрейч500м,17мкр. | D70: 270
A71: 9 | B71: Скотч 3М 4910F 6ммх33м | D71: 1008
A72: 10 | B72: Светотехника и электрика
B73: Светодиодный модуль LUX-3smd 35289(линза) 0,55вт | D73: 37
B74: Светодиодный модуль LUX-2smd 3528 (линза)0,72вт | D74: 36
B75: Светодиодный модуль ELF Vivoııı 2smd (линза) 0,75Вт | D75: 89
B76: Светодиодный модуль ELF Vivoıı 2smd (линза) 0,52Вт | D76: 73
B77: Светодиодный модуль VIVO IV (линза) 1,0Вт | D77: 109
B78: Светодиодны модуль R12 торцевой 1,5вт | D78: 100
B79: Светодиодный пиксель | D79: 9
B80: Блок питания 12V 30Ватт ip65 | C80: 30 | D80: 680
B81: Блок питания 12V 60Ватт ip65 | C81: 60 | D81: 1105
B82: Блок питания 12V 100Ватт ip65 | C82: 100 | D82: 1310
B83: Блок питания 12V 150Ватт ip65 | C83: 150
B84: Провод ПВС 1,5х3мм | D84: 27
B85: Провод ВШПП 0,75Х2мм | D85: 11
B86: Провод ВШПП 0,5Х2мм
B87: Гофра канал 20мм. | D87: 8
B88: Держатель для гофры 20мм. | D88: 1.5
B89: Клемма Wago рычаг. 3 кон. | D89: 18
B90: Клемма Wago рычаг. 5 кон. | D90: 25
B91: Изалеционная лента
B92: Светодиодная лента 3528 ip22 60штх1,0м
B93: Светодиодная лента 3528 ip65 (силикон)60штх1,0м
B94: Светодиодная лента 3528 ip22 120штх1,0м
B95: Светодиодная лента 3528 ip22 60штх1,0м (цветная)
B96: Светодиодная лента 5050 ip22 60штх1,0м (RGB)
B97: Светодиодная лента 5050 ip22 60штх1,0м
B98: Профели
B99: Элькамет | D99: 680 | E99: =D99/4 -> 170
B100: АЛС 2 м | D100: 480 | E100: =D100/2 -> 240
B101: Профиль Алюминий 60 мм | D101: 226
B102: Профиль Алюминий 100 мм | D102: 240
B103: Профиль Алюминий 130 мм | D103: 250
B104: Профиль Алюминий 160 мм | D104: 300
B105: Профиль Алюминий 180 мм | D105: 320
B106: Профиль Металл 160 мм | D106: 315
B107: Профиль Металл 180 мм | D107: 330
B108: Профиль Металл 200 мм | D108: 400
B109: Профиль Композитный 100 мм | D109: 200
B110: Профиль Композитный 130 мм | D110: 230
B111: Профиль Композитный 160 мм | D111: 250
B112: Профиль Композитный 180 мм | D112: 260
B113: Уголки | D113: 100
B114: Провода, крепёж, покраска | D114: 200
B115: Профиль ALS | D115: 240
B116: Профиль Элькамет | D116: 170
B117: Лицевая акрил | D117: 100
B118: Лицевая сотовый поликарбонат | D118: 100
B119: Лицевая баннер | D119: 100
B120: Задняя часть Оцинкованная сталь | D120: 100
B121: Задняя часть Композитная панель | D121: 100
B122: Подсветка Ленты светодиодные | D122: 100
B123: Подсветка Лампы 6 мес | D123: 100
B124: Подсветка Светодиоды 1 год | D124: 100
B125: Подсветка Светодиоды 3 года | D125: 100
B126: Подсветка Светодиоды 5 лет | D126: 100

Sheet ЗП буквы (hidden)
B2: Высота | C2: Количество | D2: Сумма за см. | E2: Итого | F2: Коэффициент
A3: F | B3: =ФБуквы!C33 -> 110 | C3: =ФБуквы!B33 -> 15 | D3: =VLOOKUP(B3,J3:K293,2,0) -> 17 | E3: =D3*C3*B3 -> 28050 | F3: =E3 -> 28050 | I3: 1 | J3: 300 | K3: 10
A4: a | B4: 116 | C4: 2 | D4: =VLOOKUP(B4,J3:K283,2,0) -> 17 | E4: =D4*C4*B4 -> 3944 | F4: =E4 -> 3944 | I4: 2 | J4: 299 | K4: 10
A5: m | B5: 215 | C5: 1 | D5: =VLOOKUP(B5,J3:K283,2,0) -> 10 | E5: =D5*C5*B5 -> 2150 | F5: =E5 -> 2150 | I5: 3 | J5: 298 | K5: 10
A6: i | B6: 146 | C6: 2 | D6: =VLOOKUP(B6,J4:K284,2,0) -> 16 | E6: =D6*C6*B6 -> 4672 | F6: =E6/2 -> 2336 | I6: 4 | J6: 297 | K6: 10
A7: l | B7: 159 | C7: 1 | D7: =VLOOKUP(B7,J5:K285,2,0) -> 16 | E7: =D7*C7*B7 -> 2544 | F7: =E7/3 -> 848 | I7: 5 | J7: 296 | K7: 10
A8: Итого: | E8: =SUM(E3:E7) -> 41360 | F8: =SUM(F3:F7) -> 37328 | I8: 6 | J8: 295 | K8: 10
I9: 7 | J9: 294 | K9: 10
I10: 8 | J10: 293 | K10: 10
I11: 9 | J11: 292 | K11: 10
I12: 10 | J12: 291 | K12: 10
I13: 11 | J13: 290 | K13: 10
I14: 12 | J14: 289 | K14: 10
I15: 13 | J15: 288 | K15: 10
I16: 14 | J16: 287 | K16: 10
I17: 15 | J17: 286 | K17: 10
A18: см | B18: $ | C18: Сумма | I18: 16 | J18: 285 | K18: 10
A19: 300 | B19: 10 | C19: =B19*A19 -> 3000 | I19: 17 | J19: 284 | K19: 10
A20: 200 | B20: 12 | C20: =B20*A20 -> 2400 | I20: 18 | J20: 283 | K20: 10
A21: 100 | B21: 15 | C21: =B21*A21 -> 1500 | I21: 19 | J21: 282 | K21: 10
A22: 50 | B22: 20 | C22: =B22*A22 -> 1000 | I22: 20 | J22: 281 | K22: 10
A23: 20 | B23: 25 | C23: =B23*A23 -> 500 | I23: 21 | J23: 280 | K23: 10
I24: 22 | J24: 279 | K24: 10
A25: 33 | B25: 30 | C25: 4 | D25: =C25*B25*A25 -> 3960 | I25: 23 | J25: 278 | K25: 10
A26: 27 | B26: 30 | C26: 3 | D26: =C26*B26*A26 -> 2430 | I26: 24 | J26: 277 | K26: 10
D27: =D26+D25 -> 6390 | I27: 25 | J27: 276 | K27: 10
A28: 200 | B28: 10 | C28: 4 | D28: =C28*B28*A28 -> 8000 | I28: 26 | J28: 275 | K28: 10
A29: 144 | B29: 12 | C29: 3 | D29: =C29*B29*A29 -> 5184 | I29: 27 | J29: 274 | K29: 10
D30: =D29+D28 -> 13184 | I30: 28 | J30: 273 | K30: 10
I31: 29 | J31: 272 | K31: 10
A32: 43 | B32: 25 | C32: 13 | D32: =C32*B32*A32 -> 13975 | I32: 30 | J32: 271 | K32: 10
I33: 31 | J33: 270 | K33: 10
I34: 32 | J34: 269 | K34: 10
I35: 33 | J35: 268 | K35: 10
I36: 34 | J36: 267 | K36: 10
I37: 35 | J37: 266 | K37: 10
I38: 36 | J38: 265 | K38: 10
I39: 37 | J39: 264 | K39: 10
I40: 38 | J40: 263 | K40: 10
I41: 39 | J41: 262 | K41: 10
I42: 40 | J42: 261 | K42: 10
I43: 41 | J43: 260 | K43: 10
I44: 42 | J44: 259 | K44: 10
I45: 43 | J45: 258 | K45: 10
I46: 44 | J46: 257 | K46: 10
I47: 45 | J47: 256 | K47: 10
I48: 46 | J48: 255 | K48: 10
I49: 47 | J49: 254 | K49: 10
I50: 48 | J50: 253 | K50: 10
I51: 49 | J51: 252 | K51: 10
I52: 50 | J52: 251 | K52: 10
I53: 51 | J53: 250 | K53: 10
I54: 52 | J54: 249 | K54: 10
I55: 53 | J55: 248 | K55: 10
I56: 54 | J56: 247 | K56: 10
I57: 55 | J57: 246 | K57: 10
I58: 56 | J58: 245 | K58: 10
I59: 57 | J59: 244 | K59: 10
I60: 58 | J60: 243 | K60: 10
I61: 59 | J61: 242 | K61: 10
I62: 60 | J62: 241 | K62: 10
I63: 61 | J63: 240 | K63: 10
I64: 62 | J64: 239 | K64: 10
I65: 63 | J65: 238 | K65: 10
I66: 64 | J66: 237 | K66: 10
I67: 65 | J67: 236 | K67: 10
I68: 66 | J68: 235 | K68: 10
I69: 67 | J69: 234 | K69: 10
I70: 68 | J70: 233 | K70: 10
I71: 69 | J71: 232 | K71: 10
I72: 70 | J72: 231 | K72: 10
I73: 71 | J73: 230 | K73: 10
I74: 72 | J74: 229 | K74: 10
I75: 73 | J75: 228 | K75: 10
I76: 74 | J76: 227 | K76: 10
I77: 75 | J77: 226 | K77: 10
I78: 76 | J78: 225 | K78: 10
I79: 77 | J79: 224 | K79: 10
I80: 78 | J80: 223 | K80: 10
I81: 79 | J81: 222 | K81: 10
I82: 80 | J82: 221 | K82: 10
I83: 81 | J83: 220 | K83: 10
I84: 82 | J84: 219 | K84: 10
I85: 83 | J85: 218 | K85: 10
I86: 84 | J86: 217 | K86: 10
I87: 85 | J87: 216 | K87: 10
I88: 86 | J88: 215 | K88: 10
I89: 87 | J89: 214 | K89: 10
I90: 88 | J90: 213 | K90: 10
I91: 89 | J91: 212 | K91: 10
I92: 90 | J92: 211 | K92: 10
I93: 91 | J93: 210 | K93: 10
I94: 92 | J94: 209 | K94: 10
I95: 93 | J95: 208 | K95: 10
I96: 94 | J96: 207 | K96: 10
I97: 95 | J97: 206 | K97: 10
I98: 96 | J98: 205 | K98: 10
I99: 97 | J99: 204 | K99: 10
I100: 98 | J100: 203 | K100: 10
I101: 99 | J101: 202 | K101: 10
I102: 100 | J102: 201 | K102: 10
I103: 101 | J103: 200 | K103: 12
I104: 102 | J104: 199 | K104: 12
I105: 103 | J105: 198 | K105: 12
I106: 104 | J106: 197 | K106: 12
I107: 105 | J107: 196 | K107: 12
I108: 106 | J108: 195 | K108: 12
I109: 107 | J109: 194 | K109: 12
I110: 108 | J110: 193 | K110: 12
I111: 109 | J111: 192 | K111: 12
I112: 110 | J112: 191 | K112: 12
I113: 111 | J113: 190 | K113: 12
I114: 112 | J114: 189 | K114: 13
I115: 113 | J115: 188 | K115: 13
I116: 114 | J116: 187 | K116: 13
I117: 115 | J117: 186 | K117: 13
I118: 116 | J118: 185 | K118: 13
I119: 117 | J119: 184 | K119: 13
I120: 118 | J120: 183 | K120: 13
I121: 119 | J121: 182 | K121: 13
I122: 120 | J122: 181 | K122: 13
I123: 121 | J123: 180 | K123: 13
I124: 122 | J124: 179 | K124: 14
I125: 123 | J125: 178 | K125: 14
I126: 124 | J126: 177 | K126: 14
I127: 125 | J127: 176 | K127: 14
I128: 126 | J128: 175 | K128: 14
I129: 127 | J129: 174 | K129: 14
I130: 128 | J130: 173 | K130: 14
I131: 129 | J131: 172 | K131: 14
I132: 130 | J132: 171 | K132: 14
I133: 131 | J133: 170 | K133: 14
I134: 132 | J134: 169 | K134: 15
I135: 133 | J135: 168 | K135: 15
I136: 134 | J136: 167 | K136: 15
I137: 135 | J137: 166 | K137: 15
I138: 136 | J138: 165 | K138: 15
I139: 137 | J139: 164 | K139: 15
I140: 138 | J140: 163 | K140: 15
I141: 139 | J141: 162 | K141: 15
I142: 140 | J142: 161 | K142: 15
I143: 141 | J143: 160 | K143: 16
I144: 142 | J144: 159 | K144: 16
I145: 143 | J145: 158 | K145: 16
I146: 144 | J146: 157 | K146: 16
I147: 145 | J147: 156 | K147: 16
I148: 146 | J148: 155 | K148: 16
I149: 147 | J149: 154 | K149: 16
I150: 148 | J150: 153 | K150: 16
I151: 149 | J151: 152 | K151: 16
I152: 150 | J152: 151 | K152: 16
I153: 151 | J153: 150 | K153: 16
I154: 152 | J154: 149 | K154: 16
I155: 153 | J155: 148 | K155: 16
I156: 154 | J156: 147 | K156: 16
I157: 155 | J157: 146 | K157: 16
I158: 156 | J158: 145 | K158: 16
I159: 157 | J159: 144 | K159: 16
I160: 158 | J160: 143 | K160: 16
I161: 159 | J161: 142 | K161: 16
I162: 160 | J162: 141 | K162: 16
I163: 161 | J163: 140 | K163: 16
I164: 162 | J164: 139 | K164: 16
I165: 163 | J165: 138 | K165: 16
I166: 164 | J166: 137 | K166: 16
I167: 165 | J167: 136 | K167: 16
I168: 166 | J168: 135 | K168: 16
I169: 167 | J169: 134 | K169: 16
I170: 168 | J170: 133 | K170: 16
I171: 169 | J171: 132 | K171: 16
I172: 170 | J172: 131 | K172: 16
I173: 171 | J173: 130 | K173: 17
I174: 172 | J174: 129 | K174: 17
I175: 173 | J175: 128 | K175: 17
I176: 174 | J176: 127 | K176: 17
I177: 175 | J177: 126 | K177: 17
I178: 176 | J178: 125 | K178: 17
I179: 177 | J179: 124 | K179: 17
I180: 178 | J180: 123 | K180: 17
I181: 179 | J181: 122 | K181: 17
I182: 180 | J182: 121 | K182: 17
I183: 181 | J183: 120 | K183: 17
I184: 182 | J184: 119 | K184: 17
I185: 183 | J185: 118 | K185: 17
I186: 184 | J186: 117 | K186: 17
I187: 185 | J187: 116 | K187: 17
I188: 186 | J188: 115 | K188: 17
I189: 187 | J189: 114 | K189: 17
I190: 188 | J190: 113 | K190: 17
I191: 189 | J191: 112 | K191: 17
I192: 190 | J192: 111 | K192: 17
I193: 191 | J193: 110 | K193: 17
I194: 192 | J194: 109 | K194: 17
I195: 193 | J195: 108 | K195: 17
I196: 194 | J196: 107 | K196: 17
I197: 195 | J197: 106 | K197: 17
I198: 196 | J198: 105 | K198: 17
I199: 197 | J199: 104 | K199: 17
I200: 198 | J200: 103 | K200: 17
I201: 199 | J201: 102 | K201: 17
... 92 more rows

Sheet Световые короба (hidden)
D2: за ед.
A3: Высота | B3: Ширина | C3: Площадь | D3: Периметр
A4: 100 | B4: 100 | C4: =B4*A4/10000 -> 1 | D4: =(A4*2+B4*2)/100 -> 4 | E4: Алюминий+LED | F4: Алюминий+сотовый+лампы | G4: Короб из ALS и Элькамета | H4: Эконом-LED+ | I4: Эконом-LED | J4: Металл+сотовый | K4: Металл+акрил | L4: Баннер | M4: Композит | N4: Композит + инкрустация
A5: Периметр, м | B5: =((A4*2)+(B4*2))/100 -> 4
A7: Проф труба | C7: 6 | D7: 200 | J7: =C7*D7*C4 -> 1200 | K7: =J7 -> 1200 | L7: =C7*D7*C4 -> 1200 | M7: =L7 -> 1200 | N7: =M7 -> 1200
A8: Профиль
B9: 1. Оцинкованная сталь | D9: 450 | J9: =(D4*0.35)*D9 -> 630 | K9: =J9 -> 630 | L9: =J9 -> 630
B10: 2. Алюминиевый
C11: 60 мм
C12: 100 мм
C13: 130 мм | D13: 226 | E13: =D13*(A4*2)*(B4*2)/10000 -> 904 | F13: =E13 -> 904 | H13: =D13*(A4*2)*(B4*2)/10000 -> 904 | I13: =D13*(A4*2)*(B4*2)/10000 -> 904
C14: 160 мм
C15: 180 мм
B16: 3. Композитная панель
B17: 4. ALS | D17: 240 | G17: =B5*D17 -> 960
B18: 5. Элькамет | D18: 170 | G18: =B5*D18 -> 680
A19: Уголки | D19: 100 | E19: =D19*4 -> 400 | F19: =E19 -> 400 | H19: =D19*4 -> 400 | I19: =H19 -> 400
A20: Провода, крепёж, покраска | D20: 200 | E20: =D20*C4 -> 200 | F20: =D20*C4 -> 200 | G20: =D20*C4 -> 200 | H20: =D20*C4 -> 200 | I20: =D20*C4 -> 200 | J20: =200*C4 -> 200 | K20: =200*C4 -> 200 | M20: =C4*200 -> 200 | N20: =C4*200 -> 200
A21: Плёнка 8500 | D21: =C4*Матер!D44 -> 605 | E21: =D21 -> 605 | F21: =E21 -> 605 | G21: =F21 -> 605 | H21: =E21 -> 605 | I21: =H21 -> 605 | J21: =I21 -> 605 | K21: =J21 -> 605
A22: Лицевая
B23: акрил | E23: =C4*Матер!E12 -> 1129.666667 | G23: =Матер!E12*'Световые короба'!C4 -> 1129.666667 | I23: =C4*Матер!E12 -> 1129.666667 | K23: =C4*Матер!E12 -> 1129.666667
B24: сотовый поликарбонат | F24: =Матер!D24*'Световые короба'!C4 -> 215 | H24: =Матер!D24*'Световые короба'!C4 -> 215 | J24: =Матер!D24*'Световые короба'!C4 -> 215 | K24: =Матер!E24*'Световые короба'!D4 -> 0
B25: баннер | D25: 625 | L25: ='Световые короба калькулятор'!G78633=C4*D25 -> FALSE
B26: Композитная панель
C27: 100 мм | M27: =((A4+12)*(B4+12)/10000)*Матер!D29 -> 1009.792
A28: Задняя часть | C28: 130 мм
B29: Оцинкованная сталь | E29: =C4*Матер!D28 -> 340 | F29: =E29 -> 340 | G29: =F29 -> 340 | H29: =C4*Матер!D28 -> 340 | I29: =H29 -> 340 | J29: =E29 -> 340 | K29: =F29 -> 340 | L29: =K29 -> 340 | M29: =L29 -> 340 | N29: =M29 -> 340
B30: Композитная панель
A31: Подсветка
B32: Ленты светодиодные | D32: 120 | H32: =(A4*(B4/10)/100)*D32 -> 1200 | I32: =H32 -> 1200
B33: Лампы | C33: 6 мес | F33: 1200
B34: Светодиоды
C35: 1 год | D35: 1300 | E35: =C4*1300 -> 1300 | G35: =E35 -> 1300 | J35: =C4*1300 -> 1300 | K35: =C4*1300 -> 1300 | M35: 1300
C36: 3 года | D36: 1600 | L36: 1035
C37: 5 лет
A38: Акрил 10 мм
A39: БП | E39: 1300 | G39: =E39 -> 1300 | H39: =E39 -> 1300 | I39: =H39 -> 1300 | J39: =E39 -> 1300 | K39: 1300 | L39: =1300 -> 1300 | M39: 1300
A40: Фрезеровка | D40: 50 | M40: =D4*3*D40 -> 600
A41: Работы | E41: =C4*800 -> 800 | F41: =C4*1000 -> 1000 | G41: =C4*1600 -> 1600 | H41: =C4*800 -> 800 | I41: =C4*800 -> 800 | J41: =C4*1000 -> 1000 | K41: =C4*1000 -> 1000 | M41: =C4*800 -> 800 | N41: 1000
A42: Транспорт | I42: =H42 -> 0
E43: =SUM(E8:E42) -> 6978.666667 | F43: =SUM(F8:F42) -> 4864 | G43: =SUM(G8:G42) -> 8114.666667 | H43: =SUM(H8:H42) -> 5964 | I43: =SUM(I5:I42) -> 6878.666667 | J43: =SUM(J5:J42) -> 6790 | K43: =SUM(K5:K42) -> 7704.666667 | M43: =SUM(M5:M42) -> 6749.792 | N43: =SUM(N5:N42) -> 2740
A44: Прибыль | D44: 0.8 | E44: =E43*D44 -> 5582.933333 | F44: =F43*D44 -> 3891.2 | G44: =G43*D44 -> 6491.733333 | H44: =H43*D44 -> 4771.2 | I44: =I43*D44 -> 5502.933333 | J44: =J43*D44 -> 5432 | K44: =K43*D44 -> 6163.733333 | M44: =M43*D44 -> 5399.8336 | N44: =N43*D44 -> 2192
A45: Итого | E45: =E44+E43 -> 12561.6 | F45: =F44+F43 -> 8755.2 | G45: =G44+G43 -> 14606.4 | H45: =H44+H43 -> 10735.2 | I45: =I43+I44 -> 12381.6 | J45: =J44+J43 -> 12222 | K45: =K44+K43 -> 13868.4 | M45: =M44+M43 -> 12149.6256 | N45: =N44+N43 -> 4932

Sheet Световые короба калькулятор
C2: Расчет
C4: Высота (см) | D4: Ширина (см) | E4: Площадь (м2) | F4: Периметр (м)
C5: 200 | D5: 500 | E5: =D5*C5/10000 -> 10 | F5: =(C5+D5)*2/100 -> 14 | H5: Колонки для сметы | N5: Инструкция:
E7: Стоимость за ед. | F7: Сумма | H7: Статья затрат | I7: Ед.изм. | J7: Цена за ед. | K7: Расход | N7: 1. Выбираем тип короба - устанавливаются значения по умолчанию
C9: Короб: | D9: Композит | N9: 2. Если нужно корректировать - корректировка выбором допустимых значений
C11: Проф труба: | F11: =IFERROR(VLOOKUP(MID(C11,1,LEN(C11)-1),ТаблицаСвод[#All],MATCH($D$9,ТаблицаСвод[#Headers],0),FALSE),0) -> 12000 | H11: =CONCATENATE(C11," ",D11," ",D14) -> Проф труба: | J11: =E11 -> 0 | N11: 3. Если при выборе значения сумма=0.00, то данное значение не предусмотрено для выбраного типа короба (следует из таблицы внизу)
C13: Профиль: | E13: =IFERROR(VLOOKUP(TRIM(MID(C13,1,LEN(C13)-1)&" "&D13&" "&D16),ТаблицаСвод[[#All],[Наименование Прайс]:[Баннер]],2,FALSE),0) -> 0 | F13: =IFERROR(VLOOKUP(TRIM(MID(C13,1,LEN(C13)-1)&" "&D13&" "&D16),ТаблицаСвод[[#All],[Наименование Прайс]:[Баннер]],MATCH($D$9,ТаблицаСвод[[#Headers],[Наименование Прайс]:[Баннер]],0),FALSE),0) -> 0 | H13: =CONCATENATE(C13," ",D13," ",D16) -> Профиль: | J13: =E13 -> 0 | N13: 4. Если предварительный расчет устраивает - нажимаем кнопку "Создать смету"
C14: Профиль: | E14: =IFERROR(VLOOKUP(TRIM(MID(C14,1,LEN(C14)-1)&" "&D14&" "&D16),ТаблицаСвод[[#All],[Наименование Прайс]:[Баннер]],2,FALSE),0) -> 0 | F14: =IFERROR(VLOOKUP(TRIM(MID(C14,1,LEN(C14)-1)&" "&D14&" "&D16),ТаблицаСвод[[#All],[Наименование Прайс]:[Баннер]],MATCH($D$9,ТаблицаСвод[[#Headers],[Наименование Прайс]:[Баннер]],0),FALSE),0) -> 0 | H14: =CONCATENATE(C14," ",D14," ",D17) -> Профиль: | J14: =E14 -> 0
C16: Толщина: | N16: 5. На листе "Смета" - стирается предыдущая смета и вставляется текущая. Выдается сообщение и Вы попадаете на лист "Смета"
C18: Уголки: | E18: =IFERROR(VLOOKUP(MID(C18,1,LEN(C18)-1),ТаблицаСвод[#All],5,FALSE),0) -> 100 | F18: =IFERROR(VLOOKUP(MID(C18,1,LEN(C18)-1),ТаблицаСвод[#All],MATCH($D$9,ТаблицаСвод[#Headers],0),FALSE),0) -> 0 | H18: =CONCATENATE(C18," ",D18) -> Уголки: | I18: шт. | J18: =E18 -> 100 | K18: 4
C20: Провода, крепёж, покраска: | E20: =IFERROR(VLOOKUP(MID(C20,1,LEN(C20)-1),ТаблицаСвод[#All],5,FALSE),0) -> 200 | F20: =IFERROR(IF(VLOOKUP(MID(C20,1,LEN(C20)-1),ТаблицаСвод[#All],MATCH($D$9,ТаблицаСвод[#Headers],0),FALSE)>200,VLOOKUP(MID(C20,1,LEN(C20)-1),ТаблицаСвод[#All],MATCH($D$9,ТаблицаСвод[#Headers],0),FALSE),300),0) -> 2000 | H20: =CONCATENATE(C20," ",D20) -> Провода, крепёж, покраска: | I20: шт. | J20: =E20 -> 200 | K20: 1
C22: Плёнка 8500: | E22: =IFERROR(VLOOKUP(MID(C22,1,LEN(C22)-1),ТаблицаСвод[#All],5,FALSE),0) -> 605 | F22: =IFERROR(VLOOKUP(MID(C22,1,LEN(C22)-1),ТаблицаСвод[#All],MATCH($D$9,ТаблицаСвод[#Headers],0),FALSE),0) -> 0 | H22: =CONCATENATE(C22," ",D22) -> Плёнка 8500: | I22: шт. | J22: =E22 -> 605 | K22: 1
C24: Лицевая: | D24: Композитная панель | E24: =IFERROR(VLOOKUP(TRIM(MID(C24,1,LEN(C24)-1)&" "&D24&" "&D26),ТаблицаСвод[[#All],[Наименование Прайс]:[Композит + инкрустация]],2,FALSE),0) -> 625 | F24: =IFERROR(VLOOKUP(TRIM(MID(C24,1,LEN(C24)-1)&" "&D24&" "&D26),ТаблицаСвод[[#All],[Наименование Прайс]:[Композит + инкрустация]],MATCH($D$9,ТаблицаСвод[[#Headers],[Наименование Прайс]:[Композит + инкрустация]],0),FALSE),0) -> 6920.3125 | H24: =CONCATENATE(C24," ",D24," ",D26) -> Лицевая: Композитная панель 130 мм | J24: =E24 -> 625
C25: % акрила:
C26: Толщина: | D26: 130 мм
C28: Задняя часть: | D28: Оцинкованная сталь | E28: =IFERROR(VLOOKUP(TRIM(MID(C28,1,LEN(C28)-1)&" "&D28&" "&D29),ТаблицаСвод[[#All],[Наименование Прайс]:[Композит + инкрустация]],2,FALSE),0) -> 340 | F28: =IFERROR(VLOOKUP(TRIM(MID(C28,1,LEN(C28)-1)&" "&D28&" "&D29),ТаблицаСвод[[#All],[Наименование Прайс]:[Композит + инкрустация]],MATCH($D$9,ТаблицаСвод[[#Headers],[Наименование Прайс]:[Композит + инкрустация]],0),FALSE),0) -> 3400 | H28: =CONCATENATE(C28," ",D28) -> Задняя часть: Оцинкованная сталь | J28: =E28 -> 340
C30: Подсветка: | D30: Светодиоды 1 год | E30: =IFERROR(VLOOKUP(TRIM(MID(C30,1,LEN(C30)-1)&" "&D30),ТаблицаСвод[[#All],[Наименование Прайс]:[Баннер]],2,FALSE),0) -> 1300 | F30: =IFERROR(VLOOKUP(TRIM(MID(C30,1,LEN(C30)-1)&" "&D30),ТаблицаСвод[[#All],[Наименование Прайс]:[Композит + инкрустация]],MATCH($D$9,ТаблицаСвод[[#Headers],[Наименование Прайс]:[Композит + инкрустация]],0),FALSE),0) -> 13000 | H30: =CONCATENATE(C30," ",D30) -> Подсветка: Светодиоды 1 год | J30: =E30 -> 1300
C32: БП: | E32: =IFERROR(VLOOKUP(MID(C32,1,LEN(C32)-1),ТаблицаСвод[#All],5,FALSE),0) -> 1300 | F32: =IFERROR(VLOOKUP(MID(C32,1,LEN(C32)-1),ТаблицаСвод[#All],MATCH($D$9,ТаблицаСвод[#Headers],0),FALSE),0) -> 1300 | H32: =CONCATENATE(C32," ",D32) -> БП: | J32: =E32 -> 1300
C34: Фрезеровка: | E34: =IFERROR(VLOOKUP(MID(C34,1,LEN(C34)-1),ТаблицаСвод[#All],5,FALSE),0) -> 50 | F34: =IFERROR(VLOOKUP(MID(C34,1,LEN(C34)-1),ТаблицаСвод[#All],MATCH($D$9,ТаблицаСвод[#Headers],0),FALSE),0) -> 2100 | H34: =CONCATENATE(C34," ",D34) -> Фрезеровка: | J34: =E34 -> 50
C36: Работы: | E36: =IFERROR(VLOOKUP(MID(C36,1,LEN(C36)-1),ТаблицаСвод[#All],5,FALSE),0) -> 0 | F36: =IFERROR(VLOOKUP(MID(C36,1,LEN(C36)-1),ТаблицаСвод[#All],MATCH($D$9,ТаблицаСвод[#Headers],0),FALSE),0) -> 8000 | H36: =CONCATENATE(C36," ",D36) -> Работы: | J36: =E36 -> 0
C38: Транспорт: | E38: =IFERROR(VLOOKUP(MID(C38,1,LEN(C38)-1),ТаблицаСвод[#All],5,FALSE),0) -> 0 | F38: =IFERROR(VLOOKUP(MID(C38,1,LEN(C38)-1),ТаблицаСвод[#All],MATCH($D$9,ТаблицаСвод[#Headers],0),FALSE),0) -> 0 | H38: =CONCATENATE(C38," ",D38) -> Транспорт: | J38: =E38 -> 0
C40: Прибыль: | D40: 0.8 | F40: =(F11+F13+F14+F18+F20+F22+F24+F28+F30+F32+F36+F38)*D40 -> 37296.25 | H40: =CONCATENATE(C40) -> Прибыль: | I40: % | J40: =E40 -> 0 | K40: =D40*100 -> 80
C42: ИТОГ: | F42: =(F11+F13+F14+F18+F20+F22+F24+F28+F30+F32+F36+F38)+F40 -> 83916.5625
B46: ID | C46: Профили | D46: 2 | F46: Лицевая | H46: Подсветка | I46: Столбец1 | K46: ID | L46: Профиль | M46: Толщина
B47: 1 | C47: Оцинкованная сталь | F47: акрил | H47: Ленты светодиодные | K47: 1 | L47: Алюминий | M47: 60 мм
B48: 2 | C48: Алюминий | F48: сотовый поликарбонат | H48: Лампы 6 мес | K48: 2 | L48: Алюминий | M48: 100 мм
B49: 3 | C49: Металл | F49: баннер | H49: Светодиоды 3 года | K49: 3 | L49: Алюминий | M49: 130 мм
B50: 4 | C50: Композитный | F50: Композитная панель | K50: 4 | L50: Алюминий | M50: 160 мм
B51: 5 | C51: ALS | K51: 5 | L51: Алюминий | M51: 180 мм
B52: 6 | C52: Элькамет | K52: 6 | L52: Металл | M52: 160 мм
K53: 7 | L53: Металл | M53: 180 мм
F54: Задняя часть | K54: 8 | L54: Металл | M54: 200 мм
F55: Оцинкованная сталь | K55: 9 | L55: Композитный | M55: 100 мм
F56: Композитная панель | K56: 10 | L56: Композитный | M56: 130 мм
K57: 11 | L57: Композитный | M57: 160 мм
K58: 12 | L58: Композитный | M58: 180 мм
C61: Компоненты | D61: Материал | E61: Толщина | F61: Наименование Прайс | G61: Цена прайс | H61: Алюминий+LED | I61: Алюминий+сотовый+лампы | J61: Короб из ALS и Элькамета | K61: Эконом-LED+ | L61: Эконом-LED | M61: Металл+сотовый | N61: Металл+акрил | O61: Баннер | P61: Композит | Q61: Композит + инкрустация
C62: Проф труба | E62: 6 | G62: 200 | M62: =$E$5*ТаблицаСвод[[#This Row],[Толщина]]*ТаблицаСвод[[#This Row],[Цена прайс]] -> 12000 | N62: =$E$5*ТаблицаСвод[[#This Row],[Толщина]]*ТаблицаСвод[[#This Row],[Цена прайс]] -> 12000 | O62: =$E$5*ТаблицаСвод[[#This Row],[Толщина]]*ТаблицаСвод[[#This Row],[Цена прайс]] -> 12000 | P62: =$E$5*ТаблицаСвод[[#This Row],[Толщина]]*ТаблицаСвод[[#This Row],[Цена прайс]] -> 12000 | Q62: =$E$5*ТаблицаСвод[[#This Row],[Толщина]]*ТаблицаСвод[[#This Row],[Цена прайс]] -> 12000
C63: Профиль | D63: Оцинкованная сталь | F63: =TRIM(C63&" "&D63&" "&E63) -> Профиль Оцинкованная сталь | G63: 450 | M63: =$F$5*ТаблицаСвод[[#This Row],[Цена прайс]]*0.35 -> 2205 | N63: =$F$5*ТаблицаСвод[[#This Row],[Цена прайс]]*0.35 -> 2205 | O63: =$F$5*ТаблицаСвод[[#This Row],[Цена прайс]]*0.35 -> 2205
C64: Профиль | D64: Алюминий | E64: 60 мм | F64: =TRIM(C64&" "&D64&" "&E64) -> Профиль Алюминий 60 мм | G64: =VLOOKUP(F64,Матер!$B$101:$D$127,3,FALSE) -> 226 | H64: =$G64*($C$5*2)*($D$5*2)/10000 -> 9040 | I64: =$G64*($C$5*2)*($D$5*2)/10000 -> 9040 | K64: =$G64*($C$5*2)*($D$5*2)/10000 -> 9040 | L64: 9040
C65: Профиль | D65: Алюминий | E65: 100 мм | F65: =TRIM(C65&" "&D65&" "&E65) -> Профиль Алюминий 100 мм | G65: =VLOOKUP(F65,Матер!$B$101:$D$127,3,FALSE) -> 240 | H65: =$G65*($C$5*2)*($D$5*2)/10000 -> 9600 | I65: 9600 | K65: 9600 | L65: 9600
C66: Профиль | D66: Алюминий | E66: 130 мм | F66: Профиль Алюминий 130 мм | G66: 226 | H66: 9040 | I66: 9040 | K66: 9040 | L66: 9040
C67: Профиль | D67: Алюминий | E67: 160 мм | F67: Профиль Алюминий 160 мм | G67: =VLOOKUP(F67,Матер!$B$101:$D$127,3,FALSE) -> 300 | H67: 12000 | I67: 12000 | K67: 12000 | L67: 12000
C68: Профиль | D68: Алюминий | E68: 180 мм | F68: Профиль Алюминий 180 мм | G68: =VLOOKUP(F68,Матер!$B$101:$D$127,3,FALSE) -> 320 | H68: 12800 | I68: 12800 | K68: 12800 | L68: 12800
C69: Профиль | D69: Металл | E69: 160 мм | F69: Профиль Металл 160 мм | G69: =VLOOKUP(F69,Матер!$B$101:$D$127,3,FALSE) -> 315 | H69: 12600 | I69: 12600 | K69: 12600 | L69: 12600
C70: Профиль | D70: Металл | E70: 180 мм | F70: Профиль Металл 180 мм | G70: =VLOOKUP(F70,Матер!$B$101:$D$127,3,FALSE) -> 330 | H70: 13200 | I70: 13200 | K70: 13200 | L70: 13200
C71: Профиль | D71: Металл | E71: 200 мм | F71: Профиль Металл 200 мм | G71: =VLOOKUP(F71,Матер!$B$101:$D$127,3,FALSE) -> 400 | H71: 16000 | I71: 16000 | K71: 16000 | L71: 16000
C72: Профиль | D72: Композитный | E72: 100 мм | F72: Профиль Композитный 100 мм | G72: =VLOOKUP(F72,Матер!$B$101:$D$127,3,FALSE) -> 200 | H72: 8000 | I72: 8000 | K72: 8000 | L72: 8000
C73: Профиль | D73: Композитный | E73: 130 мм | F73: Профиль Композитный 130 мм | G73: =VLOOKUP(F73,Матер!$B$101:$D$127,3,FALSE) -> 230 | H73: 9200 | I73: 9200 | K73: 9200 | L73: 9200
C74: Профиль | D74: Композитный | E74: 160 мм | F74: Профиль Композитный 160 мм | G74: =VLOOKUP(F74,Матер!$B$101:$D$127,3,FALSE) -> 250 | H74: 10000 | I74: 10000 | K74: 10000 | L74: 10000
C75: Профиль | D75: Композитный | E75: 180 мм | F75: Профиль Композитный 180 мм | G75: =VLOOKUP(F75,Матер!$B$101:$D$127,3,FALSE) -> 260 | H75: 10400 | I75: 10400 | K75: 10400 | L75: 10400
C76: Профиль | D76: ALS | F76: Профиль ALS | G76: =VLOOKUP(F76,Матер!$B$101:$D$127,3,FALSE) -> 240 | J76: =$F$5*ТаблицаСвод[[#This Row],[Цена прайс]] -> 3360
C77: Профиль | D77: Элькамет | F77: Профиль Элькамет | G77: =VLOOKUP(F77,Матер!$B$101:$D$127,3,FALSE) -> 170 | J77: =$F$5*ТаблицаСвод[[#This Row],[Цена прайс]] -> 2380
C78: Уголки | F78: Уголки | G78: =VLOOKUP(F78,Матер!$B$101:$D$127,3,FALSE) -> 100 | H78: =$G78*4 -> 400 | I78: =$G78*4 -> 400 | K78: =$G78*4 -> 400 | L78: =$G78*4 -> 400
C79: Провода, крепёж, покраска | F79: Провода, крепёж, покраска | G79: =VLOOKUP(F79,Матер!$B$101:$D$127,3,FALSE) -> 200 | H79: =$G79*$E$5 -> 2000 | I79: =$G79*$E$5 -> 2000 | J79: 2000 | K79: 2000 | L79: 2000 | M79: 2000 | N79: 2000 | P79: 2000 | Q79: 2000
C80: Плёнка 8500 | F80: =Матер!B44 -> Пленка Oracal 8500 | G80: =VLOOKUP(F80,Матер!$B$1:$D$115,3,FALSE) -> 605 | H80: =$G80*$E$5 -> 6050 | I80: 6050 | J80: 6050 | K80: 6050 | L80: 6050 | M80: 6050 | N80: 6050
C81: Лицевая | D81: акрил | F81: Лицевая акрил | G81: =D25*Матер!$E$12 -> 0 | P81: =$E$5*ТаблицаСвод[[#This Row],[Цена прайс]]*$D$25 -> 0 | Q81: =$E$5*ТаблицаСвод[[#This Row],[Цена прайс]]*$D$25 -> 0
C82: Лицевая | D82: сотовый поликарбонат | F82: Лицевая сотовый поликарбонат | G82: =Матер!D24 -> 215 | I82: =$E$5*ТаблицаСвод[[#This Row],[Цена прайс]] -> 2150 | K82: =$E$5*ТаблицаСвод[[#This Row],[Цена прайс]] -> 2150 | M82: =$E$5*ТаблицаСвод[[#This Row],[Цена прайс]] -> 2150
C83: Лицевая | D83: баннер | F83: Лицевая баннер | G83: 625 | O83: =$E$5*ТаблицаСвод[[#This Row],[Цена прайс]] -> 6250
C84: Лицевая | D84: Композитная панель | E84: 100 мм | F84: =TRIM(C84&" "&D84&" "&E84) -> Лицевая Композитная панель 100 мм | G84: 625 | P84: =($C$5+12)*($D$5+12)/10000*ТаблицаСвод[[#This Row],[Цена прайс]] -> 6784
C85: Лицевая | D85: Композитная панель | E85: 130 мм | F85: =TRIM(C85&" "&D85&" "&E85) -> Лицевая Композитная панель 130 мм | G85: 625 | P85: =($C$5+15)*($D$5+15)/10000*ТаблицаСвод[[#This Row],[Цена прайс]] -> 6920.3125
C86: Задняя часть | D86: Оцинкованная сталь | F86: Задняя часть Оцинкованная сталь | G86: =Матер!D28 -> 340 | H86: =$E$5*ТаблицаСвод[[#This Row],[Цена прайс]] -> 3400 | I86: =$E$5*ТаблицаСвод[[#This Row],[Цена прайс]] -> 3400 | J86: =$E$5*ТаблицаСвод[[#This Row],[Цена прайс]] -> 3400 | K86: =$E$5*ТаблицаСвод[[#This Row],[Цена прайс]] -> 3400 | L86: =$E$5*ТаблицаСвод[[#This Row],[Цена прайс]] -> 3400 | M86: =$E$5*ТаблицаСвод[[#This Row],[Цена прайс]] -> 3400 | N86: =$E$5*ТаблицаСвод[[#This Row],[Цена прайс]] -> 3400 | O86: =$E$5*ТаблицаСвод[[#This Row],[Цена прайс]] -> 3400 | P86: =$E$5*ТаблицаСвод[[#This Row],[Цена прайс]] -> 3400 | Q86: =$E$5*ТаблицаСвод[[#This Row],[Цена прайс]] -> 3400
C87: Задняя часть | D87: Композитная панель | F87: Задняя часть Композитная панель | G87: =Матер!D29 -> 805
C88: Подсветка | D88: Ленты светодиодные | F88: Подсветка Ленты светодиодные | G88: 120 | K88: =$C$5*($D$5/10)/100*ТаблицаСвод[[#This Row],[Цена прайс]] -> 12000 | L88: =$C$5*($D$5/10)/100*ТаблицаСвод[[#This Row],[Цена прайс]] -> 12000
C89: Подсветка | D89: Лампы | E89: 6 мес | F89: Подсветка Лампы 6 мес | G89: 1200 | I89: =$E$5*ТаблицаСвод[[#This Row],[Цена прайс]] -> 12000
C90: Подсветка | D90: Светодиоды | E90: 1 год | F90: Подсветка Светодиоды 1 год | G90: 1300 | H90: =$E$5*ТаблицаСвод[[#This Row],[Цена прайс]] -> 13000 | J90: =$E$5*ТаблицаСвод[[#This Row],[Цена прайс]] -> 13000 | M90: =$E$5*ТаблицаСвод[[#This Row],[Цена прайс]] -> 13000 | N90: =$E$5*ТаблицаСвод[[#This Row],[Цена прайс]] -> 13000 | P90: =$E$5*ТаблицаСвод[[#This Row],[Цена прайс]] -> 13000
C91: Подсветка | D91: Светодиоды | E91: 3 года | F91: Подсветка Светодиоды 3 года | G91: 1600 | O91: 1035
C92: Подсветка | D92: Светодиоды | E92: 5 лет | F92: Подсветка Светодиоды 5 лет | G92: =VLOOKUP(F92,Матер!$B$101:$D$127,3,FALSE) -> 100
C93: БП | G93: 1300 | H93: =ТаблицаСвод[[#This Row],[Цена прайс]] -> 1300 | J93: =ТаблицаСвод[[#This Row],[Цена прайс]] -> 1300 | K93: =ТаблицаСвод[[#This Row],[Цена прайс]] -> 1300 | L93: =ТаблицаСвод[[#This Row],[Цена прайс]] -> 1300 | M93: =ТаблицаСвод[[#This Row],[Цена прайс]] -> 1300 | N93: =ТаблицаСвод[[#This Row],[Цена прайс]] -> 1300 | O93: =ТаблицаСвод[[#This Row],[Цена прайс]] -> 1300 | P93: =ТаблицаСвод[[#This Row],[Цена прайс]] -> 1300
C94: Фрезеровка | G94: 50 | P94: =$F$5*3*ТаблицаСвод[[#This Row],[Цена прайс]] -> 2100
C95: Работы | G95: 0 | H95: =$E$5*800 -> 8000 | I95: =$E$5*1000 -> 10000 | J95: =$E$5*1600 -> 16000 | K95: =$E$5*800 -> 8000 | L95: =$E$5*800 -> 8000 | M95: =$E$5*1000 -> 10000 | N95: =$E$5*1000 -> 10000 | P95: =$E$5*800 -> 8000 | Q95: =$E$5*1000 -> 10000
C96: Транспорт | G96: 0

Sheet Смета
C2: Коммерческое предложение на изготовление и монтаж рекламной накрышной установки для магазина "Посуда Центр" в г. Нижнем Новгороде на ТЦ "ЖАРПТИЦА"
B4: Подрядчик "Белый Сокол"
A6: № п/п | B6: Магазин | C6: Наименование | D6: Кол-во, шт. | E6: Размеры, мм | F6: калькуляция
F7: статья затрат | G7: ед.изм. | H7: расход | I7: цена за ед. | J7: сумма
A8: 1 | B8: Посуда центр | C8: Изготовление и монтаж накрышной установки | D8: 1 | E8: 5000x2000 | F8: Проф труба: | I8: 0 | J8: 12000
A9: 2 | F9: Провода, крепёж, покраска: | G9: шт. | H9: 1 | I9: 200 | J9: 2000
A10: 3 | F10: Лицевая: акрил | I10: 338.9 | J10: 1016.7
A11: 4 | F11: Задняя часть: Оцинкованная сталь | I11: 340 | J11: 3400
A12: 5 | F12: Работы: | I12: 0 | J12: 10000
A13: 6 | F13: Прибыль: | G13: % | H13: 80 | I13: 0 | J13: 22733.36
F15: ИТОГО к оплате: | J15: =SUM(J8:J13) -> 51150.06
B20: Срок изготовления - 15 рабочих дней.
B21: Гарантия на весь спектр работ 3 года.
B29: Директор | E29: Макаренко М.А.

Sheet Смета (образец) (hidden)
C2: Коммерческое предложение на изготовление и монтаж рекламной накрышной установки для магазина "Посуда Центр" в г. Нижнем Новгороде на ТЦ "ЖАРПТИЦА"
B4: Подрядчик "Белый Сокол"
A6: № п/п | B6: Магазин | C6: Наименование | D6: Кол-во, шт. | E6: Размеры, мм | F6: калькуляция
F7: статья затрат | G7: ед.изм. | H7: расход | I7: цена за ед. | J7: сумма
A8: 1 | B8: Посуда Центр | C8: Изгготовление и монтаж накрышной установки | D8: 1 | E8: 12000х2700 | F8: Акрил 3 мм | G8: м2 | H8: 17.5 | I8: 1100 | J8: =H8*I8 -> 19250
A9: 2 | F9: Элькамет | G9: м.п. | H9: 78.6 | I9: 295 | J9: =H9*I9 -> 23187
A10: 3 | F10: Профиль ALS | G10: м.п. | H10: 78.6 | I10: 186 | J10: 14619.6
A11: 4 | F11: Оцинкованная сталь крашенная | G11: м2 | H11: 15 | I11: 350 | J11: 5250
A12: 5 | F12: ПВХ 10 мм | G12: м2 | H12: 17.5 | I12: 1320 | J12: 23100
A13: 6 | F13: Профильная труба (50х50, угол 50х50, 25х25 мм) | G13: м.п. | H13: 320 | I13: 330 | J13: =H13*I13 -> 105600
A14: 7 | F14: Баннер транслюцентный (проклейка, люверсы) | G14: м2 | H14: 12.5 | I14: 780 | J14: 9750
A15: 8 | F15: Светодиодные модули ELF 0,72Вт | G15: шт | H15: 1245 | I15: 45 | J15: 56025
A16: 9 | F16: Блоки питания 100W | G16: шт | H16: 11 | I16: 1170 | J16: 12870
A17: 10 | F17: Аммортизация оборудования | J17: =(SUM(J8:J16)*0.05) -> 13482.58
A18: 11 | F18: Транспортные расходы | J18: 30000
A19: 12 | F19: З/пл основное производство | J19: 63715
A20: 13 | F20: Спецтехника Кран и АГП | J20: 23000
A21: 14 | F21: Монтаж | J21: 67000
A22: 15 | F22: Сумма | J22: =SUM(J8:J21) -> 466849.18
A23: 16 | F23: Прибыль | G23: % | H23: 25 | J23: =J22*0.25 -> 116712.295
A24: 17 | F24: ИТОГО: | J24: =J22+J23 -> 583561.475
F25: ИТОГО к оплате: | J25: =J24 -> 583561.475
B31: Срок изготовления - 15 рабочих дней.
B32: Гарантия на весь спектр работ 3 года.
B40: Директор | E40: Макаренко М.А.
